{"text_format":"1","workbook":"xlsx","n_sheets":10,"sheets":["Interface","Customer List","Data, Calcs, Selections","Selection Lists","SCC Parts","FPL Copy Paste Sheet","Quote","Notes","BOM","Image Array"],"not_rendered":{"charts":0,"images":17,"macros":1,"external_links":0,"defined_names":3,"comments":0,"pivot_tables":0},"unopened":[],"bounds":{"document_bytes":16777216,"sheet_cells":100000,"rows_first":2000,"rows_last":500,"rows_between":2000,"halvings":0,"cell_chars":16384,"cell_head_chars":4096},"cells_cut":0,"cells_raw":0,"read":"whole","date_system":"1900"}

{"sheet":"Interface","index":0,"n_rows":106,"n_cols":13,"rows_kept":106,"cut":false,"hidden":false,"merged":[[54,0,59,0],[26,0,37,0],[22,0,25,0],[16,0,21,0],[38,0,44,0],[45,0,53,0],[83,3,87,3],[69,7,69,10],[70,7,70,10],[71,7,71,10],[88,3,92,3],[2,14,3,14],[9,11,10,14],[10,3,13,4],[73,3,77,3],[78,3,82,3]]}
[]
[null,null,null,"SCC Gas Valve Sizing Program","Price List"]
[null,null,null,"Revision 1.5 ","PL-S"]
[]
[null,null,null,"Customer:",1]
[null,null,null,"Attn:",1]
[null,null,null,"Quote Date:","1900-01-01"]
[null,null,null,"Quote Maker Initials:",1]
[null,null,null,"Quote Number Today:",1]
[null,null,null,"Total Number of Systems:",1]
[null,null,null,"Directions: Select an answer to each question from the drop down choices. Quote will not be available unless all sections have been noted as \"Complete\" and there are no errors. Once all sections are complete, review the diagram that will appear below. If a different VKG valve is desired select it from the \"Alternate VKG Sizes\" drop down menu (if this input box is left blank the \"Recommended VKG Size\" will be used for the quote).  Once the diagram has been reviewed click the \"Generate Quote\" button at the bottom. "]
[]
[]
[]
[null,"Q#","Hide Show","Question","Selection","Answer","Converted info"]
[null,null,{"$f":"IF(E62=\"Incomplete\",\"Show\",\"Hide\")","v":"Hide"},"Please fill in customer information above. "]
["Gas Train Layout",1,{"$f":"IF(E62=\"Complete\",\"Show\",\"Hide\")","v":"Show"},"Will the gas train use a combination safety shutoff valve and pressure regulator (SKP25), or a traditional upstream regulator with separate safety shutoff valves?",null,{"$f":"IF(Interface[[#This Row],[Selection]]<>\"\",LEFT(Interface[[#This Row],[Selection]],4),0)","v":0}]
[null,2,{"$f":"IF(AND(C17=\"Show\", F17<>0),\"Show\",\"Hide\")","v":"Hide"},"Choose the number of safety shutoff valves.  ",null,{"$f":"IF(AND(C18=\"Show\",E18<>\"\"),E18,0)","v":0},{"$f":"F17&Interface[[#This Row],[Answer]]&IF(G31>3.5,\"High\",\"Low\")","v":"00Low"}]
[null,3,{"$f":"IF(AND(C18=\"Show\", F18=2),\"Show\",\"Hide\")","v":"Hide"},"Is a vent required between the safety shutoff valves?",null,{"$f":"IF(AND(Interface[[#This Row],[Hide Show]]=\"Show\",Interface[[#This Row],[Selection]]<>\"\"),Interface[[#This Row],[Selection]],0)","v":0}]
[null,4,{"$f":"IF(OR(AND(C18=\"Show\",F18=1),AND(C19=\"Show\", F19<>0)),\"Show\",\"Hide\")","v":"Hide"},"Is a firing rate control valve (FRCV) required downstream of the safety shutoff valve(s)? ",null,{"$f":"IF(AND(Interface[[#This Row],[Hide Show]]=\"Show\",Interface[[#This Row],[Selection]]<>\"\"),Interface[[#This Row],[Selection]],0)","v":0}]
[null,5,{"$f":"IF(AND(C20=\"Show\", F20=\"yes\"),\"Show\",\"Hide\")","v":"Hide"},"Is an actuator required for the firing rate control valve?",null,{"$f":"IF(AND(Interface[[#This Row],[Hide Show]]=\"Show\",Interface[[#This Row],[Selection]]<>\"\"),Interface[[#This Row],[Selection]],0)","v":0}]
[null,6,{"$f":"IF(AND(C21=\"Show\", F21=\"yes\"),\"Show\",\"Hide\")","v":"Hide"},"Which actuator is required for this application? note: All SQM40… are NEMA 4",null,{"$f":"IF(AND(Interface[[#This Row],[Hide Show]]=\"Show\",Interface[[#This Row],[Selection]]<>0),Interface[[#This Row],[Selection]],0)","v":0},{"$f":"INDEX(GasActList[#Data],MATCH(Interface[[#This Row],[Answer]],GasActList[Selection],0),MATCH(\"Part #\",GasActList[#Headers],0))","v":{"$error":"#N/A"}}]
["Gas Info",7,{"$f":"IF(OR(\nAND(C22=\"Show\", F22<>0),\nAND(C21=\"Show\",F21=\"No\"),\nAND(C20=\"Show\",F20=\"No\")),\"Show\",\"Hide\")","v":"Hide"},"Specify the gas for this application. \nSee \"Notes\" tab for specific gravities and heating values for standard gasses.","Natural Gas",{"$f":"IF(AND(Interface[[#This Row],[Hide Show]]=\"Show\",Interface[[#This Row],[Selection]]<>\"\"),Interface[[#This Row],[Selection]],0)","v":0},{"$f":"IF(Interface[[#This Row],[Answer]]=\"Digester\",\"Yes\",IF(Interface[[#This Row],[Answer]]=\"0\",\"\",\"No\"))","v":"No"}]
[null,8,{"$f":"IF(AND(C23=\"Show\", F23=\"Custom\"),\"Show\",\"Hide\")","v":"Hide"},"Is the custom gas a bio gas?",null,{"$f":"IF(AND(Interface[[#This Row],[Hide Show]]=\"Show\",Interface[[#This Row],[Selection]]<>\"\"),Interface[[#This Row],[Selection]],IF(F23=\"Digester\",\"Yes\",\"No\"))","v":"No"}]
[null,9,{"$f":"IF(AND(C24=\"Show\", E24<>\"\"),\"Show\",\"Hide\")","v":"Hide"},"Enter a custom specific gravity.",null,{"$f":"IF(AND(Interface[[#This Row],[Hide Show]]=\"Show\",Interface[[#This Row],[Selection]]<>\"\"),Interface[[#This Row],[Selection]],0)","v":0}]
[null,10,{"$f":"IF(AND(C25=\"Show\", F23=\"Custom\",F25<>0),\"Show\",\"Hide\")","v":"Hide"},"Enter a custom heating value. (BTU/SCF)",null,{"$f":"IF(AND(Interface[[#This Row],[Hide Show]]=\"Show\",Interface[[#This Row],[Selection]]<>\"\"),Interface[[#This Row],[Selection]],0)","v":0}]
["Pressure Information",11,{"$f":"IF(OR(\nAND(F17=\"comb\",F23=\"Custom\",C26=\"Show\",F26<>0),\nAND(F17=\"comb\",F23<>\"Custom\",F23<>0,C23=\"show\")), \"Show\",\"Hide\")","v":"Hide"},"Choose units for the gas train supply pressure. ",null,{"$f":"IF(AND(Interface[[#This Row],[Hide Show]]=\"Show\",Interface[[#This Row],[Selection]]<>\"\"),Interface[[#This Row],[Selection]],0)","v":0},{"$f":"INDEX(MaxUnitPress[#Data],MATCH(Interface[[#This Row],[Answer]],MaxUnitPress[Unit],0),MATCH(\"Supply Max\",MaxUnitPress[#Headers],0))","v":{"$error":"#N/A"}}]
[null,12,{"$f":"IF(AND(C27=\"Show\", F27<>0),\"Show\",\"Hide\")","v":"Hide"},"Enter minimum gas train supply pressure.",null,{"$f":"IF(AND(Interface[[#This Row],[Hide Show]]=\"Show\",Interface[[#This Row],[Selection]]<>\"\",F17=\"Trad\"),0.1*Interface[[#This Row],[Selection]],IF(AND(Interface[[#This Row],[Hide Show]]=\"Show\",Interface[[#This Row],[Selection]]<>\"\",F17=\"Comb\"),Interface[[#This Row],[Selection]],0))","v":0},{"$f":"IF(F27=\"PSIG\",Interface[[#This Row],[Answer]],Interface[[#This Row],[Answer]]/27.72)","v":0}]
[null,13,{"$f":"IF(AND(C28=\"Show\",F28<>\"\",G28>20),\"Show\",\"Hide\")","v":"Hide"},"Gas train supply pressure must be less than 20 PSIG (554.4 inWC)"]
[null,14,{"$f":"IF(OR(\nAND(C29=\"Hide\",F17=\"Trad\",F23=\"Custom\",C26=\"Show\",F26<>0),\nAND(C29=\"Hide\",F17=\"Trad\",F23<>\"Custom\",F23<>0,C23=\"show\"),\nAND(C29=\"Hide\",C28=\"Show\",F28<>0)), \"Show\",\"Hide\")","v":"Hide"},"Choose units for the burner manifold pressure. ",null,{"$f":"IF(AND(Interface[[#This Row],[Hide Show]]=\"Show\",Interface[[#This Row],[Selection]]<>\"\"),Interface[[#This Row],[Selection]],0)","v":0},{"$f":"INDEX(MaxUnitPress[#Data],MATCH(Interface[[#This Row],[Answer]],MaxUnitPress[Unit],0),MATCH(\"Supply Max\",MaxUnitPress[#Headers],0))","v":{"$error":"#N/A"}}]
[null,15,{"$f":"IF(AND(C30=\"Show\", F30<>0),\"Show\",\"Hide\")","v":"Hide"},"Enter maximum (high fire) burner manifold pressure.",null,{"$f":"IF(AND(Interface[[#This Row],[Hide Show]]=\"Show\",Interface[[#This Row],[Selection]]<>\"\"),Interface[[#This Row],[Selection]],\"\")","v":""},{"$f":"IF(AND(Interface[[#This Row],[Answer]]<>\"\",F30=\"PSIG\"),Interface[[#This Row],[Answer]],\nIF(AND(Interface[[#This Row],[Answer]]<>\"\",F30=\"inWC\"),Interface[[#This Row],[Answer]]/27.72,0))","v":0}]
[null,16,{"$f":"IF(AND(F17=\"comb\",C31=\"Show\",E31<>\"\",G28<=G31),\"Show\",\"Hide\")","v":"Hide"},"The gas train supply pressure, must exceed burner manifold pressure"]
[null,17,{"$f":"IF(AND(F17=\"Comb\",C31=\"Show\",F31<>\"\",(G28-G31)>10),\"Show\",\"Hide\")","v":"Hide"},"Using an SKP25 at differential pressures of more than 10 PSIG is not recommended. Please reduce inlet pressure."]
[null,null,{"$f":"IF(AND(F17=\"Trad\",C31=\"Show\",F31<>\"\",C32=\"Hide\",C33=\"Hide\"),\"Show\",\"Hide\")","v":"Hide"},"How much pressure drop shall be taken across the safety shut off valve(s)? Please enter as a percent of the manifold pressure. \nNote: Industry standard is 10%-15%. The default is 15%. Please enter as a whole number i.e. 15 = 15%",15,{"$f":"IF(AND(Interface[[#This Row],[Hide Show]]=\"Show\",Interface[[#This Row],[Selection]]<>\"\"),Interface[[#This Row],[Selection]],\"\")","v":""},{"$f":"1+Interface[[#This Row],[Answer]]/100","v":{"$error":"#VALUE!"}}]
[null,18,{"$f":"IF(OR(\nAND(F17=\"Comb\",C31=\"Show\", F31<>\"\",F20=\"Yes\",C33=\"Hide\",C32=\"Hide\"),\nAND(F17=\"Trad\",C34=\"Show\", F34<>\"\",F20=\"Yes\")),\"Show\",\"Hide\")","v":"Hide"},"Enter the minimum desired pressure drop across the full open firing rate control valve. (inWC)\nNote: SCC default is 2 inWC",2,{"$f":"IF(AND(Interface[[#This Row],[Hide Show]]=\"Show\",Interface[[#This Row],[Selection]]<>\"\"),Interface[[#This Row],[Selection]],0)","v":0},{"$f":"Interface[[#This Row],[Answer]]/27.72","v":0}]
[null,19,{"$f":"IF(OR(\nAND(C35=\"Show\", F35<>0),\nAND(F20=\"No\",C31=\"Show\",F31<>\"\",C33=\"Hide\",C32=\"Hide\")),\"Show\",\"Hide\")","v":"Hide"},"Enter additional pressure drop due to gas train piping. (inWC)\nNote: SCC default is 0 inWC",0,{"$f":"IF(AND(Interface[[#This Row],[Hide Show]]=\"Show\",Interface[[#This Row],[Selection]]<>\"\"),Interface[[#This Row],[Selection]],\"\")","v":""},{"$f":"IF(Interface[[#This Row],[Answer]]=\"\",0,Interface[[#This Row],[Answer]]/27.72)","v":0}]
[null,20,{"$f":"IF(AND(F17=\"Comb\",C36=\"Show\",F36<>\"\"),\"Show\",\"Hide\")","v":"Hide"},"Select the desired turndown range for this application.",null,{"$f":"IF(AND(Interface[[#This Row],[Hide Show]]=\"Show\",Interface[[#This Row],[Selection]]<>\"\"),Interface[[#This Row],[Selection]],\"\")","v":""},{"$f":"IFERROR(INDEX(TDCheck[#Data],MATCH(Interface[[#This Row],[Answer]],TDCheck[[Turn down ]],0),MATCH(\"is selected TD in range?\",TDCheck[#Headers],0)),\"\")","v":""}]
[null,21,{"$f":"IF(AND(C37=\"Show\",F37<>\"\",G37=\"No\"),\"Show\",\"Hide\")","v":"Hide"},{"$f":"\"Check application, inlet pressure may be too high for specified turndown ratio. Please reduce inlet pressure to less than \"&ROUND((G31+Interface[[#This Row],[Converted info]]),2)&\" PSI or decrease turndown ratio. \"","v":{"$error":"#N/A"}},null,null,{"$f":"INDEX(TDCheck[#Data],MATCH(F37,TDCheck[[Turn down ]],0),MATCH(\"Top Range (PSIG)\",TDCheck[#Headers],0))","v":{"$error":"#N/A"}}]
["Capacity Information",22,{"$f":"IF(OR(\nAND(F17=\"Trad\",C36=\"Show\",F36<>\"\"),\nAND(C37=\"Show\", F37<>\"\",C38=\"Hide\")),\"Show\",\"Hide\")","v":"Hide"},"Choose a method to specify gas train capacity.",null,{"$f":"IF(AND(Interface[[#This Row],[Hide Show]]=\"Show\",Interface[[#This Row],[Selection]]<>\"\"),Interface[[#This Row],[Selection]],0)","v":0}]
[null,23,{"$f":"IF(AND(C39=\"Show\", F39=\"Boiler Horsepower\"),\"Show\",\"Hide\")","v":"Hide"},"Enter boiler horsepower at high fire (BHP).",null,{"$f":"IF(AND(Interface[[#This Row],[Hide Show]]=\"Show\",Interface[[#This Row],[Selection]]<>\"\"),Interface[[#This Row],[Selection]],0)","v":0}]
[null,24,{"$f":"IF(AND(C40=\"Show\", F40<>0),\"Show\",\"Hide\")","v":"Hide"},"Specify boiler efficiency.  (Enter percentage as a whole number, i.e.. 75% = 75)\nNote: SCC Default is 82%",82,{"$f":"IF(AND(Interface[[#This Row],[Hide Show]]=\"Show\",Interface[[#This Row],[Selection]]<>\"\"),Interface[[#This Row],[Selection]]/100,0)","v":0}]
[null,25,{"$f":"IF(AND(C39=\"Show\", F39=\"Gas Flow (SCFH)\"),\"Show\",\"Hide\")","v":"Hide"},"Enter gas flow at high fire. (SCFH)",null,{"$f":"IF(AND(Interface[[#This Row],[Hide Show]]=\"Show\",Interface[[#This Row],[Selection]]<>\"\"),Interface[[#This Row],[Selection]],0)","v":0}]
[null,26,{"$f":"IF(AND(C39=\"Show\", F39=\"Heat Output (BTU/hr)\"),\"Show\",\"Hide\")","v":"Hide"},"Enter burner heat output at high fire. (BTU/ HR)",null,{"$f":"IF(AND(Interface[[#This Row],[Hide Show]]=\"Show\",Interface[[#This Row],[Selection]]<>\"\"),Interface[[#This Row],[Selection]],0)","v":0}]
[null,27,{"$f":"IFERROR(IF(OR(\nAND(VKGSelection[P2 Optimize]=0,F20=\"Yes\",C43=\"Show\",F43<>0),\nAND(VKGSelection[P2 Optimize]=0,F20=\"Yes\",C42=\"Show\",F42<>0),\nAND(VKGSelection[P2 Optimize]=0,F20=\"Yes\",C41=\"Show\",F41<>0)),\"Show\",\"Hide\"),\"Hide\")","v":"Hide"},"No firing rate control valve available with the minimum desired pressure drop. Please increase the gas flow or decrease the desired pressure drop across the full open firing rate control valve."]
[null,28,{"$f":"IF(AND('Data, Calcs, Selections'!B33>'Data, Calcs, Selections'!D5,F17=\"Comb\",C32=\"Hide\"),\"Show\",\"Hide\")","v":"Hide"},"Defined conditions result in a firing rate control valve that takes too large of a pressure drop at full open. Please decrease the minimum desired pressure drop across the firing rate control valve at full open or increase the minimum gas train supply pressure. "]
["Gas Valve Actuator Information",29,{"$f":"IF(OR(\nAND(C45=\"Hide\",C44=\"Hide\",C43=\"Show\",F43<>0),\nAND(C45=\"Hide\",C44=\"Hide\",C42=\"Show\",F42<>0),\nAND(C45=\"Hide\",C44=\"Hide\",C41=\"Show\",F41<>0)),\"Show\",\"Hide\")","v":"Hide"},"Shall the safety shutoff valve actuator(s) be NEMA 4?","No",{"$f":"IF(AND(Interface[[#This Row],[Hide Show]]=\"Show\",Interface[[#This Row],[Selection]]<>\"\"),Interface[[#This Row],[Selection]],0)","v":0}]
[null,30,{"$f":"IF(SSOVSelection[Input Press too high]=\"Too High!\",\"Show\",\"Hide\")","v":"Hide"},{"$f":"IF(F17=\"Comb\",\n\"Gas train supply pressure exceeds SSOV max operating pressure. Please enter a supply pressure below \"&SSOVSelection[Max inlet Press (PSIG)]&\" PSIG, \"&\"or decrease manifold pressure.\",\n\"Reccomended regulator setting upstream of SSOV exceeds SSOV max operating pressure (\"&SSOVSelection[Max inlet Press (PSIG)]&\" PSIG). \"&\"Please decrease burner manifold pressure or increase pressure drop % across SSOV.\")","v":{"$error":"#N/A"}}]
[null,31,{"$f":"IFERROR(IF(AND(F17=\"Comb\",'Data, Calcs, Selections'!B35>'Data, Calcs, Selections'!D3),\"Show\",\"Hide\"),\"Hide\")","v":"Hide"},{"$f":"\"Check application, inlet pressure may be too low for specified burner output. Min required supply pressure is \"&INDEX(DataSumMatrix[#Data],MATCH(\"R\"&\"Comb\"&F27,DataSumMatrix[Item]&DataSumMatrix[Trad or Comb]&DataSumMatrix[PSI or inWC],0),MATCH(\"Value\",DataSumMatrix[#Headers],0))&\".\"","v":{"$error":"#N/A"}}]
[null,32,{"$f":"IF(AND(C46=\"Show\", F46<>0,C47=\"Hide\",C48=\"Hide\",F18=2),\"Show\",\"Hide\")","v":"Hide"},"What switches are desired on the upstream SSOV actuator? \nNote: When using an SKP25 and only 1 POC it is recommended that the POC be located on the upstream SSOV actuator.",null,{"$f":"IF(AND(Interface[[#This Row],[Hide Show]]=\"Show\",Interface[[#This Row],[Selection]]<>\"\"),Interface[[#This Row],[Selection]],\"\")","v":""}]
[null,33,{"$f":"IF(AND(C46=\"Show\", F46<>0,C47=\"Hide\",F18=1),\"Show\",\"Hide\")","v":"Hide"},"What switches are desired on the SSOV actuator? \nNote: If the fuel train design requires an SKP25 and the burner manifold pressure exceeds 3.5PSI the high pressure SKP25.411U1 is required. This actuator comes standard with a POC switch but has no option for an auxiliary switch. ",null,{"$f":"IF(AND(Interface[[#This Row],[Hide Show]]=\"Show\",Interface[[#This Row],[Selection]]<>\"\"),Interface[[#This Row],[Selection]],\"\")","v":""}]
[null,34,{"$f":"IF(OR(AND(C50=\"Show\", F50<>\"\",F18=2),AND(C49=\"Show\", F49<>\"\",F18=2)),\"Show\",\"Hide\")","v":"Hide"},"What switches are desired on the downstream SSOV actuator?\nNote: If the fuel train design requires an SKP25 and the burner manifold pressure exceeds 3.5 PSI a high pressure SKP25.411U1 is required. This actuator comes standard with a POC switch but has no option for an auxiliary switch.",null,{"$f":"IF(AND(Interface[[#This Row],[Hide Show]]=\"Show\",Interface[[#This Row],[Selection]]<>0),Interface[[#This Row],[Selection]],0)","v":0}]
[null,35,{"$f":"IF(OR(\nAND(C50=\"Show\",F50<> \"\"),\nAND(C51=\"Show\",F51<>0)),\"Show\",\"Hide\")","v":"Hide"},"Specify actuator voltage.","120 VAC",{"$f":"IF(AND(Interface[[#This Row],[Hide Show]]=\"Show\",Interface[[#This Row],[Selection]]<>\"\"),Interface[[#This Row],[Selection]],0)","v":0}]
[null,36,{"$f":"IF(AND(C52=\"Show\", F52<>0),\"Show\",\"Hide\")","v":"Hide"},"Will the actuator(s) be exposed to temperatures less than 14 degrees F? (If yes, heaters will be supplied)","No",{"$f":"IF(AND(Interface[[#This Row],[Hide Show]]=\"Show\",Interface[[#This Row],[Selection]]<>\"\"),Interface[[#This Row],[Selection]],0)","v":0}]
[null,37,{"$f":"IF(AND(LEFT(SSOVSelection[Part '#],5)=\"VGD20\",C53=\"show\",F53<>0),\"Show\",\"Hide\")","v":"Hide"},"Please select desired inlet pipe size for the safety shut off valve(s) (in).",null,{"$f":"IF(AND(Interface[[#This Row],[Hide Show]]=\"Show\",Interface[[#This Row],[Selection]]<>\"\"),Interface[[#This Row],[Selection]],0)","v":0}]
["Press Switch Info",38,{"$f":"IF(OR(AND(C54=\"Show\", F54<>0),AND(C53=\"Show\",F53<>0,C54=\"Hide\")),\"Show\",\"Hide\")","v":"Hide"},"Is a low gas pressure switch required?","Yes",{"$f":"IF(AND(Interface[[#This Row],[Hide Show]]=\"Show\",Interface[[#This Row],[Selection]]<>\"\"),Interface[[#This Row],[Selection]],0)","v":0}]
[null,39,{"$f":"IF(AND($F$17=\"Comb\",C55=\"Show\",LEFT($F$55,3)=\"Yes\"),\"Show\",\"Hide\")","v":"Hide"},"Will the low gas pressure switch be placed upstream or downstream of the SKP25?\nNote: SCC default is upstream","Upstream (U.S. Standard)",{"$f":"IF(AND(Interface[[#This Row],[Hide Show]]=\"Show\",Interface[[#This Row],[Selection]]<>\"\"),Interface[[#This Row],[Selection]],0)","v":0}]
[null,40,{"$f":"IF(OR(\nAND($F$17=\"Comb\",C56=\"Show\",LEFT(F56,1)=\"U\"),\nAND($F$17=\"Trad\",C55=\"Show\",F55=\"yes\")),\"Show\",\"Hide\")","v":"Hide"},"Please select low pressure switch reset option.",null,{"$f":"IF(AND(Interface[[#This Row],[Hide Show]]=\"Show\",Interface[[#This Row],[Selection]]<>\"\"),Interface[[#This Row],[Selection]],0)","v":0},{"$f":"IF(LEFT(F56,1)=\"D\",\"Yes - Auto Reset\",E55&\" - \"&Interface[[#This Row],[Answer]])","v":"Yes - 0"}]
[null,41,{"$f":"IF(OR(AND(C55=\"Show\", F55=\"Not Required\"),AND(C56=\"Show\",LEFT(F56,1)=\"D\"),AND(C57=\"Show\",F57<>0),AND(F17=\"Trad\",C57=\"Show\",F57<>0)),\"Show\",\"Hide\")","v":"Hide"},{"$f":"IF(G31<1.335,\"Is a high gas pressure switch required? \",IF(AND(G31>=1.335,G31<10),\"Is a high gas pressure switch required? (only auto reset switches are available for manifold pressures between 37 inWC and 10 PSIG)\",\"High gas pressure switches are not available for manifold pressures above 10 PSIG.\"))","v":"Is a high gas pressure switch required? "},null,{"$f":"IF(AND(Interface[[#This Row],[Hide Show]]=\"Show\",Interface[[#This Row],[Selection]]<>\"\"),Interface[[#This Row],[Selection]],\"\")","v":""},{"$f":"IF(G31<1.335,\"PressSwitchList1\",IF(AND(G31>1.335,G31<10),\"PressSwitchList2\",\"PressSwitchList3\"))","v":"PressSwitchList1"}]
[null,42,{"$f":"IF(OR(\nAND(F18=2,C58=\"Show\", F58<>\"\"),\nAND(F18=2,C56=\"Show\",LEFT(F56,1)=\"D\",G58=\"PressSwitchList3\"),\nAND(F18=2,C57=\"Show\",F57<>0,G58=\"PressSwitchList3\"),\nAND(F18=2,C55=\"Show\",F55=\"Not Required\",G58=\"PressSwitchList3\")),\"Show\",\"Hide\")","v":"Hide"},"Is a valve proving pressure switch required? (This switch is always auto reset)",null,{"$f":"IF(AND(Interface[[#This Row],[Hide Show]]=\"Show\",Interface[[#This Row],[Selection]]<>\"\"),Interface[[#This Row],[Selection]],0)","v":0}]
[null,43,{"$f":"IF(Interface[[#This Row],[Question]]=\"hide\",\"Hide\",IF(OR(AND(C58=\"Show\",F58<>\"\",F18=1),AND(C59=\"Show\", F59<>0)),\"Show\",\"Hide\"))","v":"Hide"},{"$f":"PSN3RQuesSelect[Question]","v":"Hide"},"No",{"$f":"IF(AND(Interface[[#This Row],[Hide Show]]=\"Show\",Interface[[#This Row],[Selection]]<>\"\"),Interface[[#This Row],[Selection]],0)","v":0}]
[]
[null,null,null,"Customer/Quote Information",{"$f":"IF(AND(CustDesg[Price List]<>0,E5:E10<>0),\"Complete\",\"Incomplete\")","v":"Complete"}]
[null,null,null,"Section 1: Gas Train Layout",{"$f":"IF(C23=\"Show\",\"Complete\",\"Incomplete\")","v":"Incomplete"}]
[null,null,null,"Section 2: Gas Information",{"$f":"IF(OR(C27=\"Show\",C30=\"Show\"),\"Complete\",\"Incomplete\")","v":"Incomplete"}]
[null,null,null,"Section 3: Pressure Information",{"$f":"IF(C39=\"Show\",\"Complete\",\"Incomplete\")","v":"Incomplete"}]
[null,null,null,"Section 4: Capacity Information",{"$f":"IF(OR(C49=\"Show\",C50=\"Show\"),\"Complete\",\"Incomplete\")","v":"Incomplete"}]
[null,null,null,"Section 5: Gas Valve Actuator Information",{"$f":"IF(C55=\"Show\",\"Complete\",\"Incomplete\")","v":"Incomplete"}]
[null,null,null,"Section 6: Pressure Switch Information",{"$f":"IF(OR(\nAND(F18=1,F58=\"Not Required\",F55=\"Not Required\"),\nAND(C59=\"Show\",C60=\"hide\",F59<>0),\nAND(C60=\"Show\",F60<>0)),\"Complete\",\"Incomplete\")","v":"Incomplete"}]
[null,null,{"$f":"IF(AND(E62:E68=\"Complete\",C47=\"Hide\",C45=\"Hide\",C44=\"Hide\",C38=\"Hide\",C33=\"Hide\",C32=\"Hide\"),\"Show\",\"Hide\")","v":"Hide"},"Parts list includes SCC components only! Piping and assembly of gas train not included.\nIf a fully assembled gas train is desired please call your SCC sales manager."]
[null,null,{"$f":"IF($C$69=\"Show\",\"Show\",\"Hide\")","v":"Hide"},"Note: The below image is a simplified representation of an assembled fuel train using the configured parts. This image shows critical flow characteristics and dimensions. This image is not to scale. Additional accessories are not shown (actuators, pressure switches…etc.).","Safety Shutoff Valve:",null,null,{"$f":"IFERROR(SSOVSelection[Part '#]&\" - \"&INDEX(SSOVSizer[#Data],MATCH(SSOVSelection[Part '#],SSOVSizer[Part '#],0),MATCH(\"Description\",SSOVSizer[#Headers],0)),\"\")","v":""}]
[null,null,{"$f":"IF(AND($C$69=\"Show\",$F$20=\"Yes\"),\"Show\",\"Hide\")","v":"Hide"},null,"Recommended Firing Rate Control Valve:",null,null,{"$f":"IFERROR(VKGSelection[Part '#]&\" - \"&INDEX(FRCVSizer[#Data],MATCH(VKGSelection[Part '#],FRCVSizer[Part '#],0),MATCH(\"Description\",FRCVSizer[#Headers],0)),\"\")","v":""}]
[null,null,{"$f":"IF(AND($C$69=\"Show\",$F$20=\"Yes\"),\"Show\",\"Hide\")","v":"Hide"},null,"Alternate Firing Rate Control Valve Sizes:"]
[null,null,{"$f":"IF($C$69=\"Show\",\"Show\",\"Hide\")","v":"Hide"}]
[null,null,{"$f":"IFERROR(IF(AND($C$69=\"Show\",L74=$F$17,M74=$F$20),\"Show\",\"Hide\"),\"Hide\")","v":"Hide"},null,"Q\nGas Flow at High Fire",null,null,{"$f":"ROUND('Data, Calcs, Selections'!$D$15,0)&\"  \"&\"SCFH\"","v":{"$error":"#N/A"}},null,null,null,"Trad","No"]
[null,null,"Hide",null,"Ps\nMin. Required Supply Pressure",null,null,{"$f":"INDEX(DataSumMatrix[#Data],MATCH(\"Ps\"&\"Trad\"&IF($F$27=0,$F$30,$F$27),DataSumMatrix[Item]&DataSumMatrix[Trad or Comb]&DataSumMatrix[PSI or inWC],0),MATCH(\"Value\",DataSumMatrix[#Headers],0))","v":{"$error":"#N/A"}},null,null,null,"Trad","No"]
[null,null,"Hide",null,"Recommended Regulator Setting",null,null,{"$f":"INDEX(DataSumMatrix[#Data],MATCH(\"R\"&\"Trad\"&IF($F$27=0,$F$30,$F$27),DataSumMatrix[Item]&DataSumMatrix[Trad or Comb]&DataSumMatrix[PSI or inWC],0),MATCH(\"Value\",DataSumMatrix[#Headers],0))","v":{"$error":"#N/A"}},null,null,null,"Trad","No"]
[null,null,"Hide",null,"Pb\nPressure at Burner Manifold",null,null,{"$f":"INDEX(DataSumMatrix[#Data],MATCH(\"Pb\"&$F$30,DataSumMatrix[Item]&DataSumMatrix[PSI or inWC],0),MATCH(\"Value\",DataSumMatrix[#Headers],0))","v":{"$error":"#N/A"}},null,null,null,"Trad","No"]
[null,null,"Hide",null,null,null,null,null,null,null,null,"Trad","No"]
[null,null,"Hide",null,"Q\nGas Flow at High Fire",null,null,{"$f":"ROUND('Data, Calcs, Selections'!$D$15,0)&\"  \"&\"SCFH\"","v":{"$error":"#N/A"}},null,null,null,"Trad","Yes"]
[null,null,"Hide",null,"Ps\nMin. Required Supply Pressure",null,null,{"$f":"INDEX(DataSumMatrix[#Data],MATCH(\"Ps\"&\"Trad\"&IF($F$27=0,$F$30,$F$27),DataSumMatrix[Item]&DataSumMatrix[Trad or Comb]&DataSumMatrix[PSI or inWC],0),MATCH(\"Value\",DataSumMatrix[#Headers],0))","v":{"$error":"#N/A"}},null,null,null,"Trad","Yes"]
[null,null,"Hide",null,"Recommended Regulator Setting",null,null,{"$f":"INDEX(DataSumMatrix[#Data],MATCH(\"R\"&\"Trad\"&IF($F$27=0,$F$30,$F$27),DataSumMatrix[Item]&DataSumMatrix[Trad or Comb]&DataSumMatrix[PSI or inWC],0),MATCH(\"Value\",DataSumMatrix[#Headers],0))","v":{"$error":"#N/A"}},null,null,null,"Trad","Yes"]
[null,null,"Hide",null,"P1\nPressure between SSOV and FRCV\nRecommended SKP25 setting",null,null,{"$f":"INDEX(DataSumMatrix[#Data],MATCH(\"P1\"&$F$30,DataSumMatrix[Item]&DataSumMatrix[PSI or inWC],0),MATCH(\"Value\",DataSumMatrix[#Headers],0))","v":{"$error":"#N/A"}},null,null,null,"Trad","Yes"]
[null,null,"Hide",null,"Pb\nPressure at Burner Manifold",null,null,{"$f":"INDEX(DataSumMatrix[#Data],MATCH(\"Pb\"&$F$30,DataSumMatrix[Item]&DataSumMatrix[PSI or inWC],0),MATCH(\"Value\",DataSumMatrix[#Headers],0))","v":{"$error":"#N/A"}},null,null,null,"Trad","Yes"]
[null,null,"Hide",null,"Q\nGas Flow at High Fire",null,null,{"$f":"ROUND('Data, Calcs, Selections'!$D$15,0)&\"  \"&\"SCFH\"","v":{"$error":"#N/A"}},null,"V1\nGas Velocity after SSOV w/  Min. Rec. Sensing Pipe Size ",{"$f":"IF($F$17=\"Comb\",ROUND(SPOptimize[Optimize Vel],0)&\"  (ft/s)\",\"\")","v":""},"Comb","No"]
[null,null,"Hide",null,"Ps\nGas Supply Pressure",null,null,{"$f":"INDEX(DataSumMatrix[#Data],MATCH(\"Ps\"&\"Comb\"&IF($F$27=0,$F$30,$F$27),DataSumMatrix[Item]&DataSumMatrix[Trad or Comb]&DataSumMatrix[PSI or inWC],0),MATCH(\"Value\",DataSumMatrix[#Headers],0))","v":{"$error":"#N/A"}},null,"Min. Recommended Sensing Pipe Size",{"$f":"IF($F$17=\"Comb\",SPOptimize[Pipe Size]&\"\"\"\",\"\")","v":""},"Comb","No"]
[null,null,"Hide",null,"Min. Required Supply Pressure",null,null,{"$f":"INDEX(DataSumMatrix[#Data],MATCH(\"R\"&\"Comb\"&IF($F$27=0,$F$30,$F$27),DataSumMatrix[Item]&DataSumMatrix[Trad or Comb]&DataSumMatrix[PSI or inWC],0),MATCH(\"Value\",DataSumMatrix[#Headers],0))","v":{"$error":"#N/A"}},null,"D1\nMin. Dist. from SKP25 to Sensing Tap (5*Pipe Dia)","5x Pipe Dia","Comb","No"]
[null,null,"Hide",null,"Pb\nPressure at Burner Manifold",null,null,{"$f":"INDEX(DataSumMatrix[#Data],MATCH(\"Pb\"&$F$30,DataSumMatrix[Item]&DataSumMatrix[PSI or inWC],0),MATCH(\"Value\",DataSumMatrix[#Headers],0))","v":{"$error":"#N/A"}},null,"D2\nMin Dist. from Sensing Tap to Next Obstruction (2* Pipe Dia)","2x Pipe Dia","Comb","No"]
[null,null,"Hide",null,null,null,null,null,null,null,null,"Comb","No"]
[null,null,"Hide",null,"Q\nGas Flow at High Fire",null,null,{"$f":"ROUND('Data, Calcs, Selections'!$D$15,0)&\"  \"&\"SCFH\"","v":{"$error":"#N/A"}},null,"V1\nGas Velocity after SSOV w/  Min. Rec. Sensing Pipe Size ",{"$f":"IF($F$17=\"Comb\",ROUND(SPOptimize[Optimize Vel],0)&\"  (ft/s)\",\"\")","v":""},"Comb","Yes"]
[null,null,"Hide",null,"Ps\nGas Supply Pressure",null,null,{"$f":"INDEX(DataSumMatrix[#Data],MATCH(\"Ps\"&\"Comb\"&IF($F$27=0,$F$30,$F$27),DataSumMatrix[Item]&DataSumMatrix[Trad or Comb]&DataSumMatrix[PSI or inWC],0),MATCH(\"Value\",DataSumMatrix[#Headers],0))","v":{"$error":"#N/A"}},null,"Min. Recommended Sensing Pipe Size",{"$f":"IF($F$17=\"Comb\",SPOptimize[Pipe Size]&\"\"\"\",\"\")","v":""},"Comb","Yes"]
[null,null,"Hide",null,"Min. Required Supply Pressure",null,null,{"$f":"INDEX(DataSumMatrix[#Data],MATCH(\"R\"&\"Comb\"&IF($F$27=0,$F$30,$F$27),DataSumMatrix[Item]&DataSumMatrix[Trad or Comb]&DataSumMatrix[PSI or inWC],0),MATCH(\"Value\",DataSumMatrix[#Headers],0))","v":{"$error":"#N/A"}},null,"D1\nMin. Dist. from SKP25 to Sensing Tap","5x Pipe Dia","Comb","Yes"]
[null,null,"Hide",null,"P1\nPressure between SSOV and FRCV\nRecommended SKP25 setting",null,null,{"$f":"INDEX(DataSumMatrix[#Data],MATCH(\"P1\"&$F$30,DataSumMatrix[Item]&DataSumMatrix[PSI or inWC],0),MATCH(\"Value\",DataSumMatrix[#Headers],0))","v":{"$error":"#N/A"}},null,"D2\nMin Dist. from Sensing Tap to Next Obstruction ","2x Pipe Dia","Comb","Yes"]
[null,null,"Hide",null,"Pb\nPressure at Burner Manifold",null,null,{"$f":"INDEX(DataSumMatrix[#Data],MATCH(\"Pb\"&$F$30,DataSumMatrix[Item]&DataSumMatrix[PSI or inWC],0),MATCH(\"Value\",DataSumMatrix[#Headers],0))","v":{"$error":"#N/A"}},null,null,null,"Comb","Yes"]
[null,null,"Pic for Interface ->",{"$f":"IF(OR($C$69=\"Hide\",Interface!$F$17=\"\",SSOVSelection[1.2.2-1''s]=\"\",Interface!$F$20=\"\"),\"None\",Interface!$F$17&SSOVSelection[1.2.2-1''s]&Interface!$F$20)","v":"None"}]
[null,null,"Pic for Quote ->",{"$f":"IF(OR($C$69=\"Hide\",Interface!$F$17=\"\",SSOVSelection[1.2.2-1''s]=\"\",Interface!$F$20=\"\"),\"NoneQ\",Interface!$F$17&SSOVSelection[1.2.2-1''s]&Interface!$F$20&\"Q\")","v":"NoneQ"}]
[null,null,null,null,"Cells to be Copy and Pasted to Quote"]
[null,null,null,null,"Item","Value","Rank"]
[null,null,null,null,"Q\nGas Flow at High Fire",{"$f":"ROUND('Data, Calcs, Selections'!$D$15,0)&\"  \"&\"SCFH\"","v":{"$error":"#N/A"}},1]
[null,null,null,null,"Ps\nGas Supply Pressure",{"$f":"INDEX(DataSumMatrix[#Data],MATCH(\"Ps\"&$F$17&IF($F$27=0,$F$30,$F$27),DataSumMatrix[Item]&DataSumMatrix[Trad or Comb]&DataSumMatrix[PSI or inWC],0),MATCH(\"Value\",DataSumMatrix[#Headers],0))","v":{"$error":"#N/A"}},2]
[null,null,null,null,{"$f":"IF($F$17=\"Comb\",\"Min Required Supply Press (inWC)\",IF($F$17=\"Trad\",\"Recommended Regulator Setting (inWC)\",\"\"))","v":""},{"$f":"INDEX(DataSumMatrix[#Data],MATCH(\"R\"&$F$17&IF($F$27=0,$F$30,$F$27),DataSumMatrix[Item]&DataSumMatrix[Trad or Comb]&DataSumMatrix[PSI or inWC],0),MATCH(\"Value\",DataSumMatrix[#Headers],0))","v":{"$error":"#N/A"}},3]
[null,null,null,null,{"$f":"IF($F$20=\"No\",\"\",IF($F$17=\"Comb\",\"P1\"&CHAR(10)&\"Press btw SSOV and FRCV\"&CHAR(10)&\"Rec'd SKP25 setting\",IF($F$17=\"Trad\",\"P1\"&CHAR(10)&\"Press between SSOV and FRCV\",\"\")))","v":""},{"$f":"IF($F$20=\"No\",\"\",INDEX(DataSumMatrix[#Data],MATCH(\"P1\"&$F$30,DataSumMatrix[Item]&DataSumMatrix[PSI or inWC],0),MATCH(\"Value\",DataSumMatrix[#Headers],0)))","v":{"$error":"#N/A"}},{"$f":"IF(TobecopiedtoQ[[#This Row],[Value]]<>\"\",4,\"\")","v":{"$error":"#N/A"}}]
[null,null,null,null,"Pb\nPressure at Burner Manifold",{"$f":"INDEX(DataSumMatrix[#Data],MATCH(\"Pb\"&$F$30,DataSumMatrix[Item]&DataSumMatrix[PSI or inWC],0),MATCH(\"Value\",DataSumMatrix[#Headers],0))","v":{"$error":"#N/A"}},5]
[null,null,null,null,"V1\nGas Velocity after SSOV ",{"$f":"IF($F$17=\"Comb\",ROUND(SPOptimize[Optimize Vel],0)&\"  (ft/s)\",\"\")","v":""},{"$f":"IF(TobecopiedtoQ[[#This Row],[Value]]<>\"\",6,\"\")","v":""}]
[null,null,null,null,"Recommended min sensing pipe size",{"$f":"IF($F$17=\"Comb\",SPOptimize[Pipe Size]&\"\"\"\",\"\")","v":""},{"$f":"IF(TobecopiedtoQ[[#This Row],[Value]]<>\"\",7,\"\")","v":""}]
[null,null,null,null,"D1\nMin dist from SKP25 to sensing tap","5x Pipe Dia",{"$f":"IF(TobecopiedtoQ[[#This Row],[Value]]<>\"\",8,\"\")","v":8}]
[null,null,null,null,"D2\nMin dist from sensing tap to next obstruction","2x Pipe Dia",{"$f":"IF(TobecopiedtoQ[[#This Row],[Value]]<>\"\",9,\"\")","v":9}]

{"sheet":"Customer List","index":1,"n_rows":32,"n_cols":3,"rows_kept":32,"cut":false,"hidden":true,"merged":[]}
["Price List",null,"SCC Sales Person"]
["Sizing Only",null,"Aaron Zeoller"]
["PL-1",null,"Alan Silver"]
["PL-2",null,"Bertram Leng"]
["PL-3",null,"Dan Collado"]
["PL-4",null,"John Dauer"]
["PL-5",null,"Ken Laurin"]
["PL-A",null,"Mark Waszczak"]
["PL-B",null,"Scott Fogle"]
["PL-C",null,"Tom Kitsos"]
["PL-D"]
["PL-E"]
["PL-F"]
["PL-G"]
["PL-H"]
["PL-I"]
["PL-J"]
["PL-K"]
["PL-L"]
["PL-M"]
["PL-N"]
["PL-O"]
["PL-P"]
["PL-Q"]
["PL-R"]
["PL-S"]
["PL-T"]
["PL-U"]
["PL-V"]
["PL-W"]
["PL-X"]
["PL-Y"]

{"sheet":"Data, Calcs, Selections","index":2,"n_rows":68,"n_cols":120,"rows_kept":68,"cut":false,"hidden":true,"merged":[[23,110,23,114],[0,110,0,114],[13,116,13,119],[28,0,28,2],[13,105,13,108],[0,105,0,108]]}
["Input Data for Calcs",null,null,null,null,null,null,"Firing Rate Control Valve Sizer",null,null,null,null,null,null,null,null,null,null,null,"SSOV Sizer",null,null,null,null,null,null,null,null,null,null,null,null,null,null,null,null,null,null,null,null,"Sensing Pipe Size",null,null,null,null,null,"Valve Flange size",null,null,null,null,null,null,"Actuator Selections",null,null,null,null,null,null,null,null,null,null,"SKP Spring Select",null,null,null,null,"SKP Accessories",null,null,null,"Low Gas Press Switch Sizer",null,null,null,null,null,null,null,null,"High Gas Press Switch Sizer",null,null,null,null,null,null,"Valve Proving Press Switch",null,null,null,null,"NEMA 3R Question",null,null,null,null,null,"Front End Pipe Size",null,null,null,null,"Y Strainer",null,null,null,null,"PIP or 1st Nipple",null,null,null,null,null,"Inlet Ball Valve","not done here"]
["Description","Initial Value","Initial Unit","Useable Value","Useable Unit",null,null,"Part #","Pipe Size","Port Size","Cv Rank","Cv","Theo P2 (PSIA)","Theo P2 (PSIG)","Theo P2 - Desired P2 (PSIG)","Pipe size code for VA","Description","Bio Gas?",null,"Part #","QTY","Description","Pipe Size","Max inlet Press (PSIG)","Max E-Close Press (PSIG)","Cv","NEMA 4?","2 valves or 1","Bio Gas?","P1 if Comb","P1 if Trad","P2","Combo train Calc Q (SCFH)","Trad train Calc Q (SCFH)","Calc Q - Desired Q","Max valve sizes","Criteria Met: Calc Q - Desired Q","P2 Result (PSIA)","Vent Plate PN",null,"Pipe Size","internal Diam (in)","internal Diam (ft)","Internal Area (ft^2)","Velocity (ft/s)",null,"Part #","Pipe Size",null,null,null,null,null,"Part #","Act Type","Voltage","POC","Aux","High Outlet Press",null,null,null,null,null,"Part #","SKP25 type","P2 Max","P2 Max - P2 Theo",null,"Part #","Qty","Desc",null,"Part #","Man/Auto","LGP Min Press (PSIG)","LPG Max Press (PSIG)","Max - Inlet Press","Criteria Met Max - In","Max - P2","Criteria Met Max - P2",null,"Part #","Man/Auto","Min Manifold Press (PSIG)","Max Manifold Press (PSIG)","Max - Manifold Press","Criteria Met - Max - IN",null,"Part #","Min Inlet Press (PSIG)","Max Inlet Press (PSIG)","Max - Inlet Press",null,"Does the application require the following pressure switches to be NEMA 3R: \"\"",null,null,null,null,null,"Resulting Front End Pipe Size","SSOV Size","Inlet Flange Size","Thread Engagment",null,"Part Number","Pipe Size","Length","Cv",null,"Part Number","PIP or NP","Pipe Size","Length","Cv",null,"Part Number","Pipe Size","Length","Cv"]
["Supply Pressure to Gas Train (Ps)",{"$f":"Interface!G28","v":0},"PSIG",{"$f":"Table8[[#This Row],[Initial Value]]+14.7","v":14.7},null,null,null,"VRG10.015U",0.5,"Full",1,5.19,{"$f":"IF($B$7<>0,SQRT(($D$6^2)+(2*$D$9*$D$10*$D$15^2)/(1360^2*FRCVSizer[[#This Row],[Cv]]^2)),\"NO VKG\")","v":"NO VKG"},{"$f":"FRCVSizer[[#This Row],[Theo P2 (PSIA)]]-14.7","v":{"$error":"#VALUE!"}},{"$f":"IF(Interface!$G$23=FRCVSizer[[#This Row],[Bio Gas?]],FRCVSizer[[#This Row],[Theo P2 (PSIG)]]-$B$8,\"\")","v":""},"050",{"$f":"FRCVSizer[[#This Row],[Pipe Size]]&\"\"\" \"&FRCVSizer[[#This Row],[Port Size]]&\" port\"","v":"0.5\" Full port"},"Yes",null,"VGD20.253U",1,"1\" Double Valve Body, Sq. Flange",1,20,30,11.13,"No",2,"No",{"$f":"SQRT((SSOVSizer[[#This Row],[P2]]^2)+((2*$D$9*$D$10*SSOVSizer[[#This Row],[Combo train Calc Q (SCFH)]]^2)/(1360^2*SSOVSizer[[#This Row],[Cv]]^2)))","v":{"$error":"#N/A"}},{"$f":"(SSOVSizer[[#This Row],[P2]]-14.7)*$B$16+14.7","v":{"$error":"#VALUE!"}},{"$f":"VKGSelection[P2 for SSOV]","v":14.7},{"$f":"IF(SSOVSizer[[#This Row],[P2]]>$D$5,\"err P2>P1\",1360*SSOVSizer[[#This Row],[Cv]]*SQRT(($D$5+SSOVSizer[[#This Row],[P2]])/($D$9*$D$10))*SQRT(($D$5-SSOVSizer[[#This Row],[P2]])/2))","v":{"$error":"#N/A"}},{"$f":"1360*SSOVSizer[[#This Row],[Cv]]*SQRT((SSOVSizer[[#This Row],[P1 if Trad]]+SSOVSizer[[#This Row],[P2]])/($D$9*$D$10))*SQRT((SSOVSizer[[#This Row],[P1 if Trad]]-SSOVSizer[[#This Row],[P2]])/2)","v":{"$error":"#VALUE!"}},{"$f":"IF(Interface!$F$17=\"Comb\",SSOVSizer[[#This Row],[Combo train Calc Q (SCFH)]]-$D$15,IF(Interface!$F$17=\"Trad\",SSOVSizer[[#This Row],[Trad train Calc Q (SCFH)]]-$D$15,\"Train type not selected\"))","v":"Train type not selected"},null,{"$f":"IF(AND(SSOVSelection[1 or 2]=SSOVSizer[[#This Row],[2 valves or 1]],SSOVSelection[Bio Gas]=SSOVSizer[[#This Row],[Bio Gas?]],SSOVSelection[NEMA 4]=SSOVSizer[[#This Row],[NEMA 4?]],SSOVSizer[[#This Row],[Calc Q - Desired Q]]<0, SSOVSizer[[#This Row],[Max valve sizes]]=\"Max\"),\"Max\",IF(AND(SSOVSelection[1 or 2]=SSOVSizer[[#This Row],[2 valves or 1]],SSOVSelection[Bio Gas]=SSOVSizer[[#This Row],[Bio Gas?]],SSOVSelection[NEMA 4]=SSOVSizer[[#This Row],[NEMA 4?]]),SSOVSizer[[#This Row],[Calc Q - Desired Q]],\"\"))","v":""},{"$f":"SQRT(($D$5^2)-((2*$D$9*$D$10*$D$15^2)/(1360^2*SSOVSizer[[#This Row],[Cv]]^2)))","v":{"$error":"#N/A"}},"",null,0.5,0.622,{"$f":"SPSizer[[#This Row],[internal Diam (in)]]/12","v":5.1833333333333335E-2},{"$f":"PI()*(SPSizer[[#This Row],[internal Diam (ft)]]/2)^2","v":2.1101248822767943E-3},{"$f":"$D$15/(SPSizer[[#This Row],[Internal Area (ft^2)]]*60*60)","v":{"$error":"#N/A"}},null,"AGF10.25U",1,null,null,null,null,null,"High Press SKP25 not avail in 220VAC",25,"220 VAC","Yes","Yes","Yes",null,null,null,null,null,{"$f":"\"\"","v":""},"SKP25.0",{"$f":"8.5/27.72","v":0.30663780663780665},{"$f":"SKPSpringSizer[[#This Row],[P2 Max]]-(VKGSelection[P2 for SSOV]-14.7)","v":0.30663780663780665},null,{"$f":"IF(Interface!F46=\"yes\",\"AGA66\",\"\")","v":""},{"$f":"IF(Interface!F46=\"yes\",Interface!F18,0)","v":0},"NEMA 4 Gaskets",null,"QPL31.050M00","Yes - Manual Reset",0,1.19047619047619,{"$f":"LGPSSizer[[#This Row],[LPG Max Press (PSIG)]]-$B$5","v":1.19047619047619},{"$f":"IF(LGPSSelection[Man/Auto]=LGPSSizer[[#This Row],[Man/Auto]],LGPSSizer[[#This Row],[Max - Inlet Press]],\"\")","v":""},{"$f":"LGPSSizer[[#This Row],[LPG Max Press (PSIG)]]-(VKGSelection[P2 for SSOV]-14.7)","v":1.19047619047619},{"$f":"IF(LGPSSelection[Man/Auto]=LGPSSizer[[#This Row],[Man/Auto]],LGPSSizer[[#This Row],[Max - P2]],\"\")","v":""},null,"QPH31.050M00","Yes - Manual Reset",0,0.4329004329004329,{"$f":"HGPSSizer[[#This Row],[Max Manifold Press (PSIG)]]-$B$6","v":0.4329004329004329},{"$f":"IF(HGPSSelection[Man/Auto]=HGPSSizer[[#This Row],[Man/Auto]],HGPSSizer[[#This Row],[Max - Manifold Press]],\"\")","v":""},null,"QPH31.050A00",0,1.0461760461760463,{"$f":"VPPSSizer[[#This Row],[Max Inlet Press (PSIG)]]-$B$5","v":1.0461760461760463},null,"Question","Low","High","VP",null,null,{"$f":"IF(FrtEndPipeSize[Inlet Flange Size]=\"NA\",FrtEndPipeSize[SSOV Size],FrtEndPipeSize[Inlet Flange Size])","v":{"$error":"#N/A"}},{"$f":"SSOVSelection[Pipe size]","v":{"$error":"#N/A"}},{"$f":"InFlange[Pipe Size]","v":"NA"},null,null,{"$f":"\"Y-\"&YstrainerIndex[[#This Row],[Pipe Size]]","v":"Y-0.5"},0.5,1,0.1,null,{"$f":"PIPor1NPIndex[[#This Row],[PIP or NP]]&\"-\"&PIPor1NPIndex[[#This Row],[Pipe Size]]","v":"NP-0.5"},"NP",0.5,4,0.1,null,{"$f":"\"Y-\"&InBallIndex[[#This Row],[Pipe Size]]","v":"Y-0.5"},0.5,1,0.1]
["Additional Piping Pressure Drop",{"$f":"Interface!G36","v":0},"PSIG",null,null,null,null,"VRG20.025U",1,"Medium",2,19.41,{"$f":"IF($B$7<>0,SQRT(($D$6^2)+(2*$D$9*$D$10*$D$15^2)/(1360^2*FRCVSizer[[#This Row],[Cv]]^2)),\"NO VKG\")","v":"NO VKG"},{"$f":"FRCVSizer[[#This Row],[Theo P2 (PSIA)]]-14.7","v":{"$error":"#VALUE!"}},{"$f":"IF(Interface!$G$23=FRCVSizer[[#This Row],[Bio Gas?]],FRCVSizer[[#This Row],[Theo P2 (PSIG)]]-$B$8,\"\")","v":""},100,{"$f":"FRCVSizer[[#This Row],[Pipe Size]]&\"\"\" \"&FRCVSizer[[#This Row],[Port Size]]&\" port\"","v":"1\" Medium port"},"Yes",null,"VGD20.253U",1,"1\" Double Valve Body, Sq. Flange",1,20,30,11.13,"Yes",2,"No",{"$f":"SQRT((SSOVSizer[[#This Row],[P2]]^2)+((2*$D$9*$D$10*SSOVSizer[[#This Row],[Combo train Calc Q (SCFH)]]^2)/(1360^2*SSOVSizer[[#This Row],[Cv]]^2)))","v":{"$error":"#N/A"}},{"$f":"(SSOVSizer[[#This Row],[P2]]-14.7)*$B$16+14.7","v":{"$error":"#VALUE!"}},{"$f":"VKGSelection[P2 for SSOV]","v":14.7},{"$f":"IF(SSOVSizer[[#This Row],[P2]]>$D$5,\"err P2>P1\",1360*SSOVSizer[[#This Row],[Cv]]*SQRT(($D$5+SSOVSizer[[#This Row],[P2]])/($D$9*$D$10))*SQRT(($D$5-SSOVSizer[[#This Row],[P2]])/2))","v":{"$error":"#N/A"}},{"$f":"1360*SSOVSizer[[#This Row],[Cv]]*SQRT((SSOVSizer[[#This Row],[P1 if Trad]]+SSOVSizer[[#This Row],[P2]])/($D$9*$D$10))*SQRT((SSOVSizer[[#This Row],[P1 if Trad]]-SSOVSizer[[#This Row],[P2]])/2)","v":{"$error":"#VALUE!"}},{"$f":"IF(Interface!$F$17=\"Comb\",SSOVSizer[[#This Row],[Combo train Calc Q (SCFH)]]-$D$15,IF(Interface!$F$17=\"Trad\",SSOVSizer[[#This Row],[Trad train Calc Q (SCFH)]]-$D$15,\"Train type not selected\"))","v":"Train type not selected"},null,{"$f":"IF(AND(SSOVSelection[1 or 2]=SSOVSizer[[#This Row],[2 valves or 1]],SSOVSelection[Bio Gas]=SSOVSizer[[#This Row],[Bio Gas?]],SSOVSelection[NEMA 4]=SSOVSizer[[#This Row],[NEMA 4?]],SSOVSizer[[#This Row],[Calc Q - Desired Q]]<0, SSOVSizer[[#This Row],[Max valve sizes]]=\"Max\"),\"Max\",IF(AND(SSOVSelection[1 or 2]=SSOVSizer[[#This Row],[2 valves or 1]],SSOVSelection[Bio Gas]=SSOVSizer[[#This Row],[Bio Gas?]],SSOVSelection[NEMA 4]=SSOVSizer[[#This Row],[NEMA 4?]]),SSOVSizer[[#This Row],[Calc Q - Desired Q]],\"\"))","v":""},{"$f":"SQRT(($D$5^2)-((2*$D$9*$D$10*$D$15^2)/(1360^2*SSOVSizer[[#This Row],[Cv]]^2)))","v":{"$error":"#N/A"}},"",null,0.75,0.82399999999999995,{"$f":"SPSizer[[#This Row],[internal Diam (in)]]/12","v":6.8666666666666668E-2},{"$f":"PI()*(SPSizer[[#This Row],[internal Diam (ft)]]/2)^2","v":3.7032396068815681E-3},{"$f":"$D$15/(SPSizer[[#This Row],[Internal Area (ft^2)]]*60*60)","v":{"$error":"#N/A"}},null,"AGF10.32U",1.25,null,null,null,null,null,"High Press SKP25 not avail in 220VAC",25,"220 VAC","Yes","No","Yes",null,null,null,null,null,"AGA22","SKP25.0",{"$f":"48/27.72","v":1.7316017316017316},{"$f":"SKPSpringSizer[[#This Row],[P2 Max]]-(VKGSelection[P2 for SSOV]-14.7)","v":1.7316017316017316},null,{"$f":"IF(Table30[[#This Row],[Qty]]>0,\"AGA25.2\",\"\")","v":""},{"$f":"IFERROR(IF(AND(Act2Select[2nd Act type]=25,VKGSelection[P2 for SSOV]<((15/27.72)+14.7)),1,0),0)","v":0},"Damping Orifice",null,"QPL31.140M00","Yes - Manual Reset",1.1904761904761905,3.5353535353535355,{"$f":"LGPSSizer[[#This Row],[LPG Max Press (PSIG)]]-$B$5","v":3.5353535353535355},{"$f":"IF(LGPSSelection[Man/Auto]=LGPSSizer[[#This Row],[Man/Auto]],LGPSSizer[[#This Row],[Max - Inlet Press]],\"\")","v":""},{"$f":"LGPSSizer[[#This Row],[LPG Max Press (PSIG)]]-(VKGSelection[P2 for SSOV]-14.7)","v":3.5353535353535355},{"$f":"IF(LGPSSelection[Man/Auto]=LGPSSizer[[#This Row],[Man/Auto]],LGPSSizer[[#This Row],[Max - P2]],\"\")","v":""},null,"QPH31.150M00","Yes - Manual Reset",0.4329004329004329,1.3347763347763348,{"$f":"HGPSSizer[[#This Row],[Max Manifold Press (PSIG)]]-$B$6","v":1.3347763347763348},{"$f":"IF(HGPSSelection[Man/Auto]=HGPSSizer[[#This Row],[Man/Auto]],HGPSSizer[[#This Row],[Max - Manifold Press]],\"\")","v":""},null,"QPH31.090A00",1.0461760461760463,2.3809523809523809,{"$f":"VPPSSizer[[#This Row],[Max Inlet Press (PSIG)]]-$B$5","v":2.3809523809523809},null,"Does the application require the pressure switches to be NEMA 3R?\nNote: SCC Defualt is No","QP","QP","QP",null,null,null,null,null,null,null,{"$f":"\"Y-\"&YstrainerIndex[[#This Row],[Pipe Size]]","v":"Y-0.75"},0.75,2,0.3,null,{"$f":"PIPor1NPIndex[[#This Row],[PIP or NP]]&\"-\"&PIPor1NPIndex[[#This Row],[Pipe Size]]","v":"NP-0.75"},"NP",0.75,4,0.3,null,{"$f":"\"Y-\"&InBallIndex[[#This Row],[Pipe Size]]","v":"Y-0.75"},0.75,2,0.3]
["Pressure at Gas Valve Inlet (Ps)",{"$f":"B3-B4","v":0},"PSIG",{"$f":"Table8[[#This Row],[Initial Value]]+14.7","v":14.7},"PSIA",null,null,"VRG10.020U",0.75,"Full",3,19.52,{"$f":"IF($B$7<>0,SQRT(($D$6^2)+(2*$D$9*$D$10*$D$15^2)/(1360^2*FRCVSizer[[#This Row],[Cv]]^2)),\"NO VKG\")","v":"NO VKG"},{"$f":"FRCVSizer[[#This Row],[Theo P2 (PSIA)]]-14.7","v":{"$error":"#VALUE!"}},{"$f":"IF(Interface!$G$23=FRCVSizer[[#This Row],[Bio Gas?]],FRCVSizer[[#This Row],[Theo P2 (PSIG)]]-$B$8,\"\")","v":""},"075",{"$f":"FRCVSizer[[#This Row],[Pipe Size]]&\"\"\" \"&FRCVSizer[[#This Row],[Port Size]]&\" port\"","v":"0.75\" Full port"},"Yes",null,"VGD20.323U",1,"1.25\" Double Valve Body, Sq. Flange",1.25,20,30,22.27,"No",2,"No",{"$f":"SQRT((SSOVSizer[[#This Row],[P2]]^2)+((2*$D$9*$D$10*SSOVSizer[[#This Row],[Combo train Calc Q (SCFH)]]^2)/(1360^2*SSOVSizer[[#This Row],[Cv]]^2)))","v":{"$error":"#N/A"}},{"$f":"(SSOVSizer[[#This Row],[P2]]-14.7)*$B$16+14.7","v":{"$error":"#VALUE!"}},{"$f":"VKGSelection[P2 for SSOV]","v":14.7},{"$f":"IF(SSOVSizer[[#This Row],[P2]]>$D$5,\"err P2>P1\",1360*SSOVSizer[[#This Row],[Cv]]*SQRT(($D$5+SSOVSizer[[#This Row],[P2]])/($D$9*$D$10))*SQRT(($D$5-SSOVSizer[[#This Row],[P2]])/2))","v":{"$error":"#N/A"}},{"$f":"1360*SSOVSizer[[#This Row],[Cv]]*SQRT((SSOVSizer[[#This Row],[P1 if Trad]]+SSOVSizer[[#This Row],[P2]])/($D$9*$D$10))*SQRT((SSOVSizer[[#This Row],[P1 if Trad]]-SSOVSizer[[#This Row],[P2]])/2)","v":{"$error":"#VALUE!"}},{"$f":"IF(Interface!$F$17=\"Comb\",SSOVSizer[[#This Row],[Combo train Calc Q (SCFH)]]-$D$15,IF(Interface!$F$17=\"Trad\",SSOVSizer[[#This Row],[Trad train Calc Q (SCFH)]]-$D$15,\"Train type not selected\"))","v":"Train type not selected"},null,{"$f":"IF(AND(SSOVSelection[1 or 2]=SSOVSizer[[#This Row],[2 valves or 1]],SSOVSelection[Bio Gas]=SSOVSizer[[#This Row],[Bio Gas?]],SSOVSelection[NEMA 4]=SSOVSizer[[#This Row],[NEMA 4?]],SSOVSizer[[#This Row],[Calc Q - Desired Q]]<0, SSOVSizer[[#This Row],[Max valve sizes]]=\"Max\"),\"Max\",IF(AND(SSOVSelection[1 or 2]=SSOVSizer[[#This Row],[2 valves or 1]],SSOVSelection[Bio Gas]=SSOVSizer[[#This Row],[Bio Gas?]],SSOVSelection[NEMA 4]=SSOVSizer[[#This Row],[NEMA 4?]]),SSOVSizer[[#This Row],[Calc Q - Desired Q]],\"\"))","v":""},{"$f":"SQRT(($D$5^2)-((2*$D$9*$D$10*$D$15^2)/(1360^2*SSOVSizer[[#This Row],[Cv]]^2)))","v":{"$error":"#N/A"}},"",null,1,1.0489999999999999,{"$f":"SPSizer[[#This Row],[internal Diam (in)]]/12","v":8.7416666666666656E-2},{"$f":"PI()*(SPSizer[[#This Row],[internal Diam (ft)]]/2)^2","v":6.0017564194494114E-3},{"$f":"$D$15/(SPSizer[[#This Row],[Internal Area (ft^2)]]*60*60)","v":{"$error":"#N/A"}},null,"AGF10.40U",1.5,null,null,null,null,null,"High Press SKP25 not avail in 220VAC",25,"220 VAC","No","Yes","Yes",null,null,null,null,null,"AGA23","SKP25.0",{"$f":"100/27.72","v":3.6075036075036078},{"$f":"SKPSpringSizer[[#This Row],[P2 Max]]-(VKGSelection[P2 for SSOV]-14.7)","v":3.6075036075036078},null,{"$f":"IF(Interface!F53=\"Yes\",\"AGA63-MRHT\",\"\")","v":""},{"$f":"IF(Interface!F53=\"Yes\",Interface!F18,0)","v":0},"Heaters",null,803113101,"Yes - Manual Reset",3.5353535353535355,13.203463203463205,{"$f":"LGPSSizer[[#This Row],[LPG Max Press (PSIG)]]-$B$5","v":13.203463203463205},{"$f":"IF(LGPSSelection[Man/Auto]=LGPSSizer[[#This Row],[Man/Auto]],LGPSSizer[[#This Row],[Max - Inlet Press]],\"\")","v":""},{"$f":"LGPSSizer[[#This Row],[LPG Max Press (PSIG)]]-(VKGSelection[P2 for SSOV]-14.7)","v":13.203463203463205},{"$f":"IF(LGPSSelection[Man/Auto]=LGPSSizer[[#This Row],[Man/Auto]],LGPSSizer[[#This Row],[Max - P2]],\"\")","v":""},null,"QPH31.050A00","Yes - Auto Reset",0,0.36075036075036077,{"$f":"HGPSSizer[[#This Row],[Max Manifold Press (PSIG)]]-$B$6","v":0.36075036075036077},{"$f":"IF(HGPSSelection[Man/Auto]=HGPSSizer[[#This Row],[Man/Auto]],HGPSSizer[[#This Row],[Max - Manifold Press]],\"\")","v":""},null,"QPH31.280A00",2.3809523809523809,6.0245310245310248,{"$f":"VPPSSizer[[#This Row],[Max Inlet Press (PSIG)]]-$B$5","v":6.0245310245310248},null,"Does the application require the low and high gas pressure switches to be NEMA 3R?\nNote: SCC Defualt is No","QP","QP","X",null,null,null,null,null,null,null,{"$f":"\"Y-\"&YstrainerIndex[[#This Row],[Pipe Size]]","v":"Y-1"},1,3,0.5,null,{"$f":"PIPor1NPIndex[[#This Row],[PIP or NP]]&\"-\"&PIPor1NPIndex[[#This Row],[Pipe Size]]","v":"NP-1"},"NP",1,4,0.5,null,{"$f":"\"Y-\"&InBallIndex[[#This Row],[Pipe Size]]","v":"Y-1"},1,3,0.5]
["HF Burner Manifold Pressure (Pb)",{"$f":"Interface!G31","v":0},"PSIG",{"$f":"Table8[[#This Row],[Initial Value]]+14.7","v":14.7},"PSIA",null,null,"VRG30.040U",1.5,"Reduced",4,30.08,{"$f":"IF($B$7<>0,SQRT(($D$6^2)+(2*$D$9*$D$10*$D$15^2)/(1360^2*FRCVSizer[[#This Row],[Cv]]^2)),\"NO VKG\")","v":"NO VKG"},{"$f":"FRCVSizer[[#This Row],[Theo P2 (PSIA)]]-14.7","v":{"$error":"#VALUE!"}},{"$f":"IF(Interface!$G$23=FRCVSizer[[#This Row],[Bio Gas?]],FRCVSizer[[#This Row],[Theo P2 (PSIG)]]-$B$8,\"\")","v":""},150,{"$f":"FRCVSizer[[#This Row],[Pipe Size]]&\"\"\" \"&FRCVSizer[[#This Row],[Port Size]]&\" port\"","v":"1.5\" Reduced port"},"Yes",null,"VGD20.323U",1,"1.25\" Double Valve Body, Sq. Flange",1.25,20,30,22.27,"Yes",2,"No",{"$f":"SQRT((SSOVSizer[[#This Row],[P2]]^2)+((2*$D$9*$D$10*SSOVSizer[[#This Row],[Combo train Calc Q (SCFH)]]^2)/(1360^2*SSOVSizer[[#This Row],[Cv]]^2)))","v":{"$error":"#N/A"}},{"$f":"(SSOVSizer[[#This Row],[P2]]-14.7)*$B$16+14.7","v":{"$error":"#VALUE!"}},{"$f":"VKGSelection[P2 for SSOV]","v":14.7},{"$f":"IF(SSOVSizer[[#This Row],[P2]]>$D$5,\"err P2>P1\",1360*SSOVSizer[[#This Row],[Cv]]*SQRT(($D$5+SSOVSizer[[#This Row],[P2]])/($D$9*$D$10))*SQRT(($D$5-SSOVSizer[[#This Row],[P2]])/2))","v":{"$error":"#N/A"}},{"$f":"1360*SSOVSizer[[#This Row],[Cv]]*SQRT((SSOVSizer[[#This Row],[P1 if Trad]]+SSOVSizer[[#This Row],[P2]])/($D$9*$D$10))*SQRT((SSOVSizer[[#This Row],[P1 if Trad]]-SSOVSizer[[#This Row],[P2]])/2)","v":{"$error":"#VALUE!"}},{"$f":"IF(Interface!$F$17=\"Comb\",SSOVSizer[[#This Row],[Combo train Calc Q (SCFH)]]-$D$15,IF(Interface!$F$17=\"Trad\",SSOVSizer[[#This Row],[Trad train Calc Q (SCFH)]]-$D$15,\"Train type not selected\"))","v":"Train type not selected"},null,{"$f":"IF(AND(SSOVSelection[1 or 2]=SSOVSizer[[#This Row],[2 valves or 1]],SSOVSelection[Bio Gas]=SSOVSizer[[#This Row],[Bio Gas?]],SSOVSelection[NEMA 4]=SSOVSizer[[#This Row],[NEMA 4?]],SSOVSizer[[#This Row],[Calc Q - Desired Q]]<0, SSOVSizer[[#This Row],[Max valve sizes]]=\"Max\"),\"Max\",IF(AND(SSOVSelection[1 or 2]=SSOVSizer[[#This Row],[2 valves or 1]],SSOVSelection[Bio Gas]=SSOVSizer[[#This Row],[Bio Gas?]],SSOVSelection[NEMA 4]=SSOVSizer[[#This Row],[NEMA 4?]]),SSOVSizer[[#This Row],[Calc Q - Desired Q]],\"\"))","v":""},{"$f":"SQRT(($D$5^2)-((2*$D$9*$D$10*$D$15^2)/(1360^2*SSOVSizer[[#This Row],[Cv]]^2)))","v":{"$error":"#N/A"}},"",null,1.25,1.38,{"$f":"SPSizer[[#This Row],[internal Diam (in)]]/12","v":0.11499999999999999},{"$f":"PI()*(SPSizer[[#This Row],[internal Diam (ft)]]/2)^2","v":1.0386890710931251E-2},{"$f":"$D$15/(SPSizer[[#This Row],[Internal Area (ft^2)]]*60*60)","v":{"$error":"#N/A"}},null,"AGF10.50U",2,null,null,null,null,null,"High Press SKP25 not avail in 220VAC",25,"220 VAC","No","No","Yes",null,null,null,null,null,{"$f":"\"\"","v":""},"SKP25.4",10,{"$f":"SKPSpringSizer[[#This Row],[P2 Max]]-(VKGSelection[P2 for SSOV]-14.7)","v":10},null,null,null,null,null,803113102,"Yes - Manual Reset",13.203463203463205,28.860028860028862,{"$f":"LGPSSizer[[#This Row],[LPG Max Press (PSIG)]]-$B$5","v":28.860028860028862},{"$f":"IF(LGPSSelection[Man/Auto]=LGPSSizer[[#This Row],[Man/Auto]],LGPSSizer[[#This Row],[Max - Inlet Press]],\"\")","v":""},{"$f":"LGPSSizer[[#This Row],[LPG Max Press (PSIG)]]-(VKGSelection[P2 for SSOV]-14.7)","v":28.860028860028862},{"$f":"IF(LGPSSelection[Man/Auto]=LGPSSizer[[#This Row],[Man/Auto]],LGPSSizer[[#This Row],[Max - P2]],\"\")","v":""},null,"QPH31.090A00","Yes - Auto Reset",0.36075036075036077,0.79365079365079372,{"$f":"HGPSSizer[[#This Row],[Max Manifold Press (PSIG)]]-$B$6","v":0.79365079365079372},{"$f":"IF(HGPSSelection[Man/Auto]=HGPSSizer[[#This Row],[Man/Auto]],HGPSSizer[[#This Row],[Max - Manifold Press]],\"\")","v":""},null,803113401,6.0245310245310248,13.203463203463205,{"$f":"VPPSSizer[[#This Row],[Max Inlet Press (PSIG)]]-$B$5","v":13.203463203463205},null,"Does the application require the low gas pressure switch to be NEMA 3R?\nNote: SCC Defualt is No","QP","X","X",null,null,"Thread engagment Table","these are not right numbers",null,null,null,{"$f":"\"Y-\"&YstrainerIndex[[#This Row],[Pipe Size]]","v":"Y-1.25"},1.25,4,0.7,null,{"$f":"PIPor1NPIndex[[#This Row],[PIP or NP]]&\"-\"&PIPor1NPIndex[[#This Row],[Pipe Size]]","v":"NP-1.25"},"NP",1.25,4,0.7,null,{"$f":"\"Y-\"&InBallIndex[[#This Row],[Pipe Size]]","v":"Y-1.25"},1.25,4,0.7]
["Desired FRCV Pressure Drop",{"$f":"Interface!G35","v":0},"PSIG",{"$f":"Table8[[#This Row],[Initial Value]]+14.7","v":14.7},"PSIA",null,null,"VRG10.025U",1,"Full",5,31.44,{"$f":"IF($B$7<>0,SQRT(($D$6^2)+(2*$D$9*$D$10*$D$15^2)/(1360^2*FRCVSizer[[#This Row],[Cv]]^2)),\"NO VKG\")","v":"NO VKG"},{"$f":"FRCVSizer[[#This Row],[Theo P2 (PSIA)]]-14.7","v":{"$error":"#VALUE!"}},{"$f":"IF(Interface!$G$23=FRCVSizer[[#This Row],[Bio Gas?]],FRCVSizer[[#This Row],[Theo P2 (PSIG)]]-$B$8,\"\")","v":""},100,{"$f":"FRCVSizer[[#This Row],[Pipe Size]]&\"\"\" \"&FRCVSizer[[#This Row],[Port Size]]&\" port\"","v":"1\" Full port"},"Yes",null,"VGD20.403U",1,"1.5\" Double Valve Body, Sq. Flange",1.5,20,30,33.75,"No",2,"No",{"$f":"SQRT((SSOVSizer[[#This Row],[P2]]^2)+((2*$D$9*$D$10*SSOVSizer[[#This Row],[Combo train Calc Q (SCFH)]]^2)/(1360^2*SSOVSizer[[#This Row],[Cv]]^2)))","v":{"$error":"#N/A"}},{"$f":"(SSOVSizer[[#This Row],[P2]]-14.7)*$B$16+14.7","v":{"$error":"#VALUE!"}},{"$f":"VKGSelection[P2 for SSOV]","v":14.7},{"$f":"IF(SSOVSizer[[#This Row],[P2]]>$D$5,\"err P2>P1\",1360*SSOVSizer[[#This Row],[Cv]]*SQRT(($D$5+SSOVSizer[[#This Row],[P2]])/($D$9*$D$10))*SQRT(($D$5-SSOVSizer[[#This Row],[P2]])/2))","v":{"$error":"#N/A"}},{"$f":"1360*SSOVSizer[[#This Row],[Cv]]*SQRT((SSOVSizer[[#This Row],[P1 if Trad]]+SSOVSizer[[#This Row],[P2]])/($D$9*$D$10))*SQRT((SSOVSizer[[#This Row],[P1 if Trad]]-SSOVSizer[[#This Row],[P2]])/2)","v":{"$error":"#VALUE!"}},{"$f":"IF(Interface!$F$17=\"Comb\",SSOVSizer[[#This Row],[Combo train Calc Q (SCFH)]]-$D$15,IF(Interface!$F$17=\"Trad\",SSOVSizer[[#This Row],[Trad train Calc Q (SCFH)]]-$D$15,\"Train type not selected\"))","v":"Train type not selected"},null,{"$f":"IF(AND(SSOVSelection[1 or 2]=SSOVSizer[[#This Row],[2 valves or 1]],SSOVSelection[Bio Gas]=SSOVSizer[[#This Row],[Bio Gas?]],SSOVSelection[NEMA 4]=SSOVSizer[[#This Row],[NEMA 4?]],SSOVSizer[[#This Row],[Calc Q - Desired Q]]<0, SSOVSizer[[#This Row],[Max valve sizes]]=\"Max\"),\"Max\",IF(AND(SSOVSelection[1 or 2]=SSOVSizer[[#This Row],[2 valves or 1]],SSOVSelection[Bio Gas]=SSOVSizer[[#This Row],[Bio Gas?]],SSOVSelection[NEMA 4]=SSOVSizer[[#This Row],[NEMA 4?]]),SSOVSizer[[#This Row],[Calc Q - Desired Q]],\"\"))","v":""},{"$f":"SQRT(($D$5^2)-((2*$D$9*$D$10*$D$15^2)/(1360^2*SSOVSizer[[#This Row],[Cv]]^2)))","v":{"$error":"#N/A"}},"",null,1.5,1.61,{"$f":"SPSizer[[#This Row],[internal Diam (in)]]/12","v":0.13416666666666668},{"$f":"PI()*(SPSizer[[#This Row],[internal Diam (ft)]]/2)^2","v":1.413771235654532E-2},{"$f":"$D$15/(SPSizer[[#This Row],[Internal Area (ft^2)]]*60*60)","v":{"$error":"#N/A"}},null,null,null,null,null,null,null,null,"SKP15.011U1",15,"120 VAC","Yes","No","No",null,null,null,null,null,"AGA23","SKP25.4",20,{"$f":"SKPSpringSizer[[#This Row],[P2 Max]]-(VKGSelection[P2 for SSOV]-14.7)","v":20},null,null,null,null,null,"QPL31.050A00","Yes - Auto Reset",0,0.97402597402597402,{"$f":"LGPSSizer[[#This Row],[LPG Max Press (PSIG)]]-$B$5","v":0.97402597402597402},{"$f":"IF(LGPSSelection[Man/Auto]=LGPSSizer[[#This Row],[Man/Auto]],LGPSSizer[[#This Row],[Max - Inlet Press]],\"\")","v":""},{"$f":"LGPSSizer[[#This Row],[LPG Max Press (PSIG)]]-(VKGSelection[P2 for SSOV]-14.7)","v":0.97402597402597402},{"$f":"IF(LGPSSelection[Man/Auto]=LGPSSizer[[#This Row],[Man/Auto]],LGPSSizer[[#This Row],[Max - P2]],\"\")","v":""},null,"QPH31.280A00","Yes - Auto Reset",0.79365079365079372,2.0202020202020203,{"$f":"HGPSSizer[[#This Row],[Max Manifold Press (PSIG)]]-$B$6","v":2.0202020202020203},{"$f":"IF(HGPSSelection[Man/Auto]=HGPSSizer[[#This Row],[Man/Auto]],HGPSSizer[[#This Row],[Max - Manifold Press]],\"\")","v":""},null,803113402,13.203463203463205,28.860028860028862,{"$f":"VPPSSizer[[#This Row],[Max Inlet Press (PSIG)]]-$B$5","v":28.860028860028862},null,"Does the application require the high gas and valve proving pressure switches to be NEMA 3R?\nNote: SCC Defualt is No","X","QP","QP",null,null,"Pipe size","Thread Engagment",null,null,null,{"$f":"\"Y-\"&YstrainerIndex[[#This Row],[Pipe Size]]","v":"Y-1.5"},1.5,5,0.9,null,{"$f":"PIPor1NPIndex[[#This Row],[PIP or NP]]&\"-\"&PIPor1NPIndex[[#This Row],[Pipe Size]]","v":"NP-1.5"},"NP",1.5,4,0.9,null,{"$f":"\"Y-\"&InBallIndex[[#This Row],[Pipe Size]]","v":"Y-1.5"},1.5,5,0.9]
["Desired press at SSOV outlet ",{"$f":"SUM(B6:B7)","v":0},"PSIG",{"$f":"Table8[[#This Row],[Initial Value]]+14.7","v":14.7},"PSIA",null,null,"VRG20.032U",1.25,"Medium",6,41.16,{"$f":"IF($B$7<>0,SQRT(($D$6^2)+(2*$D$9*$D$10*$D$15^2)/(1360^2*FRCVSizer[[#This Row],[Cv]]^2)),\"NO VKG\")","v":"NO VKG"},{"$f":"FRCVSizer[[#This Row],[Theo P2 (PSIA)]]-14.7","v":{"$error":"#VALUE!"}},{"$f":"IF(Interface!$G$23=FRCVSizer[[#This Row],[Bio Gas?]],FRCVSizer[[#This Row],[Theo P2 (PSIG)]]-$B$8,\"\")","v":""},"125",{"$f":"FRCVSizer[[#This Row],[Pipe Size]]&\"\"\" \"&FRCVSizer[[#This Row],[Port Size]]&\" port\"","v":"1.25\" Medium port"},"Yes",null,"VGD20.403U",1,"1.5\" Double Valve Body, Sq. Flange",1.5,20,30,33.75,"Yes",2,"No",{"$f":"SQRT((SSOVSizer[[#This Row],[P2]]^2)+((2*$D$9*$D$10*SSOVSizer[[#This Row],[Combo train Calc Q (SCFH)]]^2)/(1360^2*SSOVSizer[[#This Row],[Cv]]^2)))","v":{"$error":"#N/A"}},{"$f":"(SSOVSizer[[#This Row],[P2]]-14.7)*$B$16+14.7","v":{"$error":"#VALUE!"}},{"$f":"VKGSelection[P2 for SSOV]","v":14.7},{"$f":"IF(SSOVSizer[[#This Row],[P2]]>$D$5,\"err P2>P1\",1360*SSOVSizer[[#This Row],[Cv]]*SQRT(($D$5+SSOVSizer[[#This Row],[P2]])/($D$9*$D$10))*SQRT(($D$5-SSOVSizer[[#This Row],[P2]])/2))","v":{"$error":"#N/A"}},{"$f":"1360*SSOVSizer[[#This Row],[Cv]]*SQRT((SSOVSizer[[#This Row],[P1 if Trad]]+SSOVSizer[[#This Row],[P2]])/($D$9*$D$10))*SQRT((SSOVSizer[[#This Row],[P1 if Trad]]-SSOVSizer[[#This Row],[P2]])/2)","v":{"$error":"#VALUE!"}},{"$f":"IF(Interface!$F$17=\"Comb\",SSOVSizer[[#This Row],[Combo train Calc Q (SCFH)]]-$D$15,IF(Interface!$F$17=\"Trad\",SSOVSizer[[#This Row],[Trad train Calc Q (SCFH)]]-$D$15,\"Train type not selected\"))","v":"Train type not selected"},null,{"$f":"IF(AND(SSOVSelection[1 or 2]=SSOVSizer[[#This Row],[2 valves or 1]],SSOVSelection[Bio Gas]=SSOVSizer[[#This Row],[Bio Gas?]],SSOVSelection[NEMA 4]=SSOVSizer[[#This Row],[NEMA 4?]],SSOVSizer[[#This Row],[Calc Q - Desired Q]]<0, SSOVSizer[[#This Row],[Max valve sizes]]=\"Max\"),\"Max\",IF(AND(SSOVSelection[1 or 2]=SSOVSizer[[#This Row],[2 valves or 1]],SSOVSelection[Bio Gas]=SSOVSizer[[#This Row],[Bio Gas?]],SSOVSelection[NEMA 4]=SSOVSizer[[#This Row],[NEMA 4?]]),SSOVSizer[[#This Row],[Calc Q - Desired Q]],\"\"))","v":""},{"$f":"SQRT(($D$5^2)-((2*$D$9*$D$10*$D$15^2)/(1360^2*SSOVSizer[[#This Row],[Cv]]^2)))","v":{"$error":"#N/A"}},"",null,2,2.0670000000000002,{"$f":"SPSizer[[#This Row],[internal Diam (in)]]/12","v":0.17225000000000001},{"$f":"PI()*(SPSizer[[#This Row],[internal Diam (ft)]]/2)^2","v":2.3302812595387506E-2},{"$f":"$D$15/(SPSizer[[#This Row],[Internal Area (ft^2)]]*60*60)","v":{"$error":"#N/A"}},null,"Inlet Flange",null,null,null,null,null,null,"SKP15.012U1",15,"120 VAC","Yes","Yes","No",null,null,null,null,null,null,null,null,null,null,null,null,null,null,"QPL31.075A00","Yes - Auto Reset",0.97402597402597402,2.1284271284271283,{"$f":"LGPSSizer[[#This Row],[LPG Max Press (PSIG)]]-$B$5","v":2.1284271284271283},{"$f":"IF(LGPSSelection[Man/Auto]=LGPSSizer[[#This Row],[Man/Auto]],LGPSSizer[[#This Row],[Max - Inlet Press]],\"\")","v":""},{"$f":"LGPSSizer[[#This Row],[LPG Max Press (PSIG)]]-(VKGSelection[P2 for SSOV]-14.7)","v":2.1284271284271283},{"$f":"IF(LGPSSelection[Man/Auto]=LGPSSizer[[#This Row],[Man/Auto]],LGPSSizer[[#This Row],[Max - P2]],\"\")","v":""},null,803113401,"Yes - Auto Reset",2.0202020202020203,4.4011544011544013,{"$f":"HGPSSizer[[#This Row],[Max Manifold Press (PSIG)]]-$B$6","v":4.4011544011544013},{"$f":"IF(HGPSSelection[Man/Auto]=HGPSSizer[[#This Row],[Man/Auto]],HGPSSizer[[#This Row],[Max - Manifold Press]],\"\")","v":""},null,null,null,null,null,null,"Does the application require the valve proving pressure switch to be NEMA 3R?\nNote: SCC Defualt is No","X","X","QP",null,null,0.25,7.2874999999999995E-2,null,null,null,{"$f":"\"Y-\"&YstrainerIndex[[#This Row],[Pipe Size]]","v":"Y-2"},2,6,1.1000000000000001,null,{"$f":"PIPor1NPIndex[[#This Row],[PIP or NP]]&\"-\"&PIPor1NPIndex[[#This Row],[Pipe Size]]","v":"NP-2"},"NP",2,4,1.1000000000000001,null,{"$f":"\"Y-\"&InBallIndex[[#This Row],[Pipe Size]]","v":"Y-2"},2,6,1.1000000000000001]
["Gas Specific Gravity",null,null,{"$f":"INDEX(FuelList[#Data],MATCH(Interface!$F$23,FuelList[Fuel],0),MATCH(\"SG\",FuelList[#Headers],0))","v":{"$error":"#N/A"}},null,null,null,"VRG30.050U",2,"Reduced",7,62.05,{"$f":"IF($B$7<>0,SQRT(($D$6^2)+(2*$D$9*$D$10*$D$15^2)/(1360^2*FRCVSizer[[#This Row],[Cv]]^2)),\"NO VKG\")","v":"NO VKG"},{"$f":"FRCVSizer[[#This Row],[Theo P2 (PSIA)]]-14.7","v":{"$error":"#VALUE!"}},{"$f":"IF(Interface!$G$23=FRCVSizer[[#This Row],[Bio Gas?]],FRCVSizer[[#This Row],[Theo P2 (PSIG)]]-$B$8,\"\")","v":""},200,{"$f":"FRCVSizer[[#This Row],[Pipe Size]]&\"\"\" \"&FRCVSizer[[#This Row],[Port Size]]&\" port\"","v":"2\" Reduced port"},"Yes",null,"VGD20.503U",1,"2\" Double Valve Body, Sq. Flange",2,20,30,41.57,"No",2,"No",{"$f":"SQRT((SSOVSizer[[#This Row],[P2]]^2)+((2*$D$9*$D$10*SSOVSizer[[#This Row],[Combo train Calc Q (SCFH)]]^2)/(1360^2*SSOVSizer[[#This Row],[Cv]]^2)))","v":{"$error":"#N/A"}},{"$f":"(SSOVSizer[[#This Row],[P2]]-14.7)*$B$16+14.7","v":{"$error":"#VALUE!"}},{"$f":"VKGSelection[P2 for SSOV]","v":14.7},{"$f":"IF(SSOVSizer[[#This Row],[P2]]>$D$5,\"err P2>P1\",1360*SSOVSizer[[#This Row],[Cv]]*SQRT(($D$5+SSOVSizer[[#This Row],[P2]])/($D$9*$D$10))*SQRT(($D$5-SSOVSizer[[#This Row],[P2]])/2))","v":{"$error":"#N/A"}},{"$f":"1360*SSOVSizer[[#This Row],[Cv]]*SQRT((SSOVSizer[[#This Row],[P1 if Trad]]+SSOVSizer[[#This Row],[P2]])/($D$9*$D$10))*SQRT((SSOVSizer[[#This Row],[P1 if Trad]]-SSOVSizer[[#This Row],[P2]])/2)","v":{"$error":"#VALUE!"}},{"$f":"IF(Interface!$F$17=\"Comb\",SSOVSizer[[#This Row],[Combo train Calc Q (SCFH)]]-$D$15,IF(Interface!$F$17=\"Trad\",SSOVSizer[[#This Row],[Trad train Calc Q (SCFH)]]-$D$15,\"Train type not selected\"))","v":"Train type not selected"},null,{"$f":"IF(AND(SSOVSelection[1 or 2]=SSOVSizer[[#This Row],[2 valves or 1]],SSOVSelection[Bio Gas]=SSOVSizer[[#This Row],[Bio Gas?]],SSOVSelection[NEMA 4]=SSOVSizer[[#This Row],[NEMA 4?]],SSOVSizer[[#This Row],[Calc Q - Desired Q]]<0, SSOVSizer[[#This Row],[Max valve sizes]]=\"Max\"),\"Max\",IF(AND(SSOVSelection[1 or 2]=SSOVSizer[[#This Row],[2 valves or 1]],SSOVSelection[Bio Gas]=SSOVSizer[[#This Row],[Bio Gas?]],SSOVSelection[NEMA 4]=SSOVSizer[[#This Row],[NEMA 4?]]),SSOVSizer[[#This Row],[Calc Q - Desired Q]],\"\"))","v":""},{"$f":"SQRT(($D$5^2)-((2*$D$9*$D$10*$D$15^2)/(1360^2*SSOVSizer[[#This Row],[Cv]]^2)))","v":{"$error":"#N/A"}},"",null,2.5,2.4689999999999999,{"$f":"SPSizer[[#This Row],[internal Diam (in)]]/12","v":0.20574999999999999},{"$f":"PI()*(SPSizer[[#This Row],[internal Diam (ft)]]/2)^2","v":3.3248309538489389E-2},{"$f":"$D$15/(SPSizer[[#This Row],[Internal Area (ft^2)]]*60*60)","v":{"$error":"#N/A"}},null,"Part #","Pipe Size",null,null,null,null,null,"SKP15.012U1",15,"120 VAC","No","Yes","No",null,null,null,null,null,"SKP25 Spring Select",null,null,null,null,null,null,null,null,"QPL31.280A00","Yes - Auto Reset",2.1284271284271283,6.0245310245310248,{"$f":"LGPSSizer[[#This Row],[LPG Max Press (PSIG)]]-$B$5","v":6.0245310245310248},{"$f":"IF(LGPSSelection[Man/Auto]=LGPSSizer[[#This Row],[Man/Auto]],LGPSSizer[[#This Row],[Max - Inlet Press]],\"\")","v":""},{"$f":"LGPSSizer[[#This Row],[LPG Max Press (PSIG)]]-(VKGSelection[P2 for SSOV]-14.7)","v":6.0245310245310248},{"$f":"IF(LGPSSelection[Man/Auto]=LGPSSizer[[#This Row],[Man/Auto]],LGPSSizer[[#This Row],[Max - P2]],\"\")","v":""},null,803113402,"Yes - Auto Reset",4.4011544011544013,10,{"$f":"HGPSSizer[[#This Row],[Max Manifold Press (PSIG)]]-$B$6","v":10},{"$f":"IF(HGPSSelection[Man/Auto]=HGPSSizer[[#This Row],[Man/Auto]],HGPSSizer[[#This Row],[Max - Manifold Press]],\"\")","v":""},null,"Valve Proving Press Switch Selection",null,null,null,null,"Hide","X","X","X",null,null,0.375,0.10931249999999999,null,null,null,{"$f":"\"Y-\"&YstrainerIndex[[#This Row],[Pipe Size]]","v":"Y-2.5"},2.5,7,1.3,null,{"$f":"PIPor1NPIndex[[#This Row],[PIP or NP]]&\"-\"&PIPor1NPIndex[[#This Row],[Pipe Size]]","v":"NP-2.5"},"NP",2.5,4,1.3,null,{"$f":"\"Y-\"&InBallIndex[[#This Row],[Pipe Size]]","v":"Y-2.5"},2.5,7,1.3]
["Gas Flow Temperature (assumed) (Tf)",60,"Deg F",{"$f":"Table8[[#This Row],[Initial Value]]+460","v":520},"Deg R",null,null,"VRG10.032U",1.25,"Full",8,74.81,{"$f":"IF($B$7<>0,SQRT(($D$6^2)+(2*$D$9*$D$10*$D$15^2)/(1360^2*FRCVSizer[[#This Row],[Cv]]^2)),\"NO VKG\")","v":"NO VKG"},{"$f":"FRCVSizer[[#This Row],[Theo P2 (PSIA)]]-14.7","v":{"$error":"#VALUE!"}},{"$f":"IF(Interface!$G$23=FRCVSizer[[#This Row],[Bio Gas?]],FRCVSizer[[#This Row],[Theo P2 (PSIG)]]-$B$8,\"\")","v":""},"125",{"$f":"FRCVSizer[[#This Row],[Pipe Size]]&\"\"\" \"&FRCVSizer[[#This Row],[Port Size]]&\" port\"","v":"1.25\" Full port"},"Yes",null,"VGD20.503U",1,"2\" Double Valve Body, Sq. Flange",2,20,30,41.57,"Yes",2,"No",{"$f":"SQRT((SSOVSizer[[#This Row],[P2]]^2)+((2*$D$9*$D$10*SSOVSizer[[#This Row],[Combo train Calc Q (SCFH)]]^2)/(1360^2*SSOVSizer[[#This Row],[Cv]]^2)))","v":{"$error":"#N/A"}},{"$f":"(SSOVSizer[[#This Row],[P2]]-14.7)*$B$16+14.7","v":{"$error":"#VALUE!"}},{"$f":"VKGSelection[P2 for SSOV]","v":14.7},{"$f":"IF(SSOVSizer[[#This Row],[P2]]>$D$5,\"err P2>P1\",1360*SSOVSizer[[#This Row],[Cv]]*SQRT(($D$5+SSOVSizer[[#This Row],[P2]])/($D$9*$D$10))*SQRT(($D$5-SSOVSizer[[#This Row],[P2]])/2))","v":{"$error":"#N/A"}},{"$f":"1360*SSOVSizer[[#This Row],[Cv]]*SQRT((SSOVSizer[[#This Row],[P1 if Trad]]+SSOVSizer[[#This Row],[P2]])/($D$9*$D$10))*SQRT((SSOVSizer[[#This Row],[P1 if Trad]]-SSOVSizer[[#This Row],[P2]])/2)","v":{"$error":"#VALUE!"}},{"$f":"IF(Interface!$F$17=\"Comb\",SSOVSizer[[#This Row],[Combo train Calc Q (SCFH)]]-$D$15,IF(Interface!$F$17=\"Trad\",SSOVSizer[[#This Row],[Trad train Calc Q (SCFH)]]-$D$15,\"Train type not selected\"))","v":"Train type not selected"},null,{"$f":"IF(AND(SSOVSelection[1 or 2]=SSOVSizer[[#This Row],[2 valves or 1]],SSOVSelection[Bio Gas]=SSOVSizer[[#This Row],[Bio Gas?]],SSOVSelection[NEMA 4]=SSOVSizer[[#This Row],[NEMA 4?]],SSOVSizer[[#This Row],[Calc Q - Desired Q]]<0, SSOVSizer[[#This Row],[Max valve sizes]]=\"Max\"),\"Max\",IF(AND(SSOVSelection[1 or 2]=SSOVSizer[[#This Row],[2 valves or 1]],SSOVSelection[Bio Gas]=SSOVSizer[[#This Row],[Bio Gas?]],SSOVSelection[NEMA 4]=SSOVSizer[[#This Row],[NEMA 4?]]),SSOVSizer[[#This Row],[Calc Q - Desired Q]],\"\"))","v":""},{"$f":"SQRT(($D$5^2)-((2*$D$9*$D$10*$D$15^2)/(1360^2*SSOVSizer[[#This Row],[Cv]]^2)))","v":{"$error":"#N/A"}},"",null,3,3.0680000000000001,{"$f":"SPSizer[[#This Row],[internal Diam (in)]]/12","v":0.25566666666666665},{"$f":"PI()*(SPSizer[[#This Row],[internal Diam (ft)]]/2)^2","v":5.13379000163246E-2},{"$f":"$D$15/(SPSizer[[#This Row],[Internal Area (ft^2)]]*60*60)","v":{"$error":"#N/A"}},null,{"$f":"IFERROR(INDEX(FlangeSize[#Data],MATCH(InFlange[Pipe Size],FlangeSize[Pipe Size],0),MATCH(InFlange[[#Headers],[Part '#]],FlangeSize[#Headers],0)),\"\")","v":""},{"$f":"IF(LEFT(SSOVSelection[Part '#],5)=\"VGD20\",Interface!$F$54,\"NA\")","v":"NA"},null,null,null,null,null,"SKP15.012U2",15,"220 VAC","Yes","Yes","No",null,null,null,null,null,"Part #","2nd Act SKP Type","Pb Max - Pb Theo Opt",null,null,null,null,null,null,803113301,"Yes - Auto Reset",6.0245310245310248,13.203463203463205,{"$f":"LGPSSizer[[#This Row],[LPG Max Press (PSIG)]]-$B$5","v":13.203463203463205},{"$f":"IF(LGPSSelection[Man/Auto]=LGPSSizer[[#This Row],[Man/Auto]],LGPSSizer[[#This Row],[Max - Inlet Press]],\"\")","v":""},{"$f":"LGPSSizer[[#This Row],[LPG Max Press (PSIG)]]-(VKGSelection[P2 for SSOV]-14.7)","v":13.203463203463205},{"$f":"IF(LGPSSelection[Man/Auto]=LGPSSizer[[#This Row],[Man/Auto]],LGPSSizer[[#This Row],[Max - P2]],\"\")","v":""},null,null,null,null,null,null,null,null,"Part #","Opt Max - In","Yes or No",null,null,"Does the application require the low gas and valve proving pressure switches to be NEMA 3R?\nNote: SCC Defualt is No","QP","X","QP",null,null,0.5,0.14574999999999999,null,null,null,{"$f":"\"Y-\"&YstrainerIndex[[#This Row],[Pipe Size]]","v":"Y-3"},3,8,1.5,null,{"$f":"PIPor1NPIndex[[#This Row],[PIP or NP]]&\"-\"&PIPor1NPIndex[[#This Row],[Pipe Size]]","v":"NP-3"},"NP",3,4,1.5,null,{"$f":"\"Y-\"&InBallIndex[[#This Row],[Pipe Size]]","v":"Y-3"},3,8,1.5]
["Gas Heating Value",null,null,{"$f":"INDEX(FuelList[#Data],MATCH(Interface!$F$23,FuelList[Fuel],0),MATCH(\"HV (BTU/SCF)\",FuelList[#Headers],0))","v":{"$error":"#N/A"}},"BTU/SCFH",null,null,"VRG30.065U",2.5,"Reduced",9,76.09,{"$f":"IF($B$7<>0,SQRT(($D$6^2)+(2*$D$9*$D$10*$D$15^2)/(1360^2*FRCVSizer[[#This Row],[Cv]]^2)),\"NO VKG\")","v":"NO VKG"},{"$f":"FRCVSizer[[#This Row],[Theo P2 (PSIA)]]-14.7","v":{"$error":"#VALUE!"}},{"$f":"IF(Interface!$G$23=FRCVSizer[[#This Row],[Bio Gas?]],FRCVSizer[[#This Row],[Theo P2 (PSIG)]]-$B$8,\"\")","v":""},250,{"$f":"FRCVSizer[[#This Row],[Pipe Size]]&\"\"\" \"&FRCVSizer[[#This Row],[Port Size]]&\" port\"","v":"2.5\" Reduced port"},"Yes",null,"VGD40.065U",1,"2.5\" Double Valve Body, NPT - Gas",2.5,10,75,72.62,"No",2,"No",{"$f":"SQRT((SSOVSizer[[#This Row],[P2]]^2)+((2*$D$9*$D$10*SSOVSizer[[#This Row],[Combo train Calc Q (SCFH)]]^2)/(1360^2*SSOVSizer[[#This Row],[Cv]]^2)))","v":{"$error":"#N/A"}},{"$f":"(SSOVSizer[[#This Row],[P2]]-14.7)*$B$16+14.7","v":{"$error":"#VALUE!"}},{"$f":"VKGSelection[P2 for SSOV]","v":14.7},{"$f":"IF(SSOVSizer[[#This Row],[P2]]>$D$5,\"err P2>P1\",1360*SSOVSizer[[#This Row],[Cv]]*SQRT(($D$5+SSOVSizer[[#This Row],[P2]])/($D$9*$D$10))*SQRT(($D$5-SSOVSizer[[#This Row],[P2]])/2))","v":{"$error":"#N/A"}},{"$f":"1360*SSOVSizer[[#This Row],[Cv]]*SQRT((SSOVSizer[[#This Row],[P1 if Trad]]+SSOVSizer[[#This Row],[P2]])/($D$9*$D$10))*SQRT((SSOVSizer[[#This Row],[P1 if Trad]]-SSOVSizer[[#This Row],[P2]])/2)","v":{"$error":"#VALUE!"}},{"$f":"IF(Interface!$F$17=\"Comb\",SSOVSizer[[#This Row],[Combo train Calc Q (SCFH)]]-$D$15,IF(Interface!$F$17=\"Trad\",SSOVSizer[[#This Row],[Trad train Calc Q (SCFH)]]-$D$15,\"Train type not selected\"))","v":"Train type not selected"},null,{"$f":"IF(AND(SSOVSelection[1 or 2]=SSOVSizer[[#This Row],[2 valves or 1]],SSOVSelection[Bio Gas]=SSOVSizer[[#This Row],[Bio Gas?]],SSOVSelection[NEMA 4]=SSOVSizer[[#This Row],[NEMA 4?]],SSOVSizer[[#This Row],[Calc Q - Desired Q]]<0, SSOVSizer[[#This Row],[Max valve sizes]]=\"Max\"),\"Max\",IF(AND(SSOVSelection[1 or 2]=SSOVSizer[[#This Row],[2 valves or 1]],SSOVSelection[Bio Gas]=SSOVSizer[[#This Row],[Bio Gas?]],SSOVSelection[NEMA 4]=SSOVSizer[[#This Row],[NEMA 4?]]),SSOVSizer[[#This Row],[Calc Q - Desired Q]],\"\"))","v":""},{"$f":"SQRT(($D$5^2)-((2*$D$9*$D$10*$D$15^2)/(1360^2*SSOVSizer[[#This Row],[Cv]]^2)))","v":{"$error":"#N/A"}},"AGA40.6580U",null,4,4.0259999999999998,{"$f":"SPSizer[[#This Row],[internal Diam (in)]]/12","v":0.33549999999999996},{"$f":"PI()*(SPSizer[[#This Row],[internal Diam (ft)]]/2)^2","v":8.8404613621557604E-2},{"$f":"$D$15/(SPSizer[[#This Row],[Internal Area (ft^2)]]*60*60)","v":{"$error":"#N/A"}},null,null,null,null,null,null,null,null,"SKP15.012U2",15,"220 VAC","Yes","No","No",null,null,null,null,null,{"$f":"IFERROR(INDEX(SKPSpringSizer[#Data],MATCH(SKPSpringSelect[2nd Act SKP Type]&SKPSpringSelect[Pb Max - Pb Theo Opt],SKPSpringSizer[SKP25 type]&SKPSpringSizer[P2 Max - P2 Theo],0),MATCH(SKPSpringSizer[[#Headers],[Part '#]],SKPSpringSizer[#Headers],0)),\"\")","v":""},{"$f":"LEFT(Act2Select[Part '#],7)","v":{"$error":"#N/A"}},{"$f":"MIN(IF(SKPSpringSizer[P2 Max - P2 Theo]>0,SKPSpringSizer[P2 Max - P2 Theo]))","v":0.30663780663780665},null,null,null,null,null,null,803113302,"Yes - Auto Reset",13.203463203463205,28.860028860028862,{"$f":"LGPSSizer[[#This Row],[LPG Max Press (PSIG)]]-$B$5","v":28.860028860028862},{"$f":"IF(LGPSSelection[Man/Auto]=LGPSSizer[[#This Row],[Man/Auto]],LGPSSizer[[#This Row],[Max - Inlet Press]],\"\")","v":""},{"$f":"LGPSSizer[[#This Row],[LPG Max Press (PSIG)]]-(VKGSelection[P2 for SSOV]-14.7)","v":28.860028860028862},{"$f":"IF(LGPSSelection[Man/Auto]=LGPSSizer[[#This Row],[Man/Auto]],LGPSSizer[[#This Row],[Max - P2]],\"\")","v":""},null,"High Gas Press Switch Selection",null,null,null,null,null,null,{"$f":"IF(VPPSSelection[Yes or No]=\"Yes\",INDEX(VPPSSizer[#Data],MATCH(VPPSSelection[Opt Max - In],VPPSSizer[Max - Inlet Press],0),MATCH(VPPSSizer[[#Headers],[Part '#]],VPPSSizer[#Headers],0)),\"\")","v":""},{"$f":"MIN(IF(VPPSSizer[Max - Inlet Press]>0.037,VPPSSizer[Max - Inlet Press]))","v":1.0461760461760463},{"$f":"Interface!F59","v":0},null,null,"Does the application require the high gas pressure switch to be NEMA 3R?\nNote: SCC Defualt is No","X","QP","X",null,null,0.75,0.21862499999999999,null,null,null,{"$f":"\"Y-\"&YstrainerIndex[[#This Row],[Pipe Size]]","v":"Y-4"},4,9,1.7,null,{"$f":"PIPor1NPIndex[[#This Row],[PIP or NP]]&\"-\"&PIPor1NPIndex[[#This Row],[Pipe Size]]","v":"NP-4"},"NP",4,4,1.7,null,{"$f":"\"Y-\"&InBallIndex[[#This Row],[Pipe Size]]","v":"Y-4"},4,9,1.7]
["Capacity, Boiler HP based",{"$f":"IFERROR(Interface!F40*33475*(1/Interface!F41)/D11,0)","v":0},"SCFH",null,null,null,null,"VRG20.040U",1.5,"Medium",10,81.349999999999994,{"$f":"IF($B$7<>0,SQRT(($D$6^2)+(2*$D$9*$D$10*$D$15^2)/(1360^2*FRCVSizer[[#This Row],[Cv]]^2)),\"NO VKG\")","v":"NO VKG"},{"$f":"FRCVSizer[[#This Row],[Theo P2 (PSIA)]]-14.7","v":{"$error":"#VALUE!"}},{"$f":"IF(Interface!$G$23=FRCVSizer[[#This Row],[Bio Gas?]],FRCVSizer[[#This Row],[Theo P2 (PSIG)]]-$B$8,\"\")","v":""},150,{"$f":"FRCVSizer[[#This Row],[Pipe Size]]&\"\"\" \"&FRCVSizer[[#This Row],[Port Size]]&\" port\"","v":"1.5\" Medium port"},"Yes",null,"VGD40.065U",1,"2.5\" Double Valve Body, NPT - Gas",2.5,10,75,72.62,"Yes",2,"No",{"$f":"SQRT((SSOVSizer[[#This Row],[P2]]^2)+((2*$D$9*$D$10*SSOVSizer[[#This Row],[Combo train Calc Q (SCFH)]]^2)/(1360^2*SSOVSizer[[#This Row],[Cv]]^2)))","v":{"$error":"#N/A"}},{"$f":"(SSOVSizer[[#This Row],[P2]]-14.7)*$B$16+14.7","v":{"$error":"#VALUE!"}},{"$f":"VKGSelection[P2 for SSOV]","v":14.7},{"$f":"IF(SSOVSizer[[#This Row],[P2]]>$D$5,\"err P2>P1\",1360*SSOVSizer[[#This Row],[Cv]]*SQRT(($D$5+SSOVSizer[[#This Row],[P2]])/($D$9*$D$10))*SQRT(($D$5-SSOVSizer[[#This Row],[P2]])/2))","v":{"$error":"#N/A"}},{"$f":"1360*SSOVSizer[[#This Row],[Cv]]*SQRT((SSOVSizer[[#This Row],[P1 if Trad]]+SSOVSizer[[#This Row],[P2]])/($D$9*$D$10))*SQRT((SSOVSizer[[#This Row],[P1 if Trad]]-SSOVSizer[[#This Row],[P2]])/2)","v":{"$error":"#VALUE!"}},{"$f":"IF(Interface!$F$17=\"Comb\",SSOVSizer[[#This Row],[Combo train Calc Q (SCFH)]]-$D$15,IF(Interface!$F$17=\"Trad\",SSOVSizer[[#This Row],[Trad train Calc Q (SCFH)]]-$D$15,\"Train type not selected\"))","v":"Train type not selected"},null,{"$f":"IF(AND(SSOVSelection[1 or 2]=SSOVSizer[[#This Row],[2 valves or 1]],SSOVSelection[Bio Gas]=SSOVSizer[[#This Row],[Bio Gas?]],SSOVSelection[NEMA 4]=SSOVSizer[[#This Row],[NEMA 4?]],SSOVSizer[[#This Row],[Calc Q - Desired Q]]<0, SSOVSizer[[#This Row],[Max valve sizes]]=\"Max\"),\"Max\",IF(AND(SSOVSelection[1 or 2]=SSOVSizer[[#This Row],[2 valves or 1]],SSOVSelection[Bio Gas]=SSOVSizer[[#This Row],[Bio Gas?]],SSOVSelection[NEMA 4]=SSOVSizer[[#This Row],[NEMA 4?]]),SSOVSizer[[#This Row],[Calc Q - Desired Q]],\"\"))","v":""},{"$f":"SQRT(($D$5^2)-((2*$D$9*$D$10*$D$15^2)/(1360^2*SSOVSizer[[#This Row],[Cv]]^2)))","v":{"$error":"#N/A"}},"AGA40.6580U",null,6,6.0650000000000004,{"$f":"SPSizer[[#This Row],[internal Diam (in)]]/12","v":0.50541666666666674},{"$f":"PI()*(SPSizer[[#This Row],[internal Diam (ft)]]/2)^2","v":0.20062682470137855},{"$f":"$D$15/(SPSizer[[#This Row],[Internal Area (ft^2)]]*60*60)","v":{"$error":"#N/A"}},null,"outlet flange logic matrix",null,null,null,null,null,null,"SKP15.012U2",15,"220 VAC","No","Yes","No",null,null,null,null,null,null,null,null,null,null,null,null,null,null,null,null,null,null,null,null,null,null,null,"Part #","Man/Auto","Opt Max - In",null,null,null,null,null,null,null,null,null,null,null,null,null,null,null,1,0.29149999999999998,null,null,null,{"$f":"\"Y-\"&YstrainerIndex[[#This Row],[Pipe Size]]","v":"Y-6"},6,10,1.9,null,{"$f":"PIPor1NPIndex[[#This Row],[PIP or NP]]&\"-\"&PIPor1NPIndex[[#This Row],[Pipe Size]]","v":"NP-6"},"NP",6,4,1.9,null,{"$f":"\"Y-\"&InBallIndex[[#This Row],[Pipe Size]]","v":"Y-6"},6,10,1.9]
["Capacity, Gas Flow based",{"$f":"Interface!F42","v":0},"SCFH",null,null,null,null,"VRG20.050U",2,"Medium",11,97.12,{"$f":"IF($B$7<>0,SQRT(($D$6^2)+(2*$D$9*$D$10*$D$15^2)/(1360^2*FRCVSizer[[#This Row],[Cv]]^2)),\"NO VKG\")","v":"NO VKG"},{"$f":"FRCVSizer[[#This Row],[Theo P2 (PSIA)]]-14.7","v":{"$error":"#VALUE!"}},{"$f":"IF(Interface!$G$23=FRCVSizer[[#This Row],[Bio Gas?]],FRCVSizer[[#This Row],[Theo P2 (PSIG)]]-$B$8,\"\")","v":""},200,{"$f":"FRCVSizer[[#This Row],[Pipe Size]]&\"\"\" \"&FRCVSizer[[#This Row],[Port Size]]&\" port\"","v":"2\" Medium port"},"Yes",null,"VGD40.080U",1,"3\" Double Valve Body, NPT - Gas",3,10,75,105.06,"No",2,"No",{"$f":"SQRT((SSOVSizer[[#This Row],[P2]]^2)+((2*$D$9*$D$10*SSOVSizer[[#This Row],[Combo train Calc Q (SCFH)]]^2)/(1360^2*SSOVSizer[[#This Row],[Cv]]^2)))","v":{"$error":"#N/A"}},{"$f":"(SSOVSizer[[#This Row],[P2]]-14.7)*$B$16+14.7","v":{"$error":"#VALUE!"}},{"$f":"VKGSelection[P2 for SSOV]","v":14.7},{"$f":"IF(SSOVSizer[[#This Row],[P2]]>$D$5,\"err P2>P1\",1360*SSOVSizer[[#This Row],[Cv]]*SQRT(($D$5+SSOVSizer[[#This Row],[P2]])/($D$9*$D$10))*SQRT(($D$5-SSOVSizer[[#This Row],[P2]])/2))","v":{"$error":"#N/A"}},{"$f":"1360*SSOVSizer[[#This Row],[Cv]]*SQRT((SSOVSizer[[#This Row],[P1 if Trad]]+SSOVSizer[[#This Row],[P2]])/($D$9*$D$10))*SQRT((SSOVSizer[[#This Row],[P1 if Trad]]-SSOVSizer[[#This Row],[P2]])/2)","v":{"$error":"#VALUE!"}},{"$f":"IF(Interface!$F$17=\"Comb\",SSOVSizer[[#This Row],[Combo train Calc Q (SCFH)]]-$D$15,IF(Interface!$F$17=\"Trad\",SSOVSizer[[#This Row],[Trad train Calc Q (SCFH)]]-$D$15,\"Train type not selected\"))","v":"Train type not selected"},null,{"$f":"IF(AND(SSOVSelection[1 or 2]=SSOVSizer[[#This Row],[2 valves or 1]],SSOVSelection[Bio Gas]=SSOVSizer[[#This Row],[Bio Gas?]],SSOVSelection[NEMA 4]=SSOVSizer[[#This Row],[NEMA 4?]],SSOVSizer[[#This Row],[Calc Q - Desired Q]]<0, SSOVSizer[[#This Row],[Max valve sizes]]=\"Max\"),\"Max\",IF(AND(SSOVSelection[1 or 2]=SSOVSizer[[#This Row],[2 valves or 1]],SSOVSelection[Bio Gas]=SSOVSizer[[#This Row],[Bio Gas?]],SSOVSelection[NEMA 4]=SSOVSizer[[#This Row],[NEMA 4?]]),SSOVSizer[[#This Row],[Calc Q - Desired Q]],\"\"))","v":""},{"$f":"SQRT(($D$5^2)-((2*$D$9*$D$10*$D$15^2)/(1360^2*SSOVSizer[[#This Row],[Cv]]^2)))","v":{"$error":"#N/A"}},"AGA40.6580U",null,8,7.9809999999999999,{"$f":"SPSizer[[#This Row],[internal Diam (in)]]/12","v":0.66508333333333336},{"$f":"PI()*(SPSizer[[#This Row],[internal Diam (ft)]]/2)^2","v":0.34740975655903372},{"$f":"$D$15/(SPSizer[[#This Row],[Internal Area (ft^2)]]*60*60)","v":{"$error":"#N/A"}},null,"Trad or comb","VKG","Outlet Flange to match","Outlet Flange Size",null,null,null,"SKP15.013U1",15,"120 VAC","No","No","No",null,null,null,null,null,null,null,null,null,null,null,null,null,null,"Low Gas Press Switch Selection",null,null,null,null,null,null,null,null,{"$f":"IF(HGPSSelection[Opt Max - In]=0,\"\",IF(LEFT(HGPSSelection[Man/Auto],1)=\"Y\",INDEX(HGPSSizer[#Data],MATCH(HGPSSelection[Opt Max - In],HGPSSizer[Criteria Met - Max - IN],0),MATCH(HGPSSizer[[#Headers],[Part '#]],HGPSSizer[#Headers],0)),CI23))","v":""},{"$f":"Interface!E58","v":0},{"$f":"MIN(IF(HGPSSizer[Criteria Met - Max - IN]>0.037,HGPSSizer[Criteria Met - Max - IN]))","v":0},null,null,null,null,null,null,null,null,null,"Question Selection",null,null,null,null,null,1.25,0.364375,null,null,null,null,null,null,null,null,{"$f":"PIPor1NPIndex[[#This Row],[PIP or NP]]&\"-\"&PIPor1NPIndex[[#This Row],[Pipe Size]]","v":"PIP-0.5"},"PIP",0.5,4,0.1]
["Capacity, Heat Input Based",{"$f":"Interface!F43/D11","v":{"$error":"#N/A"}},"SCFH",null,null,null,null,"VRG10.040U",1.5,"Full",12,100.08,{"$f":"IF($B$7<>0,SQRT(($D$6^2)+(2*$D$9*$D$10*$D$15^2)/(1360^2*FRCVSizer[[#This Row],[Cv]]^2)),\"NO VKG\")","v":"NO VKG"},{"$f":"FRCVSizer[[#This Row],[Theo P2 (PSIA)]]-14.7","v":{"$error":"#VALUE!"}},{"$f":"IF(Interface!$G$23=FRCVSizer[[#This Row],[Bio Gas?]],FRCVSizer[[#This Row],[Theo P2 (PSIG)]]-$B$8,\"\")","v":""},150,{"$f":"FRCVSizer[[#This Row],[Pipe Size]]&\"\"\" \"&FRCVSizer[[#This Row],[Port Size]]&\" port\"","v":"1.5\" Full port"},"Yes",null,"VGD40.080U",1,"3\" Double Valve Body, NPT - Gas",3,10,75,105.06,"Yes",2,"No",{"$f":"SQRT((SSOVSizer[[#This Row],[P2]]^2)+((2*$D$9*$D$10*SSOVSizer[[#This Row],[Combo train Calc Q (SCFH)]]^2)/(1360^2*SSOVSizer[[#This Row],[Cv]]^2)))","v":{"$error":"#N/A"}},{"$f":"(SSOVSizer[[#This Row],[P2]]-14.7)*$B$16+14.7","v":{"$error":"#VALUE!"}},{"$f":"VKGSelection[P2 for SSOV]","v":14.7},{"$f":"IF(SSOVSizer[[#This Row],[P2]]>$D$5,\"err P2>P1\",1360*SSOVSizer[[#This Row],[Cv]]*SQRT(($D$5+SSOVSizer[[#This Row],[P2]])/($D$9*$D$10))*SQRT(($D$5-SSOVSizer[[#This Row],[P2]])/2))","v":{"$error":"#N/A"}},{"$f":"1360*SSOVSizer[[#This Row],[Cv]]*SQRT((SSOVSizer[[#This Row],[P1 if Trad]]+SSOVSizer[[#This Row],[P2]])/($D$9*$D$10))*SQRT((SSOVSizer[[#This Row],[P1 if Trad]]-SSOVSizer[[#This Row],[P2]])/2)","v":{"$error":"#VALUE!"}},{"$f":"IF(Interface!$F$17=\"Comb\",SSOVSizer[[#This Row],[Combo train Calc Q (SCFH)]]-$D$15,IF(Interface!$F$17=\"Trad\",SSOVSizer[[#This Row],[Trad train Calc Q (SCFH)]]-$D$15,\"Train type not selected\"))","v":"Train type not selected"},null,{"$f":"IF(AND(SSOVSelection[1 or 2]=SSOVSizer[[#This Row],[2 valves or 1]],SSOVSelection[Bio Gas]=SSOVSizer[[#This Row],[Bio Gas?]],SSOVSelection[NEMA 4]=SSOVSizer[[#This Row],[NEMA 4?]],SSOVSizer[[#This Row],[Calc Q - Desired Q]]<0, SSOVSizer[[#This Row],[Max valve sizes]]=\"Max\"),\"Max\",IF(AND(SSOVSelection[1 or 2]=SSOVSizer[[#This Row],[2 valves or 1]],SSOVSelection[Bio Gas]=SSOVSizer[[#This Row],[Bio Gas?]],SSOVSelection[NEMA 4]=SSOVSizer[[#This Row],[NEMA 4?]]),SSOVSizer[[#This Row],[Calc Q - Desired Q]],\"\"))","v":""},{"$f":"SQRT(($D$5^2)-((2*$D$9*$D$10*$D$15^2)/(1360^2*SSOVSizer[[#This Row],[Cv]]^2)))","v":{"$error":"#N/A"}},"AGA40.6580U",null,null,null,null,null,null,null,"Trad","Yes","VKG Size",{"$f":"IFERROR(INDEX(FRCVSizer[#Data],MATCH(VKGcustSelect[Part '#],FRCVSizer[Part '#],0),MATCH(\"Pipe Size\",FRCVSizer[#Headers],9)),\"NA\")","v":"NA"},null,null,null,"SKP15.013U2",15,"220 VAC","No","No","No",null,null,null,null,null,null,null,null,null,null,null,null,null,null,"Part #","Man/Auto","Part # (Opt Max - In)","Opt Max - In","Part # (Opt Max - P2)","Opt Max - P2","Up or downstream",null,null,null,null,null,null,null,null,null,null,null,null,null,null,"Question","Low","High","VP",null,null,1.5,0.43724999999999997,null,null,null,"Y strainer Selection",null,null,null,null,{"$f":"PIPor1NPIndex[[#This Row],[PIP or NP]]&\"-\"&PIPor1NPIndex[[#This Row],[Pipe Size]]","v":"PIP-0.75"},"PIP",0.75,4,0.3,null,"Y strainer Selection"]
["Capacity (Resultant)",null,null,{"$f":"SUM(B12:B14)","v":{"$error":"#N/A"}},"SCFH",null,null,"VRG30.080U",3,"Reduced",13,147.28,{"$f":"IF($B$7<>0,SQRT(($D$6^2)+(2*$D$9*$D$10*$D$15^2)/(1360^2*FRCVSizer[[#This Row],[Cv]]^2)),\"NO VKG\")","v":"NO VKG"},{"$f":"FRCVSizer[[#This Row],[Theo P2 (PSIA)]]-14.7","v":{"$error":"#VALUE!"}},{"$f":"IF(Interface!$G$23=FRCVSizer[[#This Row],[Bio Gas?]],FRCVSizer[[#This Row],[Theo P2 (PSIG)]]-$B$8,\"\")","v":""},300,{"$f":"FRCVSizer[[#This Row],[Pipe Size]]&\"\"\" \"&FRCVSizer[[#This Row],[Port Size]]&\" port\"","v":"3\" Reduced port"},"Yes",null,"VGD40.100U",1,"4\" Double Valve Body, Flanged - Gas",4,10,30,175.59,"No",2,"No",{"$f":"SQRT((SSOVSizer[[#This Row],[P2]]^2)+((2*$D$9*$D$10*SSOVSizer[[#This Row],[Combo train Calc Q (SCFH)]]^2)/(1360^2*SSOVSizer[[#This Row],[Cv]]^2)))","v":{"$error":"#N/A"}},{"$f":"(SSOVSizer[[#This Row],[P2]]-14.7)*$B$16+14.7","v":{"$error":"#VALUE!"}},{"$f":"VKGSelection[P2 for SSOV]","v":14.7},{"$f":"IF(SSOVSizer[[#This Row],[P2]]>$D$5,\"err P2>P1\",1360*SSOVSizer[[#This Row],[Cv]]*SQRT(($D$5+SSOVSizer[[#This Row],[P2]])/($D$9*$D$10))*SQRT(($D$5-SSOVSizer[[#This Row],[P2]])/2))","v":{"$error":"#N/A"}},{"$f":"1360*SSOVSizer[[#This Row],[Cv]]*SQRT((SSOVSizer[[#This Row],[P1 if Trad]]+SSOVSizer[[#This Row],[P2]])/($D$9*$D$10))*SQRT((SSOVSizer[[#This Row],[P1 if Trad]]-SSOVSizer[[#This Row],[P2]])/2)","v":{"$error":"#VALUE!"}},{"$f":"IF(Interface!$F$17=\"Comb\",SSOVSizer[[#This Row],[Combo train Calc Q (SCFH)]]-$D$15,IF(Interface!$F$17=\"Trad\",SSOVSizer[[#This Row],[Trad train Calc Q (SCFH)]]-$D$15,\"Train type not selected\"))","v":"Train type not selected"},null,{"$f":"IF(AND(SSOVSelection[1 or 2]=SSOVSizer[[#This Row],[2 valves or 1]],SSOVSelection[Bio Gas]=SSOVSizer[[#This Row],[Bio Gas?]],SSOVSelection[NEMA 4]=SSOVSizer[[#This Row],[NEMA 4?]],SSOVSizer[[#This Row],[Calc Q - Desired Q]]<0, SSOVSizer[[#This Row],[Max valve sizes]]=\"Max\"),\"Max\",IF(AND(SSOVSelection[1 or 2]=SSOVSizer[[#This Row],[2 valves or 1]],SSOVSelection[Bio Gas]=SSOVSizer[[#This Row],[Bio Gas?]],SSOVSelection[NEMA 4]=SSOVSizer[[#This Row],[NEMA 4?]]),SSOVSizer[[#This Row],[Calc Q - Desired Q]],\"\"))","v":""},{"$f":"SQRT(($D$5^2)-((2*$D$9*$D$10*$D$15^2)/(1360^2*SSOVSizer[[#This Row],[Cv]]^2)))","v":{"$error":"#N/A"}},"AGA40.0100U",null,"Optimized Sensing Pipe Selection",null,null,null,null,null,"Trad","No","SSOV Size",{"$f":"SSOVSelection[Pipe size]","v":{"$error":"#N/A"}},null,null,null,"SKP25.011U1",25,"120 VAC","Yes","No","No",null,null,null,null,null,null,null,null,null,null,null,null,null,null,{"$f":"IF(LEFT(LGPSSelection[Man/Auto],1)=\"Y\",IF(LGPSSelection[Up or downstream]=\"U\",LGPSSelection[Part '# (Opt Max - In)],LGPSSelection[Part '# (Opt Max - P2)]),\"\")","v":"Not Required"},{"$f":"Interface!G57","v":"Yes - 0"},{"$f":"IFERROR(INDEX(LGPSSizer[#Data],MATCH(LGPSSelection[Opt Max - In],LGPSSizer[Criteria Met Max - In],0),MATCH(LGPSSizer[[#Headers],[Part '#]],LGPSSizer[#Headers],0)),\"Not Required\")","v":"Not Required"},{"$f":"MIN(IF(LGPSSizer[Criteria Met Max - In]>0.037,LGPSSizer[Criteria Met Max - In]))","v":0},{"$f":"IFERROR(INDEX(LGPSSizer[#Data],MATCH(LGPSSelection[Opt Max - P2],LGPSSizer[Criteria Met Max - P2],0),MATCH(LGPSSizer[[#Headers],[Part '#]],LGPSSizer[#Headers],0)),\"Not Required\")","v":"Not Required"},{"$f":"MIN(IF(LGPSSizer[Criteria Met Max - P2]>0.037,LGPSSizer[Criteria Met Max - P2]))","v":0},{"$f":"LEFT(Interface!F56,1)","v":"0"},null,null,null,null,null,null,null,null,null,null,null,null,null,null,{"$f":"INDEX(PSN3RQues[#Data],MATCH(PSN3RQuesSelect[Low]&PSN3RQuesSelect[High]&PSN3RQuesSelect[VP],PSN3RQues[Low]&PSN3RQues[High]&PSN3RQues[VP],0),MATCH(PSN3RQues[[#Headers],[Question]],PSN3RQues[#Headers],0))","v":"Hide"},{"$f":"IF(LEFT(LGPSSelection[Part '#],2)=\"QP\",\"QP\",\"X\")","v":"X"},{"$f":"IF(LEFT(HGPSSelection[Part '#],2)=\"QP\",\"QP\",\"X\")","v":"X"},{"$f":"IF(LEFT(VPPSSelection[Part '#],2)=\"QP\",\"QP\",\"X\")","v":"X"},null,null,2,0.58299999999999996,null,null,null,"Part Number","Pipe Size","Lenth","Cv",null,{"$f":"PIPor1NPIndex[[#This Row],[PIP or NP]]&\"-\"&PIPor1NPIndex[[#This Row],[Pipe Size]]","v":"PIP-1"},"PIP",1,4,0.5,null,"Part Number","Pipe Size","Lenth","Cv"]
["% Drop across SSOV for Trad Train",{"$f":"Interface!G34","v":{"$error":"#VALUE!"}},null,null,null,null,null,"VRG20.065U",2.5,"Medium",14,170.12,{"$f":"IF($B$7<>0,SQRT(($D$6^2)+(2*$D$9*$D$10*$D$15^2)/(1360^2*FRCVSizer[[#This Row],[Cv]]^2)),\"NO VKG\")","v":"NO VKG"},{"$f":"FRCVSizer[[#This Row],[Theo P2 (PSIA)]]-14.7","v":{"$error":"#VALUE!"}},{"$f":"IF(Interface!$G$23=FRCVSizer[[#This Row],[Bio Gas?]],FRCVSizer[[#This Row],[Theo P2 (PSIG)]]-$B$8,\"\")","v":""},250,{"$f":"FRCVSizer[[#This Row],[Pipe Size]]&\"\"\" \"&FRCVSizer[[#This Row],[Port Size]]&\" port\"","v":"2.5\" Medium port"},"Yes",null,"VGD40.100U",1,"4\" Double Valve Body, Flanged - Gas",4,10,30,175.59,"Yes",2,"No",{"$f":"SQRT((SSOVSizer[[#This Row],[P2]]^2)+((2*$D$9*$D$10*SSOVSizer[[#This Row],[Combo train Calc Q (SCFH)]]^2)/(1360^2*SSOVSizer[[#This Row],[Cv]]^2)))","v":{"$error":"#N/A"}},{"$f":"(SSOVSizer[[#This Row],[P2]]-14.7)*$B$16+14.7","v":{"$error":"#VALUE!"}},{"$f":"VKGSelection[P2 for SSOV]","v":14.7},{"$f":"IF(SSOVSizer[[#This Row],[P2]]>$D$5,\"err P2>P1\",1360*SSOVSizer[[#This Row],[Cv]]*SQRT(($D$5+SSOVSizer[[#This Row],[P2]])/($D$9*$D$10))*SQRT(($D$5-SSOVSizer[[#This Row],[P2]])/2))","v":{"$error":"#N/A"}},{"$f":"1360*SSOVSizer[[#This Row],[Cv]]*SQRT((SSOVSizer[[#This Row],[P1 if Trad]]+SSOVSizer[[#This Row],[P2]])/($D$9*$D$10))*SQRT((SSOVSizer[[#This Row],[P1 if Trad]]-SSOVSizer[[#This Row],[P2]])/2)","v":{"$error":"#VALUE!"}},{"$f":"IF(Interface!$F$17=\"Comb\",SSOVSizer[[#This Row],[Combo train Calc Q (SCFH)]]-$D$15,IF(Interface!$F$17=\"Trad\",SSOVSizer[[#This Row],[Trad train Calc Q (SCFH)]]-$D$15,\"Train type not selected\"))","v":"Train type not selected"},null,{"$f":"IF(AND(SSOVSelection[1 or 2]=SSOVSizer[[#This Row],[2 valves or 1]],SSOVSelection[Bio Gas]=SSOVSizer[[#This Row],[Bio Gas?]],SSOVSelection[NEMA 4]=SSOVSizer[[#This Row],[NEMA 4?]],SSOVSizer[[#This Row],[Calc Q - Desired Q]]<0, SSOVSizer[[#This Row],[Max valve sizes]]=\"Max\"),\"Max\",IF(AND(SSOVSelection[1 or 2]=SSOVSizer[[#This Row],[2 valves or 1]],SSOVSelection[Bio Gas]=SSOVSizer[[#This Row],[Bio Gas?]],SSOVSelection[NEMA 4]=SSOVSizer[[#This Row],[NEMA 4?]]),SSOVSizer[[#This Row],[Calc Q - Desired Q]],\"\"))","v":""},{"$f":"SQRT(($D$5^2)-((2*$D$9*$D$10*$D$15^2)/(1360^2*SSOVSizer[[#This Row],[Cv]]^2)))","v":{"$error":"#N/A"}},"AGA40.0100U",null,"Pipe Size","Optimize Vel",null,null,null,null,"Comb","Yes","Max of Min SP and VKG Size",{"$f":"IFERROR(MAX(SPOptimize[Pipe Size],INDEX(FRCVSizer[#Data],MATCH(VKGcustSelect[Part '#],FRCVSizer[Part '#],0),MATCH(\"Pipe Size\",FRCVSizer[#Headers],9))),\"NA\")","v":"NA"},null,null,null,"SKP25.012U1",25,"120 VAC","Yes","Yes","No",null,null,null,null,null,null,null,null,null,null,null,null,null,null,null,null,null,null,null,null,null,null,null,null,null,null,null,null,null,null,null,null,null,null,null,null,null,null,null,null,null,2.5,0.72875000000000001,null,null,null,{"$f":"INDEX(YstrainerIndex[#Data],MATCH(YstrainerSelect[Pipe Size],YstrainerIndex[Pipe Size],0),MATCH(YstrainerIndex[[#Headers],[Part Number]],YstrainerIndex[#Headers],0))","v":{"$error":"#N/A"}},{"$f":"FrtEndPipeSize[Resulting Front End Pipe Size]","v":{"$error":"#N/A"}},{"$f":"INDEX(YstrainerIndex[#Data],\nMATCH(YstrainerSelect[Pipe Size],YstrainerIndex[Pipe Size],0),\nMATCH(YstrainerIndex[[#Headers],[Length]],YstrainerIndex[#Headers],0))","v":{"$error":"#N/A"}},{"$f":"INDEX(YstrainerIndex[#Data],\nMATCH(YstrainerSelect[Pipe Size],YstrainerIndex[Pipe Size],0),\nMATCH(YstrainerIndex[[#Headers],[Cv]],YstrainerIndex[#Headers],0))","v":{"$error":"#N/A"}},null,{"$f":"PIPor1NPIndex[[#This Row],[PIP or NP]]&\"-\"&PIPor1NPIndex[[#This Row],[Pipe Size]]","v":"PIP-1.25"},"PIP",1.25,4,0.7,null,{"$f":"INDEX(YstrainerIndex[#Data],MATCH(YstrainerSelect75[Pipe Size],YstrainerIndex[Pipe Size],0),MATCH(YstrainerIndex[[#Headers],[Part Number]],YstrainerIndex[#Headers],0))","v":{"$error":"#N/A"}},{"$f":"FrtEndPipeSize[Resulting Front End Pipe Size]","v":{"$error":"#N/A"}},{"$f":"INDEX(YstrainerIndex[#Data],\nMATCH(YstrainerSelect75[Pipe Size],YstrainerIndex[Pipe Size],0),\nMATCH(YstrainerIndex[[#Headers],[Length]],YstrainerIndex[#Headers],0))","v":{"$error":"#N/A"}},{"$f":"INDEX(YstrainerIndex[#Data],\nMATCH(YstrainerSelect75[Pipe Size],YstrainerIndex[Pipe Size],0),\nMATCH(YstrainerIndex[[#Headers],[Cv]],YstrainerIndex[#Headers],0))","v":{"$error":"#N/A"}}]
[null,null,null,null,null,null,null,"VRG10.050U",2,"Full",15,180.25,{"$f":"IF($B$7<>0,SQRT(($D$6^2)+(2*$D$9*$D$10*$D$15^2)/(1360^2*FRCVSizer[[#This Row],[Cv]]^2)),\"NO VKG\")","v":"NO VKG"},{"$f":"FRCVSizer[[#This Row],[Theo P2 (PSIA)]]-14.7","v":{"$error":"#VALUE!"}},{"$f":"IF(Interface!$G$23=FRCVSizer[[#This Row],[Bio Gas?]],FRCVSizer[[#This Row],[Theo P2 (PSIG)]]-$B$8,\"\")","v":""},200,{"$f":"FRCVSizer[[#This Row],[Pipe Size]]&\"\"\" \"&FRCVSizer[[#This Row],[Port Size]]&\" port\"","v":"2\" Full port"},"Yes",null,"VGD40.150U",1,"6\" Double Valve Body, Flanged - Gas",6,10,30,324.73,"No",2,"No",{"$f":"SQRT((SSOVSizer[[#This Row],[P2]]^2)+((2*$D$9*$D$10*SSOVSizer[[#This Row],[Combo train Calc Q (SCFH)]]^2)/(1360^2*SSOVSizer[[#This Row],[Cv]]^2)))","v":{"$error":"#N/A"}},{"$f":"(SSOVSizer[[#This Row],[P2]]-14.7)*$B$16+14.7","v":{"$error":"#VALUE!"}},{"$f":"VKGSelection[P2 for SSOV]","v":14.7},{"$f":"IF(SSOVSizer[[#This Row],[P2]]>$D$5,\"err P2>P1\",1360*SSOVSizer[[#This Row],[Cv]]*SQRT(($D$5+SSOVSizer[[#This Row],[P2]])/($D$9*$D$10))*SQRT(($D$5-SSOVSizer[[#This Row],[P2]])/2))","v":{"$error":"#N/A"}},{"$f":"1360*SSOVSizer[[#This Row],[Cv]]*SQRT((SSOVSizer[[#This Row],[P1 if Trad]]+SSOVSizer[[#This Row],[P2]])/($D$9*$D$10))*SQRT((SSOVSizer[[#This Row],[P1 if Trad]]-SSOVSizer[[#This Row],[P2]])/2)","v":{"$error":"#VALUE!"}},{"$f":"IF(Interface!$F$17=\"Comb\",SSOVSizer[[#This Row],[Combo train Calc Q (SCFH)]]-$D$15,IF(Interface!$F$17=\"Trad\",SSOVSizer[[#This Row],[Trad train Calc Q (SCFH)]]-$D$15,\"Train type not selected\"))","v":"Train type not selected"},null,{"$f":"IF(AND(SSOVSelection[1 or 2]=SSOVSizer[[#This Row],[2 valves or 1]],SSOVSelection[Bio Gas]=SSOVSizer[[#This Row],[Bio Gas?]],SSOVSelection[NEMA 4]=SSOVSizer[[#This Row],[NEMA 4?]],SSOVSizer[[#This Row],[Calc Q - Desired Q]]<0, SSOVSizer[[#This Row],[Max valve sizes]]=\"Max\"),\"Max\",IF(AND(SSOVSelection[1 or 2]=SSOVSizer[[#This Row],[2 valves or 1]],SSOVSelection[Bio Gas]=SSOVSizer[[#This Row],[Bio Gas?]],SSOVSelection[NEMA 4]=SSOVSizer[[#This Row],[NEMA 4?]]),SSOVSizer[[#This Row],[Calc Q - Desired Q]],\"\"))","v":""},{"$f":"SQRT(($D$5^2)-((2*$D$9*$D$10*$D$15^2)/(1360^2*SSOVSizer[[#This Row],[Cv]]^2)))","v":{"$error":"#N/A"}},"AGA40.0150U",null,{"$f":"IF(Interface!F17=\"Comb\",INDEX(SPSizer[#Data],MATCH(SPOptimize[Optimize Vel],SPSizer[Velocity (ft/s)],0),1),\"Trad Train\")","v":"Trad Train"},{"$f":"MAX(IF(SPSizer[Velocity (ft/s)]<120,SPSizer[Velocity (ft/s)]))","v":{"$error":"#N/A"}},null,null,null,null,"Comb","No","Min SP",{"$f":"SPOptimize[Pipe Size]","v":"Trad Train"},null,null,null,"SKP25.012U1",25,"120 VAC","No","Yes","No",null,null,null,null,null,null,null,null,null,null,null,null,null,null,null,null,null,null,null,null,null,null,null,null,null,null,null,null,null,null,null,null,null,null,null,"NEMA 3R Kits Selection",null,null,null,null,null,3,0.87449999999999994,null,null,null,"if no y strainer write if statement so part number is blank",null,null,null,null,{"$f":"PIPor1NPIndex[[#This Row],[PIP or NP]]&\"-\"&PIPor1NPIndex[[#This Row],[Pipe Size]]","v":"PIP-1.5"},"PIP",1.5,4,0.9,null,"if no y strainer write if statement so part number is blank"]
[null,null,null,null,null,null,null,"VRG30.100U",4,"Reduced",16,204.19,{"$f":"IF($B$7<>0,SQRT(($D$6^2)+(2*$D$9*$D$10*$D$15^2)/(1360^2*FRCVSizer[[#This Row],[Cv]]^2)),\"NO VKG\")","v":"NO VKG"},{"$f":"FRCVSizer[[#This Row],[Theo P2 (PSIA)]]-14.7","v":{"$error":"#VALUE!"}},{"$f":"IF(Interface!$G$23=FRCVSizer[[#This Row],[Bio Gas?]],FRCVSizer[[#This Row],[Theo P2 (PSIG)]]-$B$8,\"\")","v":""},400,{"$f":"FRCVSizer[[#This Row],[Pipe Size]]&\"\"\" \"&FRCVSizer[[#This Row],[Port Size]]&\" port\"","v":"4\" Reduced port"},"Yes",null,"VGD40.150U",1,"6\" Double Valve Body, Flanged - Gas",6,10,30,324.73,"Yes",2,"No",{"$f":"SQRT((SSOVSizer[[#This Row],[P2]]^2)+((2*$D$9*$D$10*SSOVSizer[[#This Row],[Combo train Calc Q (SCFH)]]^2)/(1360^2*SSOVSizer[[#This Row],[Cv]]^2)))","v":{"$error":"#N/A"}},{"$f":"(SSOVSizer[[#This Row],[P2]]-14.7)*$B$16+14.7","v":{"$error":"#VALUE!"}},{"$f":"VKGSelection[P2 for SSOV]","v":14.7},{"$f":"IF(SSOVSizer[[#This Row],[P2]]>$D$5,\"err P2>P1\",1360*SSOVSizer[[#This Row],[Cv]]*SQRT(($D$5+SSOVSizer[[#This Row],[P2]])/($D$9*$D$10))*SQRT(($D$5-SSOVSizer[[#This Row],[P2]])/2))","v":{"$error":"#N/A"}},{"$f":"1360*SSOVSizer[[#This Row],[Cv]]*SQRT((SSOVSizer[[#This Row],[P1 if Trad]]+SSOVSizer[[#This Row],[P2]])/($D$9*$D$10))*SQRT((SSOVSizer[[#This Row],[P1 if Trad]]-SSOVSizer[[#This Row],[P2]])/2)","v":{"$error":"#VALUE!"}},{"$f":"IF(Interface!$F$17=\"Comb\",SSOVSizer[[#This Row],[Combo train Calc Q (SCFH)]]-$D$15,IF(Interface!$F$17=\"Trad\",SSOVSizer[[#This Row],[Trad train Calc Q (SCFH)]]-$D$15,\"Train type not selected\"))","v":"Train type not selected"},null,{"$f":"IF(AND(SSOVSelection[1 or 2]=SSOVSizer[[#This Row],[2 valves or 1]],SSOVSelection[Bio Gas]=SSOVSizer[[#This Row],[Bio Gas?]],SSOVSelection[NEMA 4]=SSOVSizer[[#This Row],[NEMA 4?]],SSOVSizer[[#This Row],[Calc Q - Desired Q]]<0, SSOVSizer[[#This Row],[Max valve sizes]]=\"Max\"),\"Max\",IF(AND(SSOVSelection[1 or 2]=SSOVSizer[[#This Row],[2 valves or 1]],SSOVSelection[Bio Gas]=SSOVSizer[[#This Row],[Bio Gas?]],SSOVSelection[NEMA 4]=SSOVSizer[[#This Row],[NEMA 4?]]),SSOVSizer[[#This Row],[Calc Q - Desired Q]],\"\"))","v":""},{"$f":"SQRT(($D$5^2)-((2*$D$9*$D$10*$D$15^2)/(1360^2*SSOVSizer[[#This Row],[Cv]]^2)))","v":{"$error":"#N/A"}},"AGA40.0150U",null,null,null,null,null,null,null,null,null,null,null,null,null,null,"SKP25.012U2",25,"220 VAC","Yes","Yes","No",null,null,null,null,null,null,null,null,null,null,null,null,null,null,null,null,null,null,null,null,null,null,null,null,null,null,null,null,null,null,null,null,null,null,null,"Part #","Qty","Yes or No",null,null,null,4,1.1659999999999999,null,null,null,null,null,null,null,null,{"$f":"PIPor1NPIndex[[#This Row],[PIP or NP]]&\"-\"&PIPor1NPIndex[[#This Row],[Pipe Size]]","v":"PIP-2"},"PIP",2,4,1.1000000000000001]
[null,null,null,null,null,null,null,"VRG10.065U",2.5,"Full",17,254.54,{"$f":"IF($B$7<>0,SQRT(($D$6^2)+(2*$D$9*$D$10*$D$15^2)/(1360^2*FRCVSizer[[#This Row],[Cv]]^2)),\"NO VKG\")","v":"NO VKG"},{"$f":"FRCVSizer[[#This Row],[Theo P2 (PSIA)]]-14.7","v":{"$error":"#VALUE!"}},{"$f":"IF(Interface!$G$23=FRCVSizer[[#This Row],[Bio Gas?]],FRCVSizer[[#This Row],[Theo P2 (PSIG)]]-$B$8,\"\")","v":""},250,{"$f":"FRCVSizer[[#This Row],[Pipe Size]]&\"\"\" \"&FRCVSizer[[#This Row],[Port Size]]&\" port\"","v":"2.5\" Full port"},"Yes",null,"VGD40.150U",1,"6\" Double Valve Body, Flanged - Gas",6,10,30,324.73,"No",2,"No",{"$f":"SQRT((SSOVSizer[[#This Row],[P2]]^2)+((2*$D$9*$D$10*SSOVSizer[[#This Row],[Combo train Calc Q (SCFH)]]^2)/(1360^2*SSOVSizer[[#This Row],[Cv]]^2)))","v":{"$error":"#N/A"}},{"$f":"(SSOVSizer[[#This Row],[P2]]-14.7)*$B$16+14.7","v":{"$error":"#VALUE!"}},{"$f":"VKGSelection[P2 for SSOV]","v":14.7},{"$f":"IF(SSOVSizer[[#This Row],[P2]]>$D$5,\"err P2>P1\",1360*SSOVSizer[[#This Row],[Cv]]*SQRT(($D$5+SSOVSizer[[#This Row],[P2]])/($D$9*$D$10))*SQRT(($D$5-SSOVSizer[[#This Row],[P2]])/2))","v":{"$error":"#N/A"}},{"$f":"1360*SSOVSizer[[#This Row],[Cv]]*SQRT((SSOVSizer[[#This Row],[P1 if Trad]]+SSOVSizer[[#This Row],[P2]])/($D$9*$D$10))*SQRT((SSOVSizer[[#This Row],[P1 if Trad]]-SSOVSizer[[#This Row],[P2]])/2)","v":{"$error":"#VALUE!"}},{"$f":"IF(Interface!$F$17=\"Comb\",SSOVSizer[[#This Row],[Combo train Calc Q (SCFH)]]-$D$15,IF(Interface!$F$17=\"Trad\",SSOVSizer[[#This Row],[Trad train Calc Q (SCFH)]]-$D$15,\"Train type not selected\"))","v":"Train type not selected"},"max",{"$f":"IF(AND(SSOVSelection[1 or 2]=SSOVSizer[[#This Row],[2 valves or 1]],SSOVSelection[Bio Gas]=SSOVSizer[[#This Row],[Bio Gas?]],SSOVSelection[NEMA 4]=SSOVSizer[[#This Row],[NEMA 4?]],SSOVSizer[[#This Row],[Calc Q - Desired Q]]<0, SSOVSizer[[#This Row],[Max valve sizes]]=\"Max\"),\"Max\",IF(AND(SSOVSelection[1 or 2]=SSOVSizer[[#This Row],[2 valves or 1]],SSOVSelection[Bio Gas]=SSOVSizer[[#This Row],[Bio Gas?]],SSOVSelection[NEMA 4]=SSOVSizer[[#This Row],[NEMA 4?]]),SSOVSizer[[#This Row],[Calc Q - Desired Q]],\"\"))","v":""},{"$f":"SQRT(($D$5^2)-((2*$D$9*$D$10*$D$15^2)/(1360^2*SSOVSizer[[#This Row],[Cv]]^2)))","v":{"$error":"#N/A"}},null,null,null,null,null,null,null,null,"Outlet Flange",null,null,null,null,null,null,"SKP25.012U2",25,"220 VAC","Yes","No","No",null,null,null,null,null,null,null,null,null,null,null,null,null,null,null,null,null,null,null,null,null,null,null,null,null,null,null,null,null,null,null,null,null,null,null,{"$f":"IF(PSN3RSelect[Qty]>0,808000404,\"\")","v":""},{"$f":"IF(PSN3RSelect[Yes or No]=\"Yes\",COUNTIF(PSN3RQuesSelect[[Low]:[VP]],\"QP\"),0)","v":0},{"$f":"Interface!F60","v":0},null,null,null,6,1.7489999999999999,null,null,null,null,null,null,null,null,{"$f":"PIPor1NPIndex[[#This Row],[PIP or NP]]&\"-\"&PIPor1NPIndex[[#This Row],[Pipe Size]]","v":"PIP-2.5"},"PIP",2.5,4,1.3]
[null,null,null,null,null,null,null,"VRG20.080U",3,"Medium",18,275.17,{"$f":"IF($B$7<>0,SQRT(($D$6^2)+(2*$D$9*$D$10*$D$15^2)/(1360^2*FRCVSizer[[#This Row],[Cv]]^2)),\"NO VKG\")","v":"NO VKG"},{"$f":"FRCVSizer[[#This Row],[Theo P2 (PSIA)]]-14.7","v":{"$error":"#VALUE!"}},{"$f":"IF(Interface!$G$23=FRCVSizer[[#This Row],[Bio Gas?]],FRCVSizer[[#This Row],[Theo P2 (PSIG)]]-$B$8,\"\")","v":""},300,{"$f":"FRCVSizer[[#This Row],[Pipe Size]]&\"\"\" \"&FRCVSizer[[#This Row],[Port Size]]&\" port\"","v":"3\" Medium port"},"Yes",null,"VGD40.150U",1,"6\" Double Valve Body, Flanged - Gas",6,10,30,324.73,"Yes",2,"No",{"$f":"SQRT((SSOVSizer[[#This Row],[P2]]^2)+((2*$D$9*$D$10*SSOVSizer[[#This Row],[Combo train Calc Q (SCFH)]]^2)/(1360^2*SSOVSizer[[#This Row],[Cv]]^2)))","v":{"$error":"#N/A"}},{"$f":"(SSOVSizer[[#This Row],[P2]]-14.7)*$B$16+14.7","v":{"$error":"#VALUE!"}},{"$f":"VKGSelection[P2 for SSOV]","v":14.7},{"$f":"IF(SSOVSizer[[#This Row],[P2]]>$D$5,\"err P2>P1\",1360*SSOVSizer[[#This Row],[Cv]]*SQRT(($D$5+SSOVSizer[[#This Row],[P2]])/($D$9*$D$10))*SQRT(($D$5-SSOVSizer[[#This Row],[P2]])/2))","v":{"$error":"#N/A"}},{"$f":"1360*SSOVSizer[[#This Row],[Cv]]*SQRT((SSOVSizer[[#This Row],[P1 if Trad]]+SSOVSizer[[#This Row],[P2]])/($D$9*$D$10))*SQRT((SSOVSizer[[#This Row],[P1 if Trad]]-SSOVSizer[[#This Row],[P2]])/2)","v":{"$error":"#VALUE!"}},{"$f":"IF(Interface!$F$17=\"Comb\",SSOVSizer[[#This Row],[Combo train Calc Q (SCFH)]]-$D$15,IF(Interface!$F$17=\"Trad\",SSOVSizer[[#This Row],[Trad train Calc Q (SCFH)]]-$D$15,\"Train type not selected\"))","v":"Train type not selected"},"max",{"$f":"IF(AND(SSOVSelection[1 or 2]=SSOVSizer[[#This Row],[2 valves or 1]],SSOVSelection[Bio Gas]=SSOVSizer[[#This Row],[Bio Gas?]],SSOVSelection[NEMA 4]=SSOVSizer[[#This Row],[NEMA 4?]],SSOVSizer[[#This Row],[Calc Q - Desired Q]]<0, SSOVSizer[[#This Row],[Max valve sizes]]=\"Max\"),\"Max\",IF(AND(SSOVSelection[1 or 2]=SSOVSizer[[#This Row],[2 valves or 1]],SSOVSelection[Bio Gas]=SSOVSizer[[#This Row],[Bio Gas?]],SSOVSelection[NEMA 4]=SSOVSizer[[#This Row],[NEMA 4?]]),SSOVSizer[[#This Row],[Calc Q - Desired Q]],\"\"))","v":""},{"$f":"SQRT(($D$5^2)-((2*$D$9*$D$10*$D$15^2)/(1360^2*SSOVSizer[[#This Row],[Cv]]^2)))","v":{"$error":"#N/A"}},null,null,null,null,null,null,null,null,"Part #","Final Outlet Flange Size","Ideal Outlet flange size","Trad or Comb","VKG?",null,null,"SKP25.012U2",25,"220 VAC","No","Yes","No",null,null,null,null,null,null,null,null,null,null,null,null,null,null,null,null,null,null,null,null,null,null,null,null,null,null,null,null,null,null,null,null,null,null,null,null,null,null,null,null,null,null,null,null,null,null,null,null,null,null,null,{"$f":"PIPor1NPIndex[[#This Row],[PIP or NP]]&\"-\"&PIPor1NPIndex[[#This Row],[Pipe Size]]","v":"PIP-3"},"PIP",3,4,1.5]
[null,null,null,null,null,null,null,"VRG20.100U",4,"Medium",19,430.73,{"$f":"IF($B$7<>0,SQRT(($D$6^2)+(2*$D$9*$D$10*$D$15^2)/(1360^2*FRCVSizer[[#This Row],[Cv]]^2)),\"NO VKG\")","v":"NO VKG"},{"$f":"FRCVSizer[[#This Row],[Theo P2 (PSIA)]]-14.7","v":{"$error":"#VALUE!"}},{"$f":"IF(Interface!$G$23=FRCVSizer[[#This Row],[Bio Gas?]],FRCVSizer[[#This Row],[Theo P2 (PSIG)]]-$B$8,\"\")","v":""},400,{"$f":"FRCVSizer[[#This Row],[Pipe Size]]&\"\"\" \"&FRCVSizer[[#This Row],[Port Size]]&\" port\"","v":"4\" Medium port"},"Yes",null,"VGG10.154U",1,"0.5\" Single Valve Body, NPT",0.5,20,75,4.49,"Yes",1,"No",{"$f":"SQRT((SSOVSizer[[#This Row],[P2]]^2)+((2*$D$9*$D$10*SSOVSizer[[#This Row],[Combo train Calc Q (SCFH)]]^2)/(1360^2*SSOVSizer[[#This Row],[Cv]]^2)))","v":{"$error":"#N/A"}},{"$f":"(SSOVSizer[[#This Row],[P2]]-14.7)*$B$16+14.7","v":{"$error":"#VALUE!"}},{"$f":"VKGSelection[P2 for SSOV]","v":14.7},{"$f":"IF(SSOVSizer[[#This Row],[P2]]>$D$5,\"err P2>P1\",1360*SSOVSizer[[#This Row],[Cv]]*SQRT(($D$5+SSOVSizer[[#This Row],[P2]])/($D$9*$D$10))*SQRT(($D$5-SSOVSizer[[#This Row],[P2]])/2))","v":{"$error":"#N/A"}},{"$f":"1360*SSOVSizer[[#This Row],[Cv]]*SQRT((SSOVSizer[[#This Row],[P1 if Trad]]+SSOVSizer[[#This Row],[P2]])/($D$9*$D$10))*SQRT((SSOVSizer[[#This Row],[P1 if Trad]]-SSOVSizer[[#This Row],[P2]])/2)","v":{"$error":"#VALUE!"}},{"$f":"IF(Interface!$F$17=\"Comb\",SSOVSizer[[#This Row],[Combo train Calc Q (SCFH)]]-$D$15,IF(Interface!$F$17=\"Trad\",SSOVSizer[[#This Row],[Trad train Calc Q (SCFH)]]-$D$15,\"Train type not selected\"))","v":"Train type not selected"},null,{"$f":"IF(AND(SSOVSelection[1 or 2]=SSOVSizer[[#This Row],[2 valves or 1]],SSOVSelection[Bio Gas]=SSOVSizer[[#This Row],[Bio Gas?]],SSOVSelection[NEMA 4]=SSOVSizer[[#This Row],[NEMA 4?]],SSOVSizer[[#This Row],[Calc Q - Desired Q]]<0, SSOVSizer[[#This Row],[Max valve sizes]]=\"Max\"),\"Max\",IF(AND(SSOVSelection[1 or 2]=SSOVSizer[[#This Row],[2 valves or 1]],SSOVSelection[Bio Gas]=SSOVSizer[[#This Row],[Bio Gas?]],SSOVSelection[NEMA 4]=SSOVSizer[[#This Row],[NEMA 4?]]),SSOVSizer[[#This Row],[Calc Q - Desired Q]],\"\"))","v":""},{"$f":"SQRT(($D$5^2)-((2*$D$9*$D$10*$D$15^2)/(1360^2*SSOVSizer[[#This Row],[Cv]]^2)))","v":{"$error":"#N/A"}},"",null,null,null,null,null,null,null,{"$f":"IF(LEFT(SSOVSelection[Part '#],5)=\"VGD20\",INDEX(FlangeSize[#Data],MATCH(OutFlange[Final Outlet Flange Size],FlangeSize[Pipe Size],0),MATCH(OutFlange[[#Headers],[Part '#]],FlangeSize[#Headers],0)),\"\")","v":""},{"$f":"\nIF(OutFlange[Ideal Outlet flange size]=\"NA\",\"NA\",\nIF(OutFlange[Ideal Outlet flange size]>2,2,\nIF(OutFlange[Ideal Outlet flange size]<1,1,OutFlange[Ideal Outlet flange size])))","v":{"$error":"#N/A"}},{"$f":"INDEX(OutFlangeLogic[#Data],MATCH(OutFlange[Trad or Comb]&OutFlange[VKG?],OutFlangeLogic[Trad or comb]&OutFlangeLogic[VKG],0),MATCH(OutFlangeLogic[[#Headers],[Outlet Flange Size]],OutFlangeLogic[#Headers],0))","v":{"$error":"#N/A"}},{"$f":"Interface!F17","v":0},{"$f":"Interface!F20","v":0},null,null,"SKP25.012U2",25,"220 VAC","No","No","No",null,null,null,null,null,null,null,null,null,null,null,null,null,null,null,null,null,null,null,null,null,null,null,null,null,null,null,null,null,null,null,null,null,null,null,null,null,null,null,null,null,null,null,null,null,null,null,null,null,null,null,{"$f":"PIPor1NPIndex[[#This Row],[PIP or NP]]&\"-\"&PIPor1NPIndex[[#This Row],[Pipe Size]]","v":"PIP-4"},"PIP",4,4,1.7]
[null,null,null,null,null,null,null,"VRG10.080U",3,"Full",20,438.13,{"$f":"IF($B$7<>0,SQRT(($D$6^2)+(2*$D$9*$D$10*$D$15^2)/(1360^2*FRCVSizer[[#This Row],[Cv]]^2)),\"NO VKG\")","v":"NO VKG"},{"$f":"FRCVSizer[[#This Row],[Theo P2 (PSIA)]]-14.7","v":{"$error":"#VALUE!"}},{"$f":"IF(Interface!$G$23=FRCVSizer[[#This Row],[Bio Gas?]],FRCVSizer[[#This Row],[Theo P2 (PSIG)]]-$B$8,\"\")","v":""},300,{"$f":"FRCVSizer[[#This Row],[Pipe Size]]&\"\"\" \"&FRCVSizer[[#This Row],[Port Size]]&\" port\"","v":"3\" Full port"},"Yes",null,"VGG10.154U",1,"0.5\" Single Valve Body, NPT",0.5,20,75,6.27,"No",1,"No",{"$f":"SQRT((SSOVSizer[[#This Row],[P2]]^2)+((2*$D$9*$D$10*SSOVSizer[[#This Row],[Combo train Calc Q (SCFH)]]^2)/(1360^2*SSOVSizer[[#This Row],[Cv]]^2)))","v":{"$error":"#N/A"}},{"$f":"(SSOVSizer[[#This Row],[P2]]-14.7)*$B$16+14.7","v":{"$error":"#VALUE!"}},{"$f":"VKGSelection[P2 for SSOV]","v":14.7},{"$f":"IF(SSOVSizer[[#This Row],[P2]]>$D$5,\"err P2>P1\",1360*SSOVSizer[[#This Row],[Cv]]*SQRT(($D$5+SSOVSizer[[#This Row],[P2]])/($D$9*$D$10))*SQRT(($D$5-SSOVSizer[[#This Row],[P2]])/2))","v":{"$error":"#N/A"}},{"$f":"1360*SSOVSizer[[#This Row],[Cv]]*SQRT((SSOVSizer[[#This Row],[P1 if Trad]]+SSOVSizer[[#This Row],[P2]])/($D$9*$D$10))*SQRT((SSOVSizer[[#This Row],[P1 if Trad]]-SSOVSizer[[#This Row],[P2]])/2)","v":{"$error":"#VALUE!"}},{"$f":"IF(Interface!$F$17=\"Comb\",SSOVSizer[[#This Row],[Combo train Calc Q (SCFH)]]-$D$15,IF(Interface!$F$17=\"Trad\",SSOVSizer[[#This Row],[Trad train Calc Q (SCFH)]]-$D$15,\"Train type not selected\"))","v":"Train type not selected"},null,{"$f":"IF(AND(SSOVSelection[1 or 2]=SSOVSizer[[#This Row],[2 valves or 1]],SSOVSelection[Bio Gas]=SSOVSizer[[#This Row],[Bio Gas?]],SSOVSelection[NEMA 4]=SSOVSizer[[#This Row],[NEMA 4?]],SSOVSizer[[#This Row],[Calc Q - Desired Q]]<0, SSOVSizer[[#This Row],[Max valve sizes]]=\"Max\"),\"Max\",IF(AND(SSOVSelection[1 or 2]=SSOVSizer[[#This Row],[2 valves or 1]],SSOVSelection[Bio Gas]=SSOVSizer[[#This Row],[Bio Gas?]],SSOVSelection[NEMA 4]=SSOVSizer[[#This Row],[NEMA 4?]]),SSOVSizer[[#This Row],[Calc Q - Desired Q]],\"\"))","v":""},{"$f":"SQRT(($D$5^2)-((2*$D$9*$D$10*$D$15^2)/(1360^2*SSOVSizer[[#This Row],[Cv]]^2)))","v":{"$error":"#N/A"}},"",null,null,null,null,null,null,null,null,null,null,null,null,null,null,"SKP25.013U1",25,"120 VAC","No","No","No",null,null,null,null,null,null,null,null,null,null,null,null,null,null,null,null,null,null,null,null,null,null,null,null,null,null,null,null,null,null,null,null,null,null,null,null,null,null,null,null,null,null,null,null,null,null,null,null,null,null,null,{"$f":"PIPor1NPIndex[[#This Row],[PIP or NP]]&\"-\"&PIPor1NPIndex[[#This Row],[Pipe Size]]","v":"PIP-6"},"PIP",6,4,1.9]
[null,null,null,null,null,null,null,"VRG10.100U",4,"Full",21,828.21,{"$f":"IF($B$7<>0,SQRT(($D$6^2)+(2*$D$9*$D$10*$D$15^2)/(1360^2*FRCVSizer[[#This Row],[Cv]]^2)),\"NO VKG\")","v":"NO VKG"},{"$f":"FRCVSizer[[#This Row],[Theo P2 (PSIA)]]-14.7","v":{"$error":"#VALUE!"}},{"$f":"IF(Interface!$G$23=FRCVSizer[[#This Row],[Bio Gas?]],FRCVSizer[[#This Row],[Theo P2 (PSIG)]]-$B$8,\"\")","v":""},400,{"$f":"FRCVSizer[[#This Row],[Pipe Size]]&\"\"\" \"&FRCVSizer[[#This Row],[Port Size]]&\" port\"","v":"4\" Full port"},"Yes",null,"VGG10.154U",2,"0.5\" Single Valve Body, NPT",0.5,20,75,{"$f":"SQRT((6.27^2)/2)","v":4.4335595180396528},"No",2,"No",{"$f":"SQRT((SSOVSizer[[#This Row],[P2]]^2)+((2*$D$9*$D$10*SSOVSizer[[#This Row],[Combo train Calc Q (SCFH)]]^2)/(1360^2*SSOVSizer[[#This Row],[Cv]]^2)))","v":{"$error":"#N/A"}},{"$f":"(SSOVSizer[[#This Row],[P2]]-14.7)*$B$16+14.7","v":{"$error":"#VALUE!"}},{"$f":"VKGSelection[P2 for SSOV]","v":14.7},{"$f":"IF(SSOVSizer[[#This Row],[P2]]>$D$5,\"err P2>P1\",1360*SSOVSizer[[#This Row],[Cv]]*SQRT(($D$5+SSOVSizer[[#This Row],[P2]])/($D$9*$D$10))*SQRT(($D$5-SSOVSizer[[#This Row],[P2]])/2))","v":{"$error":"#N/A"}},{"$f":"1360*SSOVSizer[[#This Row],[Cv]]*SQRT((SSOVSizer[[#This Row],[P1 if Trad]]+SSOVSizer[[#This Row],[P2]])/($D$9*$D$10))*SQRT((SSOVSizer[[#This Row],[P1 if Trad]]-SSOVSizer[[#This Row],[P2]])/2)","v":{"$error":"#VALUE!"}},{"$f":"IF(Interface!$F$17=\"Comb\",SSOVSizer[[#This Row],[Combo train Calc Q (SCFH)]]-$D$15,IF(Interface!$F$17=\"Trad\",SSOVSizer[[#This Row],[Trad train Calc Q (SCFH)]]-$D$15,\"Train type not selected\"))","v":"Train type not selected"},null,{"$f":"IF(AND(SSOVSelection[1 or 2]=SSOVSizer[[#This Row],[2 valves or 1]],SSOVSelection[Bio Gas]=SSOVSizer[[#This Row],[Bio Gas?]],SSOVSelection[NEMA 4]=SSOVSizer[[#This Row],[NEMA 4?]],SSOVSizer[[#This Row],[Calc Q - Desired Q]]<0, SSOVSizer[[#This Row],[Max valve sizes]]=\"Max\"),\"Max\",IF(AND(SSOVSelection[1 or 2]=SSOVSizer[[#This Row],[2 valves or 1]],SSOVSelection[Bio Gas]=SSOVSizer[[#This Row],[Bio Gas?]],SSOVSelection[NEMA 4]=SSOVSizer[[#This Row],[NEMA 4?]]),SSOVSizer[[#This Row],[Calc Q - Desired Q]],\"\"))","v":""},{"$f":"SQRT(($D$5^2)-((2*$D$9*$D$10*$D$15^2)/(1360^2*SSOVSizer[[#This Row],[Cv]]^2)))","v":{"$error":"#N/A"}},"",null,null,null,null,null,null,null,null,null,null,null,null,null,null,"SKP25.411U1",25,"120 VAC","Yes","No","Yes"]
[null,null,null,null,null,null,null,"VKG10.015U",0.5,"Full",1,5.19,{"$f":"IF($B$7<>0,SQRT(($D$6^2)+(2*$D$9*$D$10*$D$15^2)/(1360^2*FRCVSizer[[#This Row],[Cv]]^2)),\"NO VKG\")","v":"NO VKG"},{"$f":"FRCVSizer[[#This Row],[Theo P2 (PSIA)]]-14.7","v":{"$error":"#VALUE!"}},{"$f":"IF(Interface!$G$23=FRCVSizer[[#This Row],[Bio Gas?]],FRCVSizer[[#This Row],[Theo P2 (PSIG)]]-$B$8,\"\")","v":{"$error":"#VALUE!"}},"050",{"$f":"FRCVSizer[[#This Row],[Pipe Size]]&\"\"\" \"&FRCVSizer[[#This Row],[Port Size]]&\" port\"","v":"0.5\" Full port"},"No",null,"VGG10.154U",2,"0.5\" Single Valve Body, NPT",0.5,20,75,{"$f":"SQRT((4.49^2)/2)","v":3.1749094475275985},"Yes",2,"No",{"$f":"SQRT((SSOVSizer[[#This Row],[P2]]^2)+((2*$D$9*$D$10*SSOVSizer[[#This Row],[Combo train Calc Q (SCFH)]]^2)/(1360^2*SSOVSizer[[#This Row],[Cv]]^2)))","v":{"$error":"#N/A"}},{"$f":"(SSOVSizer[[#This Row],[P2]]-14.7)*$B$16+14.7","v":{"$error":"#VALUE!"}},{"$f":"VKGSelection[P2 for SSOV]","v":14.7},{"$f":"IF(SSOVSizer[[#This Row],[P2]]>$D$5,\"err P2>P1\",1360*SSOVSizer[[#This Row],[Cv]]*SQRT(($D$5+SSOVSizer[[#This Row],[P2]])/($D$9*$D$10))*SQRT(($D$5-SSOVSizer[[#This Row],[P2]])/2))","v":{"$error":"#N/A"}},{"$f":"1360*SSOVSizer[[#This Row],[Cv]]*SQRT((SSOVSizer[[#This Row],[P1 if Trad]]+SSOVSizer[[#This Row],[P2]])/($D$9*$D$10))*SQRT((SSOVSizer[[#This Row],[P1 if Trad]]-SSOVSizer[[#This Row],[P2]])/2)","v":{"$error":"#VALUE!"}},{"$f":"IF(Interface!$F$17=\"Comb\",SSOVSizer[[#This Row],[Combo train Calc Q (SCFH)]]-$D$15,IF(Interface!$F$17=\"Trad\",SSOVSizer[[#This Row],[Trad train Calc Q (SCFH)]]-$D$15,\"Train type not selected\"))","v":"Train type not selected"},null,{"$f":"IF(AND(SSOVSelection[1 or 2]=SSOVSizer[[#This Row],[2 valves or 1]],SSOVSelection[Bio Gas]=SSOVSizer[[#This Row],[Bio Gas?]],SSOVSelection[NEMA 4]=SSOVSizer[[#This Row],[NEMA 4?]],SSOVSizer[[#This Row],[Calc Q - Desired Q]]<0, SSOVSizer[[#This Row],[Max valve sizes]]=\"Max\"),\"Max\",IF(AND(SSOVSelection[1 or 2]=SSOVSizer[[#This Row],[2 valves or 1]],SSOVSelection[Bio Gas]=SSOVSizer[[#This Row],[Bio Gas?]],SSOVSelection[NEMA 4]=SSOVSizer[[#This Row],[NEMA 4?]]),SSOVSizer[[#This Row],[Calc Q - Desired Q]],\"\"))","v":""},{"$f":"SQRT(($D$5^2)-((2*$D$9*$D$10*$D$15^2)/(1360^2*SSOVSizer[[#This Row],[Cv]]^2)))","v":{"$error":"#N/A"}},"",null,null,null,null,null,null,null,null,null,null,null,null,null,null,"SKP25.411U1",25,"120 VAC","No","Yes","Yes",null,null,null,null,null,null,null,null,null,null,null,null,null,null,null,null,null,null,null,null,null,null,null,null,null,null,null,null,null,null,null,null,null,null,null,null,null,null,null,null,null,null,null,null,null,null,null,null,null,null,null,"PIP or 1NP Selection"]
[null,null,null,null,null,null,null,"VKG20.025U",1,"Medium",2,19.41,{"$f":"IF($B$7<>0,SQRT(($D$6^2)+(2*$D$9*$D$10*$D$15^2)/(1360^2*FRCVSizer[[#This Row],[Cv]]^2)),\"NO VKG\")","v":"NO VKG"},{"$f":"FRCVSizer[[#This Row],[Theo P2 (PSIA)]]-14.7","v":{"$error":"#VALUE!"}},{"$f":"IF(Interface!$G$23=FRCVSizer[[#This Row],[Bio Gas?]],FRCVSizer[[#This Row],[Theo P2 (PSIG)]]-$B$8,\"\")","v":{"$error":"#VALUE!"}},100,{"$f":"FRCVSizer[[#This Row],[Pipe Size]]&\"\"\" \"&FRCVSizer[[#This Row],[Port Size]]&\" port\"","v":"1\" Medium port"},"No",null,"VGG10.204U",1,"0.75\" Single Valve Body, NPT",0.75,20,75,8.1999999999999993,"Yes",1,"No",{"$f":"SQRT((SSOVSizer[[#This Row],[P2]]^2)+((2*$D$9*$D$10*SSOVSizer[[#This Row],[Combo train Calc Q (SCFH)]]^2)/(1360^2*SSOVSizer[[#This Row],[Cv]]^2)))","v":{"$error":"#N/A"}},{"$f":"(SSOVSizer[[#This Row],[P2]]-14.7)*$B$16+14.7","v":{"$error":"#VALUE!"}},{"$f":"VKGSelection[P2 for SSOV]","v":14.7},{"$f":"IF(SSOVSizer[[#This Row],[P2]]>$D$5,\"err P2>P1\",1360*SSOVSizer[[#This Row],[Cv]]*SQRT(($D$5+SSOVSizer[[#This Row],[P2]])/($D$9*$D$10))*SQRT(($D$5-SSOVSizer[[#This Row],[P2]])/2))","v":{"$error":"#N/A"}},{"$f":"1360*SSOVSizer[[#This Row],[Cv]]*SQRT((SSOVSizer[[#This Row],[P1 if Trad]]+SSOVSizer[[#This Row],[P2]])/($D$9*$D$10))*SQRT((SSOVSizer[[#This Row],[P1 if Trad]]-SSOVSizer[[#This Row],[P2]])/2)","v":{"$error":"#VALUE!"}},{"$f":"IF(Interface!$F$17=\"Comb\",SSOVSizer[[#This Row],[Combo train Calc Q (SCFH)]]-$D$15,IF(Interface!$F$17=\"Trad\",SSOVSizer[[#This Row],[Trad train Calc Q (SCFH)]]-$D$15,\"Train type not selected\"))","v":"Train type not selected"},null,{"$f":"IF(AND(SSOVSelection[1 or 2]=SSOVSizer[[#This Row],[2 valves or 1]],SSOVSelection[Bio Gas]=SSOVSizer[[#This Row],[Bio Gas?]],SSOVSelection[NEMA 4]=SSOVSizer[[#This Row],[NEMA 4?]],SSOVSizer[[#This Row],[Calc Q - Desired Q]]<0, SSOVSizer[[#This Row],[Max valve sizes]]=\"Max\"),\"Max\",IF(AND(SSOVSelection[1 or 2]=SSOVSizer[[#This Row],[2 valves or 1]],SSOVSelection[Bio Gas]=SSOVSizer[[#This Row],[Bio Gas?]],SSOVSelection[NEMA 4]=SSOVSizer[[#This Row],[NEMA 4?]]),SSOVSizer[[#This Row],[Calc Q - Desired Q]],\"\"))","v":""},{"$f":"SQRT(($D$5^2)-((2*$D$9*$D$10*$D$15^2)/(1360^2*SSOVSizer[[#This Row],[Cv]]^2)))","v":{"$error":"#N/A"}},"",null,null,null,null,null,null,null,null,null,null,null,null,null,null,"SKP25.411U1",25,"120 VAC","No","No","Yes",null,null,null,null,null,null,null,null,null,null,null,null,null,null,null,null,null,null,null,null,null,null,null,null,null,null,null,null,null,null,null,null,null,null,null,null,null,null,null,null,null,null,null,null,null,null,null,null,null,null,null,"Part Number","PIP or NP","Pipe Size2","Lenth","Cv"]
[null,null,null,null,null,null,null,"VKG10.020U",0.75,"Full",3,19.52,{"$f":"IF($B$7<>0,SQRT(($D$6^2)+(2*$D$9*$D$10*$D$15^2)/(1360^2*FRCVSizer[[#This Row],[Cv]]^2)),\"NO VKG\")","v":"NO VKG"},{"$f":"FRCVSizer[[#This Row],[Theo P2 (PSIA)]]-14.7","v":{"$error":"#VALUE!"}},{"$f":"IF(Interface!$G$23=FRCVSizer[[#This Row],[Bio Gas?]],FRCVSizer[[#This Row],[Theo P2 (PSIG)]]-$B$8,\"\")","v":{"$error":"#VALUE!"}},"075",{"$f":"FRCVSizer[[#This Row],[Pipe Size]]&\"\"\" \"&FRCVSizer[[#This Row],[Port Size]]&\" port\"","v":"0.75\" Full port"},"No",null,"VGG10.204U",1,"0.75\" Single Valve Body, NPT",0.75,20,75,11.56,"No",1,"No",{"$f":"SQRT((SSOVSizer[[#This Row],[P2]]^2)+((2*$D$9*$D$10*SSOVSizer[[#This Row],[Combo train Calc Q (SCFH)]]^2)/(1360^2*SSOVSizer[[#This Row],[Cv]]^2)))","v":{"$error":"#N/A"}},{"$f":"(SSOVSizer[[#This Row],[P2]]-14.7)*$B$16+14.7","v":{"$error":"#VALUE!"}},{"$f":"VKGSelection[P2 for SSOV]","v":14.7},{"$f":"IF(SSOVSizer[[#This Row],[P2]]>$D$5,\"err P2>P1\",1360*SSOVSizer[[#This Row],[Cv]]*SQRT(($D$5+SSOVSizer[[#This Row],[P2]])/($D$9*$D$10))*SQRT(($D$5-SSOVSizer[[#This Row],[P2]])/2))","v":{"$error":"#N/A"}},{"$f":"1360*SSOVSizer[[#This Row],[Cv]]*SQRT((SSOVSizer[[#This Row],[P1 if Trad]]+SSOVSizer[[#This Row],[P2]])/($D$9*$D$10))*SQRT((SSOVSizer[[#This Row],[P1 if Trad]]-SSOVSizer[[#This Row],[P2]])/2)","v":{"$error":"#VALUE!"}},{"$f":"IF(Interface!$F$17=\"Comb\",SSOVSizer[[#This Row],[Combo train Calc Q (SCFH)]]-$D$15,IF(Interface!$F$17=\"Trad\",SSOVSizer[[#This Row],[Trad train Calc Q (SCFH)]]-$D$15,\"Train type not selected\"))","v":"Train type not selected"},null,{"$f":"IF(AND(SSOVSelection[1 or 2]=SSOVSizer[[#This Row],[2 valves or 1]],SSOVSelection[Bio Gas]=SSOVSizer[[#This Row],[Bio Gas?]],SSOVSelection[NEMA 4]=SSOVSizer[[#This Row],[NEMA 4?]],SSOVSizer[[#This Row],[Calc Q - Desired Q]]<0, SSOVSizer[[#This Row],[Max valve sizes]]=\"Max\"),\"Max\",IF(AND(SSOVSelection[1 or 2]=SSOVSizer[[#This Row],[2 valves or 1]],SSOVSelection[Bio Gas]=SSOVSizer[[#This Row],[Bio Gas?]],SSOVSelection[NEMA 4]=SSOVSizer[[#This Row],[NEMA 4?]]),SSOVSizer[[#This Row],[Calc Q - Desired Q]],\"\"))","v":""},{"$f":"SQRT(($D$5^2)-((2*$D$9*$D$10*$D$15^2)/(1360^2*SSOVSizer[[#This Row],[Cv]]^2)))","v":{"$error":"#N/A"}},"",null,null,null,null,null,null,null,null,null,null,null,null,null,null,null,null,null,null,null,null,null,null,null,null,null,null,null,null,null,null,null,null,null,null,null,null,null,null,null,null,null,null,null,null,null,null,null,null,null,null,null,null,null,null,null,null,null,null,null,null,null,null,null,null,null,null,null,null,null,null,null,{"$f":"INDEX(PIPor1NPIndex[#Data],\nMATCH(PIPor1NPSelect[PIP or NP]&PIPor1NPSelect[Pipe Size2],PIPor1NPIndex[PIP or NP]&PIPor1NPIndex[Pipe Size],0),\nMATCH(PIPor1NPIndex[[#Headers],[Part Number]],PIPor1NPIndex[#Headers],0))","v":{"$error":"#N/A"}},"NP",{"$f":"FrtEndPipeSize[Resulting Front End Pipe Size]","v":{"$error":"#N/A"}},{"$f":"INDEX(PIPor1NPIndex[#Data],\nMATCH(PIPor1NPSelect[Part Number],PIPor1NPIndex[Part Number],0),\nMATCH(PIPor1NPIndex[[#Headers],[Length]],PIPor1NPIndex[#Headers],0))","v":{"$error":"#N/A"}},{"$f":"INDEX(PIPor1NPIndex[#Data],\nMATCH(PIPor1NPSelect[Part Number],PIPor1NPIndex[Part Number],0),\nMATCH(PIPor1NPIndex[[#Headers],[Cv]],PIPor1NPIndex[#Headers],0))","v":{"$error":"#N/A"}}]
[null,null,null,null,null,null,null,"VKG30.040U",1.5,"Reduced",4,30.08,{"$f":"IF($B$7<>0,SQRT(($D$6^2)+(2*$D$9*$D$10*$D$15^2)/(1360^2*FRCVSizer[[#This Row],[Cv]]^2)),\"NO VKG\")","v":"NO VKG"},{"$f":"FRCVSizer[[#This Row],[Theo P2 (PSIA)]]-14.7","v":{"$error":"#VALUE!"}},{"$f":"IF(Interface!$G$23=FRCVSizer[[#This Row],[Bio Gas?]],FRCVSizer[[#This Row],[Theo P2 (PSIG)]]-$B$8,\"\")","v":{"$error":"#VALUE!"}},150,{"$f":"FRCVSizer[[#This Row],[Pipe Size]]&\"\"\" \"&FRCVSizer[[#This Row],[Port Size]]&\" port\"","v":"1.5\" Reduced port"},"No",null,"VGG10.204U",2,"0.75\" Single Valve Body, NPT",0.75,20,75,{"$f":"SQRT((11.56^2)/2)","v":8.17415439051649},"No",2,"No",{"$f":"SQRT((SSOVSizer[[#This Row],[P2]]^2)+((2*$D$9*$D$10*SSOVSizer[[#This Row],[Combo train Calc Q (SCFH)]]^2)/(1360^2*SSOVSizer[[#This Row],[Cv]]^2)))","v":{"$error":"#N/A"}},{"$f":"(SSOVSizer[[#This Row],[P2]]-14.7)*$B$16+14.7","v":{"$error":"#VALUE!"}},{"$f":"VKGSelection[P2 for SSOV]","v":14.7},{"$f":"IF(SSOVSizer[[#This Row],[P2]]>$D$5,\"err P2>P1\",1360*SSOVSizer[[#This Row],[Cv]]*SQRT(($D$5+SSOVSizer[[#This Row],[P2]])/($D$9*$D$10))*SQRT(($D$5-SSOVSizer[[#This Row],[P2]])/2))","v":{"$error":"#N/A"}},{"$f":"1360*SSOVSizer[[#This Row],[Cv]]*SQRT((SSOVSizer[[#This Row],[P1 if Trad]]+SSOVSizer[[#This Row],[P2]])/($D$9*$D$10))*SQRT((SSOVSizer[[#This Row],[P1 if Trad]]-SSOVSizer[[#This Row],[P2]])/2)","v":{"$error":"#VALUE!"}},{"$f":"IF(Interface!$F$17=\"Comb\",SSOVSizer[[#This Row],[Combo train Calc Q (SCFH)]]-$D$15,IF(Interface!$F$17=\"Trad\",SSOVSizer[[#This Row],[Trad train Calc Q (SCFH)]]-$D$15,\"Train type not selected\"))","v":"Train type not selected"},null,{"$f":"IF(AND(SSOVSelection[1 or 2]=SSOVSizer[[#This Row],[2 valves or 1]],SSOVSelection[Bio Gas]=SSOVSizer[[#This Row],[Bio Gas?]],SSOVSelection[NEMA 4]=SSOVSizer[[#This Row],[NEMA 4?]],SSOVSizer[[#This Row],[Calc Q - Desired Q]]<0, SSOVSizer[[#This Row],[Max valve sizes]]=\"Max\"),\"Max\",IF(AND(SSOVSelection[1 or 2]=SSOVSizer[[#This Row],[2 valves or 1]],SSOVSelection[Bio Gas]=SSOVSizer[[#This Row],[Bio Gas?]],SSOVSelection[NEMA 4]=SSOVSizer[[#This Row],[NEMA 4?]]),SSOVSizer[[#This Row],[Calc Q - Desired Q]],\"\"))","v":""},{"$f":"SQRT(($D$5^2)-((2*$D$9*$D$10*$D$15^2)/(1360^2*SSOVSizer[[#This Row],[Cv]]^2)))","v":{"$error":"#N/A"}},"",null,null,null,null,null,null,null,null,null,null,null,null,null,null,null,null,null,null,null,null,null,null,null,null,null,null,null,null,null,null,null,null,null,null,null,null,null,null,null,null,null,null,null,null,null,null,null,null,null,null,null,null,null,null,null,null,null,null,null,null,null,null,null,null,null,null,null,null,null,null,null,"if no y strainer write if statement so part number is blank"]
[null,null,null,null,null,null,null,"VKG10.025U",1,"Full",5,31.44,{"$f":"IF($B$7<>0,SQRT(($D$6^2)+(2*$D$9*$D$10*$D$15^2)/(1360^2*FRCVSizer[[#This Row],[Cv]]^2)),\"NO VKG\")","v":"NO VKG"},{"$f":"FRCVSizer[[#This Row],[Theo P2 (PSIA)]]-14.7","v":{"$error":"#VALUE!"}},{"$f":"IF(Interface!$G$23=FRCVSizer[[#This Row],[Bio Gas?]],FRCVSizer[[#This Row],[Theo P2 (PSIG)]]-$B$8,\"\")","v":{"$error":"#VALUE!"}},100,{"$f":"FRCVSizer[[#This Row],[Pipe Size]]&\"\"\" \"&FRCVSizer[[#This Row],[Port Size]]&\" port\"","v":"1\" Full port"},"No",null,"VGG10.204U",2,"0.75\" Single Valve Body, NPT",0.75,20,75,{"$f":"SQRT((8.2^2)/2)","v":5.7982756057296898},"Yes",2,"No",{"$f":"SQRT((SSOVSizer[[#This Row],[P2]]^2)+((2*$D$9*$D$10*SSOVSizer[[#This Row],[Combo train Calc Q (SCFH)]]^2)/(1360^2*SSOVSizer[[#This Row],[Cv]]^2)))","v":{"$error":"#N/A"}},{"$f":"(SSOVSizer[[#This Row],[P2]]-14.7)*$B$16+14.7","v":{"$error":"#VALUE!"}},{"$f":"VKGSelection[P2 for SSOV]","v":14.7},{"$f":"IF(SSOVSizer[[#This Row],[P2]]>$D$5,\"err P2>P1\",1360*SSOVSizer[[#This Row],[Cv]]*SQRT(($D$5+SSOVSizer[[#This Row],[P2]])/($D$9*$D$10))*SQRT(($D$5-SSOVSizer[[#This Row],[P2]])/2))","v":{"$error":"#N/A"}},{"$f":"1360*SSOVSizer[[#This Row],[Cv]]*SQRT((SSOVSizer[[#This Row],[P1 if Trad]]+SSOVSizer[[#This Row],[P2]])/($D$9*$D$10))*SQRT((SSOVSizer[[#This Row],[P1 if Trad]]-SSOVSizer[[#This Row],[P2]])/2)","v":{"$error":"#VALUE!"}},{"$f":"IF(Interface!$F$17=\"Comb\",SSOVSizer[[#This Row],[Combo train Calc Q (SCFH)]]-$D$15,IF(Interface!$F$17=\"Trad\",SSOVSizer[[#This Row],[Trad train Calc Q (SCFH)]]-$D$15,\"Train type not selected\"))","v":"Train type not selected"},null,{"$f":"IF(AND(SSOVSelection[1 or 2]=SSOVSizer[[#This Row],[2 valves or 1]],SSOVSelection[Bio Gas]=SSOVSizer[[#This Row],[Bio Gas?]],SSOVSelection[NEMA 4]=SSOVSizer[[#This Row],[NEMA 4?]],SSOVSizer[[#This Row],[Calc Q - Desired Q]]<0, SSOVSizer[[#This Row],[Max valve sizes]]=\"Max\"),\"Max\",IF(AND(SSOVSelection[1 or 2]=SSOVSizer[[#This Row],[2 valves or 1]],SSOVSelection[Bio Gas]=SSOVSizer[[#This Row],[Bio Gas?]],SSOVSelection[NEMA 4]=SSOVSizer[[#This Row],[NEMA 4?]]),SSOVSizer[[#This Row],[Calc Q - Desired Q]],\"\"))","v":""},{"$f":"SQRT(($D$5^2)-((2*$D$9*$D$10*$D$15^2)/(1360^2*SSOVSizer[[#This Row],[Cv]]^2)))","v":{"$error":"#N/A"}},"",null,null,null,null,null,null,null,null,null,null,null,null,null,null,"GT and Number of actuator logic table"]
["Additional Train Reporting values",null,null,null,null,null,null,"VKG20.032U",1.25,"Medium",6,41.16,{"$f":"IF($B$7<>0,SQRT(($D$6^2)+(2*$D$9*$D$10*$D$15^2)/(1360^2*FRCVSizer[[#This Row],[Cv]]^2)),\"NO VKG\")","v":"NO VKG"},{"$f":"FRCVSizer[[#This Row],[Theo P2 (PSIA)]]-14.7","v":{"$error":"#VALUE!"}},{"$f":"IF(Interface!$G$23=FRCVSizer[[#This Row],[Bio Gas?]],FRCVSizer[[#This Row],[Theo P2 (PSIG)]]-$B$8,\"\")","v":{"$error":"#VALUE!"}},"125",{"$f":"FRCVSizer[[#This Row],[Pipe Size]]&\"\"\" \"&FRCVSizer[[#This Row],[Port Size]]&\" port\"","v":"1.25\" Medium port"},"No",null,"VGG10.254U",1,"1\" Single Valve Body, NPT",1,20,75,12.73,"Yes",1,"No",{"$f":"SQRT((SSOVSizer[[#This Row],[P2]]^2)+((2*$D$9*$D$10*SSOVSizer[[#This Row],[Combo train Calc Q (SCFH)]]^2)/(1360^2*SSOVSizer[[#This Row],[Cv]]^2)))","v":{"$error":"#N/A"}},{"$f":"(SSOVSizer[[#This Row],[P2]]-14.7)*$B$16+14.7","v":{"$error":"#VALUE!"}},{"$f":"VKGSelection[P2 for SSOV]","v":14.7},{"$f":"IF(SSOVSizer[[#This Row],[P2]]>$D$5,\"err P2>P1\",1360*SSOVSizer[[#This Row],[Cv]]*SQRT(($D$5+SSOVSizer[[#This Row],[P2]])/($D$9*$D$10))*SQRT(($D$5-SSOVSizer[[#This Row],[P2]])/2))","v":{"$error":"#N/A"}},{"$f":"1360*SSOVSizer[[#This Row],[Cv]]*SQRT((SSOVSizer[[#This Row],[P1 if Trad]]+SSOVSizer[[#This Row],[P2]])/($D$9*$D$10))*SQRT((SSOVSizer[[#This Row],[P1 if Trad]]-SSOVSizer[[#This Row],[P2]])/2)","v":{"$error":"#VALUE!"}},{"$f":"IF(Interface!$F$17=\"Comb\",SSOVSizer[[#This Row],[Combo train Calc Q (SCFH)]]-$D$15,IF(Interface!$F$17=\"Trad\",SSOVSizer[[#This Row],[Trad train Calc Q (SCFH)]]-$D$15,\"Train type not selected\"))","v":"Train type not selected"},null,{"$f":"IF(AND(SSOVSelection[1 or 2]=SSOVSizer[[#This Row],[2 valves or 1]],SSOVSelection[Bio Gas]=SSOVSizer[[#This Row],[Bio Gas?]],SSOVSelection[NEMA 4]=SSOVSizer[[#This Row],[NEMA 4?]],SSOVSizer[[#This Row],[Calc Q - Desired Q]]<0, SSOVSizer[[#This Row],[Max valve sizes]]=\"Max\"),\"Max\",IF(AND(SSOVSelection[1 or 2]=SSOVSizer[[#This Row],[2 valves or 1]],SSOVSelection[Bio Gas]=SSOVSizer[[#This Row],[Bio Gas?]],SSOVSelection[NEMA 4]=SSOVSizer[[#This Row],[NEMA 4?]]),SSOVSizer[[#This Row],[Calc Q - Desired Q]],\"\"))","v":""},{"$f":"SQRT(($D$5^2)-((2*$D$9*$D$10*$D$15^2)/(1360^2*SSOVSizer[[#This Row],[Cv]]^2)))","v":{"$error":"#N/A"}},"",null,null,null,null,null,null,null,null,null,null,null,null,null,null,"GT Type","# of SSOV's","2nd Act Type","1st Act Type","High Press","2nd Act POC","2nd Act Aux"]
["Description","Value","Unit","Conv value","Unit3",null,null,"VKG30.050U",2,"Reduced",7,62.05,{"$f":"IF($B$7<>0,SQRT(($D$6^2)+(2*$D$9*$D$10*$D$15^2)/(1360^2*FRCVSizer[[#This Row],[Cv]]^2)),\"NO VKG\")","v":"NO VKG"},{"$f":"FRCVSizer[[#This Row],[Theo P2 (PSIA)]]-14.7","v":{"$error":"#VALUE!"}},{"$f":"IF(Interface!$G$23=FRCVSizer[[#This Row],[Bio Gas?]],FRCVSizer[[#This Row],[Theo P2 (PSIG)]]-$B$8,\"\")","v":{"$error":"#VALUE!"}},200,{"$f":"FRCVSizer[[#This Row],[Pipe Size]]&\"\"\" \"&FRCVSizer[[#This Row],[Port Size]]&\" port\"","v":"2\" Reduced port"},"No",null,"VGG10.254U",1,"1\" Single Valve Body, NPT",1,20,75,16.98,"No",1,"No",{"$f":"SQRT((SSOVSizer[[#This Row],[P2]]^2)+((2*$D$9*$D$10*SSOVSizer[[#This Row],[Combo train Calc Q (SCFH)]]^2)/(1360^2*SSOVSizer[[#This Row],[Cv]]^2)))","v":{"$error":"#N/A"}},{"$f":"(SSOVSizer[[#This Row],[P2]]-14.7)*$B$16+14.7","v":{"$error":"#VALUE!"}},{"$f":"VKGSelection[P2 for SSOV]","v":14.7},{"$f":"IF(SSOVSizer[[#This Row],[P2]]>$D$5,\"err P2>P1\",1360*SSOVSizer[[#This Row],[Cv]]*SQRT(($D$5+SSOVSizer[[#This Row],[P2]])/($D$9*$D$10))*SQRT(($D$5-SSOVSizer[[#This Row],[P2]])/2))","v":{"$error":"#N/A"}},{"$f":"1360*SSOVSizer[[#This Row],[Cv]]*SQRT((SSOVSizer[[#This Row],[P1 if Trad]]+SSOVSizer[[#This Row],[P2]])/($D$9*$D$10))*SQRT((SSOVSizer[[#This Row],[P1 if Trad]]-SSOVSizer[[#This Row],[P2]])/2)","v":{"$error":"#VALUE!"}},{"$f":"IF(Interface!$F$17=\"Comb\",SSOVSizer[[#This Row],[Combo train Calc Q (SCFH)]]-$D$15,IF(Interface!$F$17=\"Trad\",SSOVSizer[[#This Row],[Trad train Calc Q (SCFH)]]-$D$15,\"Train type not selected\"))","v":"Train type not selected"},null,{"$f":"IF(AND(SSOVSelection[1 or 2]=SSOVSizer[[#This Row],[2 valves or 1]],SSOVSelection[Bio Gas]=SSOVSizer[[#This Row],[Bio Gas?]],SSOVSelection[NEMA 4]=SSOVSizer[[#This Row],[NEMA 4?]],SSOVSizer[[#This Row],[Calc Q - Desired Q]]<0, SSOVSizer[[#This Row],[Max valve sizes]]=\"Max\"),\"Max\",IF(AND(SSOVSelection[1 or 2]=SSOVSizer[[#This Row],[2 valves or 1]],SSOVSelection[Bio Gas]=SSOVSizer[[#This Row],[Bio Gas?]],SSOVSelection[NEMA 4]=SSOVSizer[[#This Row],[NEMA 4?]]),SSOVSizer[[#This Row],[Calc Q - Desired Q]],\"\"))","v":""},{"$f":"SQRT(($D$5^2)-((2*$D$9*$D$10*$D$15^2)/(1360^2*SSOVSizer[[#This Row],[Cv]]^2)))","v":{"$error":"#N/A"}},"",null,null,null,null,null,null,null,null,null,null,null,null,null,null,"Trad",1,15,"NA","Yes",{"$f":"IF(AND(Actgttypelogic[[#This Row],[2nd Act Type]]=25,Actgttypelogic[[#This Row],[High Press]]=\"yes\"),\"Yes\",\"\")","v":""},{"$f":"IF(AND(Actgttypelogic[[#This Row],[2nd Act Type]]=25,Actgttypelogic[[#This Row],[High Press]]=\"yes\"),\"No\",\"\")","v":""}]
["Desired Press at burner manifold (Pb)",{"$f":"D6","v":14.7},"PSIA",{"$f":"ROUND((Table52[[#This Row],[Value]]-14.7)*27.72,1)","v":0},"inWC",null,null,"VKG10.032U",1.25,"Full",8,74.81,{"$f":"IF($B$7<>0,SQRT(($D$6^2)+(2*$D$9*$D$10*$D$15^2)/(1360^2*FRCVSizer[[#This Row],[Cv]]^2)),\"NO VKG\")","v":"NO VKG"},{"$f":"FRCVSizer[[#This Row],[Theo P2 (PSIA)]]-14.7","v":{"$error":"#VALUE!"}},{"$f":"IF(Interface!$G$23=FRCVSizer[[#This Row],[Bio Gas?]],FRCVSizer[[#This Row],[Theo P2 (PSIG)]]-$B$8,\"\")","v":{"$error":"#VALUE!"}},"125",{"$f":"FRCVSizer[[#This Row],[Pipe Size]]&\"\"\" \"&FRCVSizer[[#This Row],[Port Size]]&\" port\"","v":"1.25\" Full port"},"No",null,"VGG10.404U",1,"1.5\" Single Valve Body, NPT",1.5,20,75,30.49,"Yes",1,"No",{"$f":"SQRT((SSOVSizer[[#This Row],[P2]]^2)+((2*$D$9*$D$10*SSOVSizer[[#This Row],[Combo train Calc Q (SCFH)]]^2)/(1360^2*SSOVSizer[[#This Row],[Cv]]^2)))","v":{"$error":"#N/A"}},{"$f":"(SSOVSizer[[#This Row],[P2]]-14.7)*$B$16+14.7","v":{"$error":"#VALUE!"}},{"$f":"VKGSelection[P2 for SSOV]","v":14.7},{"$f":"IF(SSOVSizer[[#This Row],[P2]]>$D$5,\"err P2>P1\",1360*SSOVSizer[[#This Row],[Cv]]*SQRT(($D$5+SSOVSizer[[#This Row],[P2]])/($D$9*$D$10))*SQRT(($D$5-SSOVSizer[[#This Row],[P2]])/2))","v":{"$error":"#N/A"}},{"$f":"1360*SSOVSizer[[#This Row],[Cv]]*SQRT((SSOVSizer[[#This Row],[P1 if Trad]]+SSOVSizer[[#This Row],[P2]])/($D$9*$D$10))*SQRT((SSOVSizer[[#This Row],[P1 if Trad]]-SSOVSizer[[#This Row],[P2]])/2)","v":{"$error":"#VALUE!"}},{"$f":"IF(Interface!$F$17=\"Comb\",SSOVSizer[[#This Row],[Combo train Calc Q (SCFH)]]-$D$15,IF(Interface!$F$17=\"Trad\",SSOVSizer[[#This Row],[Trad train Calc Q (SCFH)]]-$D$15,\"Train type not selected\"))","v":"Train type not selected"},null,{"$f":"IF(AND(SSOVSelection[1 or 2]=SSOVSizer[[#This Row],[2 valves or 1]],SSOVSelection[Bio Gas]=SSOVSizer[[#This Row],[Bio Gas?]],SSOVSelection[NEMA 4]=SSOVSizer[[#This Row],[NEMA 4?]],SSOVSizer[[#This Row],[Calc Q - Desired Q]]<0, SSOVSizer[[#This Row],[Max valve sizes]]=\"Max\"),\"Max\",IF(AND(SSOVSelection[1 or 2]=SSOVSizer[[#This Row],[2 valves or 1]],SSOVSelection[Bio Gas]=SSOVSizer[[#This Row],[Bio Gas?]],SSOVSelection[NEMA 4]=SSOVSizer[[#This Row],[NEMA 4?]]),SSOVSizer[[#This Row],[Calc Q - Desired Q]],\"\"))","v":""},{"$f":"SQRT(($D$5^2)-((2*$D$9*$D$10*$D$15^2)/(1360^2*SSOVSizer[[#This Row],[Cv]]^2)))","v":{"$error":"#N/A"}},"",null,null,null,null,null,null,null,null,null,null,null,null,null,null,"Trad",2,15,15,"Yes",{"$f":"IF(AND(Actgttypelogic[[#This Row],[2nd Act Type]]=25,Actgttypelogic[[#This Row],[High Press]]=\"yes\"),\"Yes\",\"\")","v":""},{"$f":"IF(AND(Actgttypelogic[[#This Row],[2nd Act Type]]=25,Actgttypelogic[[#This Row],[High Press]]=\"yes\"),\"No\",\"\")","v":""}]
["Selected VKG Cv Value",{"$f":"INDEX(FRCVSizer[#Data],MATCH(VKGcustSelect[Part '#],FRCVSizer[Part '#],0),MATCH(FRCVSizer[[#Headers],[Cv]],FRCVSizer[#Headers],0))","v":{"$error":"#VALUE!"}},null,null,null,null,null,"VKG30.065U",2.5,"Reduced",9,76.09,{"$f":"IF($B$7<>0,SQRT(($D$6^2)+(2*$D$9*$D$10*$D$15^2)/(1360^2*FRCVSizer[[#This Row],[Cv]]^2)),\"NO VKG\")","v":"NO VKG"},{"$f":"FRCVSizer[[#This Row],[Theo P2 (PSIA)]]-14.7","v":{"$error":"#VALUE!"}},{"$f":"IF(Interface!$G$23=FRCVSizer[[#This Row],[Bio Gas?]],FRCVSizer[[#This Row],[Theo P2 (PSIG)]]-$B$8,\"\")","v":{"$error":"#VALUE!"}},250,{"$f":"FRCVSizer[[#This Row],[Pipe Size]]&\"\"\" \"&FRCVSizer[[#This Row],[Port Size]]&\" port\"","v":"2.5\" Reduced port"},"No",null,"VGG10.404U",1,"1.5\" Single Valve Body, NPT",1.5,20,75,39.22,"No",1,"No",{"$f":"SQRT((SSOVSizer[[#This Row],[P2]]^2)+((2*$D$9*$D$10*SSOVSizer[[#This Row],[Combo train Calc Q (SCFH)]]^2)/(1360^2*SSOVSizer[[#This Row],[Cv]]^2)))","v":{"$error":"#N/A"}},{"$f":"(SSOVSizer[[#This Row],[P2]]-14.7)*$B$16+14.7","v":{"$error":"#VALUE!"}},{"$f":"VKGSelection[P2 for SSOV]","v":14.7},{"$f":"IF(SSOVSizer[[#This Row],[P2]]>$D$5,\"err P2>P1\",1360*SSOVSizer[[#This Row],[Cv]]*SQRT(($D$5+SSOVSizer[[#This Row],[P2]])/($D$9*$D$10))*SQRT(($D$5-SSOVSizer[[#This Row],[P2]])/2))","v":{"$error":"#N/A"}},{"$f":"1360*SSOVSizer[[#This Row],[Cv]]*SQRT((SSOVSizer[[#This Row],[P1 if Trad]]+SSOVSizer[[#This Row],[P2]])/($D$9*$D$10))*SQRT((SSOVSizer[[#This Row],[P1 if Trad]]-SSOVSizer[[#This Row],[P2]])/2)","v":{"$error":"#VALUE!"}},{"$f":"IF(Interface!$F$17=\"Comb\",SSOVSizer[[#This Row],[Combo train Calc Q (SCFH)]]-$D$15,IF(Interface!$F$17=\"Trad\",SSOVSizer[[#This Row],[Trad train Calc Q (SCFH)]]-$D$15,\"Train type not selected\"))","v":"Train type not selected"},null,{"$f":"IF(AND(SSOVSelection[1 or 2]=SSOVSizer[[#This Row],[2 valves or 1]],SSOVSelection[Bio Gas]=SSOVSizer[[#This Row],[Bio Gas?]],SSOVSelection[NEMA 4]=SSOVSizer[[#This Row],[NEMA 4?]],SSOVSizer[[#This Row],[Calc Q - Desired Q]]<0, SSOVSizer[[#This Row],[Max valve sizes]]=\"Max\"),\"Max\",IF(AND(SSOVSelection[1 or 2]=SSOVSizer[[#This Row],[2 valves or 1]],SSOVSelection[Bio Gas]=SSOVSizer[[#This Row],[Bio Gas?]],SSOVSelection[NEMA 4]=SSOVSizer[[#This Row],[NEMA 4?]]),SSOVSizer[[#This Row],[Calc Q - Desired Q]],\"\"))","v":""},{"$f":"SQRT(($D$5^2)-((2*$D$9*$D$10*$D$15^2)/(1360^2*SSOVSizer[[#This Row],[Cv]]^2)))","v":{"$error":"#N/A"}},"",null,null,null,null,null,null,null,null,null,null,null,null,null,null,"Comb",1,25,"NA","Yes",{"$f":"IF(AND(Actgttypelogic[[#This Row],[2nd Act Type]]=25,Actgttypelogic[[#This Row],[High Press]]=\"yes\"),\"Yes\",\"\")","v":"Yes"},{"$f":"IF(AND(Actgttypelogic[[#This Row],[2nd Act Type]]=25,Actgttypelogic[[#This Row],[High Press]]=\"yes\"),\"No\",\"\")","v":"No"}]
["Pressure between SSOV and VKG (P1)",{"$f":"IFERROR(SQRT((B31^2)+(2*$D$9*$D$10*$D$15^2)/(1360^2*B32^2)),B31)","v":14.7},"PSIA",{"$f":"ROUND((Table52[[#This Row],[Value]]-14.7)*27.72,1)","v":0},"inWC",null,null,"VKG20.040U",1.5,"Medium",10,81.349999999999994,{"$f":"IF($B$7<>0,SQRT(($D$6^2)+(2*$D$9*$D$10*$D$15^2)/(1360^2*FRCVSizer[[#This Row],[Cv]]^2)),\"NO VKG\")","v":"NO VKG"},{"$f":"FRCVSizer[[#This Row],[Theo P2 (PSIA)]]-14.7","v":{"$error":"#VALUE!"}},{"$f":"IF(Interface!$G$23=FRCVSizer[[#This Row],[Bio Gas?]],FRCVSizer[[#This Row],[Theo P2 (PSIG)]]-$B$8,\"\")","v":{"$error":"#VALUE!"}},150,{"$f":"FRCVSizer[[#This Row],[Pipe Size]]&\"\"\" \"&FRCVSizer[[#This Row],[Port Size]]&\" port\"","v":"1.5\" Medium port"},"No",null,"VGG10.504U",1,"2\" Single Valve Body, NPT",2,20,75,62.92,"No",1,"No",{"$f":"SQRT((SSOVSizer[[#This Row],[P2]]^2)+((2*$D$9*$D$10*SSOVSizer[[#This Row],[Combo train Calc Q (SCFH)]]^2)/(1360^2*SSOVSizer[[#This Row],[Cv]]^2)))","v":{"$error":"#N/A"}},{"$f":"(SSOVSizer[[#This Row],[P2]]-14.7)*$B$16+14.7","v":{"$error":"#VALUE!"}},{"$f":"VKGSelection[P2 for SSOV]","v":14.7},{"$f":"IF(SSOVSizer[[#This Row],[P2]]>$D$5,\"err P2>P1\",1360*SSOVSizer[[#This Row],[Cv]]*SQRT(($D$5+SSOVSizer[[#This Row],[P2]])/($D$9*$D$10))*SQRT(($D$5-SSOVSizer[[#This Row],[P2]])/2))","v":{"$error":"#N/A"}},{"$f":"1360*SSOVSizer[[#This Row],[Cv]]*SQRT((SSOVSizer[[#This Row],[P1 if Trad]]+SSOVSizer[[#This Row],[P2]])/($D$9*$D$10))*SQRT((SSOVSizer[[#This Row],[P1 if Trad]]-SSOVSizer[[#This Row],[P2]])/2)","v":{"$error":"#VALUE!"}},{"$f":"IF(Interface!$F$17=\"Comb\",SSOVSizer[[#This Row],[Combo train Calc Q (SCFH)]]-$D$15,IF(Interface!$F$17=\"Trad\",SSOVSizer[[#This Row],[Trad train Calc Q (SCFH)]]-$D$15,\"Train type not selected\"))","v":"Train type not selected"},null,{"$f":"IF(AND(SSOVSelection[1 or 2]=SSOVSizer[[#This Row],[2 valves or 1]],SSOVSelection[Bio Gas]=SSOVSizer[[#This Row],[Bio Gas?]],SSOVSelection[NEMA 4]=SSOVSizer[[#This Row],[NEMA 4?]],SSOVSizer[[#This Row],[Calc Q - Desired Q]]<0, SSOVSizer[[#This Row],[Max valve sizes]]=\"Max\"),\"Max\",IF(AND(SSOVSelection[1 or 2]=SSOVSizer[[#This Row],[2 valves or 1]],SSOVSelection[Bio Gas]=SSOVSizer[[#This Row],[Bio Gas?]],SSOVSelection[NEMA 4]=SSOVSizer[[#This Row],[NEMA 4?]]),SSOVSizer[[#This Row],[Calc Q - Desired Q]],\"\"))","v":""},{"$f":"SQRT(($D$5^2)-((2*$D$9*$D$10*$D$15^2)/(1360^2*SSOVSizer[[#This Row],[Cv]]^2)))","v":{"$error":"#N/A"}},"",null,null,null,null,null,null,null,null,null,null,null,null,null,null,"Comb",2,25,15,"Yes",{"$f":"IF(AND(Actgttypelogic[[#This Row],[2nd Act Type]]=25,Actgttypelogic[[#This Row],[High Press]]=\"yes\"),\"Yes\",\"\")","v":"Yes"},{"$f":"IF(AND(Actgttypelogic[[#This Row],[2nd Act Type]]=25,Actgttypelogic[[#This Row],[High Press]]=\"yes\"),\"No\",\"\")","v":"No"}]
["Selected SSOV Cv Value",{"$f":"SSOVSelection[Cv]","v":""},null,null,null,null,null,"VKG20.050U",2,"Medium",11,97.12,{"$f":"IF($B$7<>0,SQRT(($D$6^2)+(2*$D$9*$D$10*$D$15^2)/(1360^2*FRCVSizer[[#This Row],[Cv]]^2)),\"NO VKG\")","v":"NO VKG"},{"$f":"FRCVSizer[[#This Row],[Theo P2 (PSIA)]]-14.7","v":{"$error":"#VALUE!"}},{"$f":"IF(Interface!$G$23=FRCVSizer[[#This Row],[Bio Gas?]],FRCVSizer[[#This Row],[Theo P2 (PSIG)]]-$B$8,\"\")","v":{"$error":"#VALUE!"}},200,{"$f":"FRCVSizer[[#This Row],[Pipe Size]]&\"\"\" \"&FRCVSizer[[#This Row],[Port Size]]&\" port\"","v":"2\" Medium port"},"No",null,"VGG10.504U",1,"2\" Single Valve Body, NPT",2,20,75,62.92,"Yes",1,"No",{"$f":"SQRT((SSOVSizer[[#This Row],[P2]]^2)+((2*$D$9*$D$10*SSOVSizer[[#This Row],[Combo train Calc Q (SCFH)]]^2)/(1360^2*SSOVSizer[[#This Row],[Cv]]^2)))","v":{"$error":"#N/A"}},{"$f":"(SSOVSizer[[#This Row],[P2]]-14.7)*$B$16+14.7","v":{"$error":"#VALUE!"}},{"$f":"VKGSelection[P2 for SSOV]","v":14.7},{"$f":"IF(SSOVSizer[[#This Row],[P2]]>$D$5,\"err P2>P1\",1360*SSOVSizer[[#This Row],[Cv]]*SQRT(($D$5+SSOVSizer[[#This Row],[P2]])/($D$9*$D$10))*SQRT(($D$5-SSOVSizer[[#This Row],[P2]])/2))","v":{"$error":"#N/A"}},{"$f":"1360*SSOVSizer[[#This Row],[Cv]]*SQRT((SSOVSizer[[#This Row],[P1 if Trad]]+SSOVSizer[[#This Row],[P2]])/($D$9*$D$10))*SQRT((SSOVSizer[[#This Row],[P1 if Trad]]-SSOVSizer[[#This Row],[P2]])/2)","v":{"$error":"#VALUE!"}},{"$f":"IF(Interface!$F$17=\"Comb\",SSOVSizer[[#This Row],[Combo train Calc Q (SCFH)]]-$D$15,IF(Interface!$F$17=\"Trad\",SSOVSizer[[#This Row],[Trad train Calc Q (SCFH)]]-$D$15,\"Train type not selected\"))","v":"Train type not selected"},null,{"$f":"IF(AND(SSOVSelection[1 or 2]=SSOVSizer[[#This Row],[2 valves or 1]],SSOVSelection[Bio Gas]=SSOVSizer[[#This Row],[Bio Gas?]],SSOVSelection[NEMA 4]=SSOVSizer[[#This Row],[NEMA 4?]],SSOVSizer[[#This Row],[Calc Q - Desired Q]]<0, SSOVSizer[[#This Row],[Max valve sizes]]=\"Max\"),\"Max\",IF(AND(SSOVSelection[1 or 2]=SSOVSizer[[#This Row],[2 valves or 1]],SSOVSelection[Bio Gas]=SSOVSizer[[#This Row],[Bio Gas?]],SSOVSelection[NEMA 4]=SSOVSizer[[#This Row],[NEMA 4?]]),SSOVSizer[[#This Row],[Calc Q - Desired Q]],\"\"))","v":""},{"$f":"SQRT(($D$5^2)-((2*$D$9*$D$10*$D$15^2)/(1360^2*SSOVSizer[[#This Row],[Cv]]^2)))","v":{"$error":"#N/A"}},"",null,null,null,null,null,null,null,null,null,null,null,null,null,null,"Trad",1,15,"NA","No",{"$f":"IF(AND(Actgttypelogic[[#This Row],[2nd Act Type]]=25,Actgttypelogic[[#This Row],[High Press]]=\"yes\"),\"Yes\",\"\")","v":""},{"$f":"IF(AND(Actgttypelogic[[#This Row],[2nd Act Type]]=25,Actgttypelogic[[#This Row],[High Press]]=\"yes\"),\"No\",\"\")","v":""}]
["Pressure upstream of SSOV ",{"$f":"SQRT((B33^2)+(2*$D$9*$D$10*$D$15^2)/(1360^2*B34^2))","v":{"$error":"#N/A"}},"PSIA",{"$f":"IFERROR(ROUND((Table52[[#This Row],[Value]]-14.7)*27.72,1),0)","v":0},"inWC",null,null,"VKG10.040U",1.5,"Full",12,100.08,{"$f":"IF($B$7<>0,SQRT(($D$6^2)+(2*$D$9*$D$10*$D$15^2)/(1360^2*FRCVSizer[[#This Row],[Cv]]^2)),\"NO VKG\")","v":"NO VKG"},{"$f":"FRCVSizer[[#This Row],[Theo P2 (PSIA)]]-14.7","v":{"$error":"#VALUE!"}},{"$f":"IF(Interface!$G$23=FRCVSizer[[#This Row],[Bio Gas?]],FRCVSizer[[#This Row],[Theo P2 (PSIG)]]-$B$8,\"\")","v":{"$error":"#VALUE!"}},150,{"$f":"FRCVSizer[[#This Row],[Pipe Size]]&\"\"\" \"&FRCVSizer[[#This Row],[Port Size]]&\" port\"","v":"1.5\" Full port"},"No",null,"VGG10.654U",1,"2.5\" Single Valve Body, NPT",2.5,10,25,91.69,"No",1,"No",{"$f":"SQRT((SSOVSizer[[#This Row],[P2]]^2)+((2*$D$9*$D$10*SSOVSizer[[#This Row],[Combo train Calc Q (SCFH)]]^2)/(1360^2*SSOVSizer[[#This Row],[Cv]]^2)))","v":{"$error":"#N/A"}},{"$f":"(SSOVSizer[[#This Row],[P2]]-14.7)*$B$16+14.7","v":{"$error":"#VALUE!"}},{"$f":"VKGSelection[P2 for SSOV]","v":14.7},{"$f":"IF(SSOVSizer[[#This Row],[P2]]>$D$5,\"err P2>P1\",1360*SSOVSizer[[#This Row],[Cv]]*SQRT(($D$5+SSOVSizer[[#This Row],[P2]])/($D$9*$D$10))*SQRT(($D$5-SSOVSizer[[#This Row],[P2]])/2))","v":{"$error":"#N/A"}},{"$f":"1360*SSOVSizer[[#This Row],[Cv]]*SQRT((SSOVSizer[[#This Row],[P1 if Trad]]+SSOVSizer[[#This Row],[P2]])/($D$9*$D$10))*SQRT((SSOVSizer[[#This Row],[P1 if Trad]]-SSOVSizer[[#This Row],[P2]])/2)","v":{"$error":"#VALUE!"}},{"$f":"IF(Interface!$F$17=\"Comb\",SSOVSizer[[#This Row],[Combo train Calc Q (SCFH)]]-$D$15,IF(Interface!$F$17=\"Trad\",SSOVSizer[[#This Row],[Trad train Calc Q (SCFH)]]-$D$15,\"Train type not selected\"))","v":"Train type not selected"},null,{"$f":"IF(AND(SSOVSelection[1 or 2]=SSOVSizer[[#This Row],[2 valves or 1]],SSOVSelection[Bio Gas]=SSOVSizer[[#This Row],[Bio Gas?]],SSOVSelection[NEMA 4]=SSOVSizer[[#This Row],[NEMA 4?]],SSOVSizer[[#This Row],[Calc Q - Desired Q]]<0, SSOVSizer[[#This Row],[Max valve sizes]]=\"Max\"),\"Max\",IF(AND(SSOVSelection[1 or 2]=SSOVSizer[[#This Row],[2 valves or 1]],SSOVSelection[Bio Gas]=SSOVSizer[[#This Row],[Bio Gas?]],SSOVSelection[NEMA 4]=SSOVSizer[[#This Row],[NEMA 4?]]),SSOVSizer[[#This Row],[Calc Q - Desired Q]],\"\"))","v":""},{"$f":"SQRT(($D$5^2)-((2*$D$9*$D$10*$D$15^2)/(1360^2*SSOVSizer[[#This Row],[Cv]]^2)))","v":{"$error":"#N/A"}},"",null,null,null,null,null,null,null,null,null,null,null,null,null,null,"Trad",2,15,15,"No",{"$f":"IF(AND(Actgttypelogic[[#This Row],[2nd Act Type]]=25,Actgttypelogic[[#This Row],[High Press]]=\"yes\"),\"Yes\",\"\")","v":""},{"$f":"IF(AND(Actgttypelogic[[#This Row],[2nd Act Type]]=25,Actgttypelogic[[#This Row],[High Press]]=\"yes\"),\"No\",\"\")","v":""}]
["Rec' regulator setting (Press US of SSOV +%10)",null,"PSIA",{"$f":"ROUND(D35*1.1,1)","v":0},"inWC",null,null,"VKG30.080U",3,"Reduced",13,147.28,{"$f":"IF($B$7<>0,SQRT(($D$6^2)+(2*$D$9*$D$10*$D$15^2)/(1360^2*FRCVSizer[[#This Row],[Cv]]^2)),\"NO VKG\")","v":"NO VKG"},{"$f":"FRCVSizer[[#This Row],[Theo P2 (PSIA)]]-14.7","v":{"$error":"#VALUE!"}},{"$f":"IF(Interface!$G$23=FRCVSizer[[#This Row],[Bio Gas?]],FRCVSizer[[#This Row],[Theo P2 (PSIG)]]-$B$8,\"\")","v":{"$error":"#VALUE!"}},300,{"$f":"FRCVSizer[[#This Row],[Pipe Size]]&\"\"\" \"&FRCVSizer[[#This Row],[Port Size]]&\" port\"","v":"3\" Reduced port"},"No",null,"VGG10.654U",1,"2.5\" Single Valve Body, NPT",2.5,10,25,91.69,"Yes",1,"No",{"$f":"SQRT((SSOVSizer[[#This Row],[P2]]^2)+((2*$D$9*$D$10*SSOVSizer[[#This Row],[Combo train Calc Q (SCFH)]]^2)/(1360^2*SSOVSizer[[#This Row],[Cv]]^2)))","v":{"$error":"#N/A"}},{"$f":"(SSOVSizer[[#This Row],[P2]]-14.7)*$B$16+14.7","v":{"$error":"#VALUE!"}},{"$f":"VKGSelection[P2 for SSOV]","v":14.7},{"$f":"IF(SSOVSizer[[#This Row],[P2]]>$D$5,\"err P2>P1\",1360*SSOVSizer[[#This Row],[Cv]]*SQRT(($D$5+SSOVSizer[[#This Row],[P2]])/($D$9*$D$10))*SQRT(($D$5-SSOVSizer[[#This Row],[P2]])/2))","v":{"$error":"#N/A"}},{"$f":"1360*SSOVSizer[[#This Row],[Cv]]*SQRT((SSOVSizer[[#This Row],[P1 if Trad]]+SSOVSizer[[#This Row],[P2]])/($D$9*$D$10))*SQRT((SSOVSizer[[#This Row],[P1 if Trad]]-SSOVSizer[[#This Row],[P2]])/2)","v":{"$error":"#VALUE!"}},{"$f":"IF(Interface!$F$17=\"Comb\",SSOVSizer[[#This Row],[Combo train Calc Q (SCFH)]]-$D$15,IF(Interface!$F$17=\"Trad\",SSOVSizer[[#This Row],[Trad train Calc Q (SCFH)]]-$D$15,\"Train type not selected\"))","v":"Train type not selected"},null,{"$f":"IF(AND(SSOVSelection[1 or 2]=SSOVSizer[[#This Row],[2 valves or 1]],SSOVSelection[Bio Gas]=SSOVSizer[[#This Row],[Bio Gas?]],SSOVSelection[NEMA 4]=SSOVSizer[[#This Row],[NEMA 4?]],SSOVSizer[[#This Row],[Calc Q - Desired Q]]<0, SSOVSizer[[#This Row],[Max valve sizes]]=\"Max\"),\"Max\",IF(AND(SSOVSelection[1 or 2]=SSOVSizer[[#This Row],[2 valves or 1]],SSOVSelection[Bio Gas]=SSOVSizer[[#This Row],[Bio Gas?]],SSOVSelection[NEMA 4]=SSOVSizer[[#This Row],[NEMA 4?]]),SSOVSizer[[#This Row],[Calc Q - Desired Q]],\"\"))","v":""},{"$f":"SQRT(($D$5^2)-((2*$D$9*$D$10*$D$15^2)/(1360^2*SSOVSizer[[#This Row],[Cv]]^2)))","v":{"$error":"#N/A"}},"",null,null,null,null,null,null,null,null,null,null,null,null,null,null,"Comb",1,25,"NA","No",{"$f":"IF(AND(Actgttypelogic[[#This Row],[2nd Act Type]]=25,Actgttypelogic[[#This Row],[High Press]]=\"yes\"),\"Yes\",\"\")","v":""},{"$f":"IF(AND(Actgttypelogic[[#This Row],[2nd Act Type]]=25,Actgttypelogic[[#This Row],[High Press]]=\"yes\"),\"No\",\"\")","v":""}]
[null,null,null,null,null,null,null,"VKG20.065U",2.5,"Medium",14,170.12,{"$f":"IF($B$7<>0,SQRT(($D$6^2)+(2*$D$9*$D$10*$D$15^2)/(1360^2*FRCVSizer[[#This Row],[Cv]]^2)),\"NO VKG\")","v":"NO VKG"},{"$f":"FRCVSizer[[#This Row],[Theo P2 (PSIA)]]-14.7","v":{"$error":"#VALUE!"}},{"$f":"IF(Interface!$G$23=FRCVSizer[[#This Row],[Bio Gas?]],FRCVSizer[[#This Row],[Theo P2 (PSIG)]]-$B$8,\"\")","v":{"$error":"#VALUE!"}},250,{"$f":"FRCVSizer[[#This Row],[Pipe Size]]&\"\"\" \"&FRCVSizer[[#This Row],[Port Size]]&\" port\"","v":"2.5\" Medium port"},"No",null,"VGG10.804U",1,"3\" Single Valve Body, NPT",3,10,25,113.78,"No",1,"No",{"$f":"SQRT((SSOVSizer[[#This Row],[P2]]^2)+((2*$D$9*$D$10*SSOVSizer[[#This Row],[Combo train Calc Q (SCFH)]]^2)/(1360^2*SSOVSizer[[#This Row],[Cv]]^2)))","v":{"$error":"#N/A"}},{"$f":"(SSOVSizer[[#This Row],[P2]]-14.7)*$B$16+14.7","v":{"$error":"#VALUE!"}},{"$f":"VKGSelection[P2 for SSOV]","v":14.7},{"$f":"IF(SSOVSizer[[#This Row],[P2]]>$D$5,\"err P2>P1\",1360*SSOVSizer[[#This Row],[Cv]]*SQRT(($D$5+SSOVSizer[[#This Row],[P2]])/($D$9*$D$10))*SQRT(($D$5-SSOVSizer[[#This Row],[P2]])/2))","v":{"$error":"#N/A"}},{"$f":"1360*SSOVSizer[[#This Row],[Cv]]*SQRT((SSOVSizer[[#This Row],[P1 if Trad]]+SSOVSizer[[#This Row],[P2]])/($D$9*$D$10))*SQRT((SSOVSizer[[#This Row],[P1 if Trad]]-SSOVSizer[[#This Row],[P2]])/2)","v":{"$error":"#VALUE!"}},{"$f":"IF(Interface!$F$17=\"Comb\",SSOVSizer[[#This Row],[Combo train Calc Q (SCFH)]]-$D$15,IF(Interface!$F$17=\"Trad\",SSOVSizer[[#This Row],[Trad train Calc Q (SCFH)]]-$D$15,\"Train type not selected\"))","v":"Train type not selected"},null,{"$f":"IF(AND(SSOVSelection[1 or 2]=SSOVSizer[[#This Row],[2 valves or 1]],SSOVSelection[Bio Gas]=SSOVSizer[[#This Row],[Bio Gas?]],SSOVSelection[NEMA 4]=SSOVSizer[[#This Row],[NEMA 4?]],SSOVSizer[[#This Row],[Calc Q - Desired Q]]<0, SSOVSizer[[#This Row],[Max valve sizes]]=\"Max\"),\"Max\",IF(AND(SSOVSelection[1 or 2]=SSOVSizer[[#This Row],[2 valves or 1]],SSOVSelection[Bio Gas]=SSOVSizer[[#This Row],[Bio Gas?]],SSOVSelection[NEMA 4]=SSOVSizer[[#This Row],[NEMA 4?]]),SSOVSizer[[#This Row],[Calc Q - Desired Q]],\"\"))","v":""},{"$f":"SQRT(($D$5^2)-((2*$D$9*$D$10*$D$15^2)/(1360^2*SSOVSizer[[#This Row],[Cv]]^2)))","v":{"$error":"#N/A"}},"",null,null,null,null,null,"Trad or comb","VKG",null,null,null,null,null,null,null,"Comb",2,25,15,"No",{"$f":"IF(AND(Actgttypelogic[[#This Row],[2nd Act Type]]=25,Actgttypelogic[[#This Row],[High Press]]=\"yes\"),\"Yes\",\"\")","v":""},{"$f":"IF(AND(Actgttypelogic[[#This Row],[2nd Act Type]]=25,Actgttypelogic[[#This Row],[High Press]]=\"yes\"),\"No\",\"\")","v":""}]
[null,null,null,null,null,null,null,"VKG10.050U",2,"Full",15,180.25,{"$f":"IF($B$7<>0,SQRT(($D$6^2)+(2*$D$9*$D$10*$D$15^2)/(1360^2*FRCVSizer[[#This Row],[Cv]]^2)),\"NO VKG\")","v":"NO VKG"},{"$f":"FRCVSizer[[#This Row],[Theo P2 (PSIA)]]-14.7","v":{"$error":"#VALUE!"}},{"$f":"IF(Interface!$G$23=FRCVSizer[[#This Row],[Bio Gas?]],FRCVSizer[[#This Row],[Theo P2 (PSIG)]]-$B$8,\"\")","v":{"$error":"#VALUE!"}},200,{"$f":"FRCVSizer[[#This Row],[Pipe Size]]&\"\"\" \"&FRCVSizer[[#This Row],[Port Size]]&\" port\"","v":"2\" Full port"},"No",null,"VGG10.804U",1,"3\" Single Valve Body, NPT",3,10,25,113.78,"Yes",1,"No",{"$f":"SQRT((SSOVSizer[[#This Row],[P2]]^2)+((2*$D$9*$D$10*SSOVSizer[[#This Row],[Combo train Calc Q (SCFH)]]^2)/(1360^2*SSOVSizer[[#This Row],[Cv]]^2)))","v":{"$error":"#N/A"}},{"$f":"(SSOVSizer[[#This Row],[P2]]-14.7)*$B$16+14.7","v":{"$error":"#VALUE!"}},{"$f":"VKGSelection[P2 for SSOV]","v":14.7},{"$f":"IF(SSOVSizer[[#This Row],[P2]]>$D$5,\"err P2>P1\",1360*SSOVSizer[[#This Row],[Cv]]*SQRT(($D$5+SSOVSizer[[#This Row],[P2]])/($D$9*$D$10))*SQRT(($D$5-SSOVSizer[[#This Row],[P2]])/2))","v":{"$error":"#N/A"}},{"$f":"1360*SSOVSizer[[#This Row],[Cv]]*SQRT((SSOVSizer[[#This Row],[P1 if Trad]]+SSOVSizer[[#This Row],[P2]])/($D$9*$D$10))*SQRT((SSOVSizer[[#This Row],[P1 if Trad]]-SSOVSizer[[#This Row],[P2]])/2)","v":{"$error":"#VALUE!"}},{"$f":"IF(Interface!$F$17=\"Comb\",SSOVSizer[[#This Row],[Combo train Calc Q (SCFH)]]-$D$15,IF(Interface!$F$17=\"Trad\",SSOVSizer[[#This Row],[Trad train Calc Q (SCFH)]]-$D$15,\"Train type not selected\"))","v":"Train type not selected"},null,{"$f":"IF(AND(SSOVSelection[1 or 2]=SSOVSizer[[#This Row],[2 valves or 1]],SSOVSelection[Bio Gas]=SSOVSizer[[#This Row],[Bio Gas?]],SSOVSelection[NEMA 4]=SSOVSizer[[#This Row],[NEMA 4?]],SSOVSizer[[#This Row],[Calc Q - Desired Q]]<0, SSOVSizer[[#This Row],[Max valve sizes]]=\"Max\"),\"Max\",IF(AND(SSOVSelection[1 or 2]=SSOVSizer[[#This Row],[2 valves or 1]],SSOVSelection[Bio Gas]=SSOVSizer[[#This Row],[Bio Gas?]],SSOVSelection[NEMA 4]=SSOVSizer[[#This Row],[NEMA 4?]]),SSOVSizer[[#This Row],[Calc Q - Desired Q]],\"\"))","v":""},{"$f":"SQRT(($D$5^2)-((2*$D$9*$D$10*$D$15^2)/(1360^2*SSOVSizer[[#This Row],[Cv]]^2)))","v":{"$error":"#N/A"}},"",null,null,null,null,null,"Trad","Yes","VKG Size"]
["Pressure differential check",null,null,null,null,null,null,"VKG30.100U",4,"Reduced",16,204.19,{"$f":"IF($B$7<>0,SQRT(($D$6^2)+(2*$D$9*$D$10*$D$15^2)/(1360^2*FRCVSizer[[#This Row],[Cv]]^2)),\"NO VKG\")","v":"NO VKG"},{"$f":"FRCVSizer[[#This Row],[Theo P2 (PSIA)]]-14.7","v":{"$error":"#VALUE!"}},{"$f":"IF(Interface!$G$23=FRCVSizer[[#This Row],[Bio Gas?]],FRCVSizer[[#This Row],[Theo P2 (PSIG)]]-$B$8,\"\")","v":{"$error":"#VALUE!"}},400,{"$f":"FRCVSizer[[#This Row],[Pipe Size]]&\"\"\" \"&FRCVSizer[[#This Row],[Port Size]]&\" port\"","v":"4\" Reduced port"},"No",null,"VGG10.804U",1,"3\" Single Valve Body, NPT",3,10,25,113.78,"No",1,"No",{"$f":"SQRT((SSOVSizer[[#This Row],[P2]]^2)+((2*$D$9*$D$10*SSOVSizer[[#This Row],[Combo train Calc Q (SCFH)]]^2)/(1360^2*SSOVSizer[[#This Row],[Cv]]^2)))","v":{"$error":"#N/A"}},{"$f":"(SSOVSizer[[#This Row],[P2]]-14.7)*$B$16+14.7","v":{"$error":"#VALUE!"}},{"$f":"VKGSelection[P2 for SSOV]","v":14.7},{"$f":"IF(SSOVSizer[[#This Row],[P2]]>$D$5,\"err P2>P1\",1360*SSOVSizer[[#This Row],[Cv]]*SQRT(($D$5+SSOVSizer[[#This Row],[P2]])/($D$9*$D$10))*SQRT(($D$5-SSOVSizer[[#This Row],[P2]])/2))","v":{"$error":"#N/A"}},{"$f":"1360*SSOVSizer[[#This Row],[Cv]]*SQRT((SSOVSizer[[#This Row],[P1 if Trad]]+SSOVSizer[[#This Row],[P2]])/($D$9*$D$10))*SQRT((SSOVSizer[[#This Row],[P1 if Trad]]-SSOVSizer[[#This Row],[P2]])/2)","v":{"$error":"#VALUE!"}},{"$f":"IF(Interface!$F$17=\"Comb\",SSOVSizer[[#This Row],[Combo train Calc Q (SCFH)]]-$D$15,IF(Interface!$F$17=\"Trad\",SSOVSizer[[#This Row],[Trad train Calc Q (SCFH)]]-$D$15,\"Train type not selected\"))","v":"Train type not selected"},"max",{"$f":"IF(AND(SSOVSelection[1 or 2]=SSOVSizer[[#This Row],[2 valves or 1]],SSOVSelection[Bio Gas]=SSOVSizer[[#This Row],[Bio Gas?]],SSOVSelection[NEMA 4]=SSOVSizer[[#This Row],[NEMA 4?]],SSOVSizer[[#This Row],[Calc Q - Desired Q]]<0, SSOVSizer[[#This Row],[Max valve sizes]]=\"Max\"),\"Max\",IF(AND(SSOVSelection[1 or 2]=SSOVSizer[[#This Row],[2 valves or 1]],SSOVSelection[Bio Gas]=SSOVSizer[[#This Row],[Bio Gas?]],SSOVSelection[NEMA 4]=SSOVSizer[[#This Row],[NEMA 4?]]),SSOVSizer[[#This Row],[Calc Q - Desired Q]],\"\"))","v":""},{"$f":"SQRT(($D$5^2)-((2*$D$9*$D$10*$D$15^2)/(1360^2*SSOVSizer[[#This Row],[Cv]]^2)))","v":{"$error":"#N/A"}},null,null,null,null,null,null,"Trad","No","SSOV Size",null,null,null,null,null,null,"Downstream Actuator Selection"]
[null,null,null,null,null,null,null,"VKG10.065U",2.5,"Full",17,254.54,{"$f":"IF($B$7<>0,SQRT(($D$6^2)+(2*$D$9*$D$10*$D$15^2)/(1360^2*FRCVSizer[[#This Row],[Cv]]^2)),\"NO VKG\")","v":"NO VKG"},{"$f":"FRCVSizer[[#This Row],[Theo P2 (PSIA)]]-14.7","v":{"$error":"#VALUE!"}},{"$f":"IF(Interface!$G$23=FRCVSizer[[#This Row],[Bio Gas?]],FRCVSizer[[#This Row],[Theo P2 (PSIG)]]-$B$8,\"\")","v":{"$error":"#VALUE!"}},250,{"$f":"FRCVSizer[[#This Row],[Pipe Size]]&\"\"\" \"&FRCVSizer[[#This Row],[Port Size]]&\" port\"","v":"2.5\" Full port"},"No",null,"VGG10.804U",1,"3\" Single Valve Body, NPT",3,10,25,113.78,"Yes",1,"No",{"$f":"SQRT((SSOVSizer[[#This Row],[P2]]^2)+((2*$D$9*$D$10*SSOVSizer[[#This Row],[Combo train Calc Q (SCFH)]]^2)/(1360^2*SSOVSizer[[#This Row],[Cv]]^2)))","v":{"$error":"#N/A"}},{"$f":"(SSOVSizer[[#This Row],[P2]]-14.7)*$B$16+14.7","v":{"$error":"#VALUE!"}},{"$f":"VKGSelection[P2 for SSOV]","v":14.7},{"$f":"IF(SSOVSizer[[#This Row],[P2]]>$D$5,\"err P2>P1\",1360*SSOVSizer[[#This Row],[Cv]]*SQRT(($D$5+SSOVSizer[[#This Row],[P2]])/($D$9*$D$10))*SQRT(($D$5-SSOVSizer[[#This Row],[P2]])/2))","v":{"$error":"#N/A"}},{"$f":"1360*SSOVSizer[[#This Row],[Cv]]*SQRT((SSOVSizer[[#This Row],[P1 if Trad]]+SSOVSizer[[#This Row],[P2]])/($D$9*$D$10))*SQRT((SSOVSizer[[#This Row],[P1 if Trad]]-SSOVSizer[[#This Row],[P2]])/2)","v":{"$error":"#VALUE!"}},{"$f":"IF(Interface!$F$17=\"Comb\",SSOVSizer[[#This Row],[Combo train Calc Q (SCFH)]]-$D$15,IF(Interface!$F$17=\"Trad\",SSOVSizer[[#This Row],[Trad train Calc Q (SCFH)]]-$D$15,\"Train type not selected\"))","v":"Train type not selected"},"max",{"$f":"IF(AND(SSOVSelection[1 or 2]=SSOVSizer[[#This Row],[2 valves or 1]],SSOVSelection[Bio Gas]=SSOVSizer[[#This Row],[Bio Gas?]],SSOVSelection[NEMA 4]=SSOVSizer[[#This Row],[NEMA 4?]],SSOVSizer[[#This Row],[Calc Q - Desired Q]]<0, SSOVSizer[[#This Row],[Max valve sizes]]=\"Max\"),\"Max\",IF(AND(SSOVSelection[1 or 2]=SSOVSizer[[#This Row],[2 valves or 1]],SSOVSelection[Bio Gas]=SSOVSizer[[#This Row],[Bio Gas?]],SSOVSelection[NEMA 4]=SSOVSizer[[#This Row],[NEMA 4?]]),SSOVSizer[[#This Row],[Calc Q - Desired Q]],\"\"))","v":""},{"$f":"SQRT(($D$5^2)-((2*$D$9*$D$10*$D$15^2)/(1360^2*SSOVSizer[[#This Row],[Cv]]^2)))","v":{"$error":"#N/A"}},null,null,null,null,null,null,"Comb","Yes","Max of Min SP and VKG Size",null,null,null,null,null,null,"Part #","2nd Act type","GT Type","# Acts","Voltage","Does HP force POC?","2nd Act POC","HP No Aux?","Aux","High outlet Press"]
["Bottom Range (PSIG)","Top Range (PSIG)","Turn down ","DP (Ps-Pb) (PSIG)","is selected TD in range?",null,null,"VKG20.080U",3,"Medium",18,275.17,{"$f":"IF($B$7<>0,SQRT(($D$6^2)+(2*$D$9*$D$10*$D$15^2)/(1360^2*FRCVSizer[[#This Row],[Cv]]^2)),\"NO VKG\")","v":"NO VKG"},{"$f":"FRCVSizer[[#This Row],[Theo P2 (PSIA)]]-14.7","v":{"$error":"#VALUE!"}},{"$f":"IF(Interface!$G$23=FRCVSizer[[#This Row],[Bio Gas?]],FRCVSizer[[#This Row],[Theo P2 (PSIG)]]-$B$8,\"\")","v":{"$error":"#VALUE!"}},300,{"$f":"FRCVSizer[[#This Row],[Pipe Size]]&\"\"\" \"&FRCVSizer[[#This Row],[Port Size]]&\" port\"","v":"3\" Medium port"},"No",null,"VRD40.040U",1,"1.5\" Double Valve Body, NPT - Gas + Biogas",1.5,20,75,33.4,"No",2,"Yes",{"$f":"SQRT((SSOVSizer[[#This Row],[P2]]^2)+((2*$D$9*$D$10*SSOVSizer[[#This Row],[Combo train Calc Q (SCFH)]]^2)/(1360^2*SSOVSizer[[#This Row],[Cv]]^2)))","v":{"$error":"#N/A"}},{"$f":"(SSOVSizer[[#This Row],[P2]]-14.7)*$B$16+14.7","v":{"$error":"#VALUE!"}},{"$f":"VKGSelection[P2 for SSOV]","v":14.7},{"$f":"IF(SSOVSizer[[#This Row],[P2]]>$D$5,\"err P2>P1\",1360*SSOVSizer[[#This Row],[Cv]]*SQRT(($D$5+SSOVSizer[[#This Row],[P2]])/($D$9*$D$10))*SQRT(($D$5-SSOVSizer[[#This Row],[P2]])/2))","v":{"$error":"#N/A"}},{"$f":"1360*SSOVSizer[[#This Row],[Cv]]*SQRT((SSOVSizer[[#This Row],[P1 if Trad]]+SSOVSizer[[#This Row],[P2]])/($D$9*$D$10))*SQRT((SSOVSizer[[#This Row],[P1 if Trad]]-SSOVSizer[[#This Row],[P2]])/2)","v":{"$error":"#VALUE!"}},{"$f":"IF(Interface!$F$17=\"Comb\",SSOVSizer[[#This Row],[Combo train Calc Q (SCFH)]]-$D$15,IF(Interface!$F$17=\"Trad\",SSOVSizer[[#This Row],[Trad train Calc Q (SCFH)]]-$D$15,\"Train type not selected\"))","v":"Train type not selected"},null,{"$f":"IF(AND(SSOVSelection[1 or 2]=SSOVSizer[[#This Row],[2 valves or 1]],SSOVSelection[Bio Gas]=SSOVSizer[[#This Row],[Bio Gas?]],SSOVSelection[NEMA 4]=SSOVSizer[[#This Row],[NEMA 4?]],SSOVSizer[[#This Row],[Calc Q - Desired Q]]<0, SSOVSizer[[#This Row],[Max valve sizes]]=\"Max\"),\"Max\",IF(AND(SSOVSelection[1 or 2]=SSOVSizer[[#This Row],[2 valves or 1]],SSOVSelection[Bio Gas]=SSOVSizer[[#This Row],[Bio Gas?]],SSOVSelection[NEMA 4]=SSOVSizer[[#This Row],[NEMA 4?]]),SSOVSizer[[#This Row],[Calc Q - Desired Q]],\"\"))","v":""},{"$f":"SQRT(($D$5^2)-((2*$D$9*$D$10*$D$15^2)/(1360^2*SSOVSizer[[#This Row],[Cv]]^2)))","v":{"$error":"#N/A"}},"AGA40.4050U",null,null,null,null,null,"Comb","No","Min SP",null,null,null,null,null,null,{"$f":"INDEX(ActSizer[#Data],MATCH(Act2Select[2nd Act type]&Act2Select[Voltage]&Act2Select[2nd Act POC]&Act2Select[Aux]&Act2Select[High outlet Press],ActSizer[Act Type]&ActSizer[Voltage]&ActSizer[POC]&ActSizer[Aux]&ActSizer[High Outlet Press],0),MATCH(ActSizer[[#Headers],[Part '#]],ActSizer[#Headers],0))","v":{"$error":"#N/A"}},{"$f":"INDEX(Actgttypelogic[#Data],MATCH(Act2Select[GT Type]&Act2Select['# Acts],Actgttypelogic[GT Type]&Actgttypelogic['# of SSOV''s],0),MATCH(\"2nd ACT Type\",Actgttypelogic[#Headers],0))","v":{"$error":"#N/A"}},{"$f":"Interface!F17","v":0},{"$f":"Interface!F18","v":0},{"$f":"Interface!F52","v":0},{"$f":"INDEX(Actgttypelogic[#Data],MATCH(Act2Select[GT Type]&Act2Select['# Acts]&Act2Select[High outlet Press],Actgttypelogic[GT Type]&Actgttypelogic['# of SSOV''s]&Actgttypelogic[High Press],0),MATCH(Actgttypelogic[[#Headers],[2nd Act POC]],Actgttypelogic[#Headers],0))","v":{"$error":"#N/A"}},{"$f":"IF(OR(\nLEFT(Interface!F50,3)=\"POC\",\nLEFT(Interface!F51,3)=\"POC\",\nAct2Select[Aux]=\"Yes\"),\"Yes\",\"No\")","v":{"$error":"#N/A"}},{"$f":"INDEX(Actgttypelogic[#Data],MATCH(Act2Select[GT Type]&Act2Select['# Acts]&Act2Select[High outlet Press],Actgttypelogic[GT Type]&Actgttypelogic['# of SSOV''s]&Actgttypelogic[High Press],0),MATCH(Actgttypelogic[[#Headers],[2nd Act Aux]],Actgttypelogic[#Headers],0))","v":{"$error":"#N/A"}},{"$f":"IF(Act2Select[HP No Aux?]<>\"\",Act2Select[HP No Aux?],IF(OR(\nRIGHT(Interface!F50,1)=\"h\",\nRIGHT(Interface!F51,1)=\"h\"),\"Yes\",\"No\"))","v":{"$error":"#N/A"}},{"$f":"IF(AND(B6>=3.5,Act2Select[2nd Act type]=25),\"Yes\",\"No\")","v":{"$error":"#N/A"}}]
[7,10,"10:1 or less",{"$f":"$B$3-$B$6","v":0},{"$f":"IF(TDCheck[[#This Row],[DP (Ps-Pb) (PSIG)]]<=TDCheck[[#This Row],[Top Range (PSIG)]],\"Yes\",\"No\")","v":"Yes"},null,null,"VKG20.100U",4,"Medium",19,430.73,{"$f":"IF($B$7<>0,SQRT(($D$6^2)+(2*$D$9*$D$10*$D$15^2)/(1360^2*FRCVSizer[[#This Row],[Cv]]^2)),\"NO VKG\")","v":"NO VKG"},{"$f":"FRCVSizer[[#This Row],[Theo P2 (PSIA)]]-14.7","v":{"$error":"#VALUE!"}},{"$f":"IF(Interface!$G$23=FRCVSizer[[#This Row],[Bio Gas?]],FRCVSizer[[#This Row],[Theo P2 (PSIG)]]-$B$8,\"\")","v":{"$error":"#VALUE!"}},400,{"$f":"FRCVSizer[[#This Row],[Pipe Size]]&\"\"\" \"&FRCVSizer[[#This Row],[Port Size]]&\" port\"","v":"4\" Medium port"},"No",null,"VRD40.040U",1,"1.5\" Double Valve Body, NPT - Gas + Biogas",1.5,20,75,33.4,"Yes",2,"Yes",{"$f":"SQRT((SSOVSizer[[#This Row],[P2]]^2)+((2*$D$9*$D$10*SSOVSizer[[#This Row],[Combo train Calc Q (SCFH)]]^2)/(1360^2*SSOVSizer[[#This Row],[Cv]]^2)))","v":{"$error":"#N/A"}},{"$f":"(SSOVSizer[[#This Row],[P2]]-14.7)*$B$16+14.7","v":{"$error":"#VALUE!"}},{"$f":"VKGSelection[P2 for SSOV]","v":14.7},{"$f":"IF(SSOVSizer[[#This Row],[P2]]>$D$5,\"err P2>P1\",1360*SSOVSizer[[#This Row],[Cv]]*SQRT(($D$5+SSOVSizer[[#This Row],[P2]])/($D$9*$D$10))*SQRT(($D$5-SSOVSizer[[#This Row],[P2]])/2))","v":{"$error":"#N/A"}},{"$f":"1360*SSOVSizer[[#This Row],[Cv]]*SQRT((SSOVSizer[[#This Row],[P1 if Trad]]+SSOVSizer[[#This Row],[P2]])/($D$9*$D$10))*SQRT((SSOVSizer[[#This Row],[P1 if Trad]]-SSOVSizer[[#This Row],[P2]])/2)","v":{"$error":"#VALUE!"}},{"$f":"IF(Interface!$F$17=\"Comb\",SSOVSizer[[#This Row],[Combo train Calc Q (SCFH)]]-$D$15,IF(Interface!$F$17=\"Trad\",SSOVSizer[[#This Row],[Trad train Calc Q (SCFH)]]-$D$15,\"Train type not selected\"))","v":"Train type not selected"},null,{"$f":"IF(AND(SSOVSelection[1 or 2]=SSOVSizer[[#This Row],[2 valves or 1]],SSOVSelection[Bio Gas]=SSOVSizer[[#This Row],[Bio Gas?]],SSOVSelection[NEMA 4]=SSOVSizer[[#This Row],[NEMA 4?]],SSOVSizer[[#This Row],[Calc Q - Desired Q]]<0, SSOVSizer[[#This Row],[Max valve sizes]]=\"Max\"),\"Max\",IF(AND(SSOVSelection[1 or 2]=SSOVSizer[[#This Row],[2 valves or 1]],SSOVSelection[Bio Gas]=SSOVSizer[[#This Row],[Bio Gas?]],SSOVSelection[NEMA 4]=SSOVSizer[[#This Row],[NEMA 4?]]),SSOVSizer[[#This Row],[Calc Q - Desired Q]],\"\"))","v":""},{"$f":"SQRT(($D$5^2)-((2*$D$9*$D$10*$D$15^2)/(1360^2*SSOVSizer[[#This Row],[Cv]]^2)))","v":{"$error":"#N/A"}},"AGA40.4050U"]
[5,7,"15:1 or less",{"$f":"$B$3-$B$6","v":0},{"$f":"IF(TDCheck[[#This Row],[DP (Ps-Pb) (PSIG)]]<=TDCheck[[#This Row],[Top Range (PSIG)]],\"Yes\",\"No\")","v":"Yes"},null,null,"VKG10.080U",3,"Full",20,438.13,{"$f":"IF($B$7<>0,SQRT(($D$6^2)+(2*$D$9*$D$10*$D$15^2)/(1360^2*FRCVSizer[[#This Row],[Cv]]^2)),\"NO VKG\")","v":"NO VKG"},{"$f":"FRCVSizer[[#This Row],[Theo P2 (PSIA)]]-14.7","v":{"$error":"#VALUE!"}},{"$f":"IF(Interface!$G$23=FRCVSizer[[#This Row],[Bio Gas?]],FRCVSizer[[#This Row],[Theo P2 (PSIG)]]-$B$8,\"\")","v":{"$error":"#VALUE!"}},300,{"$f":"FRCVSizer[[#This Row],[Pipe Size]]&\"\"\" \"&FRCVSizer[[#This Row],[Port Size]]&\" port\"","v":"3\" Full port"},"No",null,"VRD40.050U",1,"2\" Double Valve Body, NPT - Gas + Biogas",2,20,75,42.68,"No",2,"Yes",{"$f":"SQRT((SSOVSizer[[#This Row],[P2]]^2)+((2*$D$9*$D$10*SSOVSizer[[#This Row],[Combo train Calc Q (SCFH)]]^2)/(1360^2*SSOVSizer[[#This Row],[Cv]]^2)))","v":{"$error":"#N/A"}},{"$f":"(SSOVSizer[[#This Row],[P2]]-14.7)*$B$16+14.7","v":{"$error":"#VALUE!"}},{"$f":"VKGSelection[P2 for SSOV]","v":14.7},{"$f":"IF(SSOVSizer[[#This Row],[P2]]>$D$5,\"err P2>P1\",1360*SSOVSizer[[#This Row],[Cv]]*SQRT(($D$5+SSOVSizer[[#This Row],[P2]])/($D$9*$D$10))*SQRT(($D$5-SSOVSizer[[#This Row],[P2]])/2))","v":{"$error":"#N/A"}},{"$f":"1360*SSOVSizer[[#This Row],[Cv]]*SQRT((SSOVSizer[[#This Row],[P1 if Trad]]+SSOVSizer[[#This Row],[P2]])/($D$9*$D$10))*SQRT((SSOVSizer[[#This Row],[P1 if Trad]]-SSOVSizer[[#This Row],[P2]])/2)","v":{"$error":"#VALUE!"}},{"$f":"IF(Interface!$F$17=\"Comb\",SSOVSizer[[#This Row],[Combo train Calc Q (SCFH)]]-$D$15,IF(Interface!$F$17=\"Trad\",SSOVSizer[[#This Row],[Trad train Calc Q (SCFH)]]-$D$15,\"Train type not selected\"))","v":"Train type not selected"},null,{"$f":"IF(AND(SSOVSelection[1 or 2]=SSOVSizer[[#This Row],[2 valves or 1]],SSOVSelection[Bio Gas]=SSOVSizer[[#This Row],[Bio Gas?]],SSOVSelection[NEMA 4]=SSOVSizer[[#This Row],[NEMA 4?]],SSOVSizer[[#This Row],[Calc Q - Desired Q]]<0, SSOVSizer[[#This Row],[Max valve sizes]]=\"Max\"),\"Max\",IF(AND(SSOVSelection[1 or 2]=SSOVSizer[[#This Row],[2 valves or 1]],SSOVSelection[Bio Gas]=SSOVSizer[[#This Row],[Bio Gas?]],SSOVSelection[NEMA 4]=SSOVSizer[[#This Row],[NEMA 4?]]),SSOVSizer[[#This Row],[Calc Q - Desired Q]],\"\"))","v":""},{"$f":"SQRT(($D$5^2)-((2*$D$9*$D$10*$D$15^2)/(1360^2*SSOVSizer[[#This Row],[Cv]]^2)))","v":{"$error":"#N/A"}},"AGA40.4050U",null,null,null,null,null,null,null,null,null,null,null,null,null,null,"Upstream Actuator Selection"]
[1,5,"30:1 or less",{"$f":"$B$3-$B$6","v":0},{"$f":"IF(TDCheck[[#This Row],[DP (Ps-Pb) (PSIG)]]<=TDCheck[[#This Row],[Top Range (PSIG)]],\"Yes\",\"No\")","v":"Yes"},null,null,"VKG10.100U",4,"Full",21,828.21,{"$f":"IF($B$7<>0,SQRT(($D$6^2)+(2*$D$9*$D$10*$D$15^2)/(1360^2*FRCVSizer[[#This Row],[Cv]]^2)),\"NO VKG\")","v":"NO VKG"},{"$f":"FRCVSizer[[#This Row],[Theo P2 (PSIA)]]-14.7","v":{"$error":"#VALUE!"}},{"$f":"IF(Interface!$G$23=FRCVSizer[[#This Row],[Bio Gas?]],FRCVSizer[[#This Row],[Theo P2 (PSIG)]]-$B$8,\"\")","v":{"$error":"#VALUE!"}},400,{"$f":"FRCVSizer[[#This Row],[Pipe Size]]&\"\"\" \"&FRCVSizer[[#This Row],[Port Size]]&\" port\"","v":"4\" Full port"},"No",null,"VRD40.050U",1,"2\" Double Valve Body, NPT - Gas + Biogas",2,20,75,42.68,"Yes",2,"Yes",{"$f":"SQRT((SSOVSizer[[#This Row],[P2]]^2)+((2*$D$9*$D$10*SSOVSizer[[#This Row],[Combo train Calc Q (SCFH)]]^2)/(1360^2*SSOVSizer[[#This Row],[Cv]]^2)))","v":{"$error":"#N/A"}},{"$f":"(SSOVSizer[[#This Row],[P2]]-14.7)*$B$16+14.7","v":{"$error":"#VALUE!"}},{"$f":"VKGSelection[P2 for SSOV]","v":14.7},{"$f":"IF(SSOVSizer[[#This Row],[P2]]>$D$5,\"err P2>P1\",1360*SSOVSizer[[#This Row],[Cv]]*SQRT(($D$5+SSOVSizer[[#This Row],[P2]])/($D$9*$D$10))*SQRT(($D$5-SSOVSizer[[#This Row],[P2]])/2))","v":{"$error":"#N/A"}},{"$f":"1360*SSOVSizer[[#This Row],[Cv]]*SQRT((SSOVSizer[[#This Row],[P1 if Trad]]+SSOVSizer[[#This Row],[P2]])/($D$9*$D$10))*SQRT((SSOVSizer[[#This Row],[P1 if Trad]]-SSOVSizer[[#This Row],[P2]])/2)","v":{"$error":"#VALUE!"}},{"$f":"IF(Interface!$F$17=\"Comb\",SSOVSizer[[#This Row],[Combo train Calc Q (SCFH)]]-$D$15,IF(Interface!$F$17=\"Trad\",SSOVSizer[[#This Row],[Trad train Calc Q (SCFH)]]-$D$15,\"Train type not selected\"))","v":"Train type not selected"},null,{"$f":"IF(AND(SSOVSelection[1 or 2]=SSOVSizer[[#This Row],[2 valves or 1]],SSOVSelection[Bio Gas]=SSOVSizer[[#This Row],[Bio Gas?]],SSOVSelection[NEMA 4]=SSOVSizer[[#This Row],[NEMA 4?]],SSOVSizer[[#This Row],[Calc Q - Desired Q]]<0, SSOVSizer[[#This Row],[Max valve sizes]]=\"Max\"),\"Max\",IF(AND(SSOVSelection[1 or 2]=SSOVSizer[[#This Row],[2 valves or 1]],SSOVSelection[Bio Gas]=SSOVSizer[[#This Row],[Bio Gas?]],SSOVSelection[NEMA 4]=SSOVSizer[[#This Row],[NEMA 4?]]),SSOVSizer[[#This Row],[Calc Q - Desired Q]],\"\"))","v":""},{"$f":"SQRT(($D$5^2)-((2*$D$9*$D$10*$D$15^2)/(1360^2*SSOVSizer[[#This Row],[Cv]]^2)))","v":{"$error":"#N/A"}},"AGA40.4050U",null,null,null,null,null,null,null,null,null,null,null,null,null,null,"Part #","1st Act type","GT Type","# Acts","Voltage","1st Act POC","Aux","High outlet Press"]
[0,1,"Greater than 30:1",{"$f":"$B$3-$B$6","v":0},{"$f":"IF(TDCheck[[#This Row],[DP (Ps-Pb) (PSIG)]]<=TDCheck[[#This Row],[Top Range (PSIG)]],\"Yes\",\"No\")","v":"Yes"},null,null,null,null,null,null,null,null,null,null,null,null,null,null,"VRD40.065UF",1,"2.5\" Double Valve Body, Flanged - Gas + Biogas",2.5,10,75,72.62,"No",2,"Yes",{"$f":"SQRT((SSOVSizer[[#This Row],[P2]]^2)+((2*$D$9*$D$10*SSOVSizer[[#This Row],[Combo train Calc Q (SCFH)]]^2)/(1360^2*SSOVSizer[[#This Row],[Cv]]^2)))","v":{"$error":"#N/A"}},{"$f":"(SSOVSizer[[#This Row],[P2]]-14.7)*$B$16+14.7","v":{"$error":"#VALUE!"}},{"$f":"VKGSelection[P2 for SSOV]","v":14.7},{"$f":"IF(SSOVSizer[[#This Row],[P2]]>$D$5,\"err P2>P1\",1360*SSOVSizer[[#This Row],[Cv]]*SQRT(($D$5+SSOVSizer[[#This Row],[P2]])/($D$9*$D$10))*SQRT(($D$5-SSOVSizer[[#This Row],[P2]])/2))","v":{"$error":"#N/A"}},{"$f":"1360*SSOVSizer[[#This Row],[Cv]]*SQRT((SSOVSizer[[#This Row],[P1 if Trad]]+SSOVSizer[[#This Row],[P2]])/($D$9*$D$10))*SQRT((SSOVSizer[[#This Row],[P1 if Trad]]-SSOVSizer[[#This Row],[P2]])/2)","v":{"$error":"#VALUE!"}},{"$f":"IF(Interface!$F$17=\"Comb\",SSOVSizer[[#This Row],[Combo train Calc Q (SCFH)]]-$D$15,IF(Interface!$F$17=\"Trad\",SSOVSizer[[#This Row],[Trad train Calc Q (SCFH)]]-$D$15,\"Train type not selected\"))","v":"Train type not selected"},null,{"$f":"IF(AND(SSOVSelection[1 or 2]=SSOVSizer[[#This Row],[2 valves or 1]],SSOVSelection[Bio Gas]=SSOVSizer[[#This Row],[Bio Gas?]],SSOVSelection[NEMA 4]=SSOVSizer[[#This Row],[NEMA 4?]],SSOVSizer[[#This Row],[Calc Q - Desired Q]]<0, SSOVSizer[[#This Row],[Max valve sizes]]=\"Max\"),\"Max\",IF(AND(SSOVSelection[1 or 2]=SSOVSizer[[#This Row],[2 valves or 1]],SSOVSelection[Bio Gas]=SSOVSizer[[#This Row],[Bio Gas?]],SSOVSelection[NEMA 4]=SSOVSizer[[#This Row],[NEMA 4?]]),SSOVSizer[[#This Row],[Calc Q - Desired Q]],\"\"))","v":""},{"$f":"SQRT(($D$5^2)-((2*$D$9*$D$10*$D$15^2)/(1360^2*SSOVSizer[[#This Row],[Cv]]^2)))","v":{"$error":"#N/A"}},"AGA40.6580U",null,null,null,null,null,null,null,null,null,null,null,null,null,null,{"$f":"IFERROR(INDEX(ActSizer[#Data],MATCH(Act1Select[1st Act type]&Act1Select[Voltage]&Act1Select[1st Act POC]&Act1Select[Aux]&Act1Select[High outlet Press],ActSizer[Act Type]&ActSizer[Voltage]&ActSizer[POC]&ActSizer[Aux]&ActSizer[High Outlet Press],0),MATCH(ActSizer[[#Headers],[Part '#]],ActSizer[#Headers],0)),\"\")","v":""},{"$f":"INDEX(Actgttypelogic[#Data],MATCH(Act1Select[GT Type]&Act1Select['# Acts],Actgttypelogic[GT Type]&Actgttypelogic['# of SSOV''s],0),MATCH(\"1st ACT Type\",Actgttypelogic[#Headers],0))","v":{"$error":"#N/A"}},{"$f":"Interface!F17","v":0},{"$f":"Interface!F18","v":0},{"$f":"Interface!F52","v":0},{"$f":"IF(OR(\nLEFT(Interface!F49,3)=\"POC\",\nAct1Select[Aux]=\"Yes\"),\"Yes\",\"No\")","v":"No"},{"$f":"IF(\nRIGHT(Interface!F49,1)=\"h\",\n\"Yes\",\"No\")","v":"No"},{"$f":"IF(AND(B6>=1.5,Act1Select[1st Act type]=25),\"Yes\",\"No\")","v":{"$error":"#N/A"}}]
[null,null,null,null,null,null,null,"Optimized VKG Selection:",null,null,null,null,null,null,null,null,null,null,null,"VRD40.065UF",1,"2.5\" Double Valve Body, Flanged - Gas + Biogas",2.5,10,75,72.62,"Yes",2,"Yes",{"$f":"SQRT((SSOVSizer[[#This Row],[P2]]^2)+((2*$D$9*$D$10*SSOVSizer[[#This Row],[Combo train Calc Q (SCFH)]]^2)/(1360^2*SSOVSizer[[#This Row],[Cv]]^2)))","v":{"$error":"#N/A"}},{"$f":"(SSOVSizer[[#This Row],[P2]]-14.7)*$B$16+14.7","v":{"$error":"#VALUE!"}},{"$f":"VKGSelection[P2 for SSOV]","v":14.7},{"$f":"IF(SSOVSizer[[#This Row],[P2]]>$D$5,\"err P2>P1\",1360*SSOVSizer[[#This Row],[Cv]]*SQRT(($D$5+SSOVSizer[[#This Row],[P2]])/($D$9*$D$10))*SQRT(($D$5-SSOVSizer[[#This Row],[P2]])/2))","v":{"$error":"#N/A"}},{"$f":"1360*SSOVSizer[[#This Row],[Cv]]*SQRT((SSOVSizer[[#This Row],[P1 if Trad]]+SSOVSizer[[#This Row],[P2]])/($D$9*$D$10))*SQRT((SSOVSizer[[#This Row],[P1 if Trad]]-SSOVSizer[[#This Row],[P2]])/2)","v":{"$error":"#VALUE!"}},{"$f":"IF(Interface!$F$17=\"Comb\",SSOVSizer[[#This Row],[Combo train Calc Q (SCFH)]]-$D$15,IF(Interface!$F$17=\"Trad\",SSOVSizer[[#This Row],[Trad train Calc Q (SCFH)]]-$D$15,\"Train type not selected\"))","v":"Train type not selected"},null,{"$f":"IF(AND(SSOVSelection[1 or 2]=SSOVSizer[[#This Row],[2 valves or 1]],SSOVSelection[Bio Gas]=SSOVSizer[[#This Row],[Bio Gas?]],SSOVSelection[NEMA 4]=SSOVSizer[[#This Row],[NEMA 4?]],SSOVSizer[[#This Row],[Calc Q - Desired Q]]<0, SSOVSizer[[#This Row],[Max valve sizes]]=\"Max\"),\"Max\",IF(AND(SSOVSelection[1 or 2]=SSOVSizer[[#This Row],[2 valves or 1]],SSOVSelection[Bio Gas]=SSOVSizer[[#This Row],[Bio Gas?]],SSOVSelection[NEMA 4]=SSOVSizer[[#This Row],[NEMA 4?]]),SSOVSizer[[#This Row],[Calc Q - Desired Q]],\"\"))","v":""},{"$f":"SQRT(($D$5^2)-((2*$D$9*$D$10*$D$15^2)/(1360^2*SSOVSizer[[#This Row],[Cv]]^2)))","v":{"$error":"#N/A"}},"AGA40.6580U"]
[null,null,null,null,null,null,null,"Part #","P2 Optimize","Cv Rank","P2 for SSOV","Bio Gas?",null,null,null,null,null,null,null,"VRD40.080UF",1,"3\" Double Valve Body, Flanged - Gas + Biogas",3,10,75,105.06,"No",2,"Yes",{"$f":"SQRT((SSOVSizer[[#This Row],[P2]]^2)+((2*$D$9*$D$10*SSOVSizer[[#This Row],[Combo train Calc Q (SCFH)]]^2)/(1360^2*SSOVSizer[[#This Row],[Cv]]^2)))","v":{"$error":"#N/A"}},{"$f":"(SSOVSizer[[#This Row],[P2]]-14.7)*$B$16+14.7","v":{"$error":"#VALUE!"}},{"$f":"VKGSelection[P2 for SSOV]","v":14.7},{"$f":"IF(SSOVSizer[[#This Row],[P2]]>$D$5,\"err P2>P1\",1360*SSOVSizer[[#This Row],[Cv]]*SQRT(($D$5+SSOVSizer[[#This Row],[P2]])/($D$9*$D$10))*SQRT(($D$5-SSOVSizer[[#This Row],[P2]])/2))","v":{"$error":"#N/A"}},{"$f":"1360*SSOVSizer[[#This Row],[Cv]]*SQRT((SSOVSizer[[#This Row],[P1 if Trad]]+SSOVSizer[[#This Row],[P2]])/($D$9*$D$10))*SQRT((SSOVSizer[[#This Row],[P1 if Trad]]-SSOVSizer[[#This Row],[P2]])/2)","v":{"$error":"#VALUE!"}},{"$f":"IF(Interface!$F$17=\"Comb\",SSOVSizer[[#This Row],[Combo train Calc Q (SCFH)]]-$D$15,IF(Interface!$F$17=\"Trad\",SSOVSizer[[#This Row],[Trad train Calc Q (SCFH)]]-$D$15,\"Train type not selected\"))","v":"Train type not selected"},null,{"$f":"IF(AND(SSOVSelection[1 or 2]=SSOVSizer[[#This Row],[2 valves or 1]],SSOVSelection[Bio Gas]=SSOVSizer[[#This Row],[Bio Gas?]],SSOVSelection[NEMA 4]=SSOVSizer[[#This Row],[NEMA 4?]],SSOVSizer[[#This Row],[Calc Q - Desired Q]]<0, SSOVSizer[[#This Row],[Max valve sizes]]=\"Max\"),\"Max\",IF(AND(SSOVSelection[1 or 2]=SSOVSizer[[#This Row],[2 valves or 1]],SSOVSelection[Bio Gas]=SSOVSizer[[#This Row],[Bio Gas?]],SSOVSelection[NEMA 4]=SSOVSizer[[#This Row],[NEMA 4?]]),SSOVSizer[[#This Row],[Calc Q - Desired Q]],\"\"))","v":""},{"$f":"SQRT(($D$5^2)-((2*$D$9*$D$10*$D$15^2)/(1360^2*SSOVSizer[[#This Row],[Cv]]^2)))","v":{"$error":"#N/A"}},"AGA40.6580U"]
["Data for Diagrams",null,null,null,null,null,null,{"$f":"INDEX(FRCVSizer[#Data],MATCH(I48,FRCVSizer[Theo P2 - Desired P2 (PSIG)],0),MATCH(FRCVSizer[[#Headers],[Part '#]],FRCVSizer[#Headers],0))","v":{"$error":"#VALUE!"}},{"$f":"MIN(IF(FRCVSizer[Theo P2 - Desired P2 (PSIG)]>0,FRCVSizer[Theo P2 - Desired P2 (PSIG)]))","v":{"$error":"#VALUE!"}},{"$f":"INDEX(FRCVSizer[#Data],MATCH(I48,FRCVSizer[Theo P2 - Desired P2 (PSIG)],0),MATCH(FRCVSizer[[#Headers],[Cv Rank]],FRCVSizer[#Headers],0))","v":{"$error":"#VALUE!"}},{"$f":"IF(Interface!F20=\"Yes\",INDEX(FRCVSizer[#Data],MATCH(I48,FRCVSizer[Theo P2 - Desired P2 (PSIG)],0),MATCH(FRCVSizer[[#Headers],[Theo P2 (PSIA)]],FRCVSizer[#Headers],0)),D6)","v":14.7},{"$f":"INDEX(FRCVSizer[#Data],MATCH(VKGSelection[Part '#],FRCVSizer[Part '#],0),MATCH(FRCVSizer[[#Headers],[Bio Gas?]],FRCVSizer[#Headers],0))","v":{"$error":"#VALUE!"}},null,null,null,null,null,null,null,"VRD40.080UF",1,"3\" Double Valve Body, Flanged - Gas + Biogas",3,10,75,105.06,"Yes",2,"Yes",{"$f":"SQRT((SSOVSizer[[#This Row],[P2]]^2)+((2*$D$9*$D$10*SSOVSizer[[#This Row],[Combo train Calc Q (SCFH)]]^2)/(1360^2*SSOVSizer[[#This Row],[Cv]]^2)))","v":{"$error":"#N/A"}},{"$f":"(SSOVSizer[[#This Row],[P2]]-14.7)*$B$16+14.7","v":{"$error":"#VALUE!"}},{"$f":"VKGSelection[P2 for SSOV]","v":14.7},{"$f":"IF(SSOVSizer[[#This Row],[P2]]>$D$5,\"err P2>P1\",1360*SSOVSizer[[#This Row],[Cv]]*SQRT(($D$5+SSOVSizer[[#This Row],[P2]])/($D$9*$D$10))*SQRT(($D$5-SSOVSizer[[#This Row],[P2]])/2))","v":{"$error":"#N/A"}},{"$f":"1360*SSOVSizer[[#This Row],[Cv]]*SQRT((SSOVSizer[[#This Row],[P1 if Trad]]+SSOVSizer[[#This Row],[P2]])/($D$9*$D$10))*SQRT((SSOVSizer[[#This Row],[P1 if Trad]]-SSOVSizer[[#This Row],[P2]])/2)","v":{"$error":"#VALUE!"}},{"$f":"IF(Interface!$F$17=\"Comb\",SSOVSizer[[#This Row],[Combo train Calc Q (SCFH)]]-$D$15,IF(Interface!$F$17=\"Trad\",SSOVSizer[[#This Row],[Trad train Calc Q (SCFH)]]-$D$15,\"Train type not selected\"))","v":"Train type not selected"},null,{"$f":"IF(AND(SSOVSelection[1 or 2]=SSOVSizer[[#This Row],[2 valves or 1]],SSOVSelection[Bio Gas]=SSOVSizer[[#This Row],[Bio Gas?]],SSOVSelection[NEMA 4]=SSOVSizer[[#This Row],[NEMA 4?]],SSOVSizer[[#This Row],[Calc Q - Desired Q]]<0, SSOVSizer[[#This Row],[Max valve sizes]]=\"Max\"),\"Max\",IF(AND(SSOVSelection[1 or 2]=SSOVSizer[[#This Row],[2 valves or 1]],SSOVSelection[Bio Gas]=SSOVSizer[[#This Row],[Bio Gas?]],SSOVSelection[NEMA 4]=SSOVSizer[[#This Row],[NEMA 4?]]),SSOVSizer[[#This Row],[Calc Q - Desired Q]],\"\"))","v":""},{"$f":"SQRT(($D$5^2)-((2*$D$9*$D$10*$D$15^2)/(1360^2*SSOVSizer[[#This Row],[Cv]]^2)))","v":{"$error":"#N/A"}},"AGA40.6580U"]
["Item","Trad or Comb","PSI or inWC","Value",null,null,null,null,null,null,null,null,null,null,null,null,null,null,null,"VRD40.100UF",1,"4\" Double Valve Body, Flanged - Gas + Biogas",4,10,30,175.59,"No",2,"Yes",{"$f":"SQRT((SSOVSizer[[#This Row],[P2]]^2)+((2*$D$9*$D$10*SSOVSizer[[#This Row],[Combo train Calc Q (SCFH)]]^2)/(1360^2*SSOVSizer[[#This Row],[Cv]]^2)))","v":{"$error":"#N/A"}},{"$f":"(SSOVSizer[[#This Row],[P2]]-14.7)*$B$16+14.7","v":{"$error":"#VALUE!"}},{"$f":"VKGSelection[P2 for SSOV]","v":14.7},{"$f":"IF(SSOVSizer[[#This Row],[P2]]>$D$5,\"err P2>P1\",1360*SSOVSizer[[#This Row],[Cv]]*SQRT(($D$5+SSOVSizer[[#This Row],[P2]])/($D$9*$D$10))*SQRT(($D$5-SSOVSizer[[#This Row],[P2]])/2))","v":{"$error":"#N/A"}},{"$f":"1360*SSOVSizer[[#This Row],[Cv]]*SQRT((SSOVSizer[[#This Row],[P1 if Trad]]+SSOVSizer[[#This Row],[P2]])/($D$9*$D$10))*SQRT((SSOVSizer[[#This Row],[P1 if Trad]]-SSOVSizer[[#This Row],[P2]])/2)","v":{"$error":"#VALUE!"}},{"$f":"IF(Interface!$F$17=\"Comb\",SSOVSizer[[#This Row],[Combo train Calc Q (SCFH)]]-$D$15,IF(Interface!$F$17=\"Trad\",SSOVSizer[[#This Row],[Trad train Calc Q (SCFH)]]-$D$15,\"Train type not selected\"))","v":"Train type not selected"},null,{"$f":"IF(AND(SSOVSelection[1 or 2]=SSOVSizer[[#This Row],[2 valves or 1]],SSOVSelection[Bio Gas]=SSOVSizer[[#This Row],[Bio Gas?]],SSOVSelection[NEMA 4]=SSOVSizer[[#This Row],[NEMA 4?]],SSOVSizer[[#This Row],[Calc Q - Desired Q]]<0, SSOVSizer[[#This Row],[Max valve sizes]]=\"Max\"),\"Max\",IF(AND(SSOVSelection[1 or 2]=SSOVSizer[[#This Row],[2 valves or 1]],SSOVSelection[Bio Gas]=SSOVSizer[[#This Row],[Bio Gas?]],SSOVSelection[NEMA 4]=SSOVSizer[[#This Row],[NEMA 4?]]),SSOVSizer[[#This Row],[Calc Q - Desired Q]],\"\"))","v":""},{"$f":"SQRT(($D$5^2)-((2*$D$9*$D$10*$D$15^2)/(1360^2*SSOVSizer[[#This Row],[Cv]]^2)))","v":{"$error":"#N/A"}},"AGA40.0100U"]
["P1",null,"PSIG",{"$f":"ROUND('Data, Calcs, Selections'!$D$33/27.7,2)&\"  \"&DataSumMatrix[[#This Row],[PSI or inWC]]","v":"0  PSIG"},null,null,null,"VKG Options",null,null,null,null,null,null,null,null,null,null,null,"VRD40.100UF",1,"4\" Double Valve Body, Flanged - Gas + Biogas",4,10,30,175.59,"Yes",2,"Yes",{"$f":"SQRT((SSOVSizer[[#This Row],[P2]]^2)+((2*$D$9*$D$10*SSOVSizer[[#This Row],[Combo train Calc Q (SCFH)]]^2)/(1360^2*SSOVSizer[[#This Row],[Cv]]^2)))","v":{"$error":"#N/A"}},{"$f":"(SSOVSizer[[#This Row],[P2]]-14.7)*$B$16+14.7","v":{"$error":"#VALUE!"}},{"$f":"VKGSelection[P2 for SSOV]","v":14.7},{"$f":"IF(SSOVSizer[[#This Row],[P2]]>$D$5,\"err P2>P1\",1360*SSOVSizer[[#This Row],[Cv]]*SQRT(($D$5+SSOVSizer[[#This Row],[P2]])/($D$9*$D$10))*SQRT(($D$5-SSOVSizer[[#This Row],[P2]])/2))","v":{"$error":"#N/A"}},{"$f":"1360*SSOVSizer[[#This Row],[Cv]]*SQRT((SSOVSizer[[#This Row],[P1 if Trad]]+SSOVSizer[[#This Row],[P2]])/($D$9*$D$10))*SQRT((SSOVSizer[[#This Row],[P1 if Trad]]-SSOVSizer[[#This Row],[P2]])/2)","v":{"$error":"#VALUE!"}},{"$f":"IF(Interface!$F$17=\"Comb\",SSOVSizer[[#This Row],[Combo train Calc Q (SCFH)]]-$D$15,IF(Interface!$F$17=\"Trad\",SSOVSizer[[#This Row],[Trad train Calc Q (SCFH)]]-$D$15,\"Train type not selected\"))","v":"Train type not selected"},null,{"$f":"IF(AND(SSOVSelection[1 or 2]=SSOVSizer[[#This Row],[2 valves or 1]],SSOVSelection[Bio Gas]=SSOVSizer[[#This Row],[Bio Gas?]],SSOVSelection[NEMA 4]=SSOVSizer[[#This Row],[NEMA 4?]],SSOVSizer[[#This Row],[Calc Q - Desired Q]]<0, SSOVSizer[[#This Row],[Max valve sizes]]=\"Max\"),\"Max\",IF(AND(SSOVSelection[1 or 2]=SSOVSizer[[#This Row],[2 valves or 1]],SSOVSelection[Bio Gas]=SSOVSizer[[#This Row],[Bio Gas?]],SSOVSelection[NEMA 4]=SSOVSizer[[#This Row],[NEMA 4?]]),SSOVSizer[[#This Row],[Calc Q - Desired Q]],\"\"))","v":""},{"$f":"SQRT(($D$5^2)-((2*$D$9*$D$10*$D$15^2)/(1360^2*SSOVSizer[[#This Row],[Cv]]^2)))","v":{"$error":"#N/A"}},"AGA40.0100U"]
["P1",null,"inWC",{"$f":"ROUND('Data, Calcs, Selections'!$D$33,1)&\"  \"&DataSumMatrix[[#This Row],[PSI or inWC]]","v":"0  inWC"},null,null,null,"Part #","Cv Rank","Optimized part","Selection List",null,null,null,null,null,null,null,null,"VRD40.150UF",1,"6\" Double Valve Body, Flanged - Gas + Biogas",6,10,30,324.73,"No",2,"Yes",{"$f":"SQRT((SSOVSizer[[#This Row],[P2]]^2)+((2*$D$9*$D$10*SSOVSizer[[#This Row],[Combo train Calc Q (SCFH)]]^2)/(1360^2*SSOVSizer[[#This Row],[Cv]]^2)))","v":{"$error":"#N/A"}},{"$f":"(SSOVSizer[[#This Row],[P2]]-14.7)*$B$16+14.7","v":{"$error":"#VALUE!"}},{"$f":"VKGSelection[P2 for SSOV]","v":14.7},{"$f":"IF(SSOVSizer[[#This Row],[P2]]>$D$5,\"err P2>P1\",1360*SSOVSizer[[#This Row],[Cv]]*SQRT(($D$5+SSOVSizer[[#This Row],[P2]])/($D$9*$D$10))*SQRT(($D$5-SSOVSizer[[#This Row],[P2]])/2))","v":{"$error":"#N/A"}},{"$f":"1360*SSOVSizer[[#This Row],[Cv]]*SQRT((SSOVSizer[[#This Row],[P1 if Trad]]+SSOVSizer[[#This Row],[P2]])/($D$9*$D$10))*SQRT((SSOVSizer[[#This Row],[P1 if Trad]]-SSOVSizer[[#This Row],[P2]])/2)","v":{"$error":"#VALUE!"}},{"$f":"IF(Interface!$F$17=\"Comb\",SSOVSizer[[#This Row],[Combo train Calc Q (SCFH)]]-$D$15,IF(Interface!$F$17=\"Trad\",SSOVSizer[[#This Row],[Trad train Calc Q (SCFH)]]-$D$15,\"Train type not selected\"))","v":"Train type not selected"},null,{"$f":"IF(AND(SSOVSelection[1 or 2]=SSOVSizer[[#This Row],[2 valves or 1]],SSOVSelection[Bio Gas]=SSOVSizer[[#This Row],[Bio Gas?]],SSOVSelection[NEMA 4]=SSOVSizer[[#This Row],[NEMA 4?]],SSOVSizer[[#This Row],[Calc Q - Desired Q]]<0, SSOVSizer[[#This Row],[Max valve sizes]]=\"Max\"),\"Max\",IF(AND(SSOVSelection[1 or 2]=SSOVSizer[[#This Row],[2 valves or 1]],SSOVSelection[Bio Gas]=SSOVSizer[[#This Row],[Bio Gas?]],SSOVSelection[NEMA 4]=SSOVSizer[[#This Row],[NEMA 4?]]),SSOVSizer[[#This Row],[Calc Q - Desired Q]],\"\"))","v":""},{"$f":"SQRT(($D$5^2)-((2*$D$9*$D$10*$D$15^2)/(1360^2*SSOVSizer[[#This Row],[Cv]]^2)))","v":{"$error":"#N/A"}},"AGA40.0150U"]
["Pb",null,"PSIG",{"$f":"ROUND('Data, Calcs, Selections'!$D$31/27.7,2)&\"  \"&DataSumMatrix[[#This Row],[PSI or inWC]]","v":"0  PSIG"},null,null,null,{"$f":"INDEX(FRCVSizer[#Data],MATCH(VKGOptions[[#This Row],[Cv Rank]]&VKGSelection[Bio Gas?],FRCVSizer[Cv Rank]&FRCVSizer[Bio Gas?],0),MATCH(FRCVSizer[[#Headers],[Part '#]],FRCVSizer[#Headers],0))","v":{"$error":"#VALUE!"}},{"$f":"I53-1","v":{"$error":"#VALUE!"}},null,{"$f":"IFERROR(\"2 sizes down - \"&VKGOptions[[#This Row],[Part '#]]&\" - \"&INDEX(FRCVSizer[#Data],MATCH(VKGOptions[[#This Row],[Part '#]],FRCVSizer[Part '#],0),MATCH(\"Description\",FRCVSizer[#Headers],0)),\"\")","v":""},null,null,null,null,null,null,null,null,"VRD40.150UF",1,"6\" Double Valve Body, Flanged - Gas + Biogas",6,10,30,324.73,"Yes",2,"Yes",{"$f":"SQRT((SSOVSizer[[#This Row],[P2]]^2)+((2*$D$9*$D$10*SSOVSizer[[#This Row],[Combo train Calc Q (SCFH)]]^2)/(1360^2*SSOVSizer[[#This Row],[Cv]]^2)))","v":{"$error":"#N/A"}},{"$f":"(SSOVSizer[[#This Row],[P2]]-14.7)*$B$16+14.7","v":{"$error":"#VALUE!"}},{"$f":"VKGSelection[P2 for SSOV]","v":14.7},{"$f":"IF(SSOVSizer[[#This Row],[P2]]>$D$5,\"err P2>P1\",1360*SSOVSizer[[#This Row],[Cv]]*SQRT(($D$5+SSOVSizer[[#This Row],[P2]])/($D$9*$D$10))*SQRT(($D$5-SSOVSizer[[#This Row],[P2]])/2))","v":{"$error":"#N/A"}},{"$f":"1360*SSOVSizer[[#This Row],[Cv]]*SQRT((SSOVSizer[[#This Row],[P1 if Trad]]+SSOVSizer[[#This Row],[P2]])/($D$9*$D$10))*SQRT((SSOVSizer[[#This Row],[P1 if Trad]]-SSOVSizer[[#This Row],[P2]])/2)","v":{"$error":"#VALUE!"}},{"$f":"IF(Interface!$F$17=\"Comb\",SSOVSizer[[#This Row],[Combo train Calc Q (SCFH)]]-$D$15,IF(Interface!$F$17=\"Trad\",SSOVSizer[[#This Row],[Trad train Calc Q (SCFH)]]-$D$15,\"Train type not selected\"))","v":"Train type not selected"},null,{"$f":"IF(AND(SSOVSelection[1 or 2]=SSOVSizer[[#This Row],[2 valves or 1]],SSOVSelection[Bio Gas]=SSOVSizer[[#This Row],[Bio Gas?]],SSOVSelection[NEMA 4]=SSOVSizer[[#This Row],[NEMA 4?]],SSOVSizer[[#This Row],[Calc Q - Desired Q]]<0, SSOVSizer[[#This Row],[Max valve sizes]]=\"Max\"),\"Max\",IF(AND(SSOVSelection[1 or 2]=SSOVSizer[[#This Row],[2 valves or 1]],SSOVSelection[Bio Gas]=SSOVSizer[[#This Row],[Bio Gas?]],SSOVSelection[NEMA 4]=SSOVSizer[[#This Row],[NEMA 4?]]),SSOVSizer[[#This Row],[Calc Q - Desired Q]],\"\"))","v":""},{"$f":"SQRT(($D$5^2)-((2*$D$9*$D$10*$D$15^2)/(1360^2*SSOVSizer[[#This Row],[Cv]]^2)))","v":{"$error":"#N/A"}},"AGA40.0150U"]
["Pb",null,"inWC",{"$f":"ROUND('Data, Calcs, Selections'!$D$31,1)&\"  \"&DataSumMatrix[[#This Row],[PSI or inWC]]","v":"0  inWC"},null,null,null,{"$f":"INDEX(FRCVSizer[#Data],MATCH(VKGOptions[[#This Row],[Cv Rank]]&VKGSelection[Bio Gas?],FRCVSizer[Cv Rank]&FRCVSizer[Bio Gas?],0),MATCH(FRCVSizer[[#Headers],[Part '#]],FRCVSizer[#Headers],0))","v":{"$error":"#VALUE!"}},{"$f":"I54-1","v":{"$error":"#VALUE!"}},null,{"$f":"IFERROR(\"1 size down - \"&VKGOptions[[#This Row],[Part '#]]&\" - \"&INDEX(FRCVSizer[#Data],MATCH(VKGOptions[[#This Row],[Part '#]],FRCVSizer[Part '#],0),MATCH(\"Description\",FRCVSizer[#Headers],0)),\"\")","v":""},null,null,null,null,null,null,null,null,"VRD40.150UF",1,"6\" Double Valve Body, Flanged - Gas + Biogas",6,10,30,324.73,"No",2,"Yes",{"$f":"SQRT((SSOVSizer[[#This Row],[P2]]^2)+((2*$D$9*$D$10*SSOVSizer[[#This Row],[Combo train Calc Q (SCFH)]]^2)/(1360^2*SSOVSizer[[#This Row],[Cv]]^2)))","v":{"$error":"#N/A"}},{"$f":"(SSOVSizer[[#This Row],[P2]]-14.7)*$B$16+14.7","v":{"$error":"#VALUE!"}},{"$f":"VKGSelection[P2 for SSOV]","v":14.7},{"$f":"IF(SSOVSizer[[#This Row],[P2]]>$D$5,\"err P2>P1\",1360*SSOVSizer[[#This Row],[Cv]]*SQRT(($D$5+SSOVSizer[[#This Row],[P2]])/($D$9*$D$10))*SQRT(($D$5-SSOVSizer[[#This Row],[P2]])/2))","v":{"$error":"#N/A"}},{"$f":"1360*SSOVSizer[[#This Row],[Cv]]*SQRT((SSOVSizer[[#This Row],[P1 if Trad]]+SSOVSizer[[#This Row],[P2]])/($D$9*$D$10))*SQRT((SSOVSizer[[#This Row],[P1 if Trad]]-SSOVSizer[[#This Row],[P2]])/2)","v":{"$error":"#VALUE!"}},{"$f":"IF(Interface!$F$17=\"Comb\",SSOVSizer[[#This Row],[Combo train Calc Q (SCFH)]]-$D$15,IF(Interface!$F$17=\"Trad\",SSOVSizer[[#This Row],[Trad train Calc Q (SCFH)]]-$D$15,\"Train type not selected\"))","v":"Train type not selected"},"max",{"$f":"IF(AND(SSOVSelection[1 or 2]=SSOVSizer[[#This Row],[2 valves or 1]],SSOVSelection[Bio Gas]=SSOVSizer[[#This Row],[Bio Gas?]],SSOVSelection[NEMA 4]=SSOVSizer[[#This Row],[NEMA 4?]],SSOVSizer[[#This Row],[Calc Q - Desired Q]]<0, SSOVSizer[[#This Row],[Max valve sizes]]=\"Max\"),\"Max\",IF(AND(SSOVSelection[1 or 2]=SSOVSizer[[#This Row],[2 valves or 1]],SSOVSelection[Bio Gas]=SSOVSizer[[#This Row],[Bio Gas?]],SSOVSelection[NEMA 4]=SSOVSizer[[#This Row],[NEMA 4?]]),SSOVSizer[[#This Row],[Calc Q - Desired Q]],\"\"))","v":""},{"$f":"SQRT(($D$5^2)-((2*$D$9*$D$10*$D$15^2)/(1360^2*SSOVSizer[[#This Row],[Cv]]^2)))","v":{"$error":"#N/A"}},"AGA40.0150U"]
["Ps","Trad","PSIG",{"$f":"ROUND('Data, Calcs, Selections'!$D$35/27.7,2)&\"  \"&DataSumMatrix[[#This Row],[PSI or inWC]]","v":"0  PSIG"},null,null,null,{"$f":"INDEX(FRCVSizer[#Data],MATCH(VKGOptions[[#This Row],[Cv Rank]]&VKGSelection[Bio Gas?],FRCVSizer[Cv Rank]&FRCVSizer[Bio Gas?],0),MATCH(FRCVSizer[[#Headers],[Part '#]],FRCVSizer[#Headers],0))","v":{"$error":"#VALUE!"}},{"$f":"VKGSelection[Cv Rank]","v":{"$error":"#VALUE!"}},"optimized",{"$f":"IFERROR(VKGOptions[[#This Row],[Part '#]],\"\")","v":""},null,null,null,null,null,null,null,null,"VRD40.150UF",1,"6\" Double Valve Body, Flanged - Gas + Biogas",6,10,30,324.73,"Yes",2,"Yes",{"$f":"SQRT((SSOVSizer[[#This Row],[P2]]^2)+((2*$D$9*$D$10*SSOVSizer[[#This Row],[Combo train Calc Q (SCFH)]]^2)/(1360^2*SSOVSizer[[#This Row],[Cv]]^2)))","v":{"$error":"#N/A"}},{"$f":"(SSOVSizer[[#This Row],[P2]]-14.7)*$B$16+14.7","v":{"$error":"#VALUE!"}},{"$f":"VKGSelection[P2 for SSOV]","v":14.7},{"$f":"IF(SSOVSizer[[#This Row],[P2]]>$D$5,\"err P2>P1\",1360*SSOVSizer[[#This Row],[Cv]]*SQRT(($D$5+SSOVSizer[[#This Row],[P2]])/($D$9*$D$10))*SQRT(($D$5-SSOVSizer[[#This Row],[P2]])/2))","v":{"$error":"#N/A"}},{"$f":"1360*SSOVSizer[[#This Row],[Cv]]*SQRT((SSOVSizer[[#This Row],[P1 if Trad]]+SSOVSizer[[#This Row],[P2]])/($D$9*$D$10))*SQRT((SSOVSizer[[#This Row],[P1 if Trad]]-SSOVSizer[[#This Row],[P2]])/2)","v":{"$error":"#VALUE!"}},{"$f":"IF(Interface!$F$17=\"Comb\",SSOVSizer[[#This Row],[Combo train Calc Q (SCFH)]]-$D$15,IF(Interface!$F$17=\"Trad\",SSOVSizer[[#This Row],[Trad train Calc Q (SCFH)]]-$D$15,\"Train type not selected\"))","v":"Train type not selected"},"max",{"$f":"IF(AND(SSOVSelection[1 or 2]=SSOVSizer[[#This Row],[2 valves or 1]],SSOVSelection[Bio Gas]=SSOVSizer[[#This Row],[Bio Gas?]],SSOVSelection[NEMA 4]=SSOVSizer[[#This Row],[NEMA 4?]],SSOVSizer[[#This Row],[Calc Q - Desired Q]]<0, SSOVSizer[[#This Row],[Max valve sizes]]=\"Max\"),\"Max\",IF(AND(SSOVSelection[1 or 2]=SSOVSizer[[#This Row],[2 valves or 1]],SSOVSelection[Bio Gas]=SSOVSizer[[#This Row],[Bio Gas?]],SSOVSelection[NEMA 4]=SSOVSizer[[#This Row],[NEMA 4?]]),SSOVSizer[[#This Row],[Calc Q - Desired Q]],\"\"))","v":""},{"$f":"SQRT(($D$5^2)-((2*$D$9*$D$10*$D$15^2)/(1360^2*SSOVSizer[[#This Row],[Cv]]^2)))","v":{"$error":"#N/A"}},"AGA40.0150U"]
["Ps","Trad","inWC",{"$f":"ROUND('Data, Calcs, Selections'!$D$35,1)&\"  \"&DataSumMatrix[[#This Row],[PSI or inWC]]","v":"0  inWC"},null,null,null,{"$f":"INDEX(FRCVSizer[#Data],MATCH(VKGOptions[[#This Row],[Cv Rank]]&VKGSelection[Bio Gas?],FRCVSizer[Cv Rank]&FRCVSizer[Bio Gas?],0),MATCH(FRCVSizer[[#Headers],[Part '#]],FRCVSizer[#Headers],0))","v":{"$error":"#VALUE!"}},{"$f":"I54+1","v":{"$error":"#VALUE!"}},null,{"$f":"IFERROR(\"1 size up - \"&VKGOptions[[#This Row],[Part '#]]&\" - \"&INDEX(FRCVSizer[#Data],MATCH(VKGOptions[[#This Row],[Part '#]],FRCVSizer[Part '#],0),MATCH(\"Description\",FRCVSizer[#Headers],0)),\"\")","v":""}]
["Ps","Comb","PSIG",{"$f":"ROUND(Interface!$G$28,2)&\"  \"&DataSumMatrix[[#This Row],[PSI or inWC]]","v":"0  PSIG"},null,null,null,{"$f":"INDEX(FRCVSizer[#Data],MATCH(VKGOptions[[#This Row],[Cv Rank]]&VKGSelection[Bio Gas?],FRCVSizer[Cv Rank]&FRCVSizer[Bio Gas?],0),MATCH(FRCVSizer[[#Headers],[Part '#]],FRCVSizer[#Headers],0))","v":{"$error":"#VALUE!"}},{"$f":"I55+1","v":{"$error":"#VALUE!"}},null,{"$f":"IFERROR(\"2 sizes up - \"&VKGOptions[[#This Row],[Part '#]]&\" - \"&INDEX(FRCVSizer[#Data],MATCH(VKGOptions[[#This Row],[Part '#]],FRCVSizer[Part '#],0),MATCH(\"Description\",FRCVSizer[#Headers],0)),\"\")","v":""},null,null,null,null,null,null,null,null,"SSOV Selection:"]
["Ps","Comb","inWC",{"$f":"ROUND(Interface!$G$28*27.72,1)&\"  \"&DataSumMatrix[[#This Row],[PSI or inWC]]","v":"0  inWC"},null,null,null,null,null,null,null,null,null,null,null,null,null,null,null,"Part #","QTY","NEMA 4","1 or 2","Bio Gas","Flow Optimize","Pipe size","Vel std pipe","Max inlet Press (PSIG)","Input Press too high","1.2.2-1's","Cv"]
["R","Trad","PSIG",{"$f":"ROUND('Data, Calcs, Selections'!$D$36/27.7,2)&\"  \"&DataSumMatrix[[#This Row],[PSI or inWC]]","v":"0  PSIG"},null,null,null,"VKG Selected by Customer",null,null,null,null,null,null,null,null,null,null,null,{"$f":"IFERROR(INDEX(SSOVSizer[#Data],MATCH(SSOVSelection[Flow Optimize],SSOVSizer[Criteria Met: Calc Q - Desired Q],0),MATCH(SSOVSizer[[#Headers],[Part '#]],SSOVSizer[#Headers],0)),\"\")","v":""},{"$f":"INDEX(SSOVSizer[#Data],MATCH(Y58,SSOVSizer[Criteria Met: Calc Q - Desired Q],0),MATCH(SSOVSizer[[#Headers],[QTY]],SSOVSizer[#Headers],0))","v":{"$error":"#N/A"}},{"$f":"Interface!F46","v":0},{"$f":"Interface!F18","v":0},{"$f":"Interface!F24","v":"No"},{"$f":"IF(MIN(IF(SSOVSizer[Criteria Met: Calc Q - Desired Q]>0,SSOVSizer[Criteria Met: Calc Q - Desired Q]))=0,\"max\",MIN(IF(SSOVSizer[Criteria Met: Calc Q - Desired Q]>0,SSOVSizer[Criteria Met: Calc Q - Desired Q])))","v":"max"},{"$f":"INDEX(SSOVSizer[#Data],MATCH(SSOVSelection[Part '#],SSOVSizer[Part '#],0),MATCH(SSOVSizer[[#Headers],[Pipe Size]],SSOVSizer[#Headers],0))","v":{"$error":"#N/A"}},{"$f":"INDEX(SPSizer[#Data],MATCH(SSOVSelection[Pipe size],SPSizer[Pipe Size],0),MATCH(SPSizer[[#Headers],[Velocity (ft/s)]],SPSizer[#Headers],0))","v":{"$error":"#N/A"}},{"$f":"INDEX(SSOVSizer[#Data],MATCH(SSOVSelection[Part '#],SSOVSizer[Part '#],0),MATCH(SSOVSizer[[#Headers],[Max inlet Press (PSIG)]],SSOVSizer[#Headers],0))","v":{"$error":"#N/A"}},{"$f":"IFERROR(IF(OR(\nAND(D15<>0,Interface!F17=\"Comb\",$B$5>SSOVSelection[Max inlet Press (PSIG)]),\nAND(D15<>0,Interface!F17=\"Trad\",(D36/27.7)>SSOVSelection[Max inlet Press (PSIG)])),\n\"Too High!\",\"OK\"),\"\")","v":""},{"$f":"IFERROR(IF(SSOVSelection[QTY]=2,\"2-1's\",IF(SSOVSelection[QTY]=1,SSOVSelection[1 or 2],\"\")),\"\")","v":""},{"$f":"IFERROR(INDEX(SSOVSizer[#Data],MATCH(SSOVSelection[Flow Optimize],SSOVSizer[Criteria Met: Calc Q - Desired Q],0),MATCH(SSOVSizer[[#Headers],[Cv]],SSOVSizer[#Headers],0)),\"\")","v":""}]
["R","Trad","inWC",{"$f":"ROUND('Data, Calcs, Selections'!$D$36,1)&\"  \"&DataSumMatrix[[#This Row],[PSI or inWC]]","v":"0  inWC"},null,null,null,"Part #"]
["R","Comb","PSIG",{"$f":"ROUND('Data, Calcs, Selections'!$D$35/27.7,2)&\"  \"&DataSumMatrix[[#This Row],[PSI or inWC]]","v":"0  PSIG"},null,null,null,{"$f":"IF(Interface!H72=\"\",VKGSelection[Part '#],INDEX(VKGOptions[#Data],MATCH(Interface!H72,VKGOptions[Selection List],0),MATCH(VKGOptions[[#Headers],[Part '#]],VKGOptions[#Headers],0)))","v":{"$error":"#VALUE!"}},null,null,null,null,null,null,null,null,null,null,null,"Vent Plate Selection"]
["R","Comb","inWC",{"$f":"ROUND('Data, Calcs, Selections'!$D$35,1)&\"  \"&DataSumMatrix[[#This Row],[PSI or inWC]]","v":"0  inWC"},null,null,null,null,null,null,null,null,null,null,null,null,null,null,null,"Part #","Yes or No"]
[null,null,null,null,null,null,null,"VA PN Builder",null,null,null,null,null,null,null,null,null,null,null,{"$f":"IF(VentPSelect[Yes or No]=\"yes\",INDEX(SSOVSizer[#Data],MATCH(SSOVSelection[Part '#],SSOVSizer[Part '#],0),MATCH(SSOVSizer[[#Headers],[Vent Plate PN]],SSOVSizer[#Headers],0)),\"\")","v":""},{"$f":"Interface!F19","v":0}]
[null,null,null,null,null,null,null,"Part #","VA","Actuator Code","Voltage Code","Pipe Thread Code","Port Size Code","Bio Gas Code","Pipe Size Code","NEMA4  Code"]
[null,null,null,null,null,null,null,{"$f":"VASelection[VA]&VASelection[Actuator Code]&VASelection[Voltage Code]&\"-\"&VASelection[Pipe Thread Code]&VASelection[Port Size Code]&VASelection[Bio Gas Code]&\"-\"&VASelection[Pipe Size Code]&VASelection[NEMA4  Code]","v":{"$error":"#N/A"}},"VA",{"$f":"INDEX(GasActList[#Data],MATCH(Interface!G22,GasActList[Part '#],0),MATCH(GasActList[[#Headers],[VA actuator code]],GasActList[#Headers],0))","v":{"$error":"#N/A"}},{"$f":"IF(Interface!F52=\"220 VAC\",\"(220)\",\"\")","v":""},"N",{"$f":"LEFT(INDEX(FRCVSizer[#Data],MATCH(VKGcustSelect[Part '#],FRCVSizer[Part '#],0),MATCH(FRCVSizer[[#Headers],[Port Size]],FRCVSizer[#Headers],0)),1)","v":{"$error":"#VALUE!"}},{"$f":"IF(LEFT(VKGcustSelect[Part '#],2)=\"VR\",\"B\",\"\")","v":{"$error":"#VALUE!"}},{"$f":"INDEX(FRCVSizer[#Data],MATCH(VKGcustSelect[Part '#],FRCVSizer[Part '#],0),MATCH(FRCVSizer[[#Headers],[Pipe size code for VA]],FRCVSizer[#Headers],0))","v":{"$error":"#VALUE!"}},{"$f":"INDEX(GasActList[#Data],MATCH(Interface!G22,GasActList[Part '#],0),MATCH(GasActList[[#Headers],[VA NEMA Code]],GasActList[#Headers],0))","v":{"$error":"#N/A"}}]
[]
[null,null,null,null,null,null,null,"VA or VKG for BOM"]
[null,null,null,null,null,null,null,"Part #"]
[null,null,null,null,null,null,null,{"$f":"IF(AND(Interface!F20=\"Yes\",Interface!F21=\"Yes\"),VASelection[Part '#],IF(AND(Interface!F20=\"Yes\",Interface!F21=\"No\"),VKGcustSelect[Part '#],\"\"))","v":""}]

{"sheet":"Selection Lists","index":3,"n_rows":47,"n_cols":33,"rows_kept":47,"cut":false,"hidden":true,"merged":[]}
[null,null,null,null,null,null,null,null,null,null,null,null,null,null,null,null,null,null,null,null,null,null,null,null,null,null,null,null,null,"Manifold pressure input ",null,null,"Defualts"]
["Fuel List",null,null,null,"Gas pressure ranges",null,null,null,"Number POC",null,"Pressure switch selections",null,null,null,"Actuator selections",null,null,null,null,null,"Comb1Low","Comb2Low","Comb1High","Comb2High","Trad1Low","Trad2Low","Trad1High","Trad2High",null,"Inlet Pressure (inWC)","Inlet Pressure (PSIG)",null,"Default answers"]
["Fuel","SG","HV (BTU/SCF)",null,"Unit","Supply Max","Max Manifold",null,"POC's",null,"Press Switch full","Press Switch Auto only","Press Switch not avail",null,"Part #","Description","Selection","VA actuator code","VA NEMA Code",null,"None","None","POC switch only","POC switch only","None","None","None","None",null,{"$f":"IF(Interface!F17=\"Trad\",1000000000,Interface!G28*27.72)","v":0},{"$f":"IF(Interface!F17=\"Trad\",1000000000,Interface!G28)","v":0}]
["Natural Gas",0.64,1000,null,"PSIG",20,20,null,{"$f":"Interface!F18","v":0},null,"Yes - Manual Reset","Yes - Auto Reset",null,null,"SQM33.550A9","(stepper, for use with LMV3…)",{"$f":"GasActList[[#This Row],[Part '#]]&\" \"&GasActList[[#This Row],[Description]]","v":"SQM33.550A9 (stepper, for use with LMV3…)"},33,{"$f":"\"\"","v":""},null,"POC switch only","POC switch only",null,null,"POC switch only","POC switch only","POC switch only","POC switch only"]
["Propane",1.52,2500,null,"inWC",{"$f":"F4*27.72","v":554.4},{"$f":"G4*27.72","v":554.4},null,{"$f":"IF(I4=0,\"\",I4-1)","v":""},null,"Yes - Auto Reset","Not Required",null,null,"SQM33.550A9-N4","(stepper, w/ NEMA 4 Gasket, for use with LMV3…)",{"$f":"GasActList[[#This Row],[Part '#]]&\" \"&GasActList[[#This Row],[Description]]","v":"SQM33.550A9-N4 (stepper, w/ NEMA 4 Gasket, for use with LMV3…)"},33,"-N4",null,"POC switch and auxiliary switch","POC switch and auxiliary switch",null,null,"POC switch and auxiliary switch","POC switch and auxiliary switch","POC switch and auxiliary switch","POC switch and auxiliary switch",null,"Min Manifold Press","Max Manifold Press"]
["Digester",0.86,550,null,null,null,null,null,{"$f":"IF(I5=0,\"\",I5-1)","v":{"$error":"#VALUE!"}},null,"Not Required",null,null,null,"SQM45.295B9","(stepper, for use with LMV5…)",{"$f":"GasActList[[#This Row],[Part '#]]&\" \"&GasActList[[#This Row],[Description]]","v":"SQM45.295B9 (stepper, for use with LMV5…)"},45.2,{"$f":"\"\"","v":""},null,null,null,null,null,null,null,null,null,null,0,{"$f":"IF(Interface!F30=\"inWC\",Maxmanpress[Inlet Pressure (inWC)],Maxmanpress[Inlet Pressure (PSIG)])","v":0}]
["Butane",2,3200,null,null,null,null,null,null,null,null,null,null,null,"SQM45.295B9-N4","(stepper, w/ NEMA 4 Gasket, for use with LMV5…)",{"$f":"GasActList[[#This Row],[Part '#]]&\" \"&GasActList[[#This Row],[Description]]","v":"SQM45.295B9-N4 (stepper, w/ NEMA 4 Gasket, for use with LMV5…)"},45.2,"-N4"]
["Custom",{"$f":"Interface!F25","v":0},{"$f":"Interface!F26","v":0},null,null,null,null,null,null,null,null,null,null,null,"SQM40.115R11","(12.5 sec, 135 Ohm/4-20 mA, high/low fire feedback)",{"$f":"GasActList[[#This Row],[Part '#]]&\" \"&GasActList[[#This Row],[Description]]","v":"SQM40.115R11 (12.5 sec, 135 Ohm/4-20 mA, high/low fire feedback)"},40.11,{"$f":"\"\"","v":""}]
[null,null,null,null,null,null,null,null,null,null,null,null,null,null,"SQM40.155R11","(12.5 sec, 4-20 mA, independent aux switch)",{"$f":"GasActList[[#This Row],[Part '#]]&\" \"&GasActList[[#This Row],[Description]]","v":"SQM40.155R11 (12.5 sec, 4-20 mA, independent aux switch)"},40.15,{"$f":"\"\"","v":""}]
[null,null,null,null,null,null,null,null,null,null,null,null,null,null,"SQM40.185R11","(12.5 sec, 3-position, 3 independent aux switches)",{"$f":"GasActList[[#This Row],[Part '#]]&\" \"&GasActList[[#This Row],[Description]]","v":"SQM40.185R11 (12.5 sec, 3-position, 3 independent aux switches)"},40.18,{"$f":"\"\"","v":""},null,null,null,null,null,null,null,null,null,null,null,null,null,"Natural Gas"]
["1 Valve Fuel List","2 Valve Fuel List",null,null,null,null,null,null,null,null,null,null,null,null,"SQM40.215R11","(25 sec, 135 Ohm/4-20 mA, high/low fire feedback)",{"$f":"GasActList[[#This Row],[Part '#]]&\" \"&GasActList[[#This Row],[Description]]","v":"SQM40.215R11 (25 sec, 135 Ohm/4-20 mA, high/low fire feedback)"},40.21,{"$f":"\"\"","v":""}]
["Natural Gas","Natural Gas",null,null,null,null,null,null,null,null,null,null,null,null,"SQM40.255R11","(25 sec, 4-20 mA, independent aux switch)",{"$f":"GasActList[[#This Row],[Part '#]]&\" \"&GasActList[[#This Row],[Description]]","v":"SQM40.255R11 (25 sec, 4-20 mA, independent aux switch)"},40.25,{"$f":"\"\"","v":""}]
["Propane","Propane",null,null,null,null,null,null,null,null,null,null,null,null,"SQM40.265R11","(25 sec, 3-position, high/low fire feedback)",{"$f":"GasActList[[#This Row],[Part '#]]&\" \"&GasActList[[#This Row],[Description]]","v":"SQM40.265R11 (25 sec, 3-position, high/low fire feedback)"},40.26,{"$f":"\"\"","v":""}]
["Butane","Digester",null,null,null,null,null,null,null,null,null,null,null,null,"SQM40.275R10","(25 sec, high/low basic version)",{"$f":"GasActList[[#This Row],[Part '#]]&\" \"&GasActList[[#This Row],[Description]]","v":"SQM40.275R10 (25 sec, high/low basic version)"},40.270000000000003,{"$f":"\"\"","v":""}]
["Custom","Butane",null,null,null,null,null,null,null,null,null,null,null,null,"SQM40.285R11","(25 sec, 3-position, 3 independent aux switches)",{"$f":"GasActList[[#This Row],[Part '#]]&\" \"&GasActList[[#This Row],[Description]]","v":"SQM40.285R11 (25 sec, 3-position, 3 independent aux switches)"},40.28,{"$f":"\"\"","v":""}]
[null,"Custom"]
[]
[]
[]
[]
[null,null,null,null,null,null,null,null,null,null,null,null,null,null,null,null,null,null,null,null,null,null,null,null,null,null,null,null,null,null,null,null,15]
[null,null,null,null,null,null,null,null,null,null,null,null,null,null,null,null,null,null,null,null,null,null,null,null,null,null,null,null,null,null,null,null,2]
[null,null,null,null,null,null,null,null,null,null,null,null,null,null,null,null,null,null,null,null,null,null,null,null,null,null,null,null,null,null,null,null,0]
[]
[]
[]
[]
[null,null,null,null,null,null,null,null,null,null,null,null,null,null,null,null,null,null,null,null,null,null,null,null,null,null,null,null,null,null,null,null,82]
[]
[]
[]
[]
[null,null,null,null,null,null,null,null,null,null,null,null,null,null,null,null,null,null,null,null,null,null,null,null,null,null,null,null,null,null,null,null,"No"]
[]
[]
[]
[]
[]
[null,null,null,null,null,null,null,null,null,null,null,null,null,null,null,null,null,null,null,null,null,null,null,null,null,null,null,null,null,null,null,null,"120 VAC"]
[null,null,null,null,null,null,null,null,null,null,null,null,null,null,null,null,null,null,null,null,null,null,null,null,null,null,null,null,null,null,null,null,"No"]
[]
[null,null,null,null,null,null,null,null,null,null,null,null,null,null,null,null,null,null,null,null,null,null,null,null,null,null,null,null,null,null,null,null,"Yes"]
[null,null,null,null,null,null,null,null,null,null,null,null,null,null,null,null,null,null,null,null,null,null,null,null,null,null,null,null,null,null,null,null,"Upstream (U.S. Standard)"]
[]
[]
[]
[null,null,null,null,null,null,null,null,null,null,null,null,null,null,null,null,null,null,null,null,null,null,null,null,null,null,null,null,null,null,null,null,"No"]

{"sheet":"SCC Parts","index":4,"n_rows":2065,"n_cols":36,"rows_kept":2065,"cut":false,"hidden":true,"merged":[]}
["SCC Part Number","Column34","Description","Column33","Column32","Column31","Column30","Column29","Column28","Column27","Column26","Column25","Column24","Column23","Column22","Column21","Column20","Column19","Column18","Column17","Column16","Column15","Column14","Column13","Column12","Column11","Column10","Column9","Column8","Column7","Column6","Column5","Column4","Column3","Column2","Column1"]
[803113101,null,"Manual reset, low 1-7 PSI"]
[803113102,null,"Manual reset, low 6-15 PSI"]
[803113301,null,"Auto reset, low 1-7 PSI"]
[803113302,null,"Auto reset, low 6-15 PSI"]
[803113401,null,"Auto reset, high 1-7 PSI"]
[803113402,null,"Auto reset, high 6-15 PSI"]
[808000404,null,"NEMA 3R weather kit for QPL/QPH…M00/A00 pressure switches"]
["AGA22",null,"SET POINT SPRING FOR SKP25... (6...48\" w.c.) yellow"]
["AGA23",null,"SET POINT SPRING KIT FOR SKP25...  (40...100\" w.c.) red"]
["AGA25.3",null,"Damping orifice for SKP25... "]
["AGA25.2",null,"Damping orifice for SKP25... "]
["AGA40.0100U",null,"2\" NPT vent connection plate"]
["AGA40.0150U",null,"2-1/2\" NPT vent connection plate"]
["AGA40.4050U",null,"1\" NPT vent connection plate"]
["AGA40.6580U",null,"1-1/4\" NPT vent connection plate"]
["AGA63-MRHT",null,"SKP Heater with Thermostat"]
["AGA66",null,"NEMA 4 Kit for SKPx5… actuator"]
["AGF10.25U",null,"1\" NPT flange for VGD2/VKP valves"]
["AGF10.32U",null,"1-1/4\" NPT flange for VGD2/VKP valves"]
["AGF10.40U",null,"1-1/2\" NPT flange for VGD2/VKP valves"]
["AGF10.50U",null,"2\" NPT flange for VGD2/VKP valves"]
["QPH31.050A00",null,"Automatic reset high pressure switch 2 to 20\" wc"]
["QPH31.050M00",null,"Manual reset high pressure switch 2 to 20\" wc"]
["QPH31.090A00",null,"Automatic reset high pressure switch 5 to 35\" wc"]
["QPH31.150M00",null,"Manual reset high pressure switch 10 to 55\" wc"]
["QPH31.280A00",null,"Automatic reset high pressure switch 28 to 112\" wc"]
["QPL31.050A00",null,"Automatic reset low pressure switch 1 to 20\" wc"]
["QPL31.050M00",null,"Manual reset low pressure switch 1 to 20\" wc"]
["QPL31.075A00",null,"Automatic reset low pressure switch 5 to 30\" wc"]
["QPL31.140M00",null,"Manual reset low pressure switch 7 to 55\" wc"]
["QPL31.280A00",null,"Automatic reset low pressure switch 28 to 112\" wc"]
["SKP15.011U1",null,"SOV actuator with POC switch, UL, FM, CSA, 110V"]
["SKP15.012U1",null,"SOV actuator with POC and aux switches, UL, FM, CSA, 110V"]
["SKP15.012U2",null,"SOV actuator with POC switch and aux switch, UL, FM, CSA, 220V"]
["SKP15.013U1",null,"SOV actuator with no switches, UL, FM, CSA, 110V"]
["SKP15.013U2",null,"SOV actuator with no switches, UL, FM, CSA, 220V"]
["SKP25.011U1",null,"SOV and regulation actuator with POC switch.  UL, FM, CSA, 110V"]
["SKP25.012U1",null,"SOV and regulation actuator with POC & aux switches.  UL, FM, CSA, 110V"]
["SKP25.012U2",null,"SOV and regulation actuator with POC and aux switches.  UL, FM, CSA, 220V"]
["SKP25.013U1",null,"SOV and regulation actuator with no switches.  UL, FM, CSA, 110V"]
["SKP25.411U1",null,"SOV and High pressure regulator (Up to 20 psi), with POC switch.  UL, FM, CSA, 110V"]
["VA33-NF-050",null,"SQM33.550A9 to 1/2\" VKG10"]
["VA33-NF-050-N4",null,"SQM33.550A9 to 1/2\" VKG10, NEMA 4"]
["VA33-NF-075",null,"SQM33.550A9 to 3/4\" VKG10"]
["VA33-NF-075-N4",null,"SQM33.550A9 to 3/4\" VKG10, NEMA 4"]
["VA33-NF-100",null,"SQM33.550A9 to 1\" VKG10"]
["VA33-NF-100-N4",null,"SQM33.550A9 to 1\" VKG10, NEMA 4"]
["VA33-NF-125",null,"SQM33.550A9 to 1-1/4\" VKG10"]
["VA33-NF-125-N4",null,"SQM33.550A9 to 1-1/4\" VKG10, NEMA 4"]
["VA33-NF-150",null,"SQM33.550A9 to 1-1/2\" VKG10"]
["VA33-NF-150-270",null,"SQM33.550A9 to 1-1/2\" VKG10"]
["VA33-NF-150-N4",null,"SQM33.550A9 to 1-1/2\" VKG10, NEMA 4"]
["VA33-NF-200",null,"SQM33.550A9 to 2\" VKG10"]
["VA33-NF-200-270",null,"SQM33.550A9 to 2\" VKG10"]
["VA33-NF-200-N4",null,"SQM33.550A9 to 2\" VKG10, NEMA 4"]
["VA33-NF-250",null,"SQM33.550A9 to 2-1/2\" VKG10"]
["VA33-NF-250-270",null,"SQM33.550A9 to 2-1/2\" VKG10"]
["VA33-NF-250-N4",null,"SQM33.550A9 to 2-1/2\" VKG10, NEMA 4"]
["VA33-NF-300",null,"SQM33.550A9 to 3\" VKG10"]
["VA33-NF-300-270",null,"SQM33.550A9 to 3\" VKG10"]
["VA33-NF-300-N4",null,"SQM33.550A9 to 3\" VKG10, NEMA 4"]
["VA33-NF-400",null,"SQM33.550A9 to 4\" VKG10"]
["VA33-NF-400-N4",null,"SQM33.550A9 to 4\" VKG10, NEMA 4"]
["VA33-NFB-050",null,"SQM33.550A9 to 1/2\" VRG10"]
["VA33-NFB-075",null,"SQM33.550A9 to 3/4\" VRG10"]
["VA33-NFB-100",null,"SQM33.550A9 to 1\" VRG10"]
["VA33-NFB-125",null,"SQM33.550A9 to 1-1/4\" VRG10"]
["VA33-NFB-150",null,"SQM33.550A9 to 1-1/2\" VRG10"]
["VA33-NFB-200",null,"SQM33.550A9 to 2\" VRG10"]
["VA33-NFB-250",null,"SQM33.550A9 to 2-1/2\" VRG10"]
["VA33-NFB-300",null,"SQM33.550A9 to 3\" VRG10"]
["VA33-NFB-400",null,"SQM33.550A9 to 4\" VRG10"]
["VA33-NM-100",null,"SQM33.550A9 to 1\" VKG20"]
["VA33-NM-100-N4",null,"SQM33.550A9 to 1\" VKG20, NEMA 4"]
["VA33-NM-125",null,"SQM33.550A9 to 1-1/4\" VKG20"]
["VA33-NM-125-N4",null,"SQM33.550A9 to 1-1/4\" VKG20, NEMA 4"]
["VA33-NM-150",null,"SQM33.550A9 to 1-1/2\" VKG20"]
["VA33-NM-150-N4",null,"SQM33.550A9 to 1-1/2\" VKG20, NEMA 4"]
["VA33-NM-200",null,"SQM33.550A9 to 2\" VKG20"]
["VA33-NM-200-N4",null,"SQM33.550A9 to 2\" VKG20, NEMA 4"]
["VA33-NM-250",null,"SQM33.550A9 to 2-1/2\" VKG20"]
["VA33-NM-250-N4",null,"SQM33.550A9 to 2-1/2\" VKG20, NEMA 4"]
["VA33-NM-300",null,"SQM33.550A9 to 3\" VKG20"]
["VA33-NM-300-N4",null,"SQM33.550A9 to 3\" VKG20, NEMA 4"]
["VA33-NM-400",null,"SQM33.550A9 to 4\" VKG20"]
["VA33-NM-400-N4",null,"SQM33.550A9 to 4\" VKG20, NEMA 4"]
["VA33-NMB-100",null,"SQM33.550A9 to 1\" VRG20"]
["VA33-NMB-125",null,"SQM33.550A9 to 1-1/4\" VRG20"]
["VA33-NMB-150",null,"SQM33.550A9 to 1-1/2\" VRG20"]
["VA33-NMB-200",null,"SQM33.550A9 to 2\" VRG20"]
["VA33-NMB-250",null,"SQM33.550A9 to 2-1/2\" VRG20"]
["VA33-NMB-300",null,"SQM33.550A9 to 3\" VRG20"]
["VA33-NMB-400",null,"SQM33.550A9 to 4\" VRG20"]
["VA33-NR-150",null,"SQM33.550A9 to 1-1/2\" VKG30"]
["VA33-NR-150-N4",null,"SQM33.550A9 to 1-1/2\" VKG30, NEMA 4"]
["VA33-NR-200",null,"SQM33.550A9 to 2\" VKG30"]
["VA33-NR-200-N4",null,"SQM33.550A9 to 2\" VKG30, NEMA 4"]
["VA33-NR-250",null,"SQM33.550A9 to 2-1/2\" VKG30"]
["VA33-NR-250-N4",null,"SQM33.550A9 to 2-1/2\" VKG30, NEMA 4"]
["VA33-NR-300",null,"SQM33.550A9 to 3\" VKG30"]
["VA33-NR-300-N4",null,"SQM33.550A9 to 3\" VKG30, NEMA 4"]
["VA33-NR-400",null,"SQM33.550A9 to 4\" VKG30"]
["VA33-NR-400-N4",null,"SQM33.550A9 to 4\" VKG30, NEMA 4"]
["VA33-NRB-150",null,"SQM33.550A9 to 1-1/2\" VRG30"]
["VA33-NRB-200",null,"SQM33.550A9 to 2\" VRG30"]
["VA33-NRB-250",null,"SQM33.550A9 to 2-1/2\" VRG30"]
["VA33-NRB-300",null,"SQM33.550A9 to 3\" VRG30"]
["VA33-NRB-400",null,"SQM33.550A9 to 4\" VRG30"]
["VA33-RF-050",null,"SQM33.550A9 to 1/2\" Rp VKG10"]
["VA33-RF-075",null,"SQM33.550A9 to 3/4\" Rp VKG10"]
["VA33-RF-100",null,"SQM33.550A9 to 1\" Rp VKG10"]
["VA33-RF-125",null,"SQM33.550A9 to 1-1/4\" Rp VKG10"]
["VA33-RF-150",null,"SQM33.550A9 to 1-1/2\" Rp VKG10"]
["VA33-RF-200",null,"SQM33.550A9 to 2\" Rp VKG10"]
["VA33-RF-250",null,"SQM33.550A9 to 2-1/2\" Rp VKG10"]
["VA33-RF-300",null,"SQM33.550A9 to 3\" Rp VKG10"]
["VA33-RM-100",null,"SQM33.550A9 to 1\" Rp VKG20"]
["VA33-RM-125",null,"SQM33.550A9 to 1-1/4\" Rp VKG20"]
["VA33-RM-150",null,"SQM33.550A9 to 1-1/2\" Rp VKG20"]
["VA33-RM-200",null,"SQM33.550A9 to 2\" Rp VKG20"]
["VA33-RM-250",null,"SQM33.550A9 to 2-1/2\" Rp VKG20"]
["VA33-RM-300",null,"SQM33.550A9 to 3\" Rp VKG20"]
["VA33-RR-150",null,"SQM33.550A9 to 1-1/2\" Rp VKG30"]
["VA33-RR-200",null,"SQM33.550A9 to 2\" Rp VKG30"]
["VA33-RR-250",null,"SQM33.550A9 to 2-1/2\" Rp VKG30"]
["VA33-RR-300",null,"SQM33.550A9 to 3\" Rp VKG30"]
["VA40.11-NF-050",null,"SQM40.115R11 to 1/2\" VKG10"]
["VA40.11-NF-075",null,"SQM40.115R11 to 3/4\" VKG10"]
["VA40.11-NF-100",null,"SQM40.115R11 to 1\" VKG10"]
["VA40.11-NF-125",null,"SQM40.115R11 to 1-1/4\" VKG10"]
["VA40.11-NF-150",null,"SQM40.115R11 to 1-1/2\" VKG10"]
["VA40.11-NF-200",null,"SQM40.115R11 to 2\" VKG10"]
["VA40.11-NF-250",null,"SQM40.115R11 to 2-1/2\" VKG10"]
["VA40.11-NF-300",null,"SQM40.115R11 to 3\" VKG10"]
["VA40.11-NF-400",null,"SQM40.115R11 to 4\" VKG10"]
["VA40.11-NM-100",null,"SQM40.115R11 to 1\" VKG20"]
["VA40.11-NM-125",null,"SQM40.115R11 to 1-1/4\" VKG20"]
["VA40.11-NM-150",null,"SQM40.115R11 to 1-1/2\" VKG20"]
["VA40.11-NM-200",null,"SQM40.115R11 to 2\" VKG20"]
["VA40.11-NM-250",null,"SQM40.115R11  to 2-1/2\" VKG20"]
["VA40.11-NM-300",null,"SQM40.115R11 to 3\" VKG20"]
["VA40.11-NM-400",null,"SQM40.115R11 to 4\" VKG20"]
["VA40.11-NR-150",null,"SQM40.115R11 to 1-1/2\" VKG30"]
["VA40.11-NR-200",null,"SQM40.115R11 to 2\" VKG30"]
["VA40.11-NR-250",null,"SQM40.115R11 to 2-1/2\" VKG30"]
["VA40.11-NR-300",null,"SQM40.115R11 to 3\" VKG30"]
["VA40.11-NR-400",null,"SQM40.115R11 to 4\" VKG30"]
["VA40.11-RF-050",null,"SQM40.115R11 to 1/2\" Rp VKG10"]
["VA40.11-RF-075",null,"SQM40.115R11 to 3/4\" Rp VKG10"]
["VA40.11-RF-100",null,"SQM40.115R11 to 1\" Rp VKG10"]
["VA40.11-RF-125",null,"SQM40.115R11 to 1-1/4\" Rp VKG10"]
["VA40.11-RF-150",null,"SQM40.115R11 to 1-1/2\" Rp VKG10"]
["VA40.11-RF-200",null,"SQM40.115R11 to 2\" Rp VKG10"]
["VA40.11-RF-250",null,"SQM40.115R11 to 2-1/2\" Rp VKG10"]
["VA40.11-RF-300",null,"SQM40.115R11 to 3\" Rp VKG10"]
["VA40.11-RM-100",null,"SQM40.115R11 to 1\" Rp VKG20"]
["VA40.11-RM-125",null,"SQM40.115R11 to 1-1/4\" Rp VKG20"]
["VA40.11-RM-150",null,"SQM40.115R11 to 1-1/2\" Rp VKG20"]
["VA40.11-RM-200",null,"SQM40.115R11  to 2\" Rp VKG20"]
["VA40.11-RM-250",null,"SQM40.115R11 to 2-1/2\" Rp VKG20"]
["VA40.11-RM-300",null,"SQM40.115R11 to 3\" Rp VKG20"]
["VA40.11-RR-150",null,"SQM40.115R11 to 1-1/2\" Rp VKG30"]
["VA40.11-RR-200",null,"SQM40.115R11 to 2\" Rp VKG30"]
["VA40.11-RR-250",null,"SQM40.115R11 to 2-1/2\" Rp VKG30"]
["VA40.11-RR-300",null,"SQM40.115R11 to 3\" Rp VKG30"]
["VA40.14(220)-NF-050",null,"SQM40.145A21 to 1/2\" VKG10"]
["VA40.14(220)-NF-075",null,"SQM40.145A21 to 3/4\" VKG10"]
["VA40.14(220)-NF-100",null,"SQM40.145A21 to 1\" VKG10"]
["VA40.14(220)-NF-125",null,"SQM40.145A21 to 1-1/4\" VKG10"]
["VA40.14(220)-NF-150",null,"SQM40.145A21 to 1-1/2\" VKG10"]
["VA40.14(220)-NF-200",null,"SQM40.145A21 to 2\" VKG10"]
["VA40.14(220)-NF-250",null,"SQM40.145A21 to 2-1/2\" VKG10"]
["VA40.14(220)-NF-300",null,"SQM40.145A21 to 3\" VKG10"]
["VA40.14(220)-NF-400",null,"SQM40.145A21 to 4\" VKG10"]
["VA40.14(220)-NM-100",null,"SQM40.145A21 to 1\" VKG20"]
["VA40.14(220)-NM-125",null,"SQM40.145A21 to 1-1/4\" VKG20"]
["VA40.14(220)-NM-150",null,"SQM40.145A21 to 1-1/2\" VKG20"]
["VA40.14(220)-NM-200",null,"SQM40.145A21 to 2\" VKG20"]
["VA40.14(220)-NM-250",null,"SQM40.145A21 to 2-1/2\" VKG20"]
["VA40.14(220)-NM-300",null,"SQM40.145A21 to 3\" VKG20"]
["VA40.14(220)-NM-400",null,"SQM40.145A21 to 4\" VKG20"]
["VA40.14(220)-NR-150",null,"SQM40.145A21 to 1-1/2\" VKG30"]
["VA40.14(220)-NR-200",null,"SQM40.145A21 to 2\" VKG30"]
["VA40.14(220)-NR-250",null,"SQM40.145A21 to 2-1/2\" VKG30"]
["VA40.14(220)-NR-300",null,"SQM40.145A21 to 3\" VKG30"]
["VA40.14(220)-NR-400",null,"SQM40.145A21 to 4\" VKG30"]
["VA40.14(220)-RF-050",null,"SQM40.145A21 to 1/2\" Rp VKG10"]
["VA40.14(220)-RF-075",null,"SQM40.145A21 to 3/4\" Rp VKG10"]
["VA40.14(220)-RF-100",null,"SQM40.145A21 to 1\" Rp VKG10"]
["VA40.14(220)-RF-125",null,"SQM40.145A21 to 1-1/4\" Rp VKG10"]
["VA40.14(220)-RF-150",null,"SQM40.145A21 to 1-1/2\" Rp VKG10"]
["VA40.14(220)-RF-200",null,"SQM40.145A21 to 2\" Rp VKG10"]
["VA40.14(220)-RF-250",null,"SQM40.145A21 to 2-1/2\" Rp VKG10"]
["VA40.14(220)-RF-300",null,"SQM40.145A21 to 3\" Rp VKG10"]
["VA40.14(220)-RM-100",null,"SQM40.145A21 to 1\" Rp VKG20"]
["VA40.14(220)-RM-125",null,"SQM40.145A21 to 1-1/4\" Rp VKG20"]
["VA40.14(220)-RM-150",null,"SQM40.145A21 to 1-1/2\" Rp VKG20"]
["VA40.14(220)-RM-200",null,"SQM40.145A21 to 2\" Rp VKG20"]
["VA40.14(220)-RM-250",null,"SQM40.145A21 to 2-1/2\" Rp VKG20"]
["VA40.14(220)-RM-300",null,"SQM40.145A21 to 3\" Rp VKG20"]
["VA40.14(220)-RR-150",null,"SQM40.145A21 to 1-1/2\" Rp VKG30"]
["VA40.14(220)-RR-200",null,"SQM40.145A21 to 2\" Rp VKG30"]
["VA40.14(220)-RR-250",null,"SQM40.145A21 to 2-1/2\" Rp VKG30"]
["VA40.14(220)-RR-300",null,"SQM40.145A21 to 3\" Rp VKG30"]
["VA40.15-NF-050",null,"SQM40.155R11 to 1/2\" VKG10"]
["VA40.15-NF-075",null,"SQM40.155R11 to 3/4\" VKG10"]
["VA40.15-NF-100",null,"SQM40.155R11 to 1\" VKG10"]
["VA40.15-NF-125",null,"SQM40.155R11 to 1-1/4\" VKG10"]
["VA40.15-NF-150",null,"SQM40.155R11 to 1-1/2\" VKG10"]
["VA40.15-NF-200",null,"SQM40.155R11 to 2\" VKG10"]
["VA40.15-NF-250",null,"SQM40.155R11 to 2-1/2\" VKG10"]
["VA40.15-NF-300",null,"SQM40.155R11 to 3\" VKG10"]
["VA40.15-NF-400",null,"SQM40.155R11 to 4\" VKG10"]
["VA40.15-NM-100",null,"SQM40.155R11 to 1\" VKG20"]
["VA40.15-NM-125",null,"SQM40.155R11 to 1-1/4\" VKG20"]
["VA40.15-NM-150",null,"SQM40.155R11 to 1-1/2\" VKG20"]
["VA40.15-NM-200",null,"SQM40.155R11 to 2\" VKG20"]
["VA40.15-NM-250",null,"SQM40.155R11  to 2-1/2\" VKG20"]
["VA40.15-NM-300",null,"SQM40.155R11 to 3\" VKG20"]
["VA40.15-NM-400",null,"SQM40.155R11 to 4\" VKG20"]
["VA40.15-NR-150",null,"SQM40.155R11 to 1-1/2\" VKG30"]
["VA40.15-NR-150-180",null,"SQM40.155R11 rotated 180 deg to 1-1/2\" reduced port butterfly valve VA "]
["VA40.15-NR-200",null,"SQM40.155R11 to 2\" VKG30"]
["VA40.15-NR-250",null,"SQM40.155R11 to 2-1/2\" VKG30"]
["VA40.15-NR-300",null,"SQM40.155R11 to 3\" VKG30"]
["VA40.15-NR-400",null,"SQM40.155R11 to 4\" VKG30"]
["VA40.15-RF-050",null,"SQM40.155R11 to 1/2\" Rp VKG10"]
["VA40.15-RF-075",null,"SQM40.155R11 to 3/4\" Rp VKG10"]
["VA40.15-RF-100",null,"SQM40.155R11 to 1\" Rp VKG10"]
["VA40.15-RF-125",null,"SQM40.155R11 to 1-1/4\" Rp VKG10"]
["VA40.15-RF-150",null,"SQM40.155R11 to 1-1/2\" Rp VKG10"]
["VA40.15-RF-200",null,"SQM40.155R11 to 2\" Rp VKG10"]
["VA40.15-RF-250",null,"SQM40.155R11 to 2-1/2\" Rp VKG10"]
["VA40.15-RF-300",null,"SQM40.155R11 to 3\" Rp VKG10"]
["VA40.15-RM-100",null,"SQM40.155R11 to 1\" Rp VKG20"]
["VA40.15-RM-125",null,"SQM40.155R11 to 1-1/4\" Rp VKG20"]
["VA40.15-RM-150",null,"SQM40.155R11 to 1-1/2\" Rp VKG20"]
["VA40.15-RM-200",null,"SQM40.155R11  to 2\" Rp VKG20"]
["VA40.15-RM-250",null,"SQM40.155R11 to 2-1/2\" Rp VKG20"]
["VA40.15-RM-300",null,"SQM40.155R11 to 3\" Rp VKG20"]
["VA40.15-RR-150",null,"SQM40.155R11 to 1-1/2\" Rp VKG30"]
["VA40.15-RR-200",null,"SQM40.155R11 to 2\" Rp VKG30"]
["VA40.15-RR-250",null,"SQM40.155R11 to 2-1/2\" Rp VKG30"]
["VA40.15-RR-300",null,"SQM40.155R11 to 3\" Rp VKG30"]
["VA40.18-NF-050",null,"SQM40.185R11 to 1/2\" VKG10"]
["VA40.18-NF-075",null,"SQM40.185R11 to 3/4\" VKG10"]
["VA40.18-NF-100",null,"SQM40.185R11 to 1\" VKG10"]
["VA40.18-NF-125",null,"SQM40.185R11 to 1-1/4\" VKG10"]
["VA40.18-NF-150",null,"SQM40.185R11 to 1-1/2\" VKG10"]
["VA40.18-NF-200",null,"SQM40.185R11 to 2\" VKG10"]
["VA40.18-NF-250",null,"SQM40.185R11 to 2-1/2\" VKG10"]
["VA40.18-NF-300",null,"SQM40.185R11 to 3\" VKG10"]
["VA40.18-NF-400",null,"SQM40.185R11 to 4\" VKG10"]
["VA40.18-NM-100",null,"SQM40.185R11 to 1\" VKG20"]
["VA40.18-NM-125",null,"SQM40.185R11 to 1-1/4\" VKG20"]
["VA40.18-NM-150",null,"SQM40.185R11 to 1-1/2\" VKG20"]
["VA40.18-NM-200",null,"SQM40.185R11 to 2\" VKG20"]
["VA40.18-NM-250",null,"SQM40.185R11 to 2-1/2\" VKG20"]
["VA40.18-NM-300",null,"SQM40.185R11 to 3\" VKG20"]
["VA40.18-NM-400",null,"SQM40.185R11 to 4\" VKG20"]
["VA40.18-NR-150",null,"SQM40.185R11 to 1-1/2\" VKG30"]
["VA40.18-NR-200",null,"SQM40.185R11 to 2\" VKG30"]
["VA40.18-NR-250",null,"SQM40.185R11 to 2-1/2\" VKG30"]
["VA40.18-NR-300",null,"SQM40.185R11 to 3\" VKG30"]
["VA40.18-NR-400",null,"SQM40.185R11 to 4\" VKG30"]
["VA40.18-RF-050",null,"SQM40.185R11 to 1/2\" Rp VKG10"]
["VA40.18-RF-075",null,"SQM40.185R11 to 3/4\" Rp VKG10"]
["VA40.18-RF-100",null,"SQM40.185R11 to 1\" Rp VKG10"]
["VA40.18-RF-125",null,"SQM40.185R11 to 1-1/4\" Rp VKG10"]
["VA40.18-RF-150",null,"SQM40.185R11 to 1-1/2\" Rp VKG10"]
["VA40.18-RF-200",null,"SQM40.185R11 to 2\" Rp VKG10"]
["VA40.18-RF-250",null,"SQM40.185R11 to 2-1/2\" Rp VKG10"]
["VA40.18-RF-300",null,"SQM40.185R11 to 3\" Rp VKG10"]
["VA40.18-RM-100",null,"SQM40.185R11 to 1\" Rp VKG20"]
["VA40.18-RM-125",null,"SQM40.185R11 to 1-1/4\" Rp VKG20"]
["VA40.18-RM-150",null,"SQM40.185R11 to 1-1/2\" Rp VKG20"]
["VA40.18-RM-200",null,"SQM40.185R11 to 2\" Rp VKG20"]
["VA40.18-RM-250",null,"SQM40.185R11 to 2-1/2\" Rp VKG20"]
["VA40.18-RM-300",null,"SQM40.185R11 to 3\" Rp VKG20"]
["VA40.18-RR-150",null,"SQM40.185R11 to 1-1/2\" Rp VKG30"]
["VA40.18-RR-200",null,"SQM40.185R11 to 2\" Rp VKG30"]
["VA40.18-RR-250",null,"SQM40.185R11 to 2-1/2\" Rp VKG30"]
["VA40.18-RR-300",null,"SQM40.185R11 to 3\" Rp VKG30"]
["VA40.2(220)-NF-050",null,{"$error":"#N/A"}]
["VA40.2(220)-NF-075",null,{"$error":"#N/A"}]
["VA40.2(220)-NF-100",null,{"$error":"#N/A"}]
["VA40.2(220)-NF-125",null,{"$error":"#N/A"}]
["VA40.2(220)-NF-150",null,{"$error":"#N/A"}]
["VA40.2(220)-NF-200",null,{"$error":"#N/A"}]
["VA40.2(220)-NF-250",null,{"$error":"#N/A"}]
["VA40.2(220)-NF-300",null,{"$error":"#N/A"}]
["VA40.2(220)-NF-400",null,{"$error":"#N/A"}]
["VA40.2(220)-NM-100",null,{"$error":"#N/A"}]
["VA40.2(220)-NM-125",null,{"$error":"#N/A"}]
["VA40.2(220)-NM-150",null,{"$error":"#N/A"}]
["VA40.2(220)-NM-200",null,{"$error":"#N/A"}]
["VA40.2(220)-NM-250",null,{"$error":"#N/A"}]
["VA40.2(220)-NM-300",null,{"$error":"#N/A"}]
["VA40.2(220)-NM-400",null,{"$error":"#N/A"}]
["VA40.2(220)-NR-150",null,{"$error":"#N/A"}]
["VA40.2(220)-NR-200",null,{"$error":"#N/A"}]
["VA40.2(220)-NR-250",null,{"$error":"#N/A"}]
["VA40.2(220)-NR-300",null,{"$error":"#N/A"}]
["VA40.2(220)-NR-400",null,{"$error":"#N/A"}]
["VA40.21-NF-050",null,"SQM40.215R11 to 1/2\" VKG10"]
["VA40.21-NF-075",null,"SQM40.215R11 to 3/4\" VKG10"]
["VA40.21-NF-100",null,"SQM40.215R11 to 1\" VKG10"]
["VA40.21-NF-125",null,"SQM40.215R11 to 1-1/4\" VKG10"]
["VA40.21-NF-150",null,"SQM40.215R11 to 1-1/2\" VKG10"]
["VA40.21-NF-200",null,"SQM40.215R11 to 2\" VKG10"]
["VA40.21-NF-250",null,"SQM40.215R11 to 2-1/2\" VKG10"]
["VA40.21-NF-300",null,"SQM40.215R11 to 3\" VKG10"]
["VA40.21-NF-400",null,"SQM40.215R11 to 4\" VKG10"]
["VA40.21-NM-100",null,"SQM40.215R11 to 1\" VKG20"]
["VA40.21-NM-125",null,"SQM40.215R11 to 1-1/4\" VKG20"]
["VA40.21-NM-150",null,"SQM40.215R11 to 1-1/2\" VKG20"]
["VA40.21-NM-200",null,"SQM40.215R11 to 2\" VKG20"]
["VA40.21-NM-250",null,"SQM40.215R11 to 2-1/2\" VKG20"]
["VA40.21-NM-300",null,"SQM40.215R11 to 3\" VKG20"]
["VA40.21-NM-400",null,"SQM40.215R11 to 4\" VKG20"]
["VA40.21-NR-150",null,"SQM40.215R11 to 1-1/2\" VKG30"]
["VA40.21-NR-200",null,"SQM40.215R11 to 2\" VKG30"]
["VA40.21-NR-250",null,"SQM40.215R11 to 2-1/2\" VKG30"]
["VA40.21-NR-300",null,"SQM40.215R11 to 3\" VKG30"]
["VA40.21-NR-400",null,"SQM40.215R11 to 4\" VKG30"]
["VA40.21-RF-050",null,"SQM40.215R11 to 1/2\" Rp VKG10"]
["VA40.21-RF-075",null,"SQM40.215R11 to 3/4\" Rp VKG10"]
["VA40.21-RF-100",null,"SQM40.215R11 to 1\" Rp VKG10"]
["VA40.21-RF-125",null,"SQM40.215R11 to 1-1/4\" Rp VKG10"]
["VA40.21-RF-150",null,"SQM40.215R11 to 1-1/2\" Rp VKG10"]
["VA40.21-RF-200",null,"SQM40.215R11 to 2\" Rp VKG10"]
["VA40.21-RF-250",null,"SQM40.215R11 to 2-1/2\" Rp VKG10"]
["VA40.21-RF-300",null,"SQM40.215R11 to 3\" Rp VKG10"]
["VA40.21-RM-100",null,"SQM40.215R11 to 1\" Rp VKG20"]
["VA40.21-RM-125",null,"SQM40.215R11 to 1-1/4\" Rp VKG20"]
["VA40.21-RM-150",null,"SQM40.215R11 to 1-1/2\" Rp VKG20"]
["VA40.21-RM-200",null,"SQM40.215R11 to 2\" Rp VKG20"]
["VA40.21-RM-250",null,"SQM40.215R11 to 2-1/2\" Rp VKG20"]
["VA40.21-RM-300",null,"SQM40.215R11 to 3\" Rp VKG20"]
["VA40.21-RR-150",null,"SQM40.215R11 to 1-1/2\" Rp VKG30"]
["VA40.21-RR-200",null,"SQM40.215R11 to 2\" Rp VKG30"]
["VA40.21-RR-250",null,"SQM40.215R11 to 2-1/2\" Rp VKG30"]
["VA40.21-RR-300",null,"SQM40.215R11 to 3\" Rp VKG30"]
["VA40.25(220)-NF-050",null,"SQM40.255A21 to 1/2\" VKG10"]
["VA40.25(220)-NF-075",null,"SQM40.255A21 to 3/4\" VKG10"]
["VA40.25(220)-NF-100",null,"SQM40.255A21 to 1\" VKG10"]
["VA40.25(220)-NF-125",null,"SQM40.255A21 to 1-1/4\" VKG10"]
["VA40.25(220)-NF-150",null,"SQM40.255A21 to 1-1/2\" VKG10"]
["VA40.25(220)-NF-200",null,"SQM40.255A21 to 2\" VKG10"]
["VA40.25(220)-NF-250",null,"SQM40.255A21 to 2-1/2\" VKG10"]
["VA40.25(220)-NF-300",null,"SQM40.255A21 to 3\" VKG10"]
["VA40.25(220)-NF-400",null,"SQM40.255A21 to 4\" VKG10"]
["VA40.25(220)-NM-100",null,"SQM40.255A21 to 1\" VKG20"]
["VA40.25(220)-NM-125",null,"SQM40.255A21 to 1-1/4\" VKG20"]
["VA40.25(220)-NM-150",null,"SQM40.255A21 to 1-1/2\" VKG20"]
["VA40.25(220)-NM-200",null,"SQM40.255A21 to 2\" VKG20"]
["VA40.25(220)-NM-250",null,"SQM40.255A21 to 2-1/2\" VKG20"]
["VA40.25(220)-NM-300",null,"SQM40.255A21 to 3\" VKG20"]
["VA40.25(220)-NM-400",null,"SQM40.255A21 to 4\" VKG20"]
["VA40.25(220)-NR-150",null,"SQM40.255A21 to 1-1/2\" VKG30"]
["VA40.25(220)-NR-200",null,"SQM40.255A21 to 2\" VKG30"]
["VA40.25(220)-NR-250",null,"SQM40.255A21 to 2-1/2\" VKG30"]
["VA40.25(220)-NR-300",null,"SQM40.255A21 to 3\" VKG30"]
["VA40.25(220)-NR-400",null,"SQM40.255A21 to 4\" VKG30"]
["VA40.25(220)-RF-050",null,"SQM40.255A21 to 1/2\" Rp VKG10"]
["VA40.25(220)-RF-075",null,"SQM40.255A21 to 3/4\" Rp VKG10"]
["VA40.25(220)-RF-100",null,"SQM40.255A21 to 1\" Rp VKG10"]
["VA40.25(220)-RF-125",null,"SQM40.255A21 to 1-1/4\" Rp VKG10"]
["VA40.25(220)-RF-150",null,"SQM40.255A21 to 1-1/2\" Rp VKG10"]
["VA40.25(220)-RF-200",null,"SQM40.255A21 to 2\" Rp VKG10"]
["VA40.25(220)-RF-250",null,"SQM40.255A21 to 2-1/2\" Rp VKG10"]
["VA40.25(220)-RF-300",null,"SQM40.255A21 to 3\" Rp VKG10"]
["VA40.25(220)-RM-100",null,"SQM40.255A21 to 1\" Rp VKG20"]
["VA40.25(220)-RM-125",null,"SQM40.255A21 to 1-1/4\" Rp VKG20"]
["VA40.25(220)-RM-150",null,"SQM40.255A21 to 1-1/2\" Rp VKG20"]
["VA40.25(220)-RM-200",null,"SQM40.255A21 to 2\" Rp VKG20"]
["VA40.25(220)-RM-250",null,"SQM40.255A21 to 2-1/2\" Rp VKG20"]
["VA40.25(220)-RM-300",null,"SQM40.255A21 to 3\" Rp VKG20"]
["VA40.25(220)-RR-150",null,"SQM40.255A21 to 1-1/2\" Rp VKG30"]
["VA40.25(220)-RR-200",null,"SQM40.255A21 to 2\" Rp VKG30"]
["VA40.25(220)-RR-250",null,"SQM40.255A21 to 2-1/2\" Rp VKG30"]
["VA40.25(220)-RR-300",null,"SQM40.255A21 to 3\" Rp VKG30"]
["VA40.25-NF-050",null,"SQM40.255R11 to 1/2\" VKG10"]
["VA40.25-NF-075",null,"SQM40.255R11 to 3/4\" VKG10"]
["VA40.25-NF-100",null,"SQM40.255R11 to 1\" VKG10"]
["VA40.25-NF-125",null,"SQM40.255R11 to 1-1/4\" VKG10"]
["VA40.25-NF-150",null,"SQM40.255R11 to 1-1/2\" VKG10"]
["VA40.25-NF-200",null,"SQM40.255R11 to 2\" VKG10"]
["VA40.25-NF-250",null,"SQM40.255R11 to 2-1/2\" VKG10"]
["VA40.25-NF-300",null,"SQM40.255R11 to 3\" VKG10"]
["VA40.25-NF-400",null,"SQM40.255R11 to 4\" VKG10"]
["VA40.25-NM-100",null,"SQM40.255R11 to 1\" VKG20"]
["VA40.25-NM-100-180",null,"SQM40.255R11 to 1\" VKG20"]
["VA40.25-NM-125",null,"SQM40.255R11 to 1-1/4\" VKG20"]
["VA40.25-NM-150",null,"SQM40.255R11 to 1-1/2\" VKG20"]
["VA40.25-NM-200",null,"SQM40.255R11 to 2\" VKG20"]
["VA40.25-NM-250",null,"SQM40.255R11 to 2-1/2\" VKG20"]
["VA40.25-NM-300",null,"SQM40.255R11 to 3\" VKG20"]
["VA40.25-NM-400",null,"SQM40.255R11 to 4\" VKG20"]
["VA40.25-NR-150",null,"SQM40.255R11 to 1-1/2\" VKG30"]
["VA40.25-NR-200",null,"SQM40.255R11 to 2\" VKG30"]
["VA40.25-NR-250",null,"SQM40.255R11 to 2-1/2\" VKG30"]
["VA40.25-NR-300",null,"SQM40.255R11 to 3\" VKG30"]
["VA40.25-NR-400",null,"SQM40.255R11 to 4\" VKG30"]
["VA40.25-RF-050",null,"SQM40.255R11 to 1/2\" Rp VKG10"]
["VA40.25-RF-075",null,"SQM40.255R11 to 3/4\" Rp VKG10"]
["VA40.25-RF-100",null,"SQM40.255R11 to 1\" Rp VKG10"]
["VA40.25-RF-125",null,"SQM40.255R11 to 1-1/4\" Rp VKG10"]
["VA40.25-RF-150",null,"SQM40.255R11 to 1-1/2\" Rp VKG10"]
["VA40.25-RF-200",null,"SQM40.255R11 to 2\" Rp VKG10"]
["VA40.25-RF-250",null,"SQM40.255R11 to 2-1/2\" Rp VKG10"]
["VA40.25-RF-300",null,"SQM40.255R11 to 3\" Rp VKG10"]
["VA40.25-RM-100",null,"SQM40.255R11 to 1\" Rp VKG20"]
["VA40.25-RM-125",null,"SQM40.255R11 to 1-1/4\" Rp VKG20"]
["VA40.25-RM-150",null,"SQM40.255R11 to 1-1/2\" Rp VKG20"]
["VA40.25-RM-200",null,"SQM40.255R11 to 2\" Rp VKG20"]
["VA40.25-RM-250",null,"SQM40.255R11 to 2-1/2\" Rp VKG20"]
["VA40.25-RM-300",null,"SQM40.255R11 to 3\" Rp VKG20"]
["VA40.25-RR-150",null,"SQM40.255R11 to 1-1/2\" Rp VKG30"]
["VA40.25-RR-200",null,"SQM40.255R11 to 2\" Rp VKG30"]
["VA40.25-RR-250",null,"SQM40.255R11 to 2-1/2\" Rp VKG30"]
["VA40.25-RR-300",null,"SQM40.255R11 to 3\" Rp VKG30"]
["VA40.26(220)-NF-050",null,"SQM40.265A21 to 1/2\" VKG10"]
["VA40.26(220)-NF-075",null,"SQM40.265A21 to 3/4\" VKG10"]
["VA40.26(220)-NF-100",null,"SQM40.265A21 to 1\" VKG10"]
["VA40.26(220)-NF-125",null,"SQM40.265A21 to 1-1/4\" VKG10"]
["VA40.26(220)-NF-150",null,"SQM40.265A21 to 1-1/2\" VKG10"]
["VA40.26(220)-NF-200",null,"SQM40.265A21 to 2\" VKG10"]
["VA40.26(220)-NF-250",null,"SQM40.265A21 to 2-1/2\" VKG10"]
["VA40.26(220)-NF-300",null,"SQM40.265A21 to 3\" VKG10"]
["VA40.26(220)-NF-400",null,"SQM40.265A21 to 4\" VKG10"]
["VA40.26(220)-NM-100",null,"SQM40.265A21 to 1\" VKG20"]
["VA40.26(220)-NM-125",null,"SQM40.265A21 to 1-1/4\" VKG20"]
["VA40.26(220)-NM-150",null,"SQM40.265A21 to 1-1/2\" VKG20"]
["VA40.26(220)-NM-200",null,"SQM40.265A21 to 2\" VKG20"]
["VA40.26(220)-NM-250",null,"SQM40.265A21 to 2-1/2\" VKG20"]
["VA40.26(220)-NM-300",null,"SQM40.265A21 to 3\" VKG20"]
["VA40.26(220)-NM-400",null,"SQM40.265A21 to 4\" VKG20"]
["VA40.26(220)-NR-150",null,"SQM40.265A21 to 1-1/2\" VKG30"]
["VA40.26(220)-NR-200",null,"SQM40.265A21 to 2\" VKG30"]
["VA40.26(220)-NR-250",null,"SQM40.265A21 to 2-1/2\" VKG30"]
["VA40.26(220)-NR-300",null,"SQM40.265A21 to 3\" VKG30"]
["VA40.26(220)-NR-400",null,"SQM40.265A21 to 4\" VKG30"]
["VA40.26-NF-050",null,"SQM40.265R11 to 1/2\" VKG10"]
["VA40.26-NF-075",null,"SQM40.265R11 to 3/4\" VKG10"]
["VA40.26-NF-100",null,"SQM40.265R11 to 1\" VKG10"]
["VA40.26-NF-125",null,"SQM40.265R11 to 1-1/4\" VKG10"]
["VA40.26-NF-150",null,"SQM40.265R11 to 1-1/2\" VKG10"]
["VA40.26-NF-200",null,"SQM40.265R11 to 2\" VKG10"]
["VA40.26-NF-250",null,"SQM40.265R11 to 2-1/2\" VKG10"]
["VA40.26-NF-300",null,"SQM40.265R11 to 3\" VKG10"]
["VA40.26-NF-400",null,"SQM40.265R11 to 4\" VKG10"]
["VA40.26-NM-100",null,"SQM40.265R11 to 1\" VKG20"]
["VA40.26-NM-125",null,"SQM40.265R11 to 1-1/4\" VKG20"]
["VA40.26-NM-150",null,"SQM40.265R11 to 1-1/2\" VKG20"]
["VA40.26-NM-200",null,"SQM40.265R11 to 2\" VKG20"]
["VA40.26-NM-250",null,"SQM40.265R11 to 2-1/2\" VKG20"]
["VA40.26-NM-300",null,"SQM40.265R11 to 3\" VKG20"]
["VA40.26-NM-400",null,"SQM40.265R11 to 4\" VKG20"]
["VA40.26-NR-150",null,"SQM40.265R11 to 1-1/2\" VKG30"]
["VA40.26-NR-200",null,"SQM40.265R11 to 2\" VKG30"]
["VA40.26-NR-250",null,"SQM40.265R11 to 2-1/2\" VKG30"]
["VA40.26-NR-300",null,"SQM40.265R11 to 3\" VKG30"]
["VA40.26-NR-400",null,"SQM40.265R11 to 4\" VKG30"]
["VA40.26-RF-050",null,"SQM40.265R11 to 1/2\" Rp VKG10"]
["VA40.26-RF-075",null,"SQM40.265R11 to 3/4\" Rp VKG10"]
["VA40.26-RF-100",null,"SQM40.265R11 to 1\" Rp VKG10"]
["VA40.26-RF-125",null,"SQM40.265R11 to 1-1/4\" Rp VKG10"]
["VA40.26-RF-150",null,"SQM40.265R11 to 1-1/2\" Rp VKG10"]
["VA40.26-RF-200",null,"SQM40.265R11 to 2\" Rp VKG10"]
["VA40.26-RF-250",null,"SQM40.265R11 to 2-1/2\" Rp VKG10"]
["VA40.26-RF-300",null,"SQM40.265R11 to 3\" Rp VKG10"]
["VA40.26-RM-100",null,"SQM40.265R11 to 1\" Rp VKG20"]
["VA40.26-RM-125",null,"SQM40.265R11 to 1-1/4\" Rp VKG20"]
["VA40.26-RM-150",null,"SQM40.265R11 to 1-1/2\" Rp VKG20"]
["VA40.26-RM-200",null,"SQM40.265R11 to 2\" Rp VKG20"]
["VA40.26-RM-250",null,"SQM40.265R11 to 2-1/2\" Rp VKG20"]
["VA40.26-RM-300",null,"SQM40.265R11 to 3\" Rp VKG20"]
["VA40.26-RR-150",null,"SQM40.265R11 to 1-1/2\" Rp VKG30"]
["VA40.26-RR-200",null,"SQM40.265R11 to 2\" Rp VKG30"]
["VA40.26-RR-250",null,"SQM40.265R11 to 2-1/2\" Rp VKG30"]
["VA40.26-RR-300",null,"SQM40.265R11 to 3\" Rp VKG30"]
["VA40.27-NF-050",null,"SQM40.275R10 to 1/2\" VKG10"]
["VA40.27-NF-075",null,"SQM40.275R10 to 3/4\" VKG10"]
["VA40.27-NF-100",null,"SQM40.275R10 to 1\" VKG10"]
["VA40.27-NF-125",null,"SQM40.275R10 to 1-1/4\" VKG10"]
["VA40.27-NF-150",null,"SQM40.275R10 to 1-1/2\" VKG10"]
["VA40.27-NF-200",null,"SQM40.275R10 to 2\" VKG10"]
["VA40.27-NF-250",null,"SQM40.275R10 to 2-1/2\" VKG10"]
["VA40.27-NF-300",null,"SQM40.275R10 to 3\" VKG10"]
["VA40.27-NF-400",null,"SQM40.275R10 to 4\" VKG10"]
["VA40.27-NM-100",null,"SQM40.275R10 to 1\" VKG20"]
["VA40.27-NM-125",null,"SQM40.275R10 to 1-1/4\" VKG20"]
["VA40.27-NM-150",null,"SQM40.275R10 to 1-1/2\" VKG20"]
["VA40.27-NM-200",null,"SQM40.275R10 to 2\" VKG20"]
["VA40.27-NM-250",null,"SQM40.275R10 to 2-1/2\" VKG20"]
["VA40.27-NM-300",null,"SQM40.275R10 to 3\" VKG20"]
["VA40.27-NM-400",null,"SQM40.275R10 to 4\" VKG20"]
["VA40.27-NR-150",null,"SQM40.275R10 to 1-1/2\" VKG30"]
["VA40.27-NR-200",null,"SQM40.275R10 to 2\" VKG30"]
["VA40.27-NR-250",null,"SQM40.275R10 to 2-1/2\" VKG30"]
["VA40.27-NR-300",null,"SQM40.275R10 to 3\" VKG30"]
["VA40.27-NR-400",null,"SQM40.275R10 to 4\" VKG30"]
["VA40.27-RF-050",null,"SQM40.275R10 to 1/2\" Rp VKG10"]
["VA40.27-RF-075",null,"SQM40.275R10 to 3/4\" Rp VKG10"]
["VA40.27-RF-100",null,"SQM40.275R10 to 1\" Rp VKG10"]
["VA40.27-RF-125",null,"SQM40.275R10 to 1-1/4\" Rp VKG10"]
["VA40.27-RF-150",null,"SQM40.275R10 to 1-1/2\" Rp VKG10"]
["VA40.27-RF-200",null,"SQM40.275R10 to 2\" Rp VKG10"]
["VA40.27-RF-250",null,"SQM40.275R10 to 2-1/2\" Rp VKG10"]
["VA40.27-RF-300",null,"SQM40.275R10 to 3\" Rp VKG10"]
["VA40.27-RM-100",null,"SQM40.275R10 to 1\" Rp VKG20"]
["VA40.27-RM-125",null,"SQM40.275R10 to 1-1/4\" Rp VKG20"]
["VA40.27-RM-150",null,"SQM40.275R10 to 1-1/2\" Rp VKG20"]
["VA40.27-RM-200",null,"SQM40.275R10 to 2\" Rp VKG20"]
["VA40.27-RM-250",null,"SQM40.275R10 to 2-1/2\" Rp VKG20"]
["VA40.27-RM-300",null,"SQM40.275R10 to 3\" Rp VKG20"]
["VA40.27-RR-150",null,"SQM40.275R10 to 1-1/2\" Rp VKG30"]
["VA40.27-RR-200",null,"SQM40.275R10 to 2\" Rp VKG30"]
["VA40.27-RR-250",null,"SQM40.275R10 to 2-1/2\" Rp VKG30"]
["VA40.27-RR-300",null,"SQM40.275R10 to 3\" Rp VKG30"]
["VA40.28-NF-050",null,"SQM40.285R11 to 1/2\" VKG10"]
["VA40.28-NF-075",null,"SQM40.285R11 to 3/4\" VKG10"]
["VA40.28-NF-100",null,"SQM40.285R11 to 1\" VKG10"]
["VA40.28-NF-125",null,"SQM40.285R11 to 1-1/4\" VKG10"]
["VA40.28-NF-150",null,"SQM40.285R11 to 1-1/2\" VKG10"]
["VA40.28-NF-200",null,"SQM40.285R11 to 2\" VKG10"]
["VA40.28-NF-250",null,"SQM40.285R11 to 2-1/2\" VKG10"]
["VA40.28-NF-300",null,"SQM40.285R11 to 3\" VKG10"]
["VA40.28-NF-400",null,"SQM40.285R11 to 4\" VKG10"]
["VA40.28-NM-100",null,"SQM40.285R11 to 1\" VKG20"]
["VA40.28-NM-125",null,"SQM40.285R11 to 1-1/4\" VKG20"]
["VA40.28-NM-150",null,"SQM40.285R11 to 1-1/2\" VKG20"]
["VA40.28-NM-200",null,"SQM40.285R11 to 2\" VKG20"]
["VA40.28-NM-250",null,"SQM40.285R11 to 2-1/2\" VKG20"]
["VA40.28-NM-300",null,"SQM40.285R11 to 3\" VKG20"]
["VA40.28-NM-400",null,"SQM40.285R11 to 4\" VKG20"]
["VA40.28-NR-150",null,"SQM40.285R11 to 1-1/2\" VKG30"]
["VA40.28-NR-200",null,"SQM40.285R11 to 2\" VKG30"]
["VA40.28-NR-250",null,"SQM40.285R11 to 2-1/2\" VKG30"]
["VA40.28-NR-300",null,"SQM40.285R11 to 3\" VKG30"]
["VA40.28-NR-400",null,"SQM40.285R11 to 4\" VKG30"]
["VA40.28-RF-050",null,"SQM40.285R11 to 1/2\" Rp VKG10"]
["VA40.28-RF-075",null,"SQM40.285R11 to 3/4\" Rp VKG10"]
["VA40.28-RF-100",null,"SQM40.285R11 to 1\" Rp VKG10"]
["VA40.28-RF-125",null,"SQM40.285R11 to 1-1/4\" Rp VKG10"]
["VA40.28-RF-150",null,"SQM40.285R11 to 1-1/2\" Rp VKG10"]
["VA40.28-RF-200",null,"SQM40.285R11 to 2\" Rp VKG10"]
["VA40.28-RF-250",null,"SQM40.285R11 to 2-1/2\" Rp VKG10"]
["VA40.28-RF-300",null,"SQM40.285R11 to 3\" Rp VKG10"]
["VA40.28-RM-100",null,"SQM40.285R11 to 1\" Rp VKG20"]
["VA40.28-RM-125",null,"SQM40.285R11 to 1-1/4\" Rp VKG20"]
["VA40.28-RM-150",null,"SQM40.285R11 to 1-1/2\" Rp VKG20"]
["VA40.28-RM-200",null,"SQM40.285R11 to 2\" Rp VKG20"]
["VA40.28-RM-250",null,"SQM40.285R11 to 2-1/2\" Rp VKG20"]
["VA40.28-RM-300",null,"SQM40.285R11 to 3\" Rp VKG20"]
["VA40.28-RR-150",null,"SQM40.285R11 to 1-1/2\" Rp VKG30"]
["VA40.28-RR-200",null,"SQM40.285R11 to 2\" Rp VKG30"]
["VA40.28-RR-250",null,"SQM40.285R11 to 2-1/2\" Rp VKG30"]
["VA40.28-RR-300",null,"SQM40.285R11 to 3\" Rp VKG30"]
["VA45.2-NF-050",null,"SQM45.295B9 to 1/2\" VKG10"]
["VA45.2-NF-050-N4",null,"SQM45.295B9 to 1/2\" VKG10, NEMA 4"]
["VA45.2-NF-075",null,"SQM45.295B9 to 3/4\" VKG10"]
["VA45.2-NF-075-270",null,"SQM45.295B9 to 3/4\" VKG10"]
["VA45.2-NF-075-N4",null,"SQM45.295B9 to 3/4\" VKG10, NEMA 4"]
["VA45.2-NF-100",null,"SQM45.295B9 to 1\" VKG10"]
["VA45.2-NF-100-N4",null,"SQM45.295B9 to 1\" VKG10, NEMA 4"]
["VA45.2-NF-125",null,"SQM45.295B9 to 1-1/4\" VKG10"]
["VA45.2-NF-125-270",null,"SQM45.295B9 to 1-1/4\" VKG10"]
["VA45.2-NF-125-270-N4",null,"SQM45.295B9 to 1-1/4\" VKG10, NEMA 4"]
["VA45.2-NF-125-N4",null,"SQM45.295B9 to 1-1/4\" VKG10, NEMA 4"]
["VA45.2-NF-150",null,"SQM45.295B9 to 1-1/2\" VKG10"]
["VA45.2-NF-150-270",null,"SQM45.295B9 to 1-1/2\" VKG10"]
["VA45.2-NF-150-270-N4",null,"SQM45.295B9 to 1-1/2\" VKG10, NEMA 4"]
["VA45.2-NF-150-N4",null,"SQM45.295B9 to 1-1/2\" VKG10, NEMA 4"]
["VA45.2-NF-200",null,"SQM45.295B9 to 2\" VKG10"]
["VA45.2-NF-200-270",null,"SQM45.295B9 to 2\" VKG10"]
["VA45.2-NF-200-270-N4",null,"SQM45.295B9 to 2\" VKG10, NEMA 4"]
["VA45.2-NF-200-N4",null,"SQM45.295B9 to 2\" VKG10, NEMA 4"]
["VA45.2-NF-250",null,"SQM45.295B9 to 2-1/2\" VKG10"]
["VA45.2-NF-250-270-N4",null,"SQM45.295B9 to 2-1/2\" VKG10, NEMA 4"]
["VA45.2-NF-250-N4",null,"SQM45.295B9 to 2-1/2\" VKG10, NEMA 4"]
["VA45.2-NF-300",null,"SQM45.295B9 to 3\" VKG10"]
["VA45.2-NF-300-270-N4",null,"SQM45.295B9 to 3\" VKG10, NEMA 4"]
["VA45.2-NF-300-N4",null,"SQM45.295B9 to 3\" VKG10, NEMA 4"]
["VA45.2-NF-400",null,"SQM45.295B9 to 4\" VKG10"]
["VA45.2-NF-400-N4",null,"SQM45.295B9 to 4\" VKG10, NEMA 4"]
["VA45.2-NFB-050",null,"SQM45.295B9 to 1/2\" VRG10"]
["VA45.2-NFB-075",null,"SQM45.295B9 to 3/4\" VRG10"]
["VA45.2-NFB-100",null,"SQM45.295B9 to 1\" VRG10"]
["VA45.2-NFB-125",null,"SQM45.295B9 to 1-1/4\" VRG10"]
["VA45.2-NFB-150",null,"SQM45.295B9 to 1-1/2\" VRG10"]
["VA45.2-NFB-200",null,"SQM45.295B9 to 2\" VRG10"]
["VA45.2-NFB-250",null,"SQM45.295B9 to 2-1/2\" VRG10"]
["VA45.2-NFB-300",null,"SQM45.295B9 to 3\" VRG10"]
["VA45.2-NFB-400",null,"SQM45.295B9 to 4\" VRG10"]
["VA45.2-NM-100",null,"SQM45.295B9 to 1\" VKG20"]
["VA45.2-NM-100-N4",null,"SQM45.295B9 to 1\" VKG20, NEMA 4"]
["VA45.2-NM-125",null,"SQM45.295B9 to 1-1/4\" VKG20"]
["VA45.2-NM-125-N4",null,"SQM45.295B9 to 1-1/4\" VKG20, NEMA 4"]
["VA45.2-NM-150",null,"SQM45.295B9 to 1-1/2\" VKG20"]
["VA45.2-NM-150-N4",null,"SQM45.295B9 to 1-1/2\" VKG20, NEMA 4"]
["VA45.2-NM-200",null,"SQM45.295B9 to 2\" VKG20"]
["VA45.2-NM-200-N4",null,"SQM45.295B9 to 2\" VKG20, NEMA 4"]
["VA45.2-NM-250",null,"SQM45.295B9 to 2-1/2\" VKG20"]
["VA45.2-NM-250-N4",null,"SQM45.295B9 to 2-1/2\" VKG20, NEMA 4"]
["VA45.2-NM-300",null,"SQM45.295B9 to 3\" VKG20"]
["VA45.2-NM-300-N4",null,"SQM45.295B9 to 3\" VKG20, NEMA 4"]
["VA45.2-NM-400",null,"SQM45.295B9 to 4\" VKG20"]
["VA45.2-NM-400-N4",null,"SQM45.295B9 to 4\" VKG20, NEMA 4"]
["VA45.2-NMB-100",null,"SQM45.295B9 to 1\" VRG20"]
["VA45.2-NMB-125",null,"SQM45.295B9 to 1-1/4\" VRG20"]
["VA45.2-NMB-150",null,"SQM45.295B9 to 1-1/2\" VRG20"]
["VA45.2-NMB-200",null,"SQM45.295B9 to 2\" VRG20"]
["VA45.2-NMB-250",null,"SQM45.295B9 to 2-1/2\" VRG20"]
["VA45.2-NMB-300",null,"SQM45.295B9 to 3\" VRG20"]
["VA45.2-NMB-400",null,"SQM45.295B9 to 4\" VRG20"]
["VA45.2-NR-150",null,"SQM45.295B9 to 1-1/2\" VKG30"]
["VA45.2-NR-150-N4",null,"SQM45.295B9 to 1-1/2\" VKG30, NEMA 4"]
["VA45.2-NR-200",null,"SQM45.295B9 to 2\" VKG30"]
["VA45.2-NR-200-N4",null,"SQM45.295B9 to 2\" VKG30, NEMA 4"]
["VA45.2-NR-250",null,"SQM45.295B9 to 2-1/2\" VKG30"]
["VA45.2-NR-250-N4",null,"SQM45.295B9 to 2-1/2\" VKG30, NEMA 4"]
["VA45.2-NR-300",null,"SQM45.295B9 to 3\" VKG30"]
["VA45.2-NR-300-N4",null,"SQM45.295B9 to 3\" VKG30, NEMA 4"]
["VA45.2-NR-400",null,"SQM45.295B9 to 4\" VKG30"]
["VA45.2-NR-400-N4",null,"SQM45.295B9 to 4\" VKG30, NEMA 4"]
["VA45.2-NRB-150",null,"SQM45.295B9 to 1-1/2\" VRG30"]
["VA45.2-NRB-200",null,"SQM45.295B9 to 2\" VRG30"]
["VA45.2-NRB-250",null,"SQM45.295B9 to 2-1/2\" VRG30"]
["VA45.2-NRB-300",null,"SQM45.295B9 to 3\" VRG30"]
["VA45.2-NRB-400",null,"SQM45.295B9 to 4\" VRG30"]
["VA45.2-RF-050",null,"SQM45.295B9 to 1/2\" Rp VKG10"]
["VA45.2-RF-075",null,"SQM45.295B9 to 3/4\" Rp VKG10"]
["VA45.2-RF-100",null,"SQM45.295B9 to 1\" Rp VKG10"]
["VA45.2-RF-125",null,"SQM45.295B9 to 1-1/4\" Rp VKG10"]
["VA45.2-RF-150",null,"SQM45.295B9 to 1-1/2\" Rp VKG10"]
["VA45.2-RF-200",null,"SQM45.295B9 to 2\" Rp VKG10"]
["VA45.2-RF-250",null,"SQM45.295B9 to 2-1/2\" Rp VKG10"]
["VA45.2-RF-250-N4",null,"SQM45.295B9 to 2-1/2\" Rp VKG10, NEMA 4"]
["VA45.2-RF-300",null,"SQM45.295B9 to 3\" Rp VKG10"]
["VA45.2-RF-300-N4",null,"SQM45.295B9 to 3\" Rp VKG10, NEMA 4"]
["VA45.2-RM-100",null,"SQM45.295B9 to 1\" Rp VKG20"]
["VA45.2-RM-125",null,"SQM45.295B9 to 1-1/4\" Rp VKG20"]
["VA45.2-RM-150",null,"SQM45.295B9 to 1-1/2\" Rp VKG20"]
["VA45.2-RM-200",null,"SQM45.295B9 to 2\" Rp VKG20"]
["VA45.2-RM-250",null,"SQM45.295B9 to 2-1/2\" Rp VKG20"]
["VA45.2-RM-300",null,"SQM45.295B9 to 3\" Rp VKG20"]
["VA45.2-RR-150",null,"SQM45.295B9 to 1-1/2\" Rp VKG30"]
["VA45.2-RR-200",null,"SQM45.295B9 to 2\" Rp VKG30"]
["VA45.2-RR-250",null,"SQM45.295B9 to 2-1/2\" Rp VKG30"]
["VA45.2-RR-300",null,"SQM45.295B9 to 3\" Rp VKG30"]
["VA50.2(220)-NF-050",null,"SQM50.264R2G3 to 1/2\" VKG10"]
["VA50.2(220)-NF-075",null,"SQM50.264R2G3 to 3/4\" VKG10"]
["VA50.2(220)-NF-100",null,"SQM50.264R2G3 to 1\" VKG10"]
["VA50.2(220)-NF-125",null,"SQM50.264R2G3 to 1-1/4\" VKG10"]
["VA50.2(220)-NF-150",null,"SQM50.264R2G3 to 1-1/2\" VKG10"]
["VA50.2(220)-NF-200",null,"SQM50.264R2G3 to 2\" VKG10"]
["VA50.2(220)-NF-250",null,"SQM50.264R2G3 to 2-1/2\" VKG10"]
["VA50.2(220)-NF-300",null,"SQM50.264R2G3 to 3\" VKG10"]
["VA50.2(220)-NF-400",null,"SQM50.264R2G3 to 4\" VKG10"]
["VA50.2(220)-NM-100",null,"SQM50.264R2G3 to 1\" VKG20"]
["VA50.2(220)-NM-125",null,"SQM50.264R2G3 to 1-1/4\" VKG20"]
["VA50.2(220)-NM-150",null,"SQM50.264R2G3 to 1-1/2\" VKG20"]
["VA50.2(220)-NM-200",null,"SQM50.264R2G3 to 2\" VKG20"]
["VA50.2(220)-NM-250",null,"SQM50.264R2G3  to 2-1/2\" VKG20"]
["VA50.2(220)-NM-300",null,"SQM50.264R2G3 to 3\" VKG20"]
["VA50.2(220)-NM-400",null,"SQM50.264R2G3 to 4\" VKG20"]
["VA50.2(220)-NR-150",null,"SQM50.264R2G3 to 1-1/2\" VKG30"]
["VA50.2(220)-NR-200",null,"SQM50.264R2G3 to 2\" VKG30"]
["VA50.2(220)-NR-250",null,"SQM50.264R2G3 to 2-1/2\" VKG30"]
["VA50.2(220)-NR-300",null,"SQM50.264R2G3 to 3\" VKG30"]
["VA50.2(220)-NR-400",null,"SQM50.264R2G3 to 4\" VKG30"]
["VA50.2(220)-RF-050",null,"SQM50.264R2G3 to 1/2\" Rp VKG10"]
["VA50.2(220)-RF-075",null,"SQM50.264R2G3 to 3/4\" Rp VKG10"]
["VA50.2(220)-RF-100",null,"SQM50.264R2G3 to 1\" Rp VKG10"]
["VA50.2(220)-RF-125",null,"SQM50.264R2G3 to 1-1/4\" Rp VKG10"]
["VA50.2(220)-RF-150",null,"SQM50.264R2G3 to 1-1/2\" Rp VKG10"]
["VA50.2(220)-RF-200",null,"SQM50.264R2G3 to 2\" Rp VKG10"]
["VA50.2(220)-RF-250",null,"SQM50.264R2G3 to 2-1/2\" Rp VKG10"]
["VA50.2(220)-RF-300",null,"SQM50.264R2G3 to 3\" Rp VKG10"]
["VA50.2(220)-RM-100",null,"SQM50.264R2G3 to 1\" Rp VKG20"]
["VA50.2(220)-RM-125",null,"SQM50.264R2G3 to 1-1/4\" Rp VKG20"]
["VA50.2(220)-RM-150",null,"SQM50.264R2G3 to 1-1/2\" Rp VKG20"]
["VA50.2(220)-RM-200",null,"SQM50.264R2G3  to 2\" Rp VKG20"]
["VA50.2(220)-RM-250",null,"SQM50.264R2G3 to 2-1/2\" Rp VKG20"]
["VA50.2(220)-RM-300",null,"SQM50.264R2G3 to 3\" Rp VKG20"]
["VA50.2(220)-RR-150",null,"SQM50.264R2G3 to 1-1/2\" Rp VKG30"]
["VA50.2(220)-RR-200",null,"SQM50.264R2G3 to 2\" Rp VKG30"]
["VA50.2(220)-RR-250",null,"SQM50.264R2G3 to 2-1/2\" Rp VKG30"]
["VA50.2(220)-RR-300",null,"SQM50.264R2G3  to 3\" Rp VKG30"]
["VA50.27-NF-050",null,"SQM50.264R1G7 to 1/2\" VKG10"]
["VA50.27-NF-075",null,"SQM50.264R1G7 to 3/4\" VKG10"]
["VA50.27-NF-100",null,"SQM50.264R1G7 to 1\" VKG10"]
["VA50.27-NF-125",null,"SQM50.264R1G7 to 1-1/4\" VKG10"]
["VA50.27-NF-150",null,"SQM50.264R1G7 to 1-1/2\" VKG10"]
["VA50.27-NF-200",null,"SQM50.264R1G7 to 2\" VKG10"]
["VA50.27-NF-250",null,"SQM50.264R1G7 to 2-1/2\" VKG10"]
["VA50.27-NF-300",null,"SQM50.264R1G7 to 3\" VKG10"]
["VA50.27-NF-400",null,"SQM50.264R1G7 to 4\" VKG10"]
["VA50.27-NM-100",null,"SQM50.264R1G7 to 1\" VKG20"]
["VA50.27-NM-125",null,"SQM50.264R1G7 to 1-1/4\" VKG20"]
["VA50.27-NM-150",null,"SQM50.264R1G7 to 1-1/2\" VKG20"]
["VA50.27-NM-200",null,"SQM50.264R1G7 to 2\" VKG20"]
["VA50.27-NM-250",null,"SQM50.264R1G7  to 2-1/2\" VKG20"]
["VA50.27-NM-300",null,"SQM50.264R1G7 to 3\" VKG20"]
["VA50.27-NM-400",null,"SQM50.264R1G7 to 4\" VKG20"]
["VA50.27-NR-150",null,"SQM50.264R1G7 to 1-1/2\" VKG30"]
["VA50.27-NR-200",null,"SQM50.264R1G7 to 2\" VKG30"]
["VA50.27-NR-250",null,"SQM50.264R1G7 to 2-1/2\" VKG30"]
["VA50.27-NR-300",null,"SQM50.264R1G7 to 3\" VKG30"]
["VA50.27-NR-400",null,"SQM50.264R1G7 to 4\" VKG30"]
["VA50.27-RF-050",null,"SQM50.264R1G7 to 1/2\" Rp VKG10"]
["VA50.27-RF-075",null,"SQM50.264R1G7 to 3/4\" Rp VKG10"]
["VA50.27-RF-100",null,"SQM50.264R1G7 to 1\" Rp VKG10"]
["VA50.27-RF-125",null,"SQM50.264R1G7 to 1-1/4\" Rp VKG10"]
["VA50.27-RF-150",null,"SQM50.264R1G7 to 1-1/2\" Rp VKG10"]
["VA50.27-RF-200",null,"SQM50.264R1G7 to 2\" Rp VKG10"]
["VA50.27-RF-250",null,"SQM50.264R1G7 to 2-1/2\" Rp VKG10"]
["VA50.27-RF-300",null,"SQM50.264R1G7 to 3\" Rp VKG10"]
["VA50.27-RM-100",null,"SQM50.264R1G7 to 1\" Rp VKG20"]
["VA50.27-RM-125",null,"SQM50.264R1G7 to 1-1/4\" Rp VKG20"]
["VA50.27-RM-150",null,"SQM50.264R1G7 to 1-1/2\" Rp VKG20"]
["VA50.27-RM-200",null,"SQM50.264R1G7  to 2\" Rp VKG20"]
["VA50.27-RM-250",null,"SQM50.264R1G7 to 2-1/2\" Rp VKG20"]
["VA50.27-RM-300",null,"SQM50.264R1G7 to 3\" Rp VKG20"]
["VA50.27-RR-150",null,"SQM50.264R1G7 to 1-1/2\" Rp VKG30"]
["VA50.27-RR-200",null,"SQM50.264R1G7 to 2\" Rp VKG30"]
["VA50.27-RR-250",null,"SQM50.264R1G7 to 2-1/2\" Rp VKG30"]
["VA50.27-RR-300",null,"SQM50.264R1G7  to 3\" Rp VKG30"]
["VA50.2A3-NF-050",null,"SQM50.264R1A3 to 1/2\" VKG10"]
["VA50.2A3-NF-075",null,"SQM50.264R1A3 to 3/4\" VKG10"]
["VA50.2A3-NF-100",null,"SQM50.264R1A3 to 1\" VKG10"]
["VA50.2A3-NF-125",null,"SQM50.264R1A3 to 1-1/4\" VKG10"]
["VA50.2A3-NF-150",null,"SQM50.264R1A3 to 1-1/2\" VKG10"]
["VA50.2A3-NF-200",null,"SQM50.264R1A3 to 2\" VKG10"]
["VA50.2A3-NF-250",null,"SQM50.264R1A3 to 2-1/2\" VKG10"]
["VA50.2A3-NF-300",null,"SQM50.264R1A3 to 3\" VKG10"]
["VA50.2A3-NF-400",null,"SQM50.264R1A3 to 4\" VKG10"]
["VA50.2A3-NM-100",null,"SQM50.264R1A3 to 1\" VKG20"]
["VA50.2A3-NM-125",null,"SQM50.264R1A3 to 1-1/4\" VKG20"]
["VA50.2A3-NM-150",null,"SQM50.264R1A3 to 1-1/2\" VKG20"]
["VA50.2A3-NM-200",null,"SQM50.264R1A3 to 2\" VKG20"]
["VA50.2A3-NM-250",null,"SQM50.264R1A3  to 2-1/2\" VKG20"]
["VA50.2A3-NM-300",null,"SQM50.264R1A3 to 3\" VKG20"]
["VA50.2A3-NM-400",null,"SQM50.264R1A3 to 4\" VKG20"]
["VA50.2A3-NR-150",null,"SQM50.264R1A3 to 1-1/2\" VKG30"]
["VA50.2A3-NR-200",null,"SQM50.264R1A3 to 2\" VKG30"]
["VA50.2A3-NR-250",null,"SQM50.264R1A3 to 2-1/2\" VKG30"]
["VA50.2A3-NR-300",null,"SQM50.264R1A3 to 3\" VKG30"]
["VA50.2A3-NR-400",null,"SQM50.264R1A3 to 4\" VKG30"]
["VA50.2A3-RF-050",null,"SQM50.264R1A3 to 1/2\" Rp VKG10"]
["VA50.2A3-RF-075",null,"SQM50.264R1A3 to 3/4\" Rp VKG10"]
["VA50.2A3-RF-100",null,"SQM50.264R1A3 to 1\" Rp VKG10"]
["VA50.2A3-RF-125",null,"SQM50.264R1A3 to 1-1/4\" Rp VKG10"]
["VA50.2A3-RF-150",null,"SQM50.264R1A3 to 1-1/2\" Rp VKG10"]
["VA50.2A3-RF-200",null,"SQM50.264R1A3 to 2\" Rp VKG10"]
["VA50.2A3-RF-250",null,"SQM50.264R1A3 to 2-1/2\" Rp VKG10"]
["VA50.2A3-RF-300",null,"SQM50.264R1A3 to 3\" Rp VKG10"]
["VA50.2A3-RM-100",null,"SQM50.264R1A3 to 1\" Rp VKG20"]
["VA50.2A3-RM-125",null,"SQM50.264R1A3 to 1-1/4\" Rp VKG20"]
["VA50.2A3-RM-150",null,"SQM50.264R1A3 to 1-1/2\" Rp VKG20"]
["VA50.2A3-RM-200",null,"SQM50.264R1A3  to 2\" Rp VKG20"]
["VA50.2A3-RM-250",null,"SQM50.264R1A3 to 2-1/2\" Rp VKG20"]
["VA50.2A3-RM-300",null,"SQM50.264R1A3 to 3\" Rp VKG20"]
["VA50.2A3-RR-150",null,"SQM50.264R1A3 to 1-1/2\" Rp VKG30"]
["VA50.2A3-RR-200",null,"SQM50.264R1A3 to 2\" Rp VKG30"]
["VA50.2A3-RR-250",null,"SQM50.264R1A3 to 2-1/2\" Rp VKG30"]
["VA50.2A3-RR-300",null,"SQM50.264R1A3  to 3\" Rp VKG30"]
["VA50.2A-NF-050",null,"SQM50.264R1A to 1/2\" VKG10"]
["VA50.2A-NF-075",null,"SQM50.264R1A to 3/4\" VKG10"]
["VA50.2A-NF-100",null,"SQM50.264R1A to 1\" VKG10"]
["VA50.2A-NF-125",null,"SQM50.264R1A to 1-1/4\" VKG10"]
["VA50.2A-NF-150",null,"SQM50.264R1A to 1-1/2\" VKG10"]
["VA50.2A-NF-200",null,"SQM50.264R1A to 2\" VKG10"]
["VA50.2A-NF-250",null,"SQM50.264R1A to 2-1/2\" VKG10"]
["VA50.2A-NF-300",null,"SQM50.264R1A to 3\" VKG10"]
["VA50.2A-NF-400",null,"SQM50.264R1A to 4\" VKG10"]
["VA50.2A-NM-100",null,"SQM50.264R1A to 1\" VKG20"]
["VA50.2A-NM-125",null,"SQM50.264R1A to 1-1/4\" VKG20"]
["VA50.2A-NM-150",null,"SQM50.264R1A to 1-1/2\" VKG20"]
["VA50.2A-NM-200",null,"SQM50.264R1A to 2\" VKG20"]
["VA50.2A-NM-250",null,"SQM50.264R1A  to 2-1/2\" VKG20"]
["VA50.2A-NM-300",null,"SQM50.264R1A to 3\" VKG20"]
["VA50.2A-NM-400",null,"SQM50.264R1A to 4\" VKG20"]
["VA50.2A-NR-150",null,"SQM50.264R1A to 1-1/2\" VKG30"]
["VA50.2A-NR-200",null,"SQM50.264R1A to 2\" VKG30"]
["VA50.2A-NR-250",null,"SQM50.264R1A to 2-1/2\" VKG30"]
["VA50.2A-NR-300",null,"SQM50.264R1A to 3\" VKG30"]
["VA50.2A-NR-400",null,"SQM50.264R1A to 4\" VKG30"]
["VA50.2A-RF-050",null,"SQM50.264R1A to 1/2\" Rp VKG10"]
["VA50.2A-RF-075",null,"SQM50.264R1A to 3/4\" Rp VKG10"]
["VA50.2A-RF-100",null,"SQM50.264R1A to 1\" Rp VKG10"]
["VA50.2A-RF-125",null,"SQM50.264R1A to 1-1/4\" Rp VKG10"]
["VA50.2A-RF-150",null,"SQM50.264R1A to 1-1/2\" Rp VKG10"]
["VA50.2A-RF-200",null,"SQM50.264R1A to 2\" Rp VKG10"]
["VA50.2A-RF-250",null,"SQM50.264R1A to 2-1/2\" Rp VKG10"]
["VA50.2A-RF-300",null,"SQM50.264R1A to 3\" Rp VKG10"]
["VA50.2A-RM-100",null,"SQM50.264R1A to 1\" Rp VKG20"]
["VA50.2A-RM-125",null,"SQM50.264R1A to 1-1/4\" Rp VKG20"]
["VA50.2A-RM-150",null,"SQM50.264R1A to 1-1/2\" Rp VKG20"]
["VA50.2A-RM-200",null,"SQM50.264R1A  to 2\" Rp VKG20"]
["VA50.2A-RM-250",null,"SQM50.264R1A to 2-1/2\" Rp VKG20"]
["VA50.2A-RM-300",null,"SQM50.264R1A to 3\" Rp VKG20"]
["VA50.2A-RR-150",null,"SQM50.264R1A to 1-1/2\" Rp VKG30"]
["VA50.2A-RR-200",null,"SQM50.264R1A to 2\" Rp VKG30"]
["VA50.2A-RR-250",null,"SQM50.264R1A to 2-1/2\" Rp VKG30"]
["VA50.2A-RR-300",null,"SQM50.264R1A  to 3\" Rp VKG30"]
["VA50.2K-NF-050",null,"SQM50.264R1K3 to 1/2\" VKG10"]
["VA50.2K-NF-075",null,"SQM50.264R1K3 to 3/4\" VKG10"]
["VA50.2K-NF-100",null,"SQM50.264R1K3 to 1\" VKG10"]
["VA50.2K-NF-125",null,"SQM50.264R1K3 to 1-1/4\" VKG10"]
["VA50.2K-NF-150",null,"SQM50.264R1K3 to 1-1/2\" VKG10"]
["VA50.2K-NF-200",null,"SQM50.264R1K3 to 2\" VKG10"]
["VA50.2K-NF-250",null,"SQM50.264R1K3 to 2-1/2\" VKG10"]
["VA50.2K-NF-300",null,"SQM50.264R1K3 to 3\" VKG10"]
["VA50.2K-NF-400",null,"SQM50.264R1K3 to 4\" VKG10"]
["VA50.2K-NM-100",null,"SQM50.264R1K3 to 1\" VKG20"]
["VA50.2K-NM-125",null,"SQM50.264R1K3 to 1-1/4\" VKG20"]
["VA50.2K-NM-150",null,"SQM50.264R1K3 to 1-1/2\" VKG20"]
["VA50.2K-NM-200",null,"SQM50.264R1K3 to 2\" VKG20"]
["VA50.2K-NM-250",null,"SQM50.264R1K3  to 2-1/2\" VKG20"]
["VA50.2K-NM-300",null,"SQM50.264R1K3 to 3\" VKG20"]
["VA50.2K-NM-400",null,"SQM50.264R1K3 to 4\" VKG20"]
["VA50.2K-NR-150",null,"SQM50.264R1K3 to 1-1/2\" VKG30"]
["VA50.2K-NR-200",null,"SQM50.264R1K3 to 2\" VKG30"]
["VA50.2K-NR-250",null,"SQM50.264R1K3 to 2-1/2\" VKG30"]
["VA50.2K-NR-300",null,"SQM50.264R1K3 to 3\" VKG30"]
["VA50.2K-NR-400",null,"SQM50.264R1K3 to 4\" VKG30"]
["VA50.2K-RF-050",null,"SQM50.264R1K3 to 1/2\" Rp VKG10"]
["VA50.2K-RF-075",null,"SQM50.264R1K3 to 3/4\" Rp VKG10"]
["VA50.2K-RF-100",null,"SQM50.264R1K3 to 1\" Rp VKG10"]
["VA50.2K-RF-125",null,"SQM50.264R1K3 to 1-1/4\" Rp VKG10"]
["VA50.2K-RF-150",null,"SQM50.264R1K3 to 1-1/2\" Rp VKG10"]
["VA50.2K-RF-200",null,"SQM50.264R1K3 to 2\" Rp VKG10"]
["VA50.2K-RF-250",null,"SQM50.264R1K3 to 2-1/2\" Rp VKG10"]
["VA50.2K-RF-300",null,"SQM50.264R1K3 to 3\" Rp VKG10"]
["VA50.2K-RM-100",null,"SQM50.264R1K3 to 1\" Rp VKG20"]
["VA50.2K-RM-125",null,"SQM50.264R1K3 to 1-1/4\" Rp VKG20"]
["VA50.2K-RM-150",null,"SQM50.264R1K3 to 1-1/2\" Rp VKG20"]
["VA50.2K-RM-200",null,"SQM50.264R1K3  to 2\" Rp VKG20"]
["VA50.2K-RM-250",null,"SQM50.264R1K3 to 2-1/2\" Rp VKG20"]
["VA50.2K-RM-300",null,"SQM50.264R1K3 to 3\" Rp VKG20"]
["VA50.2K-RR-150",null,"SQM50.264R1K3 to 1-1/2\" Rp VKG30"]
["VA50.2K-RR-200",null,"SQM50.264R1K3 to 2\" Rp VKG30"]
["VA50.2K-RR-250",null,"SQM50.264R1K3 to 2-1/2\" Rp VKG30"]
["VA50.2K-RR-300",null,"SQM50.264R1K3  to 3\" Rp VKG30"]
["VA50.2-NF-050",null,"SQM50.264R1G3 to 1/2\" VKG10"]
["VA50.2-NF-075",null,"SQM50.264R1G3 to 3/4\" VKG10"]
["VA50.2-NF-100",null,"SQM50.264R1G3 to 1\" VKG10"]
["VA50.2-NF-125",null,"SQM50.264R1G3 to 1-1/4\" VKG10"]
["VA50.2-NF-150",null,"SQM50.264R1G3 to 1-1/2\" VKG10"]
["VA50.2-NF-200",null,"SQM50.264R1G3 to 2\" VKG10"]
["VA50.2-NF-250",null,"SQM50.264R1G3 to 2-1/2\" VKG10"]
["VA50.2-NF-300",null,"SQM50.264R1G3 to 3\" VKG10"]
["VA50.2-NF-400",null,"SQM50.264R1G3 to 4\" VKG10"]
["VA50.2-NM-100",null,"SQM50.264R1G3 to 1\" VKG20"]
["VA50.2-NM-125",null,"SQM50.264R1G3 to 1-1/4\" VKG20"]
["VA50.2-NM-150",null,"SQM50.264R1G3 to 1-1/2\" VKG20"]
["VA50.2-NM-200",null,"SQM50.264R1G3 to 2\" VKG20"]
["VA50.2-NM-250",null,"SQM50.264R1G3  to 2-1/2\" VKG20"]
["VA50.2-NM-300",null,"SQM50.264R1G3 to 3\" VKG20"]
["VA50.2-NM-400",null,"SQM50.264R1G3 to 4\" VKG20"]
["VA50.2-NR-150",null,"SQM50.264R1G3 to 1-1/2\" VKG30"]
["VA50.2-NR-200",null,"SQM50.264R1G3 to 2\" VKG30"]
["VA50.2-NR-250",null,"SQM50.264R1G3 to 2-1/2\" VKG30"]
["VA50.2-NR-300",null,"SQM50.264R1G3 to 3\" VKG30"]
["VA50.2-NR-400",null,"SQM50.264R1G3 to 4\" VKG30"]
["VA50.2-RF-050",null,"SQM50.264R1G3 to 1/2\" Rp VKG10"]
["VA50.2-RF-075",null,"SQM50.264R1G3 to 3/4\" Rp VKG10"]
["VA50.2-RF-100",null,"SQM50.264R1G3 to 1\" Rp VKG10"]
["VA50.2-RF-125",null,"SQM50.264R1G3 to 1-1/4\" Rp VKG10"]
["VA50.2-RF-150",null,"SQM50.264R1G3 to 1-1/2\" Rp VKG10"]
["VA50.2-RF-200",null,"SQM50.264R1G3 to 2\" Rp VKG10"]
["VA50.2-RF-250",null,"SQM50.264R1G3 to 2-1/2\" Rp VKG10"]
["VA50.2-RF-300",null,"SQM50.264R1G3 to 3\" Rp VKG10"]
["VA50.2-RM-100",null,"SQM50.264R1G3 to 1\" Rp VKG20"]
["VA50.2-RM-125",null,"SQM50.264R1G3 to 1-1/4\" Rp VKG20"]
["VA50.2-RM-150",null,"SQM50.264R1G3 to 1-1/2\" Rp VKG20"]
["VA50.2-RM-200",null,"SQM50.264R1G3  to 2\" Rp VKG20"]
["VA50.2-RM-250",null,"SQM50.264R1G3 to 2-1/2\" Rp VKG20"]
["VA50.2-RM-300",null,"SQM50.264R1G3 to 3\" Rp VKG20"]
["VA50.2-RR-150",null,"SQM50.264R1G3 to 1-1/2\" Rp VKG30"]
["VA50.2-RR-200",null,"SQM50.264R1G3 to 2\" Rp VKG30"]
["VA50.2-RR-250",null,"SQM50.264R1G3 to 2-1/2\" Rp VKG30"]
["VA50.2-RR-300",null,"SQM50.264R1G3  to 3\" Rp VKG30"]
["VA50.2Z(220)-NF-050",null,"SQM50.264R2Z3 to 1/2\" VKG10"]
["VA50.2Z(220)-NF-075",null,"SQM50.264R2Z3 to 3/4\" VKG10"]
["VA50.2Z(220)-NF-100",null,"SQM50.264R2Z3 to 1\" VKG10"]
["VA50.2Z(220)-NF-125",null,"SQM50.264R2Z3 to 1-1/4\" VKG10"]
["VA50.2Z(220)-NF-150",null,"SQM50.264R2Z3 to 1-1/2\" VKG10"]
["VA50.2Z(220)-NF-200",null,"SQM50.264R2Z3 to 2\" VKG10"]
["VA50.2Z(220)-NF-250",null,"SQM50.264R2Z3 to 2-1/2\" VKG10"]
["VA50.2Z(220)-NF-300",null,"SQM50.264R2Z3 to 3\" VKG10"]
["VA50.2Z(220)-NF-400",null,"SQM50.264R2Z3 to 4\" VKG10"]
["VA50.2Z(220)-NM-100",null,"SQM50.264R2Z3 to 1\" VKG20"]
["VA50.2Z(220)-NM-125",null,"SQM50.264R2Z3 to 1-1/4\" VKG20"]
["VA50.2Z(220)-NM-150",null,"SQM50.264R2Z3 to 1-1/2\" VKG20"]
["VA50.2Z(220)-NM-200",null,"SQM50.264R2Z3 to 2\" VKG20"]
["VA50.2Z(220)-NM-250",null,"SQM50.264R2Z3  to 2-1/2\" VKG20"]
["VA50.2Z(220)-NM-300",null,"SQM50.264R2Z3 to 3\" VKG20"]
["VA50.2Z(220)-NM-400",null,"SQM50.264R2Z3 to 4\" VKG20"]
["VA50.2Z(220)-NR-150",null,"SQM50.264R2Z3 to 1-1/2\" VKG30"]
["VA50.2Z(220)-NR-200",null,"SQM50.264R2Z3 to 2\" VKG30"]
["VA50.2Z(220)-NR-250",null,"SQM50.264R2Z3 to 2-1/2\" VKG30"]
["VA50.2Z(220)-NR-300",null,"SQM50.264R2Z3 to 3\" VKG30"]
["VA50.2Z(220)-NR-400",null,"SQM50.264R2Z3 to 4\" VKG30"]
["VA50.2Z(220)-RF-050",null,"SQM50.264R2Z3 to 1/2\" Rp VKG10"]
["VA50.2Z(220)-RF-075",null,"SQM50.264R2Z3 to 3/4\" Rp VKG10"]
["VA50.2Z(220)-RF-100",null,"SQM50.264R2Z3 to 1\" Rp VKG10"]
["VA50.2Z(220)-RF-125",null,"SQM50.264R2Z3 to 1-1/4\" Rp VKG10"]
["VA50.2Z(220)-RF-150",null,"SQM50.264R2Z3 to 1-1/2\" Rp VKG10"]
["VA50.2Z(220)-RF-200",null,"SQM50.264R2Z3 to 2\" Rp VKG10"]
["VA50.2Z(220)-RF-250",null,"SQM50.264R2Z3 to 2-1/2\" Rp VKG10"]
["VA50.2Z(220)-RF-300",null,"SQM50.264R2Z3 to 3\" Rp VKG10"]
["VA50.2Z(220)-RM-100",null,"SQM50.264R2Z3 to 1\" Rp VKG20"]
["VA50.2Z(220)-RM-125",null,"SQM50.264R2Z3 to 1-1/4\" Rp VKG20"]
["VA50.2Z(220)-RM-150",null,"SQM50.264R2Z3 to 1-1/2\" Rp VKG20"]
["VA50.2Z(220)-RM-200",null,"SQM50.264R2Z3  to 2\" Rp VKG20"]
["VA50.2Z(220)-RM-250",null,"SQM50.264R2Z3 to 2-1/2\" Rp VKG20"]
["VA50.2Z(220)-RM-300",null,"SQM50.264R2Z3 to 3\" Rp VKG20"]
["VA50.2Z(220)-RR-150",null,"SQM50.264R2Z3 to 1-1/2\" Rp VKG30"]
["VA50.2Z(220)-RR-200",null,"SQM50.264R2Z3 to 2\" Rp VKG30"]
["VA50.2Z(220)-RR-250",null,"SQM50.264R2Z3 to 2-1/2\" Rp VKG30"]
["VA50.2Z(220)-RR-300",null,"SQM50.264R2Z3  to 3\" Rp VKG30"]
["VA50.2Z-NF-050",null,"SQM50.264R1Z3 to 1/2\" VKG10"]
["VA50.2Z-NF-075",null,"SQM50.264R1Z3 to 3/4\" VKG10"]
["VA50.2Z-NF-100",null,"SQM50.264R1Z3 to 1\" VKG10"]
["VA50.2Z-NF-125",null,"SQM50.264R1Z3 to 1-1/4\" VKG10"]
["VA50.2Z-NF-150",null,"SQM50.264R1Z3 to 1-1/2\" VKG10"]
["VA50.2Z-NF-200",null,"SQM50.264R1Z3 to 2\" VKG10"]
["VA50.2Z-NF-250",null,"SQM50.264R1Z3 to 2-1/2\" VKG10"]
["VA50.2Z-NF-300",null,"SQM50.264R1Z3 to 3\" VKG10"]
["VA50.2Z-NF-400",null,"SQM50.264R1Z3 to 4\" VKG10"]
["VA50.2Z-NM-100",null,"SQM50.264R1Z3 to 1\" VKG20"]
["VA50.2Z-NM-125",null,"SQM50.264R1Z3 to 1-1/4\" VKG20"]
["VA50.2Z-NM-150",null,"SQM50.264R1Z3 to 1-1/2\" VKG20"]
["VA50.2Z-NM-200",null,"SQM50.264R1Z3 to 2\" VKG20"]
["VA50.2Z-NM-250",null,"SQM50.264R1Z3  to 2-1/2\" VKG20"]
["VA50.2Z-NM-300",null,"SQM50.264R1Z3 to 3\" VKG20"]
["VA50.2Z-NM-400",null,"SQM50.264R1Z3 to 4\" VKG20"]
["VA50.2Z-NR-150",null,"SQM50.264R1Z3 to 1-1/2\" VKG30"]
["VA50.2Z-NR-200",null,"SQM50.264R1Z3 to 2\" VKG30"]
["VA50.2Z-NR-250",null,"SQM50.264R1Z3 to 2-1/2\" VKG30"]
["VA50.2Z-NR-300",null,"SQM50.264R1Z3 to 3\" VKG30"]
["VA50.2Z-NR-400",null,"SQM50.264R1Z3 to 4\" VKG30"]
["VA50.2Z-RF-050",null,"SQM50.264R1Z3 to 1/2\" Rp VKG10"]
["VA50.2Z-RF-075",null,"SQM50.264R1Z3 to 3/4\" Rp VKG10"]
["VA50.2Z-RF-100",null,"SQM50.264R1Z3 to 1\" Rp VKG10"]
["VA50.2Z-RF-125",null,"SQM50.264R1Z3 to 1-1/4\" Rp VKG10"]
["VA50.2Z-RF-150",null,"SQM50.264R1Z3 to 1-1/2\" Rp VKG10"]
["VA50.2Z-RF-200",null,"SQM50.264R1Z3 to 2\" Rp VKG10"]
["VA50.2Z-RF-250",null,"SQM50.264R1Z3 to 2-1/2\" Rp VKG10"]
["VA50.2Z-RF-300",null,"SQM50.264R1Z3 to 3\" Rp VKG10"]
["VA50.2Z-RM-100",null,"SQM50.264R1Z3 to 1\" Rp VKG20"]
["VA50.2Z-RM-125",null,"SQM50.264R1Z3 to 1-1/4\" Rp VKG20"]
["VA50.2Z-RM-150",null,"SQM50.264R1Z3 to 1-1/2\" Rp VKG20"]
["VA50.2Z-RM-200",null,"SQM50.264R1Z3  to 2\" Rp VKG20"]
["VA50.2Z-RM-250",null,"SQM50.264R1Z3 to 2-1/2\" Rp VKG20"]
["VA50.2Z-RM-300",null,"SQM50.264R1Z3 to 3\" Rp VKG20"]
["VA50.2Z-RR-150",null,"SQM50.264R1Z3 to 1-1/2\" Rp VKG30"]
["VA50.2Z-RR-200",null,"SQM50.264R1Z3 to 2\" Rp VKG30"]
["VA50.2Z-RR-250",null,"SQM50.264R1Z3 to 2-1/2\" Rp VKG30"]
["VA50.2Z-RR-300",null,"SQM50.264R1Z3  to 3\" Rp VKG30"]
["VA50.3(220)-NF-050",null,"SQM50.384R2G3 to 1/2\" VKG10"]
["VA50.3(220)-NF-075",null,"SQM50.384R2G3 to 3/4\" VKG10"]
["VA50.3(220)-NF-100",null,"SQM50.384R2G3 to 1\" VKG10"]
["VA50.3(220)-NF-125",null,"SQM50.384R2G3 to 1-1/4\" VKG10"]
["VA50.3(220)-NF-150",null,"SQM50.384R2G3 to 1-1/2\" VKG10"]
["VA50.3(220)-NF-200",null,"SQM50.384R2G3 to 2\" VKG10"]
["VA50.3(220)-NF-250",null,"SQM50.384R2G3 to 2-1/2\" VKG10"]
["VA50.3(220)-NF-300",null,"SQM50.384R2G3 to 3\" VKG10"]
["VA50.3(220)-NF-400",null,"SQM50.384R2G3 to 4\" VKG10"]
["VA50.3(220)-NM-100",null,"SQM50.384R2G3 to 1\" VKG20"]
["VA50.3(220)-NM-125",null,"SQM50.384R2G3 to 1-1/4\" VKG20"]
["VA50.3(220)-NM-150",null,"SQM50.384R2G3 to 1-1/2\" VKG20"]
["VA50.3(220)-NM-200",null,"SQM50.384R2G3 to 2\" VKG20"]
["VA50.3(220)-NM-250",null,"SQM50.384R2G3  to 2-1/2\" VKG20"]
["VA50.3(220)-NM-300",null,"SQM50.384R2G3 to 3\" VKG20"]
["VA50.3(220)-NM-400",null,"SQM50.384R2G3 to 4\" VKG20"]
["VA50.3(220)-NR-150",null,"SQM50.384R2G3 to 1-1/2\" VKG30"]
["VA50.3(220)-NR-200",null,"SQM50.384R2G3 to 2\" VKG30"]
["VA50.3(220)-NR-250",null,"SQM50.384R2G3 to 2-1/2\" VKG30"]
["VA50.3(220)-NR-300",null,"SQM50.384R2G3 to 3\" VKG30"]
["VA50.3(220)-NR-400",null,"SQM50.384R2G3 to 4\" VKG30"]
["VA50.3(220)-RF-050",null,"SQM50.384R2G3 to 1/2\" Rp VKG10"]
["VA50.3(220)-RF-075",null,"SQM50.384R2G3 to 3/4\" Rp VKG10"]
["VA50.3(220)-RF-100",null,"SQM50.384R2G3 to 1\" Rp VKG10"]
["VA50.3(220)-RF-125",null,"SQM50.384R2G3 to 1-1/4\" Rp VKG10"]
["VA50.3(220)-RF-150",null,"SQM50.384R2G3 to 1-1/2\" Rp VKG10"]
["VA50.3(220)-RF-200",null,"SQM50.384R2G3 to 2\" Rp VKG10"]
["VA50.3(220)-RF-250",null,"SQM50.384R2G3 to 2-1/2\" Rp VKG10"]
["VA50.3(220)-RF-300",null,"SQM50.384R2G3 to 3\" Rp VKG10"]
["VA50.3(220)-RM-100",null,"SQM50.384R2G3 to 1\" Rp VKG20"]
["VA50.3(220)-RM-125",null,"SQM50.384R2G3 to 1-1/4\" Rp VKG20"]
["VA50.3(220)-RM-150",null,"SQM50.384R2G3 to 1-1/2\" Rp VKG20"]
["VA50.3(220)-RM-200",null,"SQM50.384R2G3  to 2\" Rp VKG20"]
["VA50.3(220)-RM-250",null,"SQM50.384R2G3 to 2-1/2\" Rp VKG20"]
["VA50.3(220)-RM-300",null,"SQM50.384R2G3 to 3\" Rp VKG20"]
["VA50.3(220)-RR-150",null,"SQM50.384R2G3 to 1-1/2\" Rp VKG30"]
["VA50.3(220)-RR-200",null,"SQM50.384R2G3 to 2\" Rp VKG30"]
["VA50.3(220)-RR-250",null,"SQM50.384R2G3 to 2-1/2\" Rp VKG30"]
["VA50.3(220)-RR-300",null,"SQM50.384R2G3 to 3\" Rp VKG30"]
["VA50.37-NF-050",null,"SQM50.364R1G7 to 1/2\" VKG10"]
["VA50.37-NF-075",null,"SQM50.364R1G7 to 3/4\" VKG10"]
["VA50.37-NF-100",null,"SQM50.364R1G7 to 1\" VKG10"]
["VA50.37-NF-125",null,"SQM50.364R1G7 to 1-1/4\" VKG10"]
["VA50.37-NF-150",null,"SQM50.364R1G7 to 1-1/2\" VKG10"]
["VA50.37-NF-200",null,"SQM50.364R1G7 to 2\" VKG10"]
["VA50.37-NF-250",null,"SQM50.364R1G7 to 2-1/2\" VKG10"]
["VA50.37-NF-300",null,"SQM50.364R1G7 to 3\" VKG10"]
["VA50.37-NF-400",null,"SQM50.364R1G7 to 4\" VKG10"]
["VA50.37-NM-100",null,"SQM50.364R1G7 to 1\" VKG20"]
["VA50.37-NM-125",null,"SQM50.364R1G7 to 1-1/4\" VKG20"]
["VA50.37-NM-150",null,"SQM50.364R1G7 to 1-1/2\" VKG20"]
["VA50.37-NM-200",null,"SQM50.364R1G7 to 2\" VKG20"]
["VA50.37-NM-250",null,"SQM50.364R1G7  to 2-1/2\" VKG20"]
["VA50.37-NM-300",null,"SQM50.364R1G7 to 3\" VKG20"]
["VA50.37-NM-400",null,"SQM50.364R1G7 to 4\" VKG20"]
["VA50.37-NR-150",null,"SQM50.364R1G7 to 1-1/2\" VKG30"]
["VA50.37-NR-200",null,"SQM50.364R1G7 to 2\" VKG30"]
["VA50.37-NR-250",null,"SQM50.364R1G7 to 2-1/2\" VKG30"]
["VA50.37-NR-300",null,"SQM50.364R1G7 to 3\" VKG30"]
["VA50.37-NR-400",null,"SQM50.364R1G7 to 4\" VKG30"]
["VA50.37-RF-050",null,"SQM50.364R1G7 to 1/2\" Rp VKG10"]
["VA50.37-RF-075",null,"SQM50.364R1G7 to 3/4\" Rp VKG10"]
["VA50.37-RF-100",null,"SQM50.364R1G7 to 1\" Rp VKG10"]
["VA50.37-RF-125",null,"SQM50.364R1G7 to 1-1/4\" Rp VKG10"]
["VA50.37-RF-150",null,"SQM50.364R1G7 to 1-1/2\" Rp VKG10"]
["VA50.37-RF-200",null,"SQM50.364R1G7 to 2\" Rp VKG10"]
["VA50.37-RF-250",null,"SQM50.364R1G7 to 2-1/2\" Rp VKG10"]
["VA50.37-RF-300",null,"SQM50.364R1G7 to 3\" Rp VKG10"]
["VA50.37-RM-100",null,"SQM50.364R1G7 to 1\" Rp VKG20"]
["VA50.37-RM-125",null,"SQM50.364R1G7 to 1-1/4\" Rp VKG20"]
["VA50.37-RM-150",null,"SQM50.364R1G7 to 1-1/2\" Rp VKG20"]
["VA50.37-RM-200",null,"SQM50.364R1G7  to 2\" Rp VKG20"]
["VA50.37-RM-250",null,"SQM50.364R1G7 to 2-1/2\" Rp VKG20"]
["VA50.37-RM-300",null,"SQM50.364R1G7 to 3\" Rp VKG20"]
["VA50.37-RR-150",null,"SQM50.364R1G7 to 1-1/2\" Rp VKG30"]
["VA50.37-RR-200",null,"SQM50.364R1G7 to 2\" Rp VKG30"]
["VA50.37-RR-250",null,"SQM50.364R1G7 to 2-1/2\" Rp VKG30"]
["VA50.37-RR-300",null,"SQM50.364R1G7 to 3\" Rp VKG30"]
["VA50.3A3-NF-050",null,"SQM50.364R1A3 to 1/2\" VKG10"]
["VA50.3A3-NF-075",null,"SQM50.364R1A3 to 3/4\" VKG10"]
["VA50.3A3-NF-100",null,"SQM50.364R1A3 to 1\" VKG10"]
["VA50.3A3-NF-125",null,"SQM50.364R1A3 to 1-1/4\" VKG10"]
["VA50.3A3-NF-150",null,"SQM50.364R1A3 to 1-1/2\" VKG10"]
["VA50.3A3-NF-200",null,"SQM50.364R1A3 to 2\" VKG10"]
["VA50.3A3-NF-250",null,"SQM50.364R1A3 to 2-1/2\" VKG10"]
["VA50.3A3-NF-300",null,"SQM50.364R1A3 to 3\" VKG10"]
["VA50.3A3-NF-400",null,"SQM50.364R1A3 to 4\" VKG10"]
["VA50.3A3-NM-100",null,"SQM50.364R1A3 to 1\" VKG20"]
["VA50.3A3-NM-125",null,"SQM50.364R1A3 to 1-1/4\" VKG20"]
["VA50.3A3-NM-150",null,"SQM50.364R1A3 to 1-1/2\" VKG20"]
["VA50.3A3-NM-200",null,"SQM50.364R1A3 to 2\" VKG20"]
["VA50.3A3-NM-250",null,"SQM50.364R1A3  to 2-1/2\" VKG20"]
["VA50.3A3-NM-300",null,"SQM50.364R1A3 to 3\" VKG20"]
["VA50.3A3-NM-400",null,"SQM50.364R1A3 to 4\" VKG20"]
["VA50.3A3-NR-150",null,"SQM50.364R1A3 to 1-1/2\" VKG30"]
["VA50.3A3-NR-200",null,"SQM50.364R1A3 to 2\" VKG30"]
["VA50.3A3-NR-250",null,"SQM50.364R1A3 to 2-1/2\" VKG30"]
["VA50.3A3-NR-300",null,"SQM50.364R1A3 to 3\" VKG30"]
["VA50.3A3-NR-400",null,"SQM50.364R1A3 to 4\" VKG30"]
["VA50.3A3-RF-050",null,"SQM50.364R1A3 to 1/2\" Rp VKG10"]
["VA50.3A3-RF-075",null,"SQM50.364R1A3 to 3/4\" Rp VKG10"]
["VA50.3A3-RF-100",null,"SQM50.364R1A3 to 1\" Rp VKG10"]
["VA50.3A3-RF-125",null,"SQM50.364R1A3 to 1-1/4\" Rp VKG10"]
["VA50.3A3-RF-150",null,"SQM50.364R1A3 to 1-1/2\" Rp VKG10"]
["VA50.3A3-RF-200",null,"SQM50.364R1A3 to 2\" Rp VKG10"]
["VA50.3A3-RF-250",null,"SQM50.364R1A3 to 2-1/2\" Rp VKG10"]
["VA50.3A3-RF-300",null,"SQM50.364R1A3 to 3\" Rp VKG10"]
["VA50.3A3-RM-100",null,"SQM50.364R1A3 to 1\" Rp VKG20"]
["VA50.3A3-RM-125",null,"SQM50.364R1A3 to 1-1/4\" Rp VKG20"]
["VA50.3A3-RM-150",null,"SQM50.364R1A3 to 1-1/2\" Rp VKG20"]
["VA50.3A3-RM-200",null,"SQM50.364R1A3  to 2\" Rp VKG20"]
["VA50.3A3-RM-250",null,"SQM50.364R1A3 to 2-1/2\" Rp VKG20"]
["VA50.3A3-RM-300",null,"SQM50.364R1A3 to 3\" Rp VKG20"]
["VA50.3A3-RR-150",null,"SQM50.364R1A3 to 1-1/2\" Rp VKG30"]
["VA50.3A3-RR-200",null,"SQM50.364R1A3 to 2\" Rp VKG30"]
["VA50.3A3-RR-250",null,"SQM50.364R1A3 to 2-1/2\" Rp VKG30"]
["VA50.3A3-RR-300",null,"SQM50.364R1A3  to 3\" Rp VKG30"]
["VA50.3A-NF-050",null,"SQM50.364R1A to 1/2\" VKG10"]
["VA50.3A-NF-075",null,"SQM50.364R1A to 3/4\" VKG10"]
["VA50.3A-NF-100",null,"SQM50.364R1A to 1\" VKG10"]
["VA50.3A-NF-125",null,"SQM50.364R1A to 1-1/4\" VKG10"]
["VA50.3A-NF-150",null,"SQM50.364R1A to 1-1/2\" VKG10"]
["VA50.3A-NF-200",null,"SQM50.364R1A to 2\" VKG10"]
["VA50.3A-NF-250",null,"SQM50.364R1A to 2-1/2\" VKG10"]
["VA50.3A-NF-300",null,"SQM50.364R1A to 3\" VKG10"]
["VA50.3A-NF-400",null,"SQM50.364R1A to 4\" VKG10"]
["VA50.3A-NM-100",null,"SQM50.364R1A to 1\" VKG20"]
["VA50.3A-NM-125",null,"SQM50.364R1A to 1-1/4\" VKG20"]
["VA50.3A-NM-150",null,"SQM50.364R1A to 1-1/2\" VKG20"]
["VA50.3A-NM-200",null,"SQM50.364R1A to 2\" VKG20"]
["VA50.3A-NM-250",null,"SQM50.364R1A  to 2-1/2\" VKG20"]
["VA50.3A-NM-300",null,"SQM50.364R1A to 3\" VKG20"]
["VA50.3A-NM-400",null,"SQM50.364R1A to 4\" VKG20"]
["VA50.3A-NR-150",null,"SQM50.364R1A to 1-1/2\" VKG30"]
["VA50.3A-NR-200",null,"SQM50.364R1A to 2\" VKG30"]
["VA50.3A-NR-250",null,"SQM50.364R1A to 2-1/2\" VKG30"]
["VA50.3A-NR-300",null,"SQM50.364R1A to 3\" VKG30"]
["VA50.3A-NR-400",null,"SQM50.364R1A to 4\" VKG30"]
["VA50.3A-RF-050",null,"SQM50.364R1A to 1/2\" Rp VKG10"]
["VA50.3A-RF-075",null,"SQM50.364R1A to 3/4\" Rp VKG10"]
["VA50.3A-RF-100",null,"SQM50.364R1A to 1\" Rp VKG10"]
["VA50.3A-RF-125",null,"SQM50.364R1A to 1-1/4\" Rp VKG10"]
["VA50.3A-RF-150",null,"SQM50.364R1A to 1-1/2\" Rp VKG10"]
["VA50.3A-RF-200",null,"SQM50.364R1A to 2\" Rp VKG10"]
["VA50.3A-RF-250",null,"SQM50.364R1A to 2-1/2\" Rp VKG10"]
["VA50.3A-RF-300",null,"SQM50.364R1A to 3\" Rp VKG10"]
["VA50.3A-RM-100",null,"SQM50.364R1A to 1\" Rp VKG20"]
["VA50.3A-RM-125",null,"SQM50.364R1A to 1-1/4\" Rp VKG20"]
["VA50.3A-RM-150",null,"SQM50.364R1A to 1-1/2\" Rp VKG20"]
["VA50.3A-RM-200",null,"SQM50.364R1A  to 2\" Rp VKG20"]
["VA50.3A-RM-250",null,"SQM50.364R1A to 2-1/2\" Rp VKG20"]
["VA50.3A-RM-300",null,"SQM50.364R1A to 3\" Rp VKG20"]
["VA50.3A-RR-150",null,"SQM50.364R1A to 1-1/2\" Rp VKG30"]
["VA50.3A-RR-200",null,"SQM50.364R1A to 2\" Rp VKG30"]
["VA50.3A-RR-250",null,"SQM50.364R1A to 2-1/2\" Rp VKG30"]
["VA50.3A-RR-300",null,"SQM50.364R1A  to 3\" Rp VKG30"]
["VA50.3K-NF-050",null,"SQM50.364R1K3 to 1/2\" VKG10"]
["VA50.3K-NF-075",null,"SQM50.364R1K3 to 3/4\" VKG10"]
["VA50.3K-NF-100",null,"SQM50.364R1K3 to 1\" VKG10"]
["VA50.3K-NF-125",null,"SQM50.364R1K3 to 1-1/4\" VKG10"]
["VA50.3K-NF-150",null,"SQM50.364R1K3 to 1-1/2\" VKG10"]
["VA50.3K-NF-200",null,"SQM50.364R1K3 to 2\" VKG10"]
["VA50.3K-NF-250",null,"SQM50.364R1K3 to 2-1/2\" VKG10"]
["VA50.3K-NF-300",null,"SQM50.364R1K3 to 3\" VKG10"]
["VA50.3K-NF-400",null,"SQM50.364R1K3 to 4\" VKG10"]
["VA50.3K-NM-100",null,"SQM50.364R1K3 to 1\" VKG20"]
["VA50.3K-NM-125",null,"SQM50.364R1K3 to 1-1/4\" VKG20"]
["VA50.3K-NM-150",null,"SQM50.364R1K3 to 1-1/2\" VKG20"]
["VA50.3K-NM-200",null,"SQM50.364R1K3 to 2\" VKG20"]
["VA50.3K-NM-250",null,"SQM50.364R1K3  to 2-1/2\" VKG20"]
["VA50.3K-NM-300",null,"SQM50.364R1K3 to 3\" VKG20"]
["VA50.3K-NM-400",null,"SQM50.364R1K3 to 4\" VKG20"]
["VA50.3K-NR-150",null,"SQM50.364R1K3 to 1-1/2\" VKG30"]
["VA50.3K-NR-200",null,"SQM50.364R1K3 to 2\" VKG30"]
["VA50.3K-NR-250",null,"SQM50.364R1K3 to 2-1/2\" VKG30"]
["VA50.3K-NR-300",null,"SQM50.364R1K3 to 3\" VKG30"]
["VA50.3K-NR-400",null,"SQM50.364R1K3 to 4\" VKG30"]
["VA50.3K-RF-050",null,"SQM50.364R1K3 to 1/2\" Rp VKG10"]
["VA50.3K-RF-075",null,"SQM50.364R1K3 to 3/4\" Rp VKG10"]
["VA50.3K-RF-100",null,"SQM50.364R1K3 to 1\" Rp VKG10"]
["VA50.3K-RF-125",null,"SQM50.364R1K3 to 1-1/4\" Rp VKG10"]
["VA50.3K-RF-150",null,"SQM50.364R1K3 to 1-1/2\" Rp VKG10"]
["VA50.3K-RF-200",null,"SQM50.364R1K3 to 2\" Rp VKG10"]
["VA50.3K-RF-250",null,"SQM50.364R1K3 to 2-1/2\" Rp VKG10"]
["VA50.3K-RF-300",null,"SQM50.364R1K3 to 3\" Rp VKG10"]
["VA50.3K-RM-100",null,"SQM50.364R1K3 to 1\" Rp VKG20"]
["VA50.3K-RM-125",null,"SQM50.364R1K3 to 1-1/4\" Rp VKG20"]
["VA50.3K-RM-150",null,"SQM50.364R1K3 to 1-1/2\" Rp VKG20"]
["VA50.3K-RM-200",null,"SQM50.364R1K3  to 2\" Rp VKG20"]
["VA50.3K-RM-250",null,"SQM50.364R1K3 to 2-1/2\" Rp VKG20"]
["VA50.3K-RM-300",null,"SQM50.364R1K3 to 3\" Rp VKG20"]
["VA50.3K-RR-150",null,"SQM50.364R1K3 to 1-1/2\" Rp VKG30"]
["VA50.3K-RR-200",null,"SQM50.364R1K3 to 2\" Rp VKG30"]
["VA50.3K-RR-250",null,"SQM50.364R1K3 to 2-1/2\" Rp VKG30"]
["VA50.3K-RR-300",null,"SQM50.364R1K3 to 3\" Rp VKG30"]
["VA50.3-NF-050",null,"SQM50.364R1G3 to 1/2\" VKG10"]
["VA50.3-NF-075",null,"SQM50.364R1G3 to 3/4\" VKG10"]
["VA50.3-NF-100",null,"SQM50.364R1G3 to 1\" VKG10"]
["VA50.3-NF-125",null,"SQM50.364R1G3 to 1-1/4\" VKG10"]
["VA50.3-NF-150",null,"SQM50.364R1G3 to 1-1/2\" VKG10"]
["VA50.3-NF-200",null,"SQM50.364R1G3 to 2\" VKG10"]
["VA50.3-NF-250",null,"SQM50.364R1G3 to 2-1/2\" VKG10"]
["VA50.3-NF-300",null,"SQM50.364R1G3 to 3\" VKG10"]
["VA50.3-NF-400",null,"SQM50.364R1G3 to 4\" VKG10"]
["VA50.3-NM-100",null,"SQM50.364R1G3 to 1\" VKG20"]
["VA50.3-NM-125",null,"SQM50.364R1G3 to 1-1/4\" VKG20"]
["VA50.3-NM-150",null,"SQM50.364R1G3 to 1-1/2\" VKG20"]
["VA50.3-NM-200",null,"SQM50.364R1G3 to 2\" VKG20"]
["VA50.3-NM-250",null,"SQM50.364R1G3  to 2-1/2\" VKG20"]
["VA50.3-NM-300",null,"SQM50.364R1G3 to 3\" VKG20"]
["VA50.3-NM-400",null,"SQM50.364R1G3 to 4\" VKG20"]
["VA50.3-NR-150",null,"SQM50.364R1G3 to 1-1/2\" VKG30"]
["VA50.3-NR-200",null,"SQM50.364R1G3 to 2\" VKG30"]
["VA50.3-NR-250",null,"SQM50.364R1G3 to 2-1/2\" VKG30"]
["VA50.3-NR-300",null,"SQM50.364R1G3 to 3\" VKG30"]
["VA50.3-NR-400",null,"SQM50.364R1G3 to 4\" VKG30"]
["VA50.3-RF-050",null,"SQM50.364R1G3 to 1/2\" Rp VKG10"]
["VA50.3-RF-075",null,"SQM50.364R1G3 to 3/4\" Rp VKG10"]
["VA50.3-RF-100",null,"SQM50.364R1G3 to 1\" Rp VKG10"]
["VA50.3-RF-125",null,"SQM50.364R1G3 to 1-1/4\" Rp VKG10"]
["VA50.3-RF-150",null,"SQM50.364R1G3 to 1-1/2\" Rp VKG10"]
["VA50.3-RF-200",null,"SQM50.364R1G3 to 2\" Rp VKG10"]
["VA50.3-RF-250",null,"SQM50.364R1G3 to 2-1/2\" Rp VKG10"]
["VA50.3-RF-300",null,"SQM50.364R1G3 to 3\" Rp VKG10"]
["VA50.3-RM-100",null,"SQM50.364R1G3 to 1\" Rp VKG20"]
["VA50.3-RM-125",null,"SQM50.364R1G3 to 1-1/4\" Rp VKG20"]
["VA50.3-RM-150",null,"SQM50.364R1G3 to 1-1/2\" Rp VKG20"]
["VA50.3-RM-200",null,"SQM50.364R1G3  to 2\" Rp VKG20"]
["VA50.3-RM-250",null,"SQM50.364R1G3 to 2-1/2\" Rp VKG20"]
["VA50.3-RM-300",null,"SQM50.364R1G3 to 3\" Rp VKG20"]
["VA50.3-RR-150",null,"SQM50.364R1G3 to 1-1/2\" Rp VKG30"]
["VA50.3-RR-200",null,"SQM50.364R1G3 to 2\" Rp VKG30"]
["VA50.3-RR-250",null,"SQM50.364R1G3 to 2-1/2\" Rp VKG30"]
["VA50.3-RR-300",null,"SQM50.364R1G3  to 3\" Rp VKG30"]
["VA50.3Z(220)-NF-050",null,"SQM50.384R2Z3 to 1/2\" VKG10"]
["VA50.3Z(220)-NF-075",null,"SQM50.384R2Z3 to 3/4\" VKG10"]
["VA50.3Z(220)-NF-100",null,"SQM50.384R2Z3 to 1\" VKG10"]
["VA50.3Z(220)-NF-125",null,"SQM50.384R2Z3 to 1-1/4\" VKG10"]
["VA50.3Z(220)-NF-150",null,"SQM50.384R2Z3 to 1-1/2\" VKG10"]
["VA50.3Z(220)-NF-200",null,"SQM50.384R2Z3 to 2\" VKG10"]
["VA50.3Z(220)-NF-250",null,"SQM50.384R2Z3 to 2-1/2\" VKG10"]
["VA50.3Z(220)-NF-300",null,"SQM50.384R2Z3 to 3\" VKG10"]
["VA50.3Z(220)-NF-400",null,"SQM50.384R2Z3 to 4\" VKG10"]
["VA50.3Z(220)-NM-100",null,"SQM50.384R2Z3 to 1\" VKG20"]
["VA50.3Z(220)-NM-125",null,"SQM50.384R2Z3 to 1-1/4\" VKG20"]
["VA50.3Z(220)-NM-150",null,"SQM50.384R2Z3 to 1-1/2\" VKG20"]
["VA50.3Z(220)-NM-200",null,"SQM50.384R2Z3 to 2\" VKG20"]
["VA50.3Z(220)-NM-250",null,"SQM50.384R2Z3  to 2-1/2\" VKG20"]
["VA50.3Z(220)-NM-300",null,"SQM50.384R2Z3 to 3\" VKG20"]
["VA50.3Z(220)-NM-400",null,"SQM50.384R2Z3 to 4\" VKG20"]
["VA50.3Z(220)-NR-150",null,"SQM50.384R2Z3 to 1-1/2\" VKG30"]
["VA50.3Z(220)-NR-200",null,"SQM50.384R2Z3 to 2\" VKG30"]
["VA50.3Z(220)-NR-250",null,"SQM50.384R2Z3 to 2-1/2\" VKG30"]
["VA50.3Z(220)-NR-300",null,"SQM50.384R2Z3 to 3\" VKG30"]
["VA50.3Z(220)-NR-400",null,"SQM50.384R2Z3 to 4\" VKG30"]
["VA50.3Z(220)-RF-050",null,"SQM50.384R2Z3 to 1/2\" Rp VKG10"]
["VA50.3Z(220)-RF-075",null,"SQM50.384R2Z3 to 3/4\" Rp VKG10"]
["VA50.3Z(220)-RF-100",null,"SQM50.384R2Z3 to 1\" Rp VKG10"]
["VA50.3Z(220)-RF-125",null,"SQM50.384R2Z3 to 1-1/4\" Rp VKG10"]
["VA50.3Z(220)-RF-150",null,"SQM50.384R2Z3 to 1-1/2\" Rp VKG10"]
["VA50.3Z(220)-RF-200",null,"SQM50.384R2Z3 to 2\" Rp VKG10"]
["VA50.3Z(220)-RF-250",null,"SQM50.384R2Z3 to 2-1/2\" Rp VKG10"]
["VA50.3Z(220)-RF-300",null,"SQM50.384R2Z3 to 3\" Rp VKG10"]
["VA50.3Z(220)-RM-100",null,"SQM50.384R2Z3 to 1\" Rp VKG20"]
["VA50.3Z(220)-RM-125",null,"SQM50.384R2Z3 to 1-1/4\" Rp VKG20"]
["VA50.3Z(220)-RM-150",null,"SQM50.384R2Z3 to 1-1/2\" Rp VKG20"]
["VA50.3Z(220)-RM-200",null,"SQM50.384R2Z3  to 2\" Rp VKG20"]
["VA50.3Z(220)-RM-250",null,"SQM50.384R2Z3 to 2-1/2\" Rp VKG20"]
["VA50.3Z(220)-RM-300",null,"SQM50.384R2Z3 to 3\" Rp VKG20"]
["VA50.3Z(220)-RR-150",null,"SQM50.384R2Z3 to 1-1/2\" Rp VKG30"]
["VA50.3Z(220)-RR-200",null,"SQM50.384R2Z3 to 2\" Rp VKG30"]
["VA50.3Z(220)-RR-250",null,"SQM50.384R2Z3 to 2-1/2\" Rp VKG30"]
["VA50.3Z(220)-RR-300",null,"SQM50.384R2Z3 to 3\" Rp VKG30"]
["VA50.3Z-NF-050",null,"SQM50.364R1Z3 to 1/2\" VKG10"]
["VA50.3Z-NF-075",null,"SQM50.364R1Z3 to 3/4\" VKG10"]
["VA50.3Z-NF-100",null,"SQM50.364R1Z3 to 1\" VKG10"]
["VA50.3Z-NF-125",null,"SQM50.364R1Z3 to 1-1/4\" VKG10"]
["VA50.3Z-NF-150",null,"SQM50.364R1Z3 to 1-1/2\" VKG10"]
["VA50.3Z-NF-200",null,"SQM50.364R1Z3 to 2\" VKG10"]
["VA50.3Z-NF-250",null,"SQM50.364R1Z3 to 2-1/2\" VKG10"]
["VA50.3Z-NF-300",null,"SQM50.364R1Z3 to 3\" VKG10"]
["VA50.3Z-NF-400",null,"SQM50.364R1Z3 to 4\" VKG10"]
["VA50.3Z-NM-100",null,"SQM50.364R1Z3 to 1\" VKG20"]
["VA50.3Z-NM-125",null,"SQM50.364R1Z3 to 1-1/4\" VKG20"]
["VA50.3Z-NM-150",null,"SQM50.364R1Z3 to 1-1/2\" VKG20"]
["VA50.3Z-NM-200",null,"SQM50.364R1Z3 to 2\" VKG20"]
["VA50.3Z-NM-250",null,"SQM50.364R1Z3  to 2-1/2\" VKG20"]
["VA50.3Z-NM-300",null,"SQM50.364R1Z3 to 3\" VKG20"]
["VA50.3Z-NM-400",null,"SQM50.364R1Z3 to 4\" VKG20"]
["VA50.3Z-NR-150",null,"SQM50.364R1Z3 to 1-1/2\" VKG30"]
["VA50.3Z-NR-200",null,"SQM50.364R1Z3 to 2\" VKG30"]
["VA50.3Z-NR-250",null,"SQM50.364R1Z3 to 2-1/2\" VKG30"]
["VA50.3Z-NR-300",null,"SQM50.364R1Z3 to 3\" VKG30"]
["VA50.3Z-NR-400",null,"SQM50.364R1Z3 to 4\" VKG30"]
["VA50.3Z-RF-050",null,"SQM50.364R1Z3 to 1/2\" Rp VKG10"]
["VA50.3Z-RF-075",null,"SQM50.364R1Z3 to 3/4\" Rp VKG10"]
["VA50.3Z-RF-100",null,"SQM50.364R1Z3 to 1\" Rp VKG10"]
["VA50.3Z-RF-125",null,"SQM50.364R1Z3 to 1-1/4\" Rp VKG10"]
["VA50.3Z-RF-150",null,"SQM50.364R1Z3 to 1-1/2\" Rp VKG10"]
["VA50.3Z-RF-200",null,"SQM50.364R1Z3 to 2\" Rp VKG10"]
["VA50.3Z-RF-250",null,"SQM50.364R1Z3 to 2-1/2\" Rp VKG10"]
["VA50.3Z-RF-300",null,"SQM50.364R1Z3 to 3\" Rp VKG10"]
["VA50.3Z-RM-100",null,"SQM50.364R1Z3 to 1\" Rp VKG20"]
["VA50.3Z-RM-125",null,"SQM50.364R1Z3 to 1-1/4\" Rp VKG20"]
["VA50.3Z-RM-150",null,"SQM50.364R1Z3 to 1-1/2\" Rp VKG20"]
["VA50.3Z-RM-200",null,"SQM50.364R1Z3  to 2\" Rp VKG20"]
["VA50.3Z-RM-250",null,"SQM50.364R1Z3 to 2-1/2\" Rp VKG20"]
["VA50.3Z-RM-300",null,"SQM50.364R1Z3 to 3\" Rp VKG20"]
["VA50.3Z-RR-150",null,"SQM50.364R1Z3 to 1-1/2\" Rp VKG30"]
["VA50.3Z-RR-200",null,"SQM50.364R1Z3 to 2\" Rp VKG30"]
["VA50.3Z-RR-250",null,"SQM50.364R1Z3 to 2-1/2\" Rp VKG30"]
["VA50.3Z-RR-300",null,"SQM50.364R1Z3 to 3\" Rp VKG30"]
["VA50.4(220)-NF-050",null,"SQM50.464R2G3 to 1/2\" VKG10"]
["VA50.4(220)-NF-075",null,"SQM50.464R2G3 to 3/4\" VKG10"]
["VA50.4(220)-NF-100",null,"SQM50.464R2G3 to 1\" VKG10"]
["VA50.4(220)-NF-125",null,"SQM50.464R2G3 to 1-1/4\" VKG10"]
["VA50.4(220)-NF-150",null,"SQM50.464R2G3 to 1-1/2\" VKG10"]
["VA50.4(220)-NF-200",null,"SQM50.464R2G3 to 2\" VKG10"]
["VA50.4(220)-NF-250",null,"SQM50.464R2G3 to 2-1/2\" VKG10"]
["VA50.4(220)-NF-300",null,"SQM50.464R2G3 to 3\" VKG10"]
["VA50.4(220)-NF-400",null,"SQM50.464R2G3 to 4\" VKG10"]
["VA50.4(220)-NM-100",null,"SQM50.464R2G3 to 1\" VKG20"]
["VA50.4(220)-NM-125",null,"SQM50.464R2G3 to 1-1/4\" VKG20"]
["VA50.4(220)-NM-150",null,"SQM50.464R2G3 to 1-1/2\" VKG20"]
["VA50.4(220)-NM-200",null,"SQM50.464R2G3 to 2\" VKG20"]
["VA50.4(220)-NM-250",null,"SQM50.464R2G3  to 2-1/2\" VKG20"]
["VA50.4(220)-NM-300",null,"SQM50.464R2G3 to 3\" VKG20"]
["VA50.4(220)-NM-400",null,"SQM50.464R2G3 to 4\" VKG20"]
["VA50.4(220)-NR-150",null,"SQM50.464R2G3 to 1-1/2\" VKG30"]
["VA50.4(220)-NR-200",null,"SQM50.464R2G3 to 2\" VKG30"]
["VA50.4(220)-NR-250",null,"SQM50.464R2G3 to 2-1/2\" VKG30"]
["VA50.4(220)-NR-300",null,"SQM50.464R2G3 to 3\" VKG30"]
["VA50.4(220)-NR-400",null,"SQM50.464R2G3 to 4\" VKG30"]
["VA50.4(220)-RF-050",null,"SQM50.464R2G3 to 1/2\" Rp VKG10"]
["VA50.4(220)-RF-075",null,"SQM50.464R2G3 to 3/4\" Rp VKG10"]
["VA50.4(220)-RF-100",null,"SQM50.464R2G3 to 1\" Rp VKG10"]
["VA50.4(220)-RF-125",null,"SQM50.464R2G3 to 1-1/4\" Rp VKG10"]
["VA50.4(220)-RF-150",null,"SQM50.464R2G3 to 1-1/2\" Rp VKG10"]
["VA50.4(220)-RF-200",null,"SQM50.464R2G3 to 2\" Rp VKG10"]
["VA50.4(220)-RF-250",null,"SQM50.464R2G3 to 2-1/2\" Rp VKG10"]
["VA50.4(220)-RF-300",null,"SQM50.464R2G3 to 3\" Rp VKG10"]
["VA50.4(220)-RM-100",null,"SQM50.464R2G3 to 1\" Rp VKG20"]
["VA50.4(220)-RM-125",null,"SQM50.464R2G3 to 1-1/4\" Rp VKG20"]
["VA50.4(220)-RM-150",null,"SQM50.464R2G3 to 1-1/2\" Rp VKG20"]
["VA50.4(220)-RM-200",null,"SQM50.464R2G3  to 2\" Rp VKG20"]
["VA50.4(220)-RM-250",null,"SQM50.464R2G3 to 2-1/2\" Rp VKG20"]
["VA50.4(220)-RM-300",null,"SQM50.464R2G3 to 3\" Rp VKG20"]
["VA50.4(220)-RR-150",null,"SQM50.464R2G3 to 1-1/2\" Rp VKG30"]
["VA50.4(220)-RR-200",null,"SQM50.464R2G3 to 2\" Rp VKG30"]
["VA50.4(220)-RR-250",null,"SQM50.464R2G3 to 2-1/2\" Rp VKG30"]
["VA50.4(220)-RR-300",null,"SQM50.464R2G3 to 3\" Rp VKG30"]
["VA50.4(24)-NF-050",null,"SQM50.454R8G3 to 1/2\" VKG10, NEMA 4"]
["VA50.4(24)-NF-075",null,"SQM50.454R8G3 to 3/4\" VKG10, NEMA 4"]
["VA50.4(24)-NF-100",null,"SQM50.454R8G3 to 1\" VKG10, NEMA 4"]
["VA50.4(24)-NF-125",null,"SQM50.454R8G3 to 1-1/4\" VKG10, NEMA 4"]
["VA50.4(24)-NF-150",null,"SQM50.454R8G3 to 1-1/2\" VKG10, NEMA 4"]
["VA50.4(24)-NF-200",null,"SQM50.454R8G3 to 2\" VKG10, NEMA 4"]
["VA50.4(24)-NF-250",null,"SQM50.454R8G3 to 2-1/2\" VKG10, NEMA 4"]
["VA50.4(24)-NF-300",null,"SQM50.454R8G3 to 3\" VKG10, NEMA 4"]
["VA50.4(24)-NF-400",null,"SQM50.454R8G3 to 4\" VKG10, NEMA 4"]
["VA50.47-NF-050",null,"SQM50.464R1G7 to 1/2\" VKG10"]
["VA50.47-NF-075",null,"SQM50.464R1G7 to 3/4\" VKG10"]
["VA50.47-NF-100",null,"SQM50.464R1G7 to 1\" VKG10"]
["VA50.47-NF-125",null,"SQM50.464R1G7 to 1-1/4\" VKG10"]
["VA50.47-NF-150",null,"SQM50.464R1G7 to 1-1/2\" VKG10"]
["VA50.47-NF-150-N4",null,{"$error":"#N/A"}]
["VA50.47-NF-200",null,"SQM50.464R1G7 to 2\" VKG10"]
["VA50.47-NF-250",null,"SQM50.464R1G7 to 2-1/2\" VKG10"]
["VA50.47-NF-300",null,"SQM50.464R1G7 to 3\" VKG10"]
["VA50.47-NF-400",null,"SQM50.464R1G7 to 4\" VKG10"]
["VA50.47-NM-100",null,"SQM50.464R1G7 to 1\" VKG20"]
["VA50.47-NM-125",null,"SQM50.464R1G7 to 1-1/4\" VKG20"]
["VA50.47-NM-150",null,"SQM50.464R1G7 to 1-1/2\" VKG20"]
["VA50.47-NM-200",null,"SQM50.464R1G7 to 2\" VKG20"]
["VA50.47-NM-250",null,"SQM50.464R1G7  to 2-1/2\" VKG20"]
["VA50.47-NM-300",null,"SQM50.464R1G7 to 3\" VKG20"]
["VA50.47-NM-400",null,"SQM50.464R1G7 to 4\" VKG20"]
["VA50.47-NR-150",null,"SQM50.464R1G7 to 1-1/2\" VKG30"]
["VA50.47-NR-200",null,"SQM50.464R1G7 to 2\" VKG30"]
["VA50.47-NR-250",null,"SQM50.464R1G7 to 2-1/2\" VKG30"]
["VA50.47-NR-300",null,"SQM50.464R1G7 to 3\" VKG30"]
["VA50.47-NR-400",null,"SQM50.464R1G7 to 4\" VKG30"]
["VA50.47-RF-050",null,"SQM50.464R1G7 to 1/2\" Rp VKG10"]
["VA50.47-RF-075",null,"SQM50.464R1G7 to 3/4\" Rp VKG10"]
["VA50.47-RF-100",null,"SQM50.464R1G7 to 1\" Rp VKG10"]
["VA50.47-RF-125",null,"SQM50.464R1G7 to 1-1/4\" Rp VKG10"]
["VA50.47-RF-150",null,"SQM50.464R1G7 to 1-1/2\" Rp VKG10"]
["VA50.47-RF-200",null,"SQM50.464R1G7 to 2\" Rp VKG10"]
["VA50.47-RF-250",null,"SQM50.464R1G7 to 2-1/2\" Rp VKG10"]
["VA50.47-RF-300",null,"SQM50.464R1G7 to 3\" Rp VKG10"]
["VA50.47-RM-100",null,"SQM50.464R1G7 to 1\" Rp VKG20"]
["VA50.47-RM-125",null,"SQM50.464R1G7 to 1-1/4\" Rp VKG20"]
["VA50.47-RM-150",null,"SQM50.464R1G7 to 1-1/2\" Rp VKG20"]
["VA50.47-RM-200",null,"SQM50.464R1G7  to 2\" Rp VKG20"]
["VA50.47-RM-250",null,"SQM50.464R1G7 to 2-1/2\" Rp VKG20"]
["VA50.47-RM-300",null,"SQM50.464R1G7 to 3\" Rp VKG20"]
["VA50.47-RR-150",null,"SQM50.464R1G7 to 1-1/2\" Rp VKG30"]
["VA50.47-RR-200",null,"SQM50.464R1G7 to 2\" Rp VKG30"]
["VA50.47-RR-250",null,"SQM50.464R1G7 to 2-1/2\" Rp VKG30"]
["VA50.47-RR-300",null,"SQM50.464R1G7 to 3\" Rp VKG30"]
["VA50.48Z(24)-NF-125",null,"SQM50.484R8Z3 to 1-1/4\" VKG10"]
["VA50.4A3-NF-050",null,"SQM50.464R1A3 to 1/2\" VKG10"]
["VA50.4A3-NF-075",null,"SQM50.464R1A3 to 3/4\" VKG10"]
["VA50.4A3-NF-100",null,"SQM50.464R1A3 to 1\" VKG10"]
["VA50.4A3-NF-125",null,"SQM50.464R1A3 to 1-1/4\" VKG10"]
["VA50.4A3-NF-150",null,"SQM50.464R1A3 to 1-1/2\" VKG10"]
["VA50.4A3-NF-200",null,"SQM50.464R1A3 to 2\" VKG10"]
["VA50.4A3-NF-250",null,"SQM50.464R1A3 to 2-1/2\" VKG10"]
["VA50.4A3-NF-300",null,"SQM50.464R1A3 to 3\" VKG10"]
["VA50.4A3-NF-400",null,"SQM50.464R1A3 to 4\" VKG10"]
["VA50.4A3-NM-100",null,"SQM50.464R1A3 to 1\" VKG20"]
["VA50.4A3-NM-125",null,"SQM50.464R1A3 to 1-1/4\" VKG20"]
["VA50.4A3-NM-150",null,"SQM50.464R1A3 to 1-1/2\" VKG20"]
["VA50.4A3-NM-200",null,"SQM50.464R1A3 to 2\" VKG20"]
["VA50.4A3-NM-250",null,"SQM50.464R1A3  to 2-1/2\" VKG20"]
["VA50.4A3-NM-300",null,"SQM50.464R1A3 to 3\" VKG20"]
["VA50.4A3-NM-400",null,"SQM50.464R1A3 to 4\" VKG20"]
["VA50.4A3-NR-150",null,"SQM50.464R1A3 to 1-1/2\" VKG30"]
["VA50.4A3-NR-200",null,"SQM50.464R1A3 to 2\" VKG30"]
["VA50.4A3-NR-250",null,"SQM50.464R1A3 to 2-1/2\" VKG30"]
["VA50.4A3-NR-300",null,"SQM50.464R1A3 to 3\" VKG30"]
["VA50.4A3-NR-400",null,"SQM50.464R1A3 to 4\" VKG30"]
["VA50.4A3-RF-050",null,"SQM50.464R1A3 to 1/2\" Rp VKG10"]
["VA50.4A3-RF-075",null,"SQM50.464R1A3 to 3/4\" Rp VKG10"]
["VA50.4A3-RF-100",null,"SQM50.464R1A3 to 1\" Rp VKG10"]
["VA50.4A3-RF-125",null,"SQM50.464R1A3 to 1-1/4\" Rp VKG10"]
["VA50.4A3-RF-150",null,"SQM50.464R1A3 to 1-1/2\" Rp VKG10"]
["VA50.4A3-RF-200",null,"SQM50.464R1A3 to 2\" Rp VKG10"]
["VA50.4A3-RF-250",null,"SQM50.464R1A3 to 2-1/2\" Rp VKG10"]
["VA50.4A3-RF-300",null,"SQM50.464R1A3 to 3\" Rp VKG10"]
["VA50.4A3-RM-100",null,"SQM50.464R1A3 to 1\" Rp VKG20"]
["VA50.4A3-RM-125",null,"SQM50.464R1A3 to 1-1/4\" Rp VKG20"]
["VA50.4A3-RM-150",null,"SQM50.464R1A3 to 1-1/2\" Rp VKG20"]
["VA50.4A3-RM-200",null,"SQM50.464R1A3  to 2\" Rp VKG20"]
["VA50.4A3-RM-250",null,"SQM50.464R1A3 to 2-1/2\" Rp VKG20"]
["VA50.4A3-RM-300",null,"SQM50.464R1A3 to 3\" Rp VKG20"]
["VA50.4A3-RR-150",null,"SQM50.464R1A3 to 1-1/2\" Rp VKG30"]
["VA50.4A3-RR-200",null,"SQM50.464R1A3 to 2\" Rp VKG30"]
["VA50.4A3-RR-250",null,"SQM50.464R1A3 to 2-1/2\" Rp VKG30"]
["VA50.4A3-RR-300",null,"SQM50.464R1A3 to 3\" Rp VKG30"]
["VA50.4A-NF-050",null,"SQM50.464R1A to 1/2\" VKG10"]
["VA50.4A-NF-075",null,"SQM50.464R1A to 3/4\" VKG10"]
["VA50.4A-NF-100",null,"SQM50.464R1A to 1\" VKG10"]
["VA50.4A-NF-125",null,"SQM50.464R1A to 1-1/4\" VKG10"]
["VA50.4A-NF-150",null,"SQM50.464R1A to 1-1/2\" VKG10"]
["VA50.4A-NF-200",null,"SQM50.464R1A to 2\" VKG10"]
["VA50.4A-NF-250",null,"SQM50.464R1A to 2-1/2\" VKG10"]
["VA50.4A-NF-300",null,"SQM50.464R1A to 3\" VKG10"]
["VA50.4A-NF-400",null,"SQM50.464R1A to 4\" VKG10"]
["VA50.4A-NM-100",null,"SQM50.464R1A to 1\" VKG20"]
["VA50.4A-NM-125",null,"SQM50.464R1A to 1-1/4\" VKG20"]
["VA50.4A-NM-150",null,"SQM50.464R1A to 1-1/2\" VKG20"]
["VA50.4A-NM-200",null,"SQM50.464R1A to 2\" VKG20"]
["VA50.4A-NM-250",null,"SQM50.464R1A  to 2-1/2\" VKG20"]
["VA50.4A-NM-300",null,"SQM50.464R1A to 3\" VKG20"]
["VA50.4A-NM-400",null,"SQM50.464R1A to 4\" VKG20"]
["VA50.4A-NR-150",null,"SQM50.464R1A to 1-1/2\" VKG30"]
["VA50.4A-NR-200",null,"SQM50.464R1A to 2\" VKG30"]
["VA50.4A-NR-250",null,"SQM50.464R1A to 2-1/2\" VKG30"]
["VA50.4A-NR-300",null,"SQM50.464R1A to 3\" VKG30"]
["VA50.4A-NR-400",null,"SQM50.464R1A to 4\" VKG30"]
["VA50.4A-RF-050",null,"SQM50.464R1A to 1/2\" Rp VKG10"]
["VA50.4A-RF-075",null,"SQM50.464R1A to 3/4\" Rp VKG10"]
["VA50.4A-RF-100",null,"SQM50.464R1A to 1\" Rp VKG10"]
["VA50.4A-RF-125",null,"SQM50.464R1A to 1-1/4\" Rp VKG10"]
["VA50.4A-RF-150",null,"SQM50.464R1A to 1-1/2\" Rp VKG10"]
["VA50.4A-RF-200",null,"SQM50.464R1A to 2\" Rp VKG10"]
["VA50.4A-RF-250",null,"SQM50.464R1A to 2-1/2\" Rp VKG10"]
["VA50.4A-RF-300",null,"SQM50.464R1A to 3\" Rp VKG10"]
["VA50.4A-RM-100",null,"SQM50.464R1A to 1\" Rp VKG20"]
["VA50.4A-RM-125",null,"SQM50.464R1A to 1-1/4\" Rp VKG20"]
["VA50.4A-RM-150",null,"SQM50.464R1A to 1-1/2\" Rp VKG20"]
["VA50.4A-RM-200",null,"SQM50.464R1A  to 2\" Rp VKG20"]
["VA50.4A-RM-250",null,"SQM50.464R1A to 2-1/2\" Rp VKG20"]
["VA50.4A-RM-300",null,"SQM50.464R1A to 3\" Rp VKG20"]
["VA50.4A-RR-150",null,"SQM50.464R1A to 1-1/2\" Rp VKG30"]
["VA50.4A-RR-200",null,"SQM50.464R1A to 2\" Rp VKG30"]
["VA50.4A-RR-250",null,"SQM50.464R1A to 2-1/2\" Rp VKG30"]
["VA50.4A-RR-300",null,"SQM50.464R1A to 3\" Rp VKG30"]
["VA50.4K-NF-050",null,"SQM50.464R1K3 to 1/2\" VKG10"]
["VA50.4K-NF-075",null,"SQM50.464R1K3 to 3/4\" VKG10"]
["VA50.4K-NF-100",null,"SQM50.464R1K3 to 1\" VKG10"]
["VA50.4K-NF-125",null,"SQM50.464R1K3 to 1-1/4\" VKG10"]
["VA50.4K-NF-150",null,"SQM50.464R1K3 to 1-1/2\" VKG10"]
["VA50.4K-NF-200",null,"SQM50.464R1K3 to 2\" VKG10"]
["VA50.4K-NF-250",null,"SQM50.464R1K3 to 2-1/2\" VKG10"]
["VA50.4K-NF-300",null,"SQM50.464R1K3 to 3\" VKG10"]
["VA50.4K-NF-400",null,"SQM50.464R1K3 to 4\" VKG10"]
["VA50.4K-NM-100",null,"SQM50.464R1K3 to 1\" VKG20"]
["VA50.4K-NM-125",null,"SQM50.464R1K3 to 1-1/4\" VKG20"]
["VA50.4K-NM-150",null,"SQM50.464R1K3 to 1-1/2\" VKG20"]
["VA50.4K-NM-200",null,"SQM50.464R1K3 to 2\" VKG20"]
["VA50.4K-NM-250",null,"SQM50.464R1K3  to 2-1/2\" VKG20"]
["VA50.4K-NM-300",null,"SQM50.464R1K3 to 3\" VKG20"]
["VA50.4K-NM-400",null,"SQM50.464R1K3 to 4\" VKG20"]
["VA50.4K-NR-150",null,"SQM50.464R1K3 to 1-1/2\" VKG30"]
["VA50.4K-NR-200",null,"SQM50.464R1K3 to 2\" VKG30"]
["VA50.4K-NR-250",null,"SQM50.464R1K3 to 2-1/2\" VKG30"]
["VA50.4K-NR-300",null,"SQM50.464R1K3 to 3\" VKG30"]
["VA50.4K-NR-400",null,"SQM50.464R1K3 to 4\" VKG30"]
["VA50.4K-RF-050",null,"SQM50.464R1K3 to 1/2\" Rp VKG10"]
["VA50.4K-RF-075",null,"SQM50.464R1K3 to 3/4\" Rp VKG10"]
["VA50.4K-RF-100",null,"SQM50.464R1K3 to 1\" Rp VKG10"]
["VA50.4K-RF-125",null,"SQM50.464R1K3 to 1-1/4\" Rp VKG10"]
["VA50.4K-RF-150",null,"SQM50.464R1K3 to 1-1/2\" Rp VKG10"]
["VA50.4K-RF-200",null,"SQM50.464R1K3 to 2\" Rp VKG10"]
["VA50.4K-RF-250",null,"SQM50.464R1K3 to 2-1/2\" Rp VKG10"]
["VA50.4K-RF-300",null,"SQM50.464R1K3 to 3\" Rp VKG10"]
["VA50.4K-RM-100",null,"SQM50.464R1K3 to 1\" Rp VKG20"]
["VA50.4K-RM-125",null,"SQM50.464R1K3 to 1-1/4\" Rp VKG20"]
["VA50.4K-RM-150",null,"SQM50.464R1K3 to 1-1/2\" Rp VKG20"]
["VA50.4K-RM-200",null,"SQM50.464R1K3  to 2\" Rp VKG20"]
["VA50.4K-RM-250",null,"SQM50.464R1K3 to 2-1/2\" Rp VKG20"]
["VA50.4K-RM-300",null,"SQM50.464R1K3 to 3\" Rp VKG20"]
["VA50.4K-RR-150",null,"SQM50.464R1K3 to 1-1/2\" Rp VKG30"]
["VA50.4K-RR-200",null,"SQM50.464R1K3 to 2\" Rp VKG30"]
["VA50.4K-RR-250",null,"SQM50.464R1K3 to 2-1/2\" Rp VKG30"]
["VA50.4K-RR-300",null,"SQM50.464R1K3 to 3\" Rp VKG30"]
["VA50.4-NF-050",null,"SQM50.464R1G3 to 1/2\" VKG10"]
["VA50.4-NF-075",null,"SQM50.464R1G3 to 3/4\" VKG10"]
["VA50.4-NF-100",null,"SQM50.464R1G3 to 1\" VKG10"]
["VA50.4-NF-125",null,"SQM50.464R1G3 to 1-1/4\" VKG10"]
["VA50.4-NF-150",null,"SQM50.464R1G3 to 1-1/2\" VKG10"]
["VA50.4-NF-200",null,"SQM50.464R1G3 to 2\" VKG10"]
["VA50.4-NF-250",null,"SQM50.464R1G3 to 2-1/2\" VKG10"]
["VA50.4-NF-300",null,"SQM50.464R1G3 to 3\" VKG10"]
["VA50.4-NF-400",null,"SQM50.464R1G3 to 4\" VKG10"]
["VA50.4-NM-100",null,"SQM50.464R1G3 to 1\" VKG20"]
["VA50.4-NM-125",null,"SQM50.464R1G3 to 1-1/4\" VKG20"]
["VA50.4-NM-150",null,"SQM50.464R1G3 to 1-1/2\" VKG20"]
["VA50.4-NM-200",null,"SQM50.464R1G3 to 2\" VKG20"]
["VA50.4-NM-250",null,"SQM50.464R1G3  to 2-1/2\" VKG20"]
["VA50.4-NM-300",null,"SQM50.464R1G3 to 3\" VKG20"]
["VA50.4-NM-400",null,"SQM50.464R1G3 to 4\" VKG20"]
["VA50.4-NR-150",null,"SQM50.464R1G3 to 1-1/2\" VKG30"]
["VA50.4-NR-200",null,"SQM50.464R1G3 to 2\" VKG30"]
["VA50.4-NR-250",null,"SQM50.464R1G3 to 2-1/2\" VKG30"]
["VA50.4-NR-300",null,"SQM50.464R1G3 to 3\" VKG30"]
["VA50.4-NR-400",null,"SQM50.464R1G3 to 4\" VKG30"]
["VA50.4-RF-050",null,"SQM50.464R1G3 to 1/2\" Rp VKG10"]
["VA50.4-RF-075",null,"SQM50.464R1G3 to 3/4\" Rp VKG10"]
["VA50.4-RF-100",null,"SQM50.464R1G3 to 1\" Rp VKG10"]
["VA50.4-RF-125",null,"SQM50.464R1G3 to 1-1/4\" Rp VKG10"]
["VA50.4-RF-150",null,"SQM50.464R1G3 to 1-1/2\" Rp VKG10"]
["VA50.4-RF-200",null,"SQM50.464R1G3 to 2\" Rp VKG10"]
["VA50.4-RF-250",null,"SQM50.464R1G3 to 2-1/2\" Rp VKG10"]
["VA50.4-RF-300",null,"SQM50.464R1G3 to 3\" Rp VKG10"]
["VA50.4-RM-100",null,"SQM50.464R1G3 to 1\" Rp VKG20"]
["VA50.4-RM-125",null,"SQM50.464R1G3 to 1-1/4\" Rp VKG20"]
["VA50.4-RM-150",null,"SQM50.464R1G3 to 1-1/2\" Rp VKG20"]
["VA50.4-RM-200",null,"SQM50.464R1G3  to 2\" Rp VKG20"]
["VA50.4-RM-250",null,"SQM50.464R1G3 to 2-1/2\" Rp VKG20"]
["VA50.4-RM-300",null,"SQM50.464R1G3 to 3\" Rp VKG20"]
["VA50.4R-NF-300",null,"SQM50.464R1G3R to 3\" VKG10"]
["VA50.4-RR-150",null,"SQM50.464R1G3 to 1-1/2\" Rp VKG30"]
["VA50.4-RR-200",null,"SQM50.464R1G3 to 2\" Rp VKG30"]
["VA50.4-RR-250",null,"SQM50.464R1G3 to 2-1/2\" Rp VKG30"]
["VA50.4-RR-300",null,"SQM50.464R1G3  to 3\" Rp VKG30"]
["VA50.4Z(220)-NF-050",null,"SQM50.464R2Z3 to 1/2\" VKG10"]
["VA50.4Z(220)-NF-075",null,"SQM50.464R2Z3 to 3/4\" VKG10"]
["VA50.4Z(220)-NF-100",null,"SQM50.464R2Z3 to 1\" VKG10"]
["VA50.4Z(220)-NF-125",null,"SQM50.464R2Z3 to 1-1/4\" VKG10"]
["VA50.4Z(220)-NF-150",null,"SQM50.464R2Z3 to 1-1/2\" VKG10"]
["VA50.4Z(220)-NF-200",null,"SQM50.464R2Z3 to 2\" VKG10"]
["VA50.4Z(220)-NF-250",null,"SQM50.464R2Z3 to 2-1/2\" VKG10"]
["VA50.4Z(220)-NF-300",null,"SQM50.464R2Z3 to 3\" VKG10"]
["VA50.4Z(220)-NF-400",null,"SQM50.464R2Z3 to 4\" VKG10"]
["VA50.4Z(220)-NM-100",null,"SQM50.464R2Z3 to 1\" VKG20"]
["VA50.4Z(220)-NM-125",null,"SQM50.464R2Z3 to 1-1/4\" VKG20"]
["VA50.4Z(220)-NM-150",null,"SQM50.464R2Z3 to 1-1/2\" VKG20"]
["VA50.4Z(220)-NM-200",null,"SQM50.464R2Z3 to 2\" VKG20"]
["VA50.4Z(220)-NM-250",null,"SQM50.464R2Z3  to 2-1/2\" VKG20"]
["VA50.4Z(220)-NM-300",null,"SQM50.464R2Z3 to 3\" VKG20"]
["VA50.4Z(220)-NM-400",null,"SQM50.464R2Z3 to 4\" VKG20"]
["VA50.4Z(220)-NR-150",null,"SQM50.464R2Z3 to 1-1/2\" VKG30"]
["VA50.4Z(220)-NR-200",null,"SQM50.464R2Z3 to 2\" VKG30"]
["VA50.4Z(220)-NR-250",null,"SQM50.464R2Z3 to 2-1/2\" VKG30"]
["VA50.4Z(220)-NR-300",null,"SQM50.464R2Z3 to 3\" VKG30"]
["VA50.4Z(220)-NR-400",null,"SQM50.464R2Z3 to 4\" VKG30"]
["VA50.4Z(220)-RF-050",null,"SQM50.464R2Z3 to 1/2\" Rp VKG10"]
["VA50.4Z(220)-RF-075",null,"SQM50.464R2Z3 to 3/4\" Rp VKG10"]
["VA50.4Z(220)-RF-100",null,"SQM50.464R2Z3 to 1\" Rp VKG10"]
["VA50.4Z(220)-RF-125",null,"SQM50.464R2Z3 to 1-1/4\" Rp VKG10"]
["VA50.4Z(220)-RF-150",null,"SQM50.464R2Z3 to 1-1/2\" Rp VKG10"]
["VA50.4Z(220)-RF-200",null,"SQM50.464R2Z3 to 2\" Rp VKG10"]
["VA50.4Z(220)-RF-250",null,"SQM50.464R2Z3 to 2-1/2\" Rp VKG10"]
["VA50.4Z(220)-RF-300",null,"SQM50.464R2Z3 to 3\" Rp VKG10"]
["VA50.4Z(220)-RM-100",null,"SQM50.464R2Z3 to 1\" Rp VKG20"]
["VA50.4Z(220)-RM-125",null,"SQM50.464R2Z3 to 1-1/4\" Rp VKG20"]
["VA50.4Z(220)-RM-150",null,"SQM50.464R2Z3 to 1-1/2\" Rp VKG20"]
["VA50.4Z(220)-RM-200",null,"SQM50.464R2Z3  to 2\" Rp VKG20"]
["VA50.4Z(220)-RM-250",null,"SQM50.464R2Z3 to 2-1/2\" Rp VKG20"]
["VA50.4Z(220)-RM-300",null,"SQM50.464R2Z3 to 3\" Rp VKG20"]
["VA50.4Z(220)-RR-150",null,"SQM50.464R2Z3 to 1-1/2\" Rp VKG30"]
["VA50.4Z(220)-RR-200",null,"SQM50.464R2Z3 to 2\" Rp VKG30"]
["VA50.4Z(220)-RR-250",null,"SQM50.464R2Z3 to 2-1/2\" Rp VKG30"]
["VA50.4Z(220)-RR-300",null,"SQM50.464R2Z3 to 3\" Rp VKG30"]
["VA50.4Z7-NF-150",null,"SQM50.464R1Z7 to 1-1/2\" VKG10"]
["VA50.4Z7-NF-150-N4",null,{"$error":"#N/A"}]
["VA50.4Z-NF-050",null,"SQM50.464R1Z3 to 1/2\" VKG10"]
["VA50.4Z-NF-075",null,"SQM50.464R1Z3 to 3/4\" VKG10"]
["VA50.4Z-NF-100",null,"SQM50.464R1Z3 to 1\" VKG10"]
["VA50.4Z-NF-125",null,"SQM50.464R1Z3 to 1-1/4\" VKG10"]
["VA50.4Z-NF-150",null,"SQM50.464R1Z3 to 1-1/2\" VKG10"]
["VA50.4Z-NF-200",null,"SQM50.464R1Z3 to 2\" VKG10"]
["VA50.4Z-NF-250",null,"SQM50.464R1Z3 to 2-1/2\" VKG10"]
["VA50.4Z-NF-300",null,"SQM50.464R1Z3 to 3\" VKG10"]
["VA50.4Z-NF-400",null,"SQM50.464R1Z3 to 4\" VKG10"]
["VA50.4Z-NM-100",null,"SQM50.464R1Z3 to 1\" VKG20"]
["VA50.4Z-NM-125",null,"SQM50.464R1Z3 to 1-1/4\" VKG20"]
["VA50.4Z-NM-150",null,"SQM50.464R1Z3 to 1-1/2\" VKG20"]
["VA50.4Z-NM-200",null,"SQM50.464R1Z3 to 2\" VKG20"]
["VA50.4Z-NM-250",null,"SQM50.464R1Z3  to 2-1/2\" VKG20"]
["VA50.4Z-NM-300",null,"SQM50.464R1Z3 to 3\" VKG20"]
["VA50.4Z-NM-400",null,"SQM50.464R1Z3 to 4\" VKG20"]
["VA50.4Z-NR-150",null,"SQM50.464R1Z3 to 1-1/2\" VKG30"]
["VA50.4Z-NR-150-N4",null,{"$error":"#N/A"}]
["VA50.4Z-NR-200",null,"SQM50.464R1Z3 to 2\" VKG30"]
["VA50.4Z-NR-250",null,"SQM50.464R1Z3 to 2-1/2\" VKG30"]
["VA50.4Z-NR-300",null,"SQM50.464R1Z3 to 3\" VKG30"]
["VA50.4Z-NR-400",null,"SQM50.464R1Z3 to 4\" VKG30"]
["VA50.4Z-RF-050",null,"SQM50.464R1Z3 to 1/2\" Rp VKG10"]
["VA50.4Z-RF-075",null,"SQM50.464R1Z3 to 3/4\" Rp VKG10"]
["VA50.4Z-RF-100",null,"SQM50.464R1Z3 to 1\" Rp VKG10"]
["VA50.4Z-RF-125",null,"SQM50.464R1Z3 to 1-1/4\" Rp VKG10"]
["VA50.4Z-RF-150",null,"SQM50.464R1Z3 to 1-1/2\" Rp VKG10"]
["VA50.4Z-RF-200",null,"SQM50.464R1Z3 to 2\" Rp VKG10"]
["VA50.4Z-RF-250",null,"SQM50.464R1Z3 to 2-1/2\" Rp VKG10"]
["VA50.4Z-RF-300",null,"SQM50.464R1Z3 to 3\" Rp VKG10"]
["VA50.4Z-RM-100",null,"SQM50.464R1Z3 to 1\" Rp VKG20"]
["VA50.4Z-RM-125",null,"SQM50.464R1Z3 to 1-1/4\" Rp VKG20"]
["VA50.4Z-RM-150",null,"SQM50.464R1Z3 to 1-1/2\" Rp VKG20"]
["VA50.4Z-RM-200",null,"SQM50.464R1Z3  to 2\" Rp VKG20"]
["VA50.4Z-RM-250",null,"SQM50.464R1Z3 to 2-1/2\" Rp VKG20"]
["VA50.4Z-RM-300",null,"SQM50.464R1Z3 to 3\" Rp VKG20"]
["VA50.4Z-RR-150",null,"SQM50.464R1Z3 to 1-1/2\" Rp VKG30"]
["VA50.4Z-RR-200",null,"SQM50.464R1Z3 to 2\" Rp VKG30"]
["VA50.4Z-RR-250",null,"SQM50.464R1Z3 to 2-1/2\" Rp VKG30"]
["VA50.4Z-RR-300",null,"SQM50.464R1Z3 to 3\" Rp VKG30"]
["VA56.54ZR-NF-100",null,"SQM56.564R1Z3R to 1\" VKG10"]
["VA56.54ZR-NF-300",null,"SQM56.564R1Z3R to 3\" VKG10"]
["VA71.2-NF-050",null,"SQN71.203R19 to 1/2\" VKG10"]
["VA71.2-NF-075",null,"SQN71.203R19 to 3/4\" VKG10"]
["VA71.2-NF-100",null,"SQN71.203R19 to 1\" VKG10"]
["VA71.2-NF-125",null,"SQN71.203R19 to 1-1/4\" VKG10"]
["VA71.2-NF-150",null,"SQN71.203R19 to 1-1/2\" VKG10"]
["VA71.2-NF-200",null,"SQN71.203R19 to 2\" VKG10"]
["VA71.2-NF-250",null,"SQN71.203R19 to 2-1/2\" VKG10"]
["VA71.2-NF-300",null,"SQN71.203R19 to 3\" VKG10"]
["VA71.2-NF-400",null,"SQN71.203R19 to 4\" VKG10"]
["VA71.2-NM-100",null,"SQN71.203R19 to 1\" VKG20"]
["VA71.2-NM-125",null,"SQN71.203R19 to 1-1/4\" VKG20"]
["VA71.2-NM-150",null,"SQN71.203R19 to 1-1/2\" VKG20"]
["VA71.2-NM-200",null,"SQN71.203R19 to 2\" VKG20"]
["VA71.2-NM-250",null,"SQN71.203R19  to 2-1/2\" VKG20"]
["VA71.2-NM-300",null,"SQN71.203R19 to 3\" VKG20"]
["VA71.2-NM-400",null,"SQN71.203R19 to 4\" VKG20"]
["VA71.2-NR-150",null,"SQN71.203R19 to 1-1/2\" VKG30"]
["VA71.2-NR-200",null,"SQN71.203R19 to 2\" VKG30"]
["VA71.2-NR-250",null,"SQN71.203R19 to 2-1/2\" VKG30"]
["VA71.2-NR-300",null,"SQN71.203R19 to 3\" VKG30"]
["VA71.2-NR-400",null,"SQN71.203R19 to 4\" VKG30"]
["VA71.2-RF-050",null,"SQN71.203R19 to 1/2\" Rp VKG10"]
["VA71.2-RF-075",null,"SQN71.203R19 to 3/4\" Rp VKG10"]
["VA71.2-RF-100",null,"SQN71.203R19 to 1\" Rp VKG10"]
["VA71.2-RF-125",null,"SQN71.203R19 to 1-1/4\" Rp VKG10"]
["VA71.2-RF-150",null,"SQN71.203R19 to 1-1/2\" Rp VKG10"]
["VA71.2-RF-200",null,"SQN71.203R19 to 2\" Rp VKG10"]
["VA71.2-RF-250",null,"SQN71.203R19 to 2-1/2\" Rp VKG10"]
["VA71.2-RF-300",null,"SQN71.203R19 to 3\" Rp VKG10"]
["VA71.2-RM-100",null,"SQN71.203R19 to 1\" Rp VKG20"]
["VA71.2-RM-125",null,"SQN71.203R19 to 1-1/4\" Rp VKG20"]
["VA71.2-RM-150",null,"SQN71.203R19 to 1-1/2\" Rp VKG20"]
["VA71.2-RM-200",null,"SQN71.203R19  to 2\" Rp VKG20"]
["VA71.2-RM-250",null,"SQN71.203R19 to 2-1/2\" Rp VKG20"]
["VA71.2-RM-300",null,"SQN71.203R19 to 3\" Rp VKG20"]
["VA71.2-RR-150",null,"SQN71.203R19 to 1-1/2\" Rp VKG30"]
["VA71.2-RR-200",null,"SQN71.203R19 to 2\" Rp VKG30"]
["VA71.2-RR-250",null,"SQN71.203R19 to 2-1/2\" Rp VKG30"]
["VA71.2-RR-300",null,"SQN71.203R19  to 3\" Rp VKG30"]
["VA71.4-NF-050",null,"SQN71.203R19 to 1/2\" VKG10"]
["VA71.6-NF-300",null,"SQN71.603R19 to 3\" VKG10"]
["VAGAP191.1P-NF-050",null,"GAP191.1P to 1/2\" VKG10"]
["VAGAP191.1P-NF-075",null,"GAP191.1P to 3/4\" VKG10"]
["VAGAP191.1P-NF-100",null,"GAP191.1P to 1\" VKG10"]
["VAGAP191.1P-NF-125",null,"GAP191.1P to 1-1/4\" VKG10"]
["VAGAP191.1P-NF-150",null,"GAP191.1P to 1-1/2\" VKG10"]
["VAGAP191.1P-NF-200",null,"GAP191.1P to 2\" VKG10"]
["VAGAP191.1P-NF-250",null,"GAP191.1P to 2-1/2\" VKG10"]
["VAGAP191.1P-NF-300",null,"GAP191.1P to 3\" VKG10"]
["VAGAP191.1P-NF-400",null,"GAP191.1P to 4\" VKG10"]
["VAGAP191.1P-NM-100",null,"GAP191.1P to 1\" VKG20"]
["VAGAP191.1P-NM-125",null,"GAP191.1P to 1-1/4\" VKG20"]
["VAGAP191.1P-NM-150",null,"GAP191.1P to 1-1/2\" VKG20"]
["VAGAP191.1P-NM-200",null,"GAP191.1P to 2\" VKG20"]
["VAGAP191.1P-NM-250",null,"GAP191.1P to 2-1/2\" VKG20"]
["VAGAP191.1P-NM-300",null,"GAP191.1P to 3\" VKG20"]
["VAGAP191.1P-NM-400",null,"GAP191.1P to 4\" VKG20"]
["VAGAP191.1P-NR-150",null,"GAP191.1P to 1-1/2\" VKG30"]
["VAGAP191.1P-NR-200",null,"GAP191.1P to 2\" VKG30"]
["VAGAP191.1P-NR-250",null,"GAP191.1P to 2-1/2\" VKG30"]
["VAGAP191.1P-NR-300",null,"GAP191.1P to 3\" VKG30"]
["VAGAP191.1P-NR-400",null,"GAP191.1P to 4\" VKG30"]
["VAGAP196.1P-NF-050",null,"GAP196.1P to 1/2\" VKG10"]
["VAGAP196.1P-NF-075",null,"GAP196.1P to 3/4\" VKG10"]
["VAGAP196.1P-NF-100",null,"GAP196.1P to 1\" VKG10"]
["VAGAP196.1P-NF-125",null,"GAP196.1P to 1-1/4\" VKG10"]
["VAGAP196.1P-NF-150",null,"GAP196.1P to 1-1/2\" VKG10"]
["VAGAP196.1P-NF-200",null,"GAP196.1P to 2\" VKG10"]
["VAGAP196.1P-NF-250",null,"GAP196.1P to 2-1/2\" VKG10"]
["VAGAP196.1P-NF-300",null,"GAP196.1P to 3\" VKG10"]
["VAGAP196.1P-NF-400",null,"GAP196.1P to 4\" VKG10"]
["VAGAP196.1P-NM-100",null,"GAP196.1P to 1\" VKG20"]
["VAGAP196.1P-NM-125",null,"GAP196.1P to 1-1/4\" VKG20"]
["VAGAP196.1P-NM-150",null,"GAP196.1P to 1-1/2\" VKG20"]
["VAGAP196.1P-NM-200",null,"GAP196.1P to 2\" VKG20"]
["VAGAP196.1P-NM-250",null,"GAP196.1P to 2-1/2\" VKG20"]
["VAGAP196.1P-NM-300",null,"GAP196.1P to 3\" VKG20"]
["VAGAP196.1P-NM-400",null,"GAP196.1P to 4\" VKG20"]
["VAGAP196.1P-NR-150",null,"GAP196.1P to 1-1/2\" VKG30"]
["VAGAP196.1P-NR-200",null,"GAP196.1P to 2\" VKG30"]
["VAGAP196.1P-NR-250",null,"GAP196.1P to 2-1/2\" VKG30"]
["VAGAP196.1P-NR-300",null,"GAP196.1P to 3\" VKG30"]
["VAGAP196.1P-NR-400",null,"GAP196.1P to 4\" VKG30"]
["VAGAP-NF-150",null,"1-1/2\" VKG10 w coupling and bracket for GAP actuator"]
["VAGDE161.1N-NF-050",null,"GDE161.1N to 1/2\" VKG10"]
["VAGDE161.1N-NF-075",null,"GDE161.1N to 3/4\" VKG10"]
["VAGDE161.1N-NF-100",null,"GDE161.1N to 1\" VKG10"]
["VAGDE161.1N-NF-125",null,"GDE161.1N to 1-1/4\" VKG10"]
["VAGDE161.1N-NF-150",null,"GDE161.1N to 1-1/2\" VKG10"]
["VAGDE161.1N-NF-200",null,"GDE161.1N to 2\" VKG10"]
["VAGDE161.1N-NF-250",null,"GDE161.1N to 2-1/2\" VKG10"]
["VAGDE161.1N-NF-300",null,"GDE161.1N to 3\" VKG10"]
["VAGDE161.1N-NF-400",null,"GDE161.1N to 4\" VKG10"]
["VAGDE161.1N-NM-100",null,"GDE161.1N to 1\" VKG20"]
["VAGDE161.1N-NM-125",null,"GDE161.1N to 1-1/4\" VKG20"]
["VAGDE161.1N-NM-150",null,"GDE161.1N to 1-1/2\" VKG20"]
["VAGDE161.1N-NM-200",null,"GDE161.1N to 2\" VKG20"]
["VAGDE161.1N-NM-250",null,"GDE161.1N to 2-1/2\" VKG20"]
["VAGDE161.1N-NM-300",null,"GDE161.1N to 3\" VKG20"]
["VAGDE161.1N-NM-400",null,"GDE161.1N to 4\" VKG20"]
["VAGDE161.1N-NR-150",null,"GDE161.1N to 1-1/2\" VKG30"]
["VAGDE161.1N-NR-200",null,"GDE161.1N to 2\" VKG30"]
["VAGDE161.1N-NR-250",null,"GDE161.1N to 2-1/2\" VKG30"]
["VAGDE161.1N-NR-300",null,"GDE161.1N to 3\" VKG30"]
["VAGDE161.1N-NR-400",null,"GDE161.1N to 4\" VKG30"]
["VAGDE161.1P-NF-050",null,"GDE161.1P to 1/2\" VKG10"]
["VAGDE161.1P-NF-075",null,"GDE161.1P to 3/4\" VKG10"]
["VAGDE161.1P-NF-100",null,"GDE161.1P to 1\" VKG10"]
["VAGDE161.1P-NF-125",null,"GDE161.1P to 1-1/4\" VKG10"]
["VAGDE161.1P-NF-150",null,"GDE161.1P to 1-1/2\" VKG10"]
["VAGDE161.1P-NF-200",null,"GDE161.1P to 2\" VKG10"]
["VAGDE161.1P-NF-250",null,"GDE161.1P to 2-1/2\" VKG10"]
["VAGDE161.1P-NF-300",null,"GDE161.1P to 3\" VKG10"]
["VAGDE161.1P-NF-400",null,"GDE161.1P to 4\" VKG10"]
["VAGDE161.1P-NM-100",null,"GDE161.1P to 1\" VKG20"]
["VAGDE161.1P-NM-125",null,"GDE161.1P to 1-1/4\" VKG20"]
["VAGDE161.1P-NM-150",null,"GDE161.1P to 1-1/2\" VKG20"]
["VAGDE161.1P-NM-200",null,"GDE161.1P to 2\" VKG20"]
["VAGDE161.1P-NM-250",null,"GDE161.1P to 2-1/2\" VKG20"]
["VAGDE161.1P-NM-300",null,"GDE161.1P to 3\" VKG20"]
["VAGDE161.1P-NM-400",null,"GDE161.1P to 4\" VKG20"]
["VAGDE161.1P-NR-150",null,"GDE161.1P to 1-1/2\" VKG30"]
["VAGDE161.1P-NR-200",null,"GDE161.1P to 2\" VKG30"]
["VAGDE161.1P-NR-250",null,"GDE161.1P to 2-1/2\" VKG30"]
["VAGDE161.1P-NR-300",null,"GDE161.1P to 3\" VKG30"]
["VAGDE161.1P-NR-400",null,"GDE161.1P to 4\" VKG30"]
["VAGDE161.1Q-NF-050",null,"GDE161.1Q to 1/2\" VKG10"]
["VAGDE161.1Q-NF-075",null,"GDE161.1Q to 3/4\" VKG10"]
["VAGDE161.1Q-NF-100",null,"GDE161.1Q to 1\" VKG10"]
["VAGDE161.1Q-NF-125",null,"GDE161.1Q to 1-1/4\" VKG10"]
["VAGDE161.1Q-NF-150",null,"GDE161.1Q to 1-1/2\" VKG10"]
["VAGDE161.1Q-NF-200",null,"GDE161.1Q to 2\" VKG10"]
["VAGDE161.1Q-NF-250",null,"GDE161.1Q to 2-1/2\" VKG10"]
["VAGDE161.1Q-NF-300",null,"GDE161.1Q to 3\" VKG10"]
["VAGDE161.1Q-NF-400",null,"GDE161.1Q to 4\" VKG10"]
["VAGDE161.1Q-NM-100",null,"GDE161.1Q to 1\" VKG20"]
["VAGDE161.1Q-NM-125",null,"GDE161.1Q to 1-1/4\" VKG20"]
["VAGDE161.1Q-NM-150",null,"GDE161.1Q to 1-1/2\" VKG20"]
["VAGDE161.1Q-NM-200",null,"GDE161.1Q to 2\" VKG20"]
["VAGDE161.1Q-NM-250",null,"GDE161.1Q to 2-1/2\" VKG20"]
["VAGDE161.1Q-NM-300",null,"GDE161.1Q to 3\" VKG20"]
["VAGDE161.1Q-NM-400",null,"GDE161.1Q to 4\" VKG20"]
["VAGDE161.1Q-NR-150",null,"GDE161.1Q to 1-1/2\" VKG30"]
["VAGDE161.1Q-NR-200",null,"GDE161.1Q to 2\" VKG30"]
["VAGDE161.1Q-NR-250",null,"GDE161.1Q to 2-1/2\" VKG30"]
["VAGDE161.1Q-NR-300",null,"GDE161.1Q to 3\" VKG30"]
["VAGDE161.1Q-NR-400",null,"GDE161.1Q to 4\" VKG30"]
["VAGDE161.1T-NF-050",null,"GDE161.1T to 1/2\" VKG10"]
["VAGDE161.1T-NF-075",null,"GDE161.1T to 3/4\" VKG10"]
["VAGDE161.1T-NF-100",null,"GDE161.1T to 1\" VKG10"]
["VAGDE161.1T-NF-125",null,"GDE161.1T to 1-1/4\" VKG10"]
["VAGDE161.1T-NF-150",null,"GDE161.1T to 1-1/2\" VKG10"]
["VAGDE161.1T-NF-200",null,"GDE161.1T to 2\" VKG10"]
["VAGDE161.1T-NF-250",null,"GDE161.1T to 2-1/2\" VKG10"]
["VAGDE161.1T-NF-300",null,"GDE161.1T to 3\" VKG10"]
["VAGDE161.1T-NF-400",null,"GDE161.1T to 4\" VKG10"]
["VAGDE161.1T-NM-100",null,"GDE161.1T to 1\" VKG20"]
["VAGDE161.1T-NM-125",null,"GDE161.1T to 1-1/4\" VKG20"]
["VAGDE161.1T-NM-150",null,"GDE161.1T to 1-1/2\" VKG20"]
["VAGDE161.1T-NM-200",null,"GDE161.1T to 2\" VKG20"]
["VAGDE161.1T-NM-250",null,"GDE161.1T to 2-1/2\" VKG20"]
["VAGDE161.1T-NM-300",null,"GDE161.1T to 3\" VKG20"]
["VAGDE161.1T-NM-400",null,"GDE161.1T to 4\" VKG20"]
["VAGDE161.1T-NR-150",null,"GDE161.1T to 1-1/2\" VKG30"]
["VAGDE161.1T-NR-200",null,"GDE161.1T to 2\" VKG30"]
["VAGDE161.1T-NR-250",null,"GDE161.1T to 2-1/2\" VKG30"]
["VAGDE161.1T-NR-300",null,"GDE161.1T to 3\" VKG30"]
["VAGDE161.1T-NR-400",null,"GDE161.1T to 4\" VKG30"]
["VAGDE163.1P-NF-050",null,"GDE163.1P to 1/2\" VKG10"]
["VAGDE163.1P-NF-075",null,"GDE163.1P to 3/4\" VKG10"]
["VAGDE163.1P-NF-100",null,"GDE163.1P to 1\" VKG10"]
["VAGDE163.1P-NF-125",null,"GDE163.1P to 1-1/4\" VKG10"]
["VAGDE163.1P-NF-150",null,"GDE163.1P to 1-1/2\" VKG10"]
["VAGDE163.1P-NF-200",null,"GDE163.1P to 2\" VKG10"]
["VAGDE163.1P-NF-250",null,"GDE163.1P to 2-1/2\" VKG10"]
["VAGDE163.1P-NF-300",null,"GDE163.1P to 3\" VKG10"]
["VAGDE163.1P-NF-400",null,"GDE163.1P to 4\" VKG10"]
["VAGDE163.1P-NM-100",null,"GDE163.1P to 1\" VKG20"]
["VAGDE163.1P-NM-125",null,"GDE163.1P to 1-1/4\" VKG20"]
["VAGDE163.1P-NM-150",null,"GDE163.1P to 1-1/2\" VKG20"]
["VAGDE163.1P-NM-200",null,"GDE163.1P to 2\" VKG20"]
["VAGDE163.1P-NM-250",null,"GDE163.1P to 2-1/2\" VKG20"]
["VAGDE163.1P-NM-300",null,"GDE163.1P to 3\" VKG20"]
["VAGDE163.1P-NM-400",null,"GDE163.1P to 4\" VKG20"]
["VAGDE163.1P-NR-150",null,"GDE163.1P to 1-1/2\" VKG30"]
["VAGDE163.1P-NR-200",null,"GDE163.1P to 2\" VKG30"]
["VAGDE163.1P-NR-250",null,"GDE163.1P to 2-1/2\" VKG30"]
["VAGDE163.1P-NR-300",null,"GDE163.1P to 3\" VKG30"]
["VAGDE163.1P-NR-400",null,"GDE163.1P to 4\" VKG30"]
["VAGDE164.1P-NF-050",null,"GDE164.1P to 1/2\" VKG10"]
["VAGDE164.1P-NF-075",null,"GDE164.1P to 3/4\" VKG10"]
["VAGDE164.1P-NF-100",null,"GDE164.1P to 1\" VKG10"]
["VAGDE164.1P-NF-125",null,"GDE164.1P to 1-1/4\" VKG10"]
["VAGDE164.1P-NF-150",null,"GDE164.1P to 1-1/2\" VKG10"]
["VAGDE164.1P-NF-200",null,"GDE164.1P to 2\" VKG10"]
["VAGDE164.1P-NF-250",null,"GDE164.1P to 2-1/2\" VKG10"]
["VAGDE164.1P-NF-300",null,"GDE164.1P to 3\" VKG10"]
["VAGDE164.1P-NF-400",null,"GDE164.1P to 4\" VKG10"]
["VAGDE164.1P-NM-100",null,"GDE164.1P to 1\" VKG20"]
["VAGDE164.1P-NM-125",null,"GDE164.1P to 1-1/4\" VKG20"]
["VAGDE164.1P-NM-150",null,"GDE164.1P to 1-1/2\" VKG20"]
["VAGDE164.1P-NM-200",null,"GDE164.1P to 2\" VKG20"]
["VAGDE164.1P-NM-250",null,"GDE164.1P to 2-1/2\" VKG20"]
["VAGDE164.1P-NM-300",null,"GDE164.1P to 3\" VKG20"]
["VAGDE164.1P-NM-400",null,"GDE164.1P to 4\" VKG20"]
["VAGDE164.1P-NR-150",null,"GDE164.1P to 1-1/2\" VKG30"]
["VAGDE164.1P-NR-200",null,"GDE164.1P to 2\" VKG30"]
["VAGDE164.1P-NR-250",null,"GDE164.1P to 2-1/2\" VKG30"]
["VAGDE164.1P-NR-300",null,"GDE164.1P to 3\" VKG30"]
["VAGDE164.1P-NR-400",null,"GDE164.1P to 4\" VKG30"]
["VAGDE166.1P-NF-050",null,"GDE166.1P to 1/2\" VKG10"]
["VAGDE166.1P-NF-075",null,"GDE166.1P to 3/4\" VKG10"]
["VAGDE166.1P-NF-100",null,"GDE166.1P to 1\" VKG10"]
["VAGDE166.1P-NF-125",null,"GDE166.1P to 1-1/4\" VKG10"]
["VAGDE166.1P-NF-150",null,"GDE166.1P to 1-1/2\" VKG10"]
["VAGDE166.1P-NF-200",null,"GDE166.1P to 2\" VKG10"]
["VAGDE166.1P-NF-250",null,"GDE166.1P to 2-1/2\" VKG10"]
["VAGDE166.1P-NF-300",null,"GDE166.1P to 3\" VKG10"]
["VAGDE166.1P-NF-400",null,"GDE166.1P to 4\" VKG10"]
["VAGDE166.1P-NM-100",null,"GDE166.1P to 1\" VKG20"]
["VAGDE166.1P-NM-125",null,"GDE166.1P to 1-1/4\" VKG20"]
["VAGDE166.1P-NM-150",null,"GDE166.1P to 1-1/2\" VKG20"]
["VAGDE166.1P-NM-200",null,"GDE166.1P to 2\" VKG20"]
["VAGDE166.1P-NM-250",null,"GDE166.1P to 2-1/2\" VKG20"]
["VAGDE166.1P-NM-300",null,"GDE166.1P to 3\" VKG20"]
["VAGDE166.1P-NM-400",null,"GDE166.1P to 4\" VKG20"]
["VAGDE166.1P-NR-150",null,"GDE166.1P to 1-1/2\" VKG30"]
["VAGDE166.1P-NR-200",null,"GDE166.1P to 2\" VKG30"]
["VAGDE166.1P-NR-250",null,"GDE166.1P to 2-1/2\" VKG30"]
["VAGDE166.1P-NR-300",null,"GDE166.1P to 3\" VKG30"]
["VAGDE166.1P-NR-400",null,"GDE166.1P to 4\" VKG30"]
["VAGMA166.1U-NF-050",null,"GMA166.1U to 1/2\" VKG10"]
["VAGMA166.1U-NF-075",null,"GMA166.1U to 3/4\" VKG10"]
["VAGMA166.1U-NF-100",null,"GMA166.1U to 1\" VKG10"]
["VAGMA166.1U-NF-125",null,"GMA166.1U to 1-1/4\" VKG10"]
["VAGMA166.1U-NF-150",null,"GMA166.1U to 1-1/2\" VKG10"]
["VAGMA166.1U-NF-200",null,"GMA166.1U to 2\" VKG10"]
["VAGMA166.1U-NF-250",null,"GMA166.1U to 2-1/2\" VKG10"]
["VAGMA166.1U-NF-300",null,"GMA166.1U to 3\" VKG10"]
["VAGMA166.1U-NF-400",null,"GMA166.1U to 4\" VKG10"]
["VAGMA166.1U-NM-100",null,"GMA166.1U to 1\" VKG20"]
["VAGMA166.1U-NM-125",null,"GMA166.1U to 1-1/4\" VKG20"]
["VAGMA166.1U-NM-150",null,"GMA166.1U to 1-1/2\" VKG20"]
["VAGMA166.1U-NM-200",null,"GMA166.1U to 2\" VKG20"]
["VAGMA166.1U-NM-250",null,"GMA166.1U to 2-1/2\" VKG20"]
["VAGMA166.1U-NM-300",null,"GMA166.1U to 3\" VKG20"]
["VAGMA166.1U-NM-400",null,"GMA166.1U to 4\" VKG20"]
["VAGMA166.1U-NR-150",null,"GMA166.1U to 1-1/2\" VKG30"]
["VAGMA166.1U-NR-200",null,"GMA166.1U to 2\" VKG30"]
["VAGMA166.1U-NR-250",null,"GMA166.1U to 2-1/2\" VKG30"]
["VAGMA166.1U-NR-300",null,"GMA166.1U to 3\" VKG30"]
["VAGMA166.1U-NR-400",null,"GMA166.1U to 4\" VKG30"]
["VAGMA221.1U-NF-050",null,"GMA221.1U to 1/2\" VKG10"]
["VAGMA221.1U-NF-075",null,"GMA221.1U to 3/4\" VKG10"]
["VAGMA221.1U-NF-100",null,"GMA221.1U to 1\" VKG10"]
["VAGMA221.1U-NF-125",null,"GMA221.1U to 1-1/4\" VKG10"]
["VAGMA221.1U-NF-150",null,"GMA221.1U to 1-1/2\" VKG10"]
["VAGMA221.1U-NF-200",null,"GMA221.1U to 2\" VKG10"]
["VAGMA221.1U-NF-250",null,"GMA221.1U to 2-1/2\" VKG10"]
["VAGMA221.1U-NF-300",null,"GMA221.1U to 3\" VKG10"]
["VAGMA221.1U-NF-400",null,"GMA221.1U to 4\" VKG10"]
["VAGMA221.1U-NM-100",null,"GMA221.1U to 1\" VKG20"]
["VAGMA221.1U-NM-125",null,"GMA221.1U to 1-1/4\" VKG20"]
["VAGMA221.1U-NM-150",null,"GMA221.1U to 1-1/2\" VKG20"]
["VAGMA221.1U-NM-200",null,"GMA221.1U to 2\" VKG20"]
["VAGMA221.1U-NM-250",null,"GMA221.1U to 2-1/2\" VKG20"]
["VAGMA221.1U-NM-300",null,"GMA221.1U to 3\" VKG20"]
["VAGMA221.1U-NM-400",null,"GMA221.1U to 4\" VKG20"]
["VAGMA221.1U-NR-150",null,"GMA221.1U to 1-1/2\" VKG30"]
["VAGMA221.1U-NR-200",null,"GMA221.1U to 2\" VKG30"]
["VAGMA221.1U-NR-250",null,"GMA221.1U to 2-1/2\" VKG30"]
["VAGMA221.1U-NR-300",null,"GMA221.1U to 3\" VKG30"]
["VAGMA221.1U-NR-400",null,"GMA221.1U to 4\" VKG30"]
["VAGMA226.1U-NF-050",null,"GMA226.1U to 1/2\" VKG10"]
["VAGMA226.1U-NF-075",null,"GMA226.1U to 3/4\" VKG10"]
["VAGMA226.1U-NF-100",null,"GMA226.1U to 1\" VKG10"]
["VAGMA226.1U-NF-125",null,"GMA226.1U to 1-1/4\" VKG10"]
["VAGMA226.1U-NF-150",null,"GMA226.1U to 1-1/2\" VKG10"]
["VAGMA226.1U-NF-200",null,"GMA226.1U to 2\" VKG10"]
["VAGMA226.1U-NF-250",null,"GMA226.1U to 2-1/2\" VKG10"]
["VAGMA226.1U-NF-300",null,"GMA226.1U to 3\" VKG10"]
["VAGMA226.1U-NF-400",null,"GMA226.1U to 4\" VKG10"]
["VAGMA226.1U-NM-100",null,"GMA226.1U to 1\" VKG20"]
["VAGMA226.1U-NM-125",null,"GMA226.1U to 1-1/4\" VKG20"]
["VAGMA226.1U-NM-150",null,"GMA226.1U to 1-1/2\" VKG20"]
["VAGMA226.1U-NM-200",null,"GMA226.1U to 2\" VKG20"]
["VAGMA226.1U-NM-250",null,"GMA226.1U to 2-1/2\" VKG20"]
["VAGMA226.1U-NM-300",null,"GMA226.1U to 3\" VKG20"]
["VAGMA226.1U-NM-400",null,"GMA226.1U to 4\" VKG20"]
["VAGMA226.1U-NR-150",null,"GMA226.1U to 1-1/2\" VKG30"]
["VAGMA226.1U-NR-200",null,"GMA226.1U to 2\" VKG30"]
["VAGMA226.1U-NR-250",null,"GMA226.1U to 2-1/2\" VKG30"]
["VAGMA226.1U-NR-300",null,"GMA226.1U to 3\" VKG30"]
["VAGMA226.1U-NR-400",null,"GMA226.1U to 4\" VKG30"]
["VAGQD151.1P-NF-050",null,"GQD151.1P to 1/2\" VKG10"]
["VAGQD151.1P-NF-075",null,"GQD151.1P to 3/4\" VKG10"]
["VAGQD151.1P-NF-100",null,"GQD151.1P to 1\" VKG10"]
["VAGQD151.1P-NF-125",null,"GQD151.1P to 1-1/4\" VKG10"]
["VAGQD151.1P-NF-150",null,"GQD151.1P to 1-1/2\" VKG10"]
["VAGQD151.1P-NF-200",null,"GQD151.1P to 2\" VKG10"]
["VAGQD151.1P-NF-250",null,"GQD151.1P to 2-1/2\" VKG10"]
["VAGQD151.1P-NF-300",null,"GQD151.1P to 3\" VKG10"]
["VAGQD151.1P-NF-400",null,"GQD151.1P to 4\" VKG10"]
["VAGQD151.1P-NM-100",null,"GQD151.1P to 1\" VKG20"]
["VAGQD151.1P-NM-125",null,"GQD151.1P to 1-1/4\" VKG20"]
["VAGQD151.1P-NM-150",null,"GQD151.1P to 1-1/2\" VKG20"]
["VAGQD151.1P-NM-200",null,"GQD151.1P to 2\" VKG20"]
["VAGQD151.1P-NM-250",null,"GQD151.1P to 2-1/2\" VKG20"]
["VAGQD151.1P-NM-300",null,"GQD151.1P to 3\" VKG20"]
["VAGQD151.1P-NM-400",null,"GQD151.1P to 4\" VKG20"]
["VAGQD151.1P-NR-150",null,"GQD151.1P to 1-1/2\" VKG30"]
["VAGQD151.1P-NR-200",null,"GQD151.1P to 2\" VKG30"]
["VAGQD151.1P-NR-250",null,"GQD151.1P to 2-1/2\" VKG30"]
["VAGQD151.1P-NR-300",null,"GQD151.1P to 3\" VKG30"]
["VAGQD151.1P-NR-400",null,"GQD151.1P to 4\" VKG30"]
["VAGQD156.1P-NF-050",null,"GQD156.1P to 1/2\" VKG10"]
["VAGQD156.1P-NF-075",null,"GQD156.1P to 3/4\" VKG10"]
["VAGQD156.1P-NF-100",null,"GQD156.1P to 1\" VKG10"]
["VAGQD156.1P-NF-125",null,"GQD156.1P to 1-1/4\" VKG10"]
["VAGQD156.1P-NF-150",null,"GQD156.1P to 1-1/2\" VKG10"]
["VAGQD156.1P-NF-200",null,"GQD156.1P to 2\" VKG10"]
["VAGQD156.1P-NF-250",null,"GQD156.1P to 2-1/2\" VKG10"]
["VAGQD156.1P-NF-300",null,"GQD156.1P to 3\" VKG10"]
["VAGQD156.1P-NF-400",null,"GQD156.1P to 4\" VKG10"]
["VAGQD156.1P-NM-100",null,"GQD156.1P to 1\" VKG20"]
["VAGQD156.1P-NM-125",null,"GQD156.1P to 1-1/4\" VKG20"]
["VAGQD156.1P-NM-150",null,"GQD156.1P to 1-1/2\" VKG20"]
["VAGQD156.1P-NM-200",null,"GQD156.1P to 2\" VKG20"]
["VAGQD156.1P-NM-250",null,"GQD156.1P to 2-1/2\" VKG20"]
["VAGQD156.1P-NM-300",null,"GQD156.1P to 3\" VKG20"]
["VAGQD156.1P-NM-400",null,"GQD156.1P to 4\" VKG20"]
["VAGQD156.1P-NR-150",null,"GQD156.1P to 1-1/2\" VKG30"]
["VAGQD156.1P-NR-200",null,"GQD156.1P to 2\" VKG30"]
["VAGQD156.1P-NR-250",null,"GQD156.1P to 2-1/2\" VKG30"]
["VAGQD156.1P-NR-300",null,"GQD156.1P to 3\" VKG30"]
["VAGQD156.1P-NR-400",null,"GQD156.1P to 4\" VKG30"]
["VAGQD221.1U-NF-050",null,"GQD221.1U to 1/2\" VKG10"]
["VAGQD221.1U-NF-075",null,"GQD221.1U to 3/4\" VKG10"]
["VAGQD221.1U-NF-100",null,"GQD221.1U to 1\" VKG10"]
["VAGQD221.1U-NF-125",null,"GQD221.1U to 1-1/4\" VKG10"]
["VAGQD221.1U-NF-150",null,"GQD221.1U to 1-1/2\" VKG10"]
["VAGQD221.1U-NF-200",null,"GQD221.1U to 2\" VKG10"]
["VAGQD221.1U-NF-250",null,"GQD221.1U to 2-1/2\" VKG10"]
["VAGQD221.1U-NF-300",null,"GQD221.1U to 3\" VKG10"]
["VAGQD221.1U-NF-400",null,"GQD221.1U to 4\" VKG10"]
["VAGQD221.1U-NM-100",null,"GQD221.1U to 1\" VKG20"]
["VAGQD221.1U-NM-125",null,"GQD221.1U to 1-1/4\" VKG20"]
["VAGQD221.1U-NM-150",null,"GQD221.1U to 1-1/2\" VKG20"]
["VAGQD221.1U-NM-200",null,"GQD221.1U to 2\" VKG20"]
["VAGQD221.1U-NM-250",null,"GQD221.1U to 2-1/2\" VKG20"]
["VAGQD221.1U-NM-300",null,"GQD221.1U to 3\" VKG20"]
["VAGQD221.1U-NM-400",null,"GQD221.1U to 4\" VKG20"]
["VAGQD221.1U-NR-150",null,"GQD221.1U to 1-1/2\" VKG30"]
["VAGQD221.1U-NR-200",null,"GQD221.1U to 2\" VKG30"]
["VAGQD221.1U-NR-250",null,"GQD221.1U to 2-1/2\" VKG30"]
["VAGQD221.1U-NR-300",null,"GQD221.1U to 3\" VKG30"]
["VAGQD221.1U-NR-400",null,"GQD221.1U to 4\" VKG30"]
["VAGQD226.1U-NF-050",null,"GQD226.1U to 1/2\" VKG10"]
["VAGQD226.1U-NF-075",null,"GQD226.1U to 3/4\" VKG10"]
["VAGQD226.1U-NF-100",null,"GQD226.1U to 1\" VKG10"]
["VAGQD226.1U-NF-125",null,"GQD226.1U to 1-1/4\" VKG10"]
["VAGQD226.1U-NF-150",null,"GQD226.1U to 1-1/2\" VKG10"]
["VAGQD226.1U-NF-200",null,"GQD226.1U to 2\" VKG10"]
["VAGQD226.1U-NF-250",null,"GQD226.1U to 2-1/2\" VKG10"]
["VAGQD226.1U-NF-300",null,"GQD226.1U to 3\" VKG10"]
["VAGQD226.1U-NF-400",null,"GQD226.1U to 4\" VKG10"]
["VAGQD226.1U-NM-100",null,"GQD226.1U to 1\" VKG20"]
["VAGQD226.1U-NM-125",null,"GQD226.1U to 1-1/4\" VKG20"]
["VAGQD226.1U-NM-150",null,"GQD226.1U to 1-1/2\" VKG20"]
["VAGQD226.1U-NM-200",null,"GQD226.1U to 2\" VKG20"]
["VAGQD226.1U-NM-250",null,"GQD226.1U to 2-1/2\" VKG20"]
["VAGQD226.1U-NM-300",null,"GQD226.1U to 3\" VKG20"]
["VAGQD226.1U-NM-400",null,"GQD226.1U to 4\" VKG20"]
["VAGQD226.1U-NR-150",null,"GQD226.1U to 1-1/2\" VKG30"]
["VAGQD226.1U-NR-200",null,"GQD226.1U to 2\" VKG30"]
["VAGQD226.1U-NR-250",null,"GQD226.1U to 2-1/2\" VKG30"]
["VAGQD226.1U-NR-300",null,"GQD226.1U to 3\" VKG30"]
["VAGQD226.1U-NR-400",null,"GQD226.1U to 4\" VKG30"]
["VGD20.253U",null,"1\" double valve, requires two AGF... flanges"]
["VGD20.323U",null,"1-1/4\" double valve, requires two AGF... flanges"]
["VGD20.403U",null,"1-1/2\" double valve, requires two AGF... flanges"]
["VGD20.503U",null,"2\" double valve, requires two AGF... flanges"]
["VGD40.065U",null,"2-1/2\" NPT threaded, double valve"]
["VGD40.080U",null,"3\" NPT threaded, double valve"]
["VGD40.100U",null,"4\"  ANSI flanged, double valve"]
["VGD40.150U",null,"6\" ANSI flanged, double valve"]
["VGG10.154U",null,"1/2\" NPT single valve"]
["VGG10.204U",null,"3/4\" NPT single valve"]
["VGG10.254U",null,"1\" NPT single valve"]
["VGG10.404U",null,"1-1/2\" NPT single valve"]
["VGG10.504U",null,"2\" NPT single valve"]
["VGG10.654U",null,"2 1/2\" NPT single valve"]
["VGG10.804U",null,"3\" NPT single valve"]
["VKG10.015U",null,"1/2\" full port butterfly valve"]
["VKG10.020U",null,"3/4\" full port butterfly valve"]
["VKG10.025U",null,"1\" full port butterfly valve"]
["VKG10.032U",null,"1-1/4\" full port butterfly valve"]
["VKG10.040U",null,"1-1/2\" full port butterfly valve"]
["VKG10.050U",null,"2\" full port butterfly valve"]
["VKG10.065U",null,"2-1/2\" full port butterfly valve"]
["VKG10.080U",null,"3\" full port butterfly valve"]
["VKG10.100U",null,"4\" full port butterfly valve"]
["VKG20.025U",null,"1\" medium port butterfly valve"]
["VKG20.032U",null,"1-1/4\" medium port butterfly valve"]
["VKG20.040U",null,"1-1/2\" medium port butterfly valve"]
["VKG20.050U",null,"2\" medium port butterfly valve"]
["VKG20.065U",null,"2-1/2\" medium port butterfly valve"]
["VKG20.080U",null,"3\" medium port butterfly valve"]
["VKG20.100U",null,"4\" medium port butterfly valve"]
["VKG30.040U",null,"1-1/2\" reduced port butterfly valve"]
["VKG30.050U",null,"2\" reduced port butterfly valve"]
["VKG30.065U",null,"2-1/2\" reduced port butterfly valve"]
["VKG30.080U",null,"3\" reduced port butterfly valve"]
["VKG30.100U",null,"4\" reduced port butterfly valve"]
["VRD40.040U",null,"1-1/2\" threaded, bio gas, UL double valve"]
["VRD40.050U",null,"2\" threaded, bio gas, UL double valve"]
["VRD40.065UF",null,"2-1/2\" flanged, bio gas, UL double valve"]
["VRD40.080UF",null,"3\" flanged, bio gas, UL double valve"]
["VRD40.100UF",null,"4\" flanged, bio gas, UL double valve"]
["VRD40.150UF",null,"6\" flanged, bio gas, UL double valve"]
["VRG10.015E",null,"1/2\" RP full port bio gas butterfly valve"]
["VRG10.015U",null,"1/2\" full port bio gas butterfly valve"]
["VRG10.020E",null,"3/4\" RP full port bio gas butterfly valve"]
["VRG10.020U",null,"3/4\" full port bio gas butterfly valve"]
["VRG10.025E",null,"1\" RP full port bio gas butterfly valve"]
["VRG10.025U",null,"1\" full port bio gas butterfly valve"]
["VRG10.032E",null,"1-1/4\" RP full port bio gas butterfly valve"]
["VRG10.032U",null,"1-1/4\" full port bio gas butterfly valve"]
["VRG10.040E",null,"1-1/2\" RP full port bio gas butterfly valve"]
["VRG10.040U",null,"1-1/2\" full port bio gas butterfly valve"]
["VRG10.050E",null,"2\" RP full port bio gas butterfly valve"]
["VRG10.050U",null,"2\" full port bio gas butterfly valve"]
["VRG10.065E",null,"2-1/2\" RP full port bio gas butterfly valve"]
["VRG10.065U",null,"2-1/2\" full port bio gas butterfly valve"]
["VRG10.080E",null,"3\" RP full port bio gas butterfly valve"]
["VRG10.080U",null,"3\" full port bio gas butterfly valve"]
["VRG10.100U",null,"4\" full port bio gas butterfly valve"]
["VRG20.025E",null,"1\" RP medium port bio gas butterfly valve"]
["VRG20.025U",null,"1\" medium port bio gas butterfly valve"]
["VRG20.032E",null,"1-1/4\" RP medium port bio gas butterfly valve"]
["VRG20.032U",null,"1-1/4\" medium port bio gas butterfly valve"]
["VRG20.040E",null,"1-1/2\" RP medium port bio gas butterfly valve"]
["VRG20.040U",null,"1-1/2\" medium port bio gas butterfly valve"]
["VRG20.050E",null,"2\" RP medium port bio gas butterfly valve"]
["VRG20.050U",null,"2\" medium port bio gas butterfly valve"]
["VRG20.065E",null,"2-1/2\" RP medium port bio gas butterfly valve"]
["VRG20.065U",null,"2-1/2\" medium port bio gas butterfly valve"]
["VRG20.080E",null,"3\" RP medium port bio gas butterfly valve"]
["VRG20.080U",null,"3\" medium port bio gas butterfly valve"]
["VRG20.100U",null,"4\" medium port bio gas butterfly valve"]
["VRG30.040E",null,"1-1/2\" RP reduced port bio gas butterfly valve"]
["VRG30.040U",null,"1-1/2\" reduced port bio gas butterfly valve"]
["VRG30.050E",null,"2\" RP reduced port bio gas butterfly valve"]
["VRG30.050U",null,"2\" reduced port bio gas butterfly valve"]
["VRG30.065E",null,"2-1/2\" RP reduced port bio gas butterfly valve"]
["VRG30.065U",null,"2-1/2\" reduced port bio gas butterfly valve"]
["VRG30.080E",null,"3\" RP reduced port bio gas butterfly valve"]
["VRG30.080U",null,"3\" reduced port bio gas butterfly valve"]
["VRG30.100U",null,"4\" reduced port bio gas butterfly valve"]

{"sheet":"FPL Copy Paste Sheet","index":5,"n_rows":6,"n_cols":2,"rows_kept":6,"cut":false,"hidden":true,"merged":[]}
["How to update the GVQP with new pricing"]
["Equation:","INDEX(MasterPrices[#Data],MATCH(SCCParts[@[SCC Part Number]:[SCC Part Number]],MasterPrices[[SCC Part Number]:[SCC Part Number]],0),MATCH(SCCParts[[#Headers],[Product Line]],MasterPrices[#Headers],0))"]
["Paste Master Price List Table below as values only with the headings. Name the table MasterPrices."]
["Paste the equation above in B2 of the SCCParts table. Pull it all the way down and then all the way across - select fill without formating"]
["Do a copy paste VALUES ONLY on all of the data in the SCCParts table except the part numbers column."]
["Delete the MasterPrices table below"]

{"sheet":"Quote","index":6,"n_rows":48,"n_cols":5,"rows_kept":48,"cut":false,"hidden":false,"merged":[[6,1,6,2],[7,1,7,2],[8,1,8,2],[69,0,69,3],[37,0,37,4],[9,0,10,4],[36,0,36,4]]}
[null,null,"1250 Lunt Ave."]
[null,null,"Elk Grove Village, IL 60007"]
[null,null,"Ph: 224‐366‐8445"]
[null,null,"Fax: 224‐366‐8454"]
[null,null,"Email: customerservice@scccombustion.com",null,{"$f":"\"r\"&MID(CustDesg[SCC Gas Valve Sizing Program],10,3)&\" \"&CustDesg[Price List]","v":"r1.5 PL-S"}]
[]
["To:",null,null,"Date:"]
["Attn:"]
[]
["Parts list includes SCC components only! Piping and assembly of gas train not included.\nIf a fully assembled gas train is desired please call your SCC sales manager."]
[]
[null,null,"IFERROR(INDEX(SCCParts[#Data],MATCH([@[Part Number]],SCCParts[SCC Part Number],0),MATCH(\"Description\",SCCParts[#Headers],0)),\"\")","IFERROR(INDEX(SCCParts[#Data],MATCH([@[Part Number]],SCCParts[SCC Part Number],0),MATCH(CustDesg[Price List],SCCParts[#Headers],0)),\"Not in PL\")","IFERROR([@[Price Each]]*[@Qty],\"\")"]
["Part Number","Qty","Description","Price Each","Extended Price"]
[]
[]
[]
[]
[]
[]
[]
[]
[]
[]
[]
[]
[]
[]
[]
[]
[]
[]
[]
[]
["Total",null,null,null,{"$f":"SUBTOTAL(109,QuoteTable[Extended Price])","v":0}]
[]
["Accepted by: ",null,"Date:"]
["Lead time is subject to change and will be confirmed after receipt of order. All orders are subject to credit approval and SCC Inc. payment terms as outlined in sections 2.a and 2.b. of SCC Inc. Standard Terms & Conditions. Please refer to SCC Standard Terms & Conditions sections 5, 6, & 7 for warranty & return guidelines. Please refer to SCC Standard Terms & Conditions for full detail of applicable terms."]
["Note: The below image is a simplified representation of an assembled fuel train using the configured parts. This image shows critical flow characteristics and dimensions. This image is not to scale. Additional accessories are not shown (actuators, pressure switches…etc.)."]
[null,null,null,"Description","Value"]
[null,null,null,"Q\nGas Flow at High Fire","4000  SCFH"]
[null,null,null,"Ps\nGas Supply Pressure","3  PSIG"]
[null,null,null,"Min Required Supply Press (inWC)","2.06  PSIG"]
[null,null,null,"Pb\nPressure at Burner Manifold","17  inWC"]
[null,null,null,"V1\nGas Velocity after SSOV ","107  (ft/s)"]
[null,null,null,"Recommended min sensing pipe size","1.25\""]
[null,null,null,"D1\nMin dist from SKP25 to sensing tap","5x Pipe Dia"]
[null,null,null,"",""]
[null,null,null,"D2\nMin dist from sensing tap to next obstruction","2x Pipe Dia"]

{"sheet":"Notes","index":7,"n_rows":27,"n_cols":4,"rows_kept":27,"cut":false,"hidden":false,"merged":[]}
[]
[]
["Standard Gas Properties"]
["Std Gas","Specific Gravity","Heating Value"]
["Butane",2,3200]
["Digester",0.86,550]
["Natural",0.64,1000]
["Propane",1.52,2500]
[]
[]
[]
[]
[]
["Pictures needed"]
["Train Type","type of valve","VKG","Count"]
["trad",1,"No",1]
["trad",2,"No",5]
["trad","2-1's","No",9]
["trad",1,"Yes",2]
["trad",2,"Yes",6]
["trad","2-1's","Yes",10]
["Comb",1,"No",3]
["Comb",2,"No",7]
["Comb","2-1's","No",11]
["Comb",1,"Yes",4]
["Comb",2,"Yes",8]
["Comb","2-1's","Yes",12]

{"sheet":"BOM","index":8,"n_rows":17,"n_cols":3,"rows_kept":17,"cut":false,"hidden":true,"merged":[]}
[]
["Category","Part Number","Qty"]
["FRV / VA",{"$f":"VKGVAFinalSelect[Part '#]","v":""},{"$f":"Interface!E10","v":1}]
["SSOV",{"$f":"SSOVSelection[Part '#]","v":""},{"$f":"IFERROR(SSOVSelection[QTY]*Interface!E10,0)","v":0}]
["Vent Plate",{"$f":"VentPSelect[Part '#]","v":""},{"$f":"Interface!E10","v":1}]
["Inlet Flange",{"$f":"InFlange[Part '#]","v":""},{"$f":"Interface!E10","v":1}]
["Outlet flange",{"$f":"OutFlange[Part '#]","v":""},{"$f":"Interface!E10","v":1}]
["Actuator 2",{"$f":"IFERROR(Act2Select[Part '#],\"\")","v":""},{"$f":"Interface!E10","v":1}]
["Actuator 1",{"$f":"Act1Select[Part '#]","v":""},{"$f":"Interface!E10","v":1}]
["SKP25 Spring",{"$f":"SKPSpringSelect[Part '#]","v":""},{"$f":"Interface!E10","v":1}]
["SKP Nema 4's",{"$f":"'Data, Calcs, Selections'!BR3","v":""},{"$f":"'Data, Calcs, Selections'!BS3*Interface!E10","v":0}]
["SKP Damping Orifice",{"$f":"'Data, Calcs, Selections'!BR4","v":""},{"$f":"Interface!E10*'Data, Calcs, Selections'!BS4","v":0}]
["SKP Heaters",{"$f":"'Data, Calcs, Selections'!BR5","v":""},{"$f":"Interface!E10*'Data, Calcs, Selections'!BS5","v":0}]
["LG Press Switch",{"$f":"LGPSSelection[Part '#]","v":"Not Required"},{"$f":"Interface!E10","v":1}]
["HG Press Switch",{"$f":"HGPSSelection[Part '#]","v":""},{"$f":"Interface!E10","v":1}]
["VP Press Swtich",{"$f":"VPPSSelection[Part '#]","v":""},{"$f":"Interface!E10","v":1}]
["NEMA 3R for PS's",{"$f":"PSN3RSelect[Part '#]","v":""},{"$f":"PSN3RSelect[Qty]*Interface!E10","v":0}]

{"sheet":"Image Array","index":9,"n_rows":13,"n_cols":3,"rows_kept":13,"cut":false,"hidden":true,"merged":[]}
["None",null,"NoneQ"]
["Trad1No",null,"Trad1NoQ"]
["Trad2No",null,"Trad2NoQ"]
["Trad2-1'sNo",null,"Trad2-1'sNoQ"]
["Trad1Yes",null,"Trad1YesQ"]
["Trad2Yes",null,"Trad2YesQ"]
["Trad2-1'sYes",null,"Trad2-1'sYesQ"]
["Comb1No",null,"Comb1NoQ"]
["Comb2No",null,"Comb2NoQ"]
["Comb2-1'sNo",null,"Comb2-1'sNoQ"]
["Comb1Yes",null,"Comb1YesQ"]
["Comb2Yes",null,"Comb2YesQ"]
["Comb2-1'sYes",null,"Comb2-1'sYesQ"]